Workbook

Sheet Cover
B2: Nevada NEM Pro Forma Model
B4: Prepared by:
B9: 101 Montgomery Street, Suite 1600
B10: San Francisco, CA 94104
B11: (415) 391-5100
B13: 2014-05-01
B15: All costs expressed in nominal dollars
B17: Contents:
B19: Financial Inputs: | C19: General financing, taxes, and PPA contract input assumptions
B20: Resource & Utility Inputs: | C20: Utiltiy incentives and system costs, size, and performance inputs by resource and utility
B21: IPP Proforma: | C21: Cash-flow pro forma model that calculates levelized PPA assuming project financing by IPP
B22: Taxes: | C22: Tax calculations used in the IPP pro forma model
B23: Debt and DSCR: | C23: Debt and DSCR calculations used in the IPP pro forma model
B24: Equity Optimizer: | C24: DSCR model that calculates the optimal debt and equity shares
B25: Summary Calcs: | C25: LCOC outputs by cost category for all cases
B26: Summary Graphs: | C26: Graphs of installed costs, utility incentive levels, and LCOC estimates by case
B27: Public Tool Inputs: | C27: Mapping of LCOC outputs by case to NV NEM Public Tool groups
B28: Lists: | C28: Stored indices (no user interaction)
B30: Color Scheme:
B31: yellow: | C31: User Input
B32: blue: | C32: Calculated Input
B33: orange: | C33: Dropdown Menu Input
B34: gray: | C34: Fixed Input
B35: green: | C35: Calculated Output to NEM Public Tool
B36: blue text: | C36: Values Hard-Coded by Macros

Sheet Financial Inputs
B2: General Resource Financing Assumptions
A3: All costs expressed in nominal dollars
B5: Annual Inputs
B7: Financing | F7: Federal Tax Incentives | L7: GDPDEF for PTC Escalation | O7: Historical Values Used for PTC Calculation
B8: Year | C8: After-Tax WACC | D8: Cost of Debt | F8: Year | G8: ITC (%) | H8: PTC ($/MWh) | I8: PV Selection | J8: Wind Selection | L8: Year | M8: GDPDEF | O8: Year | P8: GDPDEF | Q8: PTC ($/MWh)
B9: 2004 | C9: 0.09 | D9: 0.0725 | F9: 2004 | G9: =IF(B9<2006,0%,30%) -> 0 | H9: =ROUND((1+(M9-$P$9)/$P$9)*$Q$9,0) -> 18 | I9: None | J9: PTC | L9: 2004 | M9: 89.125 | O9: 1993 | P9: 73.321 | Q9: 15
B10: 2005 | C10: 0.09 | D10: 0.0725 | F10: 2005 | G10: 0 | H10: 19 | I10: None | J10: PTC | L10: 2005 | M10: 91.985
B11: 2006 | C11: 0.09 | D11: 0.075 | F11: 2006 | G11: 0.3 | H11: 19 | I11: ITC | J11: ITC | L11: 2006 | M11: 94.816
B12: 2007 | C12: 0.09 | D12: 0.075 | F12: 2007 | G12: 0.3 | H12: 20 | I12: ITC | J12: ITC | L12: 2007 | M12: 97.332
B13: 2008 | C13: 0.087 | D13: 0.0675 | F13: 2008 | G13: 0.3 | H13: 20 | I13: ITC | J13: ITC | L13: 2008 | M13: 99.24
B14: 2009 | C14: 0.085 | D14: 0.065 | F14: 2009 | G14: 0.3 | H14: 20 | I14: ITC | J14: ITC | L14: 2009 | M14: 100
B15: 2010 | C15: 0.085 | D15: 0.065 | F15: 2010 | G15: 0.3 | H15: 21 | I15: ITC | J15: ITC | L15: 2010 | M15: 101.206
B16: 2011 | C16: 0.0825 | D16: 0.0605 | F16: 2011 | G16: 0.3 | H16: 21 | I16: ITC | J16: ITC | L16: 2011 | M16: 103.195
B17: 2012 | C17: 0.0825 | D17: 0.054 | F17: 2012 | G17: 0.3 | H17: 21 | I17: ITC | J17: ITC | L17: 2012 | M17: 105
B18: 2013 | C18: 0.0825 | D18: 0.054 | F18: 2013 | G18: 0.3 | H18: 22 | I18: ITC | J18: ITC | L18: 2013 | M18: 106.585
B19: 2014 | C19: 0.0825 | D19: 0.0605 | F19: 2014 | G19: 0.3 | H19: 22 | I19: ITC | J19: ITC | L19: 2014 | M19: =M18*(1+$E$47) -> 108.7167
B20: 2015 | C20: 0.085 | D20: 0.065 | F20: 2015 | G20: 0.3 | H20: 23 | I20: ITC | J20: ITC | L20: 2015 | M20: =M19*(1+$E$47) -> 110.891034
B21: 2016 | C21: 0.085 | D21: 0.065 | F21: 2016 | G21: 0.3 | H21: 23 | I21: ITC | J21: ITC | L21: 2016 | M21: =M20*(1+$E$47) -> 113.1088547
B23: Constant Inputs
B25: Taxes
B26: Item | E26: Technology | F26: Value
B27: Federal Income Tax (%) | E27: All | F27: 0.35
B28: State Income Tax (%) | E28: All | F28: 0
B29: Property Tax (%/yr) | E29: All | F29: 0
B30: Federal PTC Escalator | E30: All | F30: 0.02
B31: Federa PTC Payment Duration (yrs) | E31: All | F31: 10
B32: % Tax Depreciation ITC Basis Reduction | E32: All | F32: 0.5
B33: % of Capital Costs that are Eligible for the ITC | E33: PV | F33: 0.95
E34: Wind | F34: 0.95
B35: MACRS Term (yrs) | E35: PV | F35: 5
E36: Wind | F36: 5
B38: Financing
B39: Equity Floor (%) | E39: 0.2
B40: Target DSCR | E40: 1.4
B41: Months of Debt Service Reserve | E41: 0
B42: Debt Period (yrs) | E42: 18
B44: PPA Terms and Inflation
B45: PPA Term (yrs) | E45: 20
B46: Annual PPA Rate Escalation (%/yr) | E46: 0
B47: Inflation Rate (%/yr) | E47: 0.02
B49: Insurance
B50: Insurance (%/yr) | E50: 0.005

Sheet Resource & Utility Inputs
B2: Resource- and Utility-Specific Inputs
A3: All costs expressed in nominal dollars
B5: System Costs | J5: System Size and Performance | P5: Utility Incentives
B7: Installed Costs | J7: System Size | R7: $/W Installed
C8: PV | F8: Wind | L8: PV | M8: Wind | R8: Public | S8: Res/Com/Ind
C9: Residential | D9: Public | E9: Commercial | F9: Residential | G9: Public | H9: Commercial | J9: Capacity (kW-AC) | L9: 1 | M9: 1 | Q9: First 100 MW | R9: 0.8 | S9: 0.4
C10: Nominal $/W-DC | D10: Nominal $/W-DC | E10: Nominal $/W-DC | F10: Nominal $/W-AC | G10: Nominal $/W-AC | H10: Nominal $/W-AC | Q10: 100-175 MW | R10: 0.55 | S10: 0.275
B11: 2004 | C11: =C12*(1-'IPP Proforma'!$C$30) -> 6.165805805 | D11: =D12*(1-'IPP Proforma'!$C$30) -> 7.550622824 | E11: =E12*(1-'IPP Proforma'!$C$30) -> 7.550622824 | F11: =NA() ->  | G11: =NA() ->  | H11: =NA() ->  | J11: Degradation | Q11: 175-250 MW | R11: 0.35 | S11: 0.175
B12: 2005 | C12: 6.291638576 | D12: 7.704717167 | E12: 7.704717167 | F12: =NA() ->  | G12: =NA() ->  | H12: =NA() ->  | L12: PV | M12: Wind
B13: =B12+1 -> 2006 | C13: 6.427200183 | D13: 12.23493749 | E13: 12.23493749 | F13: =NA() ->  | G13: =NA() ->  | H13: =NA() ->  | J13: Degradation Factor (%/yr) | L13: 0.005 | M13: 0.005 | R13: $/kWh produced
B14: 2007 | C14: 6.513573382 | D14: 6.486191336 | E14: 6.486191336 | F14: =NA() ->  | G14: =NA() ->  | H14: =NA() ->  | R14: Public | S14: Res/Com/Ind
B15: 2008 | C15: 6.817209398 | D15: 7.702642303 | E15: 7.702642303 | F15: =NA() ->  | G15: =NA() ->  | H15: =NA() ->  | J15: AC Capacity Factors | Q15: First 100 MW | R15: 0.0861 | S15: 0.043
B16: 2009 | C16: 6.576400491 | D16: 4.735774879 | E16: 4.735774879 | F16: 5.810234866 | G16: 8.683333333 | H16: 8.683333333 | K16: NVE North | L16: NVE North | M16: NVE South | N16: NVE South | Q16: 100-175 MW | R16: 0.0592 | S16: 0.0296
B17: 2010 | C17: 5.820083872 | D17: 5.226810913 | E17: 5.226810913 | F17: 6.308702097 | G17: 8.683333333 | H17: 8.683333333 | K17: PV | L17: Wind | M17: PV | N17: Wind | Q17: 175-250 MW | R17: 0.0377 | S17: 0.0188
B18: 2011 | C18: 5.247242912 | D18: 5.161950413 | E18: 5.161950413 | F18: 5.576392324 | G18: 4.942580667 | H18: 4.942580667 | J18: =B11 -> 2004 | K18: 0.1996629694 | L18: 0.02687371188 | M18: 0.2127521765 | N18: 0.01697741941
B19: 2012 | C19: 4.711042327 | D19: 4.44241369 | E19: 4.44241369 | F19: 6.107999667 | G19: 3.597066304 | H19: 3.597066304 | J19: 2005 | K19: 0.1996629694 | L19: 0.02687371188 | M19: 0.2127521765 | N19: 0.01697741941 | P19: Upfront Incentive ($/kW-AC)
B20: 2013 | C20: 3.857279528 | D20: 3.188513946 | E20: 3.188513946 | F20: 6.107999667 | G20: 3.727792509 | H20: 3.727792509 | J20: 2006 | K20: 0.1996629694 | L20: 0.02687371188 | M20: 0.2127521765 | N20: 0.01697741941 | Q20: PV | R20: PV | S20: PV | T20: Wind | U20: Wind | V20: Wind
B21: 2014 | C21: 3.759219877 | D21: 3.238958986 | E21: 3.238958986 | F21: 6.107999667 | G21: 3.727792509 | H21: 3.727792509 | J21: 2007 | K21: 0.1996629694 | L21: 0.02687371188 | M21: 0.2127521765 | N21: 0.01697741941 | Q21: Residential | R21: Public | S21: Commercial | T21: Residential | U21: Public | V21: Commercial
B22: 2015 | C22: 3.69664633 | D22: 3.188583108 | E22: 3.188583108 | F22: 6.107999667 | G22: 3.727792509 | H22: 3.727792509 | J22: 2008 | K22: 0.1996629694 | L22: 0.02687371188 | M22: 0.2127521765 | N22: 0.01697741941 | P22: 2004 | Q22: 5000 | R22: 5000 | S22: 5000
B23: 2016 | C23: 3.647554138 | D23: 3.149515222 | E23: 3.149515222 | F23: 6.107999667 | G23: 3.727792509 | H23: 3.727792509 | J23: 2009 | K23: 0.1996629694 | L23: 0.02687371188 | M23: 0.2127521765 | N23: 0.01697741941 | P23: 2005 | Q23: 4000 | R23: 4000 | S23: 4000
B24: Sources for default inputs: RenewableGenerations data provided by NV Energy, E3’s 2014 capital cost report and capital cost pro forma model | J24: 2010 | K24: 0.1996629694 | L24: 0.02687371188 | M24: 0.2127521765 | N24: 0.01697741941 | P24: 2006 | Q24: 3000 | R24: 3000 | S24: 3000
B25: (http://www.wecc.biz/committees/BOD/TEPPC/Pages/2015_Plans.aspx), and EIA's 2013 DG forecast (http://www.eia.gov/analysis/studies/distribgen/system/) | J25: 2011 | K25: 0.1996629694 | L25: 0.02687371188 | M25: 0.2127521765 | N25: 0.01697741941 | P25: 2007 | Q25: 3000 | R25: 5000 | S25: 3000
B26: Note: The first year of wind installation is 2009 | J26: 2012 | K26: 0.1996629694 | L26: 0.02687371188 | M26: 0.2127521765 | N26: 0.01697741941 | P26: 2008 | Q26: 2500 | R26: 5000 | S26: 2500
J27: 2013 | K27: 0.1996629694 | L27: 0.02687371188 | M27: 0.2127521765 | N27: 0.01697741941 | P27: 2009 | Q27: 2500 | R27: 5000 | S27: 2500 | T27: 2500 | U27: 3000 | V27: 2500
B28: AC-DC Derate | J28: 2014 | K28: 0.1996629694 | L28: 0.1781832114 | M28: 0.2127521765 | N28: 0.1683299715 | P28: 2010 | Q28: 2300 | R28: 5000 | S28: 2300 | T28: 3000 | U28: 4000 | V28: 3000
C29: PV | D29: Wind | J29: 2015 | K29: 0.1996629694 | L29: 0.1781832114 | M29: 0.2127521765 | N29: 0.1683299715 | P29: 2011 | Q29: 1700 | R29: 4700 | S29: 1700 | T29: 2500 | U29: 3750 | V29: 2500
B30: AC-DC Derate (%) | C30: 0.85 | J30: 2016 | K30: 0.1996629694 | L30: 0.1781832114 | M30: 0.2127521765 | N30: 0.1683299715 | P30: 2012 | Q30: 1350 | R30: 3100 | S30: 1350 | T30: 2150 | U30: 3150 | V30: 2150
J31: Source for default inputs: estimates for incentivized systems from the "Weighted RE Shapes" tab of the | P31: 2013 | Q31: 1250 | R31: 2800 | S31: 1250 | T31: 2150 | U31: 3150 | V31: 2150
B32: Fixed O&M | J32: NV NEM Avoided Cost Model | P32: 2014 | Q32: =S9*1000*100% -> 400
B33: Dollar Year | C33: PV | D33: Wind | P33: 2015 | Q33: =S9*1000*35%+S10*1000*65% -> 318.75
B34: 2013 | C34: 20 | D34: 30 | P34: 2016 | Q34: =S10*1000*33%+S11*1000*67% -> 208
B35: Source for input data: estimated from http://www.nrel.gov/analysis/tech_lcoe_re_cost_est.html | P35: Source for input data: Nevada Power Company and Sierra Pacific Power Company d/b/a NV Energy: Annual Renewable Energy Plan for Program
P36: Period 2014-2015, Pre-Filed Direct Testimony of John W. Hargrove. Docket No. 14-01
B37: Active Installed Cost Forecasts | P37: Notes: The first year of wind installation is 2009, all wind and large PV systems receive a PBI 2014-2016
C38: PV | D38: PV | E38: PV | F38: Wind | G38: Wind | H38: Wind
C39: Residential | D39: Public | E39: Commercial | F39: Residential | G39: Public | H39: Commercial | P39: Performance Based Incentive ($/MWh) | R39: applies to first 5 years of production
C40: $/W-AC | D40: $/W-AC | E40: $/W-AC | F40: $/W-AC | G40: $/W-AC | H40: $/W-AC | Q40: PV | R40: PV | S40: PV | T40: Wind | U40: Wind | V40: Wind
B41: 2004 | C41: =C11/$C$30 -> 7.253889182 | D41: 8.883085675 | E41: 8.883085675 | F41: =F11 ->  | Q41: Residential | R41: Public | S41: Commercial | T41: Residential | U41: Public | V41: Commercial
B42: 2005 | C42: 7.401927737 | D42: 9.064373138 | E42: 9.064373138 | P42: 2004
B43: 2006 | C43: 7.56141198 | D43: 14.39404411 | E43: 14.39404411 | P43: 2005
B44: 2007 | C44: 7.663027508 | D44: 7.630813336 | E44: 7.630813336 | P44: 2006
B45: 2008 | C45: 8.020246351 | D45: 9.061932121 | E45: 9.061932121 | P45: 2007
B46: 2009 | C46: 7.736941754 | D46: 5.571499858 | E46: 5.571499858 | F46: 5.810234866 | G46: 8.683333333 | H46: 8.683333333 | P46: 2008
B47: 2010 | C47: 6.847157496 | D47: 6.149189309 | E47: 6.149189309 | F47: 6.308702097 | G47: 8.683333333 | H47: 8.683333333 | P47: 2009
B48: 2011 | C48: 6.173226955 | D48: 6.072882839 | E48: 6.072882839 | F48: 5.576392324 | G48: 4.942580667 | H48: 4.942580667 | P48: 2010
B49: 2012 | C49: 5.542402738 | D49: 5.226369047 | E49: 5.226369047 | F49: 6.107999667 | G49: 3.597066304 | H49: 3.597066304 | P49: 2011
B50: 2013 | C50: 4.537975916 | D50: 3.751192878 | E50: 3.751192878 | F50: 6.107999667 | G50: 3.727792509 | H50: 3.727792509 | P50: 2012
B51: 2014 | C51: 4.422611619 | D51: 3.810539983 | E51: 3.810539983 | F51: 6.107999667 | G51: 3.727792509 | H51: 3.727792509 | P51: 2013
B52: 2015 | C52: 4.348995683 | D52: 3.751274245 | E52: 3.751274245 | F52: 6.107999667 | G52: 3.727792509 | H52: 3.727792509 | P52: 2014 | R52: =R15*1000*100% -> 86.1 | S52: =S15*1000*100% -> 43 | T52: =S15*1000*100% -> 43 | U52: =R15*1000*100% -> 86.1 | V52: =S15*1000*100% -> 43
B53: 2016 | C53: 4.291240162 | D53: 3.705312026 | E53: 3.705312026 | F53: 6.107999667 | G53: 3.727792509 | H53: 3.727792509 | P53: 2015 | R53: =R15*1000*35%+R16*1000*65% -> 68.615 | S53: =S15*1000*35%+S16*1000*65% -> 34.29 | T53: 43 | U53: 86.1 | V53: 43
P54: 2016 | R54: =R16*1000*33%+R17*1000*67% -> 44.795 | S54: =S16*1000*33%+S17*1000*67% -> 22.364 | T54: 43 | U54: 86.1 | V54: 43
P56: Years of Incentive Payments
Q57: PV | R57: PV | S57: PV | T57: Wind | U57: Wind | V57: Wind
Q58: Residential | R58: Public | S58: Commercial | T58: Residential | U58: Public | V58: Commercial
P59: 2004 | Q59: 1 | R59: 1 | S59: 1
P60: 2005 | Q60: 1 | R60: 1 | S60: 1
P61: 2006 | Q61: 1 | R61: 1 | S61: 1
P62: 2007 | Q62: 1 | R62: 1 | S62: 1
P63: 2008 | Q63: 1 | R63: 1 | S63: 1
P64: 2009 | Q64: 1 | R64: 1 | S64: 1 | T64: 1 | U64: 1 | V64: 1
P65: 2010 | Q65: 1 | R65: 1 | S65: 1 | T65: 1 | U65: 1 | V65: 1
P66: 2011 | Q66: 1 | R66: 1 | S66: 1 | T66: 1 | U66: 1 | V66: 1
P67: 2012 | Q67: 1 | R67: 1 | S67: 1 | T67: 1 | U67: 1 | V67: 1
P68: 2013 | Q68: 1 | R68: 1 | S68: 1 | T68: 1 | U68: 1 | V68: 1
P69: 2014 | Q69: 1 | R69: 5 | S69: 5 | T69: 5 | U69: 5 | V69: 5
P70: 2015 | Q70: 1 | R70: 5 | S70: 5 | T70: 5 | U70: 5 | V70: 5
P71: 2016 | Q71: 1 | R71: 5 | S71: 5 | T71: 5 | U71: 5 | V71: 5

Sheet IPP Proforma
B2: IPP Financing and Levelized Cost Calculation
B4: Select Case
B6: Utility | C6: NVE South
B7: Technology | C7: Wind
B8: Install Year | C8: 2016
B9: Customer Class | C9: Public
B10: Utiltiy Incentive Status | C10: Incentivized
B13: Resource Cost, Performance, & Financing Assumptions | J13: Summary Outputs
B15: System Cost | E15: Tax Assumptions | J15: LCOE and LCOC by Category | L15: $/MWh | M15: $/kW-yr | O15: Checks | R15: =0
B16: System Size (MW) | C16: =INDEX('Resource & Utility Inputs'!$L$9:$M$9,1,MATCH(technology,'Resource & Utility Inputs'!$L$8:$M$8,0))/1000 -> 0.001 | E16: Income Tax - Federal | H16: ='Financial Inputs'!F27 -> 0.35 | J16: Capital | L16: =-($C76+NPV($H$33,$D76:$AQ76))/$C$85/(1-$H$18) -> 293.9938812 | M16: =-($C76+NPV($H$33,$D76:$AQ76))/$C$86/(1-$H$18) -> 420.7302131 | O16: =J16 -> Capital | Q16: =TRANSPOSE('Equity Optimizer'!$G$46:$M$46) -> 293.9938812 | R16: =Q16-L16 -> 0
B17: System Cost ($/kW) | C17: =INDEX('Resource & Utility Inputs'!$C$41:$H$53,MATCH($C$8,'Resource & Utility Inputs'!$B$11:$B$23,0),MATCH(technology&customerClass,'Resource & Utility Inputs'!$C$38:$H$38&'Resource & Utility Inputs'!$C$39:$H$39,0))*1000 -> 3727.792509 | E17: Income Tax - State | H17: ='Financial Inputs'!F28 -> 0 | J17: Property Tax & Insurance | L17: 15.0510701 | M17: 21.53935962 | O17: =J17 -> Property Tax & Insurance | Q17: 15.0510701 | R17: 0
B18: System Cost ($) | C18: =$C$17*$C$16*1000 -> 3727.792509 | E18: Income Tax - Effective Tax Rate | H18: =H16+H17*(1-H16) -> 0.35 | J18: ITC | L18: -116.3005763 | M18: -166.4360021 | O18: ITC | Q18: -116.3005763 | R18: -1.136868377e-13
B19: Months of Debt Service Reserve | C19: ='Financial Inputs'!E41 -> 0 | E19: Federal PTC ($/MWh) | H19: =INDEX('Financial Inputs'!$H$9:$H$21,MATCH(installYear,'Financial Inputs'!$F$9:$F$21,0))*(INDEX(OFFSET('Financial Inputs'!$I$9,0,MATCH(technology,{"PV","Wind"},0)-1,13),MATCH(installYear,'Financial Inputs'!$F$9:$F$21,0))="PTC") -> 0 | J19: Fixed O&M | L19: 25.70794801 | M19: 36.790257 | O19: Fixed O&M | Q19: 25.70794801 | R19: 0
B20: Initial Debt Service Reserve Funding ($) | C20: =-PMT($H$32, $H$34,+$C$16*$C$17*$H$31*10^3)*C19/12 -> 0 | E20: Federal PTC Payment Duration (Years) | H20: ='Financial Inputs'!F31*(INDEX(OFFSET('Financial Inputs'!$I$9,0,MATCH(technology,{"PV","Wind"},0)-1,13),MATCH(installYear,'Financial Inputs'!$F$9:$F$21,0))="PTC") -> 0 | J20: Utility Incentive | L20: -42.31997153 | M20: -60.56347352 | O20: Utility Incentive | Q20: -42.31997153 | R20: 0
B21: Total System Cost ($) | C21: =C18+C20 -> 3727.792509 | E21: Federal PTC Escalator | H21: ='Financial Inputs'!F30 -> 0.02 | J21: PTC | L21: 0 | M21: 0 | O21: PTC | Q21: 0 | R21: 0
E22: Federal ITC (% of Eligible Capital Costs) | H22: =INDEX('Financial Inputs'!$G$9:$G$21,MATCH(installYear,'Financial Inputs'!$B$9:$B$21,0),1)*(INDEX(OFFSET('Financial Inputs'!$I$9,0,MATCH(technology,{"PV","Wind"},0)-1,13),MATCH(installYear,'Financial Inputs'!$F$9:$F$21,0))="ITC") -> 0.3 | J22: Total | L22: =SUM(L16:L21) -> 176.1323515 | M22: =SUM(M16:M21) -> 252.060354 | O22: Total | Q22: 176.1323515 | R22: 0
B23: Performance Inputs | E23: % of Capital Costs Eligible for the Federal ITC | H23: =INDEX('Financial Inputs'!$F$33:$F$34,MATCH(technology,'Financial Inputs'!$E$33:$E$34,0),1) -> 0.95
B24: Capacity Factor (AC) | C24: =SUMPRODUCT(('Resource & Utility Inputs'!$K$18:$N$30)*('Resource & Utility Inputs'!$J$18:$J$30=installYear)*('Resource & Utility Inputs'!K16:N16=C6)*('Resource & Utility Inputs'!K17:N17=C7)) -> 0.1683299715 | E24: Tax Depreciation Basis Reduction (% of ITC) | H24: ='Financial Inputs'!F32 -> 0.5 | O24: DSCR | Q24: ='Equity Optimizer'!N46 -> 1.400171903 | R24: =Q24-dscr -> 1.776356839e-15
B25: Annual Output for Year 1 (kWh) | C25: =8760*C24*C16 -> 1.47457055 | E25: MACRS Term (Years) | H25: =INDEX('Financial Inputs'!$F$35:$F$36,MATCH(technology,'Financial Inputs'!$E$35:$E$36,0),1) -> 5 | J25: DSCR, Equity Return, and CFADS | O25: Equity Return | Q25: =H33 -> 0.119277027 | R25: =ROUND(Q25-M27,5) -> 0
B26: Degradation Factor | C26: =INDEX('Resource & Utility Inputs'!$L$13:$M$13,1,MATCH(technology,'Resource & Utility Inputs'!$L$12:$M$12,0)) -> 0.005 | J26: Achieved DSCR | M26: ='Debt and DSCR'!C17 -> 1.400171903 | O26: CFADS Requirement | Q26: =targetDSCR*SUM('Debt and DSCR'!D7:AQ7) -> 4007.054867 | R26: =IF(Q26<=M28,0) -> 0
B27: System Economic Life (=PPA Term) | C27: ='Financial Inputs'!E45 -> 20 | E27: Financing | J27: Achieved Equity Return | M27: =IRR($C$71:$AS$71) -> 0.119277027
E28: Equity Share, Optimized for Min DSCR | H28: =MAX(1-'Equity Optimizer'!C46,'Financial Inputs'!E39) -> 0.555 | J28: CFADS Over Debt Term | M28: =SUMPRODUCT(D55:AQ55, 'Debt and DSCR'!D5:AQ5) -> 4007.546885
B29: Ongoing Costs | E29: Equity Share Manual Override | H29: n/a
B30: Inflation (%/yr) | C30: ='Financial Inputs'!E47 -> 0.02 | E30: Equity Share (Active) | H30: =IF(ISNUMBER(H29),H29,H28) -> 0.555
B31: Fixed O&M Costs - Start Year ($/kW-yr) | C31: =OFFSET('Resource & Utility Inputs'!B34,0,MATCH($C$7,'Resource & Utility Inputs'!$C$33:$D$33,0))*(1+'IPP Proforma'!C30)^(installYear-'Resource & Utility Inputs'!$B$34) -> 31.83624 | E31: % Financed with Debt | H31: =1-H30 -> 0.445
B32: Upfront Utility Incentive ($/kW installed) | C32: =IF($C$10="Incentivized",INDEX('Resource & Utility Inputs'!$Q$22:$V$34,MATCH(installYear,'Resource & Utility Inputs'!$P$22:$P$34,0),MATCH(technology&customerClass,'Resource & Utility Inputs'!$Q$20:$V$20&'Resource & Utility Inputs'!$Q$21:$V$21,0)),0) -> 0 | E32: Debt Interest Rate | H32: =INDEX('Financial Inputs'!$D$9:$D$21,MATCH($C$8,'Financial Inputs'!$B$9:$B$21,0)) -> 0.065
B33: PBI Utility Incentive ($/MWh generated) | C33: =IF(incentiveStatus="Incentivized",INDEX('Resource & Utility Inputs'!$Q$42:$V$54,MATCH(installYear,'Resource & Utility Inputs'!$P$42:$P$54,0),MATCH(technology&customerClass,'Resource & Utility Inputs'!$Q$40:$V$40&'Resource & Utility Inputs'!$Q$41:$V$41,0)),0) -> 86.1 | E33: Cost of Equity | H33: =(H35-H32*H31*(1-H18))/H30 -> 0.119277027
B34: Years of Utility Incentive | C34: =INDEX('Resource & Utility Inputs'!$Q$59:$V$71,MATCH(installYear,'Resource & Utility Inputs'!$P$59:$P$71,0),MATCH(technology&customerClass,'Resource & Utility Inputs'!$Q$57:$V$57&'Resource & Utility Inputs'!$Q$58:$V$58,0)) -> 5 | E34: Debt Period (Years) | H34: ='Financial Inputs'!E42 -> 18
B35: Property Tax (%) | C35: ='Financial Inputs'!F29 -> 0 | E35: WACC | H35: =INDEX('Financial Inputs'!$C$9:$C$21,MATCH($C$8,'Financial Inputs'!$B$9:$B$21,0)) -> 0.085
B36: Insurance (%) | C36: ='Financial Inputs'!E50 -> 0.005 | E36: Interest Rate on DSRF | H36: =H32/2 -> 0.0325
E37: PPA Escalation Rate | H37: ='Financial Inputs'!E46 -> 0
E38: Equity Amount | H38: =H30*C21 -> 2068.924842
E39: Debt Amount | H39: =H31*C21 -> 1658.867666
B40: IPP Pro Forma
D41: IF($C$26>=D46,-D48*$C$32)*(1+$C$33)^(D46)
B42: Year | C42: 0 | D42: 1 | E42: 2 | F42: 3 | G42: 4 | H42: 5 | I42: 6 | J42: 7 | K42: 8 | L42: 9 | M42: 10 | N42: 11 | O42: 12 | P42: 13 | Q42: 14 | R42: 15 | S42: 16 | T42: 17 | U42: 18 | V42: 19 | W42: 20 | X42: 21 | Y42: 22 | Z42: 23 | AA42: 24 | AB42: 25 | AC42: 26 | AD42: 27 | AE42: 28 | AF42: 29 | AG42: 30 | AH42: 31 | AI42: 32 | AJ42: 33 | AK42: 34 | AL42: 35 | AM42: 36 | AN42: 37 | AO42: 38 | AP42: 39 | AQ42: 40
B44: Energy Production (MWh) | D44: =IF($C$27>=D42,C25,0) -> 1.47457055 | E44: =IF($C$27>=E42,D44*(1-$C$26),0) -> 1.467197698 | F44: 1.459861709 | G44: 1.452562401 | H44: 1.445299589 | I44: 1.438073091 | J44: 1.430882725 | K44: 1.423728312 | L44: 1.41660967 | M44: 1.409526622 | N44: 1.402478989 | O44: 1.395466594 | P44: 1.388489261 | Q44: 1.381546814 | R44: 1.37463908 | S44: 1.367765885 | T44: 1.360927055 | U44: 1.35412242 | V44: 1.347351808 | W44: 1.340615049 | X44: 0 | Y44: 0 | Z44: 0 | AA44: 0 | AB44: 0 | AC44: 0 | AD44: 0 | AE44: 0 | AF44: 0 | AG44: 0 | AH44: 0 | AI44: 0 | AJ44: 0 | AK44: 0 | AL44: 0 | AM44: 0 | AN44: 0 | AO44: 0 | AP44: 0 | AQ44: 0
B45: Utility Incentive | D45: =IF($C$34>=D42,IF($C$34=5,SUM($C$32:$C$33)*D44,SUM($C$32:$C$33)),0) -> 126.9605244 | E45: 126.3257218 | F45: 125.6940932 | G45: 125.0656227 | H45: 124.4402946 | I45: 0 | J45: 0 | K45: 0 | L45: 0 | M45: 0 | N45: 0 | O45: 0 | P45: 0 | Q45: 0 | R45: 0 | S45: 0 | T45: 0 | U45: 0 | V45: 0 | W45: 0 | X45: 0 | Y45: 0 | Z45: 0 | AA45: 0 | AB45: 0 | AC45: 0 | AD45: 0 | AE45: 0 | AF45: 0 | AG45: 0 | AH45: 0 | AI45: 0 | AJ45: 0 | AK45: 0 | AL45: 0 | AM45: 0 | AN45: 0 | AO45: 0 | AP45: 0 | AQ45: 0
B46: Cost of Generation ($/MWh) | D46: =$C$87*(1+$H$37) -> 176.1323515 | E46: =IF(E42<=$C$27,D46*(1+$H$37),0) -> 176.1323515 | F46: 176.1323515 | G46: 176.1323515 | H46: 176.1323515 | I46: 176.1323515 | J46: 176.1323515 | K46: 176.1323515 | L46: 176.1323515 | M46: 176.1323515 | N46: 176.1323515 | O46: 176.1323515 | P46: 176.1323515 | Q46: 176.1323515 | R46: 176.1323515 | S46: 176.1323515 | T46: 176.1323515 | U46: 176.1323515 | V46: 176.1323515 | W46: 176.1323515 | X46: 0 | Y46: 0 | Z46: 0 | AA46: 0 | AB46: 0 | AC46: 0 | AD46: 0 | AE46: 0 | AF46: 0 | AG46: 0 | AH46: 0 | AI46: 0 | AJ46: 0 | AK46: 0 | AL46: 0 | AM46: 0 | AN46: 0 | AO46: 0 | AP46: 0 | AQ46: 0
B47: Operating Revenue | D47: =D44*D46 -> 259.7195785 | E47: 258.4209806 | F47: 257.1288757 | G47: 255.8432314 | H47: 254.5640152 | I47: 253.2911951 | J47: 252.0247391 | K47: 250.7646154 | L47: 249.5107924 | M47: 248.2632384 | N47: 247.0219222 | O47: 245.7868126 | P47: 244.5578785 | Q47: 243.3350891 | R47: 242.1184137 | S47: 240.9078216 | T47: 239.7032825 | U47: 238.5047661 | V47: 237.3122423 | W47: 236.1256811 | X47: 0 | Y47: 0 | Z47: 0 | AA47: 0 | AB47: 0 | AC47: 0 | AD47: 0 | AE47: 0 | AF47: 0 | AG47: 0 | AH47: 0 | AI47: 0 | AJ47: 0 | AK47: 0 | AL47: 0 | AM47: 0 | AN47: 0 | AO47: 0 | AP47: 0 | AQ47: 0
B48: Total Revenue | D48: =D47+D45 -> 386.6801029 | E48: 384.7467024 | F48: 382.8229689 | G48: 380.908854 | H48: 379.0043098 | I48: 253.2911951 | J48: 252.0247391 | K48: 250.7646154 | L48: 249.5107924 | M48: 248.2632384 | N48: 247.0219222 | O48: 245.7868126 | P48: 244.5578785 | Q48: 243.3350891 | R48: 242.1184137 | S48: 240.9078216 | T48: 239.7032825 | U48: 238.5047661 | V48: 237.3122423 | W48: 236.1256811 | X48: 0 | Y48: 0 | Z48: 0 | AA48: 0 | AB48: 0 | AC48: 0 | AD48: 0 | AE48: 0 | AF48: 0 | AG48: 0 | AH48: 0 | AI48: 0 | AJ48: 0 | AK48: 0 | AL48: 0 | AM48: 0 | AN48: 0 | AO48: 0 | AP48: 0 | AQ48: 0
B50: Fixed O&M Costs | D50: =IF($C$27>=D42,-$C$16*$C$31*1000)*(1+$C$30)^(D42) -> -32.4729648 | E50: -33.1224241 | F50: -33.78487258 | G50: -34.46057003 | H50: -35.14978143 | I50: -35.85277706 | J50: -36.5698326 | K50: -37.30122925 | L50: -38.04725384 | M50: -38.80819891 | N50: -39.58436289 | O50: -40.37605015 | P50: -41.18357115 | Q50: -42.00724258 | R50: -42.84738743 | S50: -43.70433518 | T50: -44.57842188 | U50: -45.46999032 | V50: -46.37939012 | W50: -47.30697793 | X50: 0 | Y50: 0 | Z50: 0 | AA50: 0 | AB50: 0 | AC50: 0 | AD50: 0 | AE50: 0 | AF50: 0 | AG50: 0 | AH50: 0 | AI50: 0 | AJ50: 0 | AK50: 0 | AL50: 0 | AM50: 0 | AN50: 0 | AO50: 0 | AP50: 0 | AQ50: 0
B51: Property Tax | D51: =-$C$35*$C$18*MAX((1-(D$42-1)/$C$27),0) -> 0 | E51: 0 | F51: 0 | G51: 0 | H51: 0 | I51: 0 | J51: 0 | K51: 0 | L51: 0 | M51: 0 | N51: 0 | O51: 0 | P51: 0 | Q51: 0 | R51: 0 | S51: 0 | T51: 0 | U51: 0 | V51: 0 | W51: 0 | X51: 0 | Y51: 0 | Z51: 0 | AA51: 0 | AB51: 0 | AC51: 0 | AD51: 0 | AE51: 0 | AF51: 0 | AG51: 0 | AH51: 0 | AI51: 0 | AJ51: 0 | AK51: 0 | AL51: 0 | AM51: 0 | AN51: 0 | AO51: 0 | AP51: 0 | AQ51: 0
B52: Insurance | D52: =IF($C$27>=D42,-$C$36*$C$18*(1+$C$30)^(D42),0) -> -19.01174179 | E52: -19.39197663 | F52: -19.77981616 | G52: -20.17541249 | H52: -20.57892074 | I52: -20.99049915 | J52: -21.41030913 | K52: -21.83851532 | L52: -22.27528562 | M52: -22.72079134 | N52: -23.17520716 | O52: -23.63871131 | P52: -24.11148553 | Q52: -24.59371524 | R52: -25.08558955 | S52: -25.58730134 | T52: -26.09904736 | U52: -26.62102831 | V52: -27.15344888 | W52: -27.69651786 | X52: 0 | Y52: 0 | Z52: 0 | AA52: 0 | AB52: 0 | AC52: 0 | AD52: 0 | AE52: 0 | AF52: 0 | AG52: 0 | AH52: 0 | AI52: 0 | AJ52: 0 | AK52: 0 | AL52: 0 | AM52: 0 | AN52: 0 | AO52: 0 | AP52: 0 | AQ52: 0
B53: Total Costs | D53: =SUM(D50:D52) -> -51.48470659 | E53: -52.51440073 | F53: -53.56468874 | G53: -54.63598252 | H53: -55.72870217 | I53: -56.84327621 | J53: -57.98014173 | K53: -59.13974457 | L53: -60.32253946 | M53: -61.52899025 | N53: -62.75957005 | O53: -64.01476146 | P53: -65.29505668 | Q53: -66.60095782 | R53: -67.93297697 | S53: -69.29163651 | T53: -70.67746924 | U53: -72.09101863 | V53: -73.532839 | W53: -75.00349578 | X53: 0 | Y53: 0 | Z53: 0 | AA53: 0 | AB53: 0 | AC53: 0 | AD53: 0 | AE53: 0 | AF53: 0 | AG53: 0 | AH53: 0 | AI53: 0 | AJ53: 0 | AK53: 0 | AL53: 0 | AM53: 0 | AN53: 0 | AO53: 0 | AP53: 0 | AQ53: 0
B55: Operating Profit | D55: =D48+D53 -> 335.1953963 | E55: 332.2323017 | F55: 329.2582801 | G55: 326.2728715 | H55: 323.2756076 | I55: 196.4479189 | J55: 194.0445974 | K55: 191.6248709 | L55: 189.1882529 | M55: 186.7342482 | N55: 184.2623522 | O55: 181.7720511 | P55: 179.2628219 | Q55: 176.7341313 | R55: 174.1854367 | S55: 171.6161851 | T55: 169.0258133 | U55: 166.4137475 | V55: 163.7794033 | W55: 161.1221853 | X55: 0 | Y55: 0 | Z55: 0 | AA55: 0 | AB55: 0 | AC55: 0 | AD55: 0 | AE55: 0 | AF55: 0 | AG55: 0 | AH55: 0 | AI55: 0 | AJ55: 0 | AK55: 0 | AL55: 0 | AM55: 0 | AN55: 0 | AO55: 0 | AP55: 0 | AQ55: 0
B57: Interest Expense | D57: =-'Debt and DSCR'!D8 -> -107.8263983 | E57: =-'Debt and DSCR'!E8 -> -104.4994568 | F57: =-'Debt and DSCR'!F8 -> -100.9562641 | G57: =-'Debt and DSCR'!G8 -> -97.18276388 | H57: =-'Debt and DSCR'!H8 -> -93.16398614 | I57: =-'Debt and DSCR'!I8 -> -88.88398784 | J57: =-'Debt and DSCR'!J8 -> -84.32578966 | K57: =-'Debt and DSCR'!K8 -> -79.47130859 | L57: =-'Debt and DSCR'!L8 -> -74.30128625 | M57: =-'Debt and DSCR'!M8 -> -68.79521247 | N57: =-'Debt and DSCR'!N8 -> -62.93124388 | O57: =-'Debt and DSCR'!O8 -> -56.68611734 | P57: =-'Debt and DSCR'!P8 -> -50.03505757 | Q57: =-'Debt and DSCR'!Q8 -> -42.95167892 | R57: =-'Debt and DSCR'!R8 -> -35.40788065 | S57: =-'Debt and DSCR'!S8 -> -27.3737355 | T57: =-'Debt and DSCR'!T8 -> -18.81737091 | U57: =-'Debt and DSCR'!U8 -> -9.704842625 | V57: =-'Debt and DSCR'!V8 -> 0 | W57: =-'Debt and DSCR'!W8 -> 0 | X57: =-'Debt and DSCR'!X8 -> 0 | Y57: =-'Debt and DSCR'!Y8 -> 0 | Z57: =-'Debt and DSCR'!Z8 -> 0 | AA57: =-'Debt and DSCR'!AA8 -> 0 | AB57: =-'Debt and DSCR'!AB8 -> 0 | AC57: =-'Debt and DSCR'!AC8 -> 0 | AD57: =-'Debt and DSCR'!AD8 -> 0 | AE57: =-'Debt and DSCR'!AE8 -> 0 | AF57: =-'Debt and DSCR'!AF8 -> 0 | AG57: =-'Debt and DSCR'!AG8 -> 0 | AH57: =-'Debt and DSCR'!AH8 -> 0 | AI57: =-'Debt and DSCR'!AI8 -> 0 | AJ57: =-'Debt and DSCR'!AJ8 -> 0 | AK57: =-'Debt and DSCR'!AK8 -> 0 | AL57: =-'Debt and DSCR'!AL8 -> 0 | AM57: =-'Debt and DSCR'!AM8 -> 0 | AN57: =-'Debt and DSCR'!AN8 -> 0 | AO57: =-'Debt and DSCR'!AO8 -> 0 | AP57: =-'Debt and DSCR'!AP8 -> 0 | AQ57: =-'Debt and DSCR'!AQ8 -> 0
B58: Loan Repayment Expense (Principal) | D58: =-'Debt and DSCR'!D9 -> -51.18371545 | E58: =-'Debt and DSCR'!E9 -> -54.51065696 | F58: =-'Debt and DSCR'!F9 -> -58.05384966 | G58: =-'Debt and DSCR'!G9 -> -61.82734989 | H58: =-'Debt and DSCR'!H9 -> -65.84612763 | I58: =-'Debt and DSCR'!I9 -> -70.12612593 | J58: =-'Debt and DSCR'!J9 -> -74.68432411 | K58: =-'Debt and DSCR'!K9 -> -79.53880518 | L58: =-'Debt and DSCR'!L9 -> -84.70882752 | M58: =-'Debt and DSCR'!M9 -> -90.21490131 | N58: =-'Debt and DSCR'!N9 -> -96.07886989 | O58: =-'Debt and DSCR'!O9 -> -102.3239964 | P58: =-'Debt and DSCR'!P9 -> -108.9750562 | Q58: =-'Debt and DSCR'!Q9 -> -116.0584349 | R58: =-'Debt and DSCR'!R9 -> -123.6022331 | S58: =-'Debt and DSCR'!S9 -> -131.6363783 | T58: =-'Debt and DSCR'!T9 -> -140.1927429 | U58: =-'Debt and DSCR'!U9 -> -149.3052711 | V58: =-'Debt and DSCR'!V9 -> 0 | W58: =-'Debt and DSCR'!W9 -> 0 | X58: =-'Debt and DSCR'!X9 -> 0 | Y58: =-'Debt and DSCR'!Y9 -> 0 | Z58: =-'Debt and DSCR'!Z9 -> 0 | AA58: =-'Debt and DSCR'!AA9 -> 0 | AB58: =-'Debt and DSCR'!AB9 -> 0 | AC58: =-'Debt and DSCR'!AC9 -> 0 | AD58: =-'Debt and DSCR'!AD9 -> 0 | AE58: =-'Debt and DSCR'!AE9 -> 0 | AF58: =-'Debt and DSCR'!AF9 -> 0 | AG58: =-'Debt and DSCR'!AG9 -> 0 | AH58: =-'Debt and DSCR'!AH9 -> 0 | AI58: =-'Debt and DSCR'!AI9 -> 0 | AJ58: =-'Debt and DSCR'!AJ9 -> 0 | AK58: =-'Debt and DSCR'!AK9 -> 0 | AL58: =-'Debt and DSCR'!AL9 -> 0 | AM58: =-'Debt and DSCR'!AM9 -> 0 | AN58: =-'Debt and DSCR'!AN9 -> 0 | AO58: =-'Debt and DSCR'!AO9 -> 0 | AP58: =-'Debt and DSCR'!AP9 -> 0 | AQ58: =-'Debt and DSCR'!AQ9 -> 0
B59: Debt Service Reserve | D59: =$C$20*(IF('Debt and DSCR'!D4=0,-1, IF('Debt and DSCR'!D4=$H$34, 1, 0))) -> 0 | E59: =$C$20*(IF('Debt and DSCR'!E4=0,-1, IF('Debt and DSCR'!E4=$H$34, 1, 0))) -> 0 | F59: =$C$20*(IF('Debt and DSCR'!F4=0,-1, IF('Debt and DSCR'!F4=$H$34, 1, 0))) -> 0 | G59: =$C$20*(IF('Debt and DSCR'!G4=0,-1, IF('Debt and DSCR'!G4=$H$34, 1, 0))) -> 0 | H59: =$C$20*(IF('Debt and DSCR'!H4=0,-1, IF('Debt and DSCR'!H4=$H$34, 1, 0))) -> 0 | I59: =$C$20*(IF('Debt and DSCR'!I4=0,-1, IF('Debt and DSCR'!I4=$H$34, 1, 0))) -> 0 | J59: =$C$20*(IF('Debt and DSCR'!J4=0,-1, IF('Debt and DSCR'!J4=$H$34, 1, 0))) -> 0 | K59: =$C$20*(IF('Debt and DSCR'!K4=0,-1, IF('Debt and DSCR'!K4=$H$34, 1, 0))) -> 0 | L59: =$C$20*(IF('Debt and DSCR'!L4=0,-1, IF('Debt and DSCR'!L4=$H$34, 1, 0))) -> 0 | M59: =$C$20*(IF('Debt and DSCR'!M4=0,-1, IF('Debt and DSCR'!M4=$H$34, 1, 0))) -> 0 | N59: =$C$20*(IF('Debt and DSCR'!N4=0,-1, IF('Debt and DSCR'!N4=$H$34, 1, 0))) -> 0 | O59: =$C$20*(IF('Debt and DSCR'!O4=0,-1, IF('Debt and DSCR'!O4=$H$34, 1, 0))) -> 0 | P59: =$C$20*(IF('Debt and DSCR'!P4=0,-1, IF('Debt and DSCR'!P4=$H$34, 1, 0))) -> 0 | Q59: =$C$20*(IF('Debt and DSCR'!Q4=0,-1, IF('Debt and DSCR'!Q4=$H$34, 1, 0))) -> 0 | R59: =$C$20*(IF('Debt and DSCR'!R4=0,-1, IF('Debt and DSCR'!R4=$H$34, 1, 0))) -> 0 | S59: =$C$20*(IF('Debt and DSCR'!S4=0,-1, IF('Debt and DSCR'!S4=$H$34, 1, 0))) -> 0 | T59: =$C$20*(IF('Debt and DSCR'!T4=0,-1, IF('Debt and DSCR'!T4=$H$34, 1, 0))) -> 0 | U59: =$C$20*(IF('Debt and DSCR'!U4=0,-1, IF('Debt and DSCR'!U4=$H$34, 1, 0))) -> 0 | V59: =$C$20*(IF('Debt and DSCR'!V4=0,-1, IF('Debt and DSCR'!V4=$H$34, 1, 0))) -> 0 | W59: =$C$20*(IF('Debt and DSCR'!W4=0,-1, IF('Debt and DSCR'!W4=$H$34, 1, 0))) -> 0 | X59: =$C$20*(IF('Debt and DSCR'!X4=0,-1, IF('Debt and DSCR'!X4=$H$34, 1, 0))) -> 0 | Y59: =$C$20*(IF('Debt and DSCR'!Y4=0,-1, IF('Debt and DSCR'!Y4=$H$34, 1, 0))) -> 0 | Z59: =$C$20*(IF('Debt and DSCR'!Z4=0,-1, IF('Debt and DSCR'!Z4=$H$34, 1, 0))) -> 0 | AA59: =$C$20*(IF('Debt and DSCR'!AA4=0,-1, IF('Debt and DSCR'!AA4=$H$34, 1, 0))) -> 0 | AB59: =$C$20*(IF('Debt and DSCR'!AB4=0,-1, IF('Debt and DSCR'!AB4=$H$34, 1, 0))) -> 0 | AC59: =$C$20*(IF('Debt and DSCR'!AC4=0,-1, IF('Debt and DSCR'!AC4=$H$34, 1, 0))) -> 0 | AD59: =$C$20*(IF('Debt and DSCR'!AD4=0,-1, IF('Debt and DSCR'!AD4=$H$34, 1, 0))) -> 0 | AE59: =$C$20*(IF('Debt and DSCR'!AE4=0,-1, IF('Debt and DSCR'!AE4=$H$34, 1, 0))) -> 0 | AF59: =$C$20*(IF('Debt and DSCR'!AF4=0,-1, IF('Debt and DSCR'!AF4=$H$34, 1, 0))) -> 0 | AG59: =$C$20*(IF('Debt and DSCR'!AG4=0,-1, IF('Debt and DSCR'!AG4=$H$34, 1, 0))) -> 0 | AH59: =$C$20*(IF('Debt and DSCR'!AH4=0,-1, IF('Debt and DSCR'!AH4=$H$34, 1, 0))) -> 0 | AI59: =$C$20*(IF('Debt and DSCR'!AI4=0,-1, IF('Debt and DSCR'!AI4=$H$34, 1, 0))) -> 0 | AJ59: =$C$20*(IF('Debt and DSCR'!AJ4=0,-1, IF('Debt and DSCR'!AJ4=$H$34, 1, 0))) -> 0 | AK59: =$C$20*(IF('Debt and DSCR'!AK4=0,-1, IF('Debt and DSCR'!AK4=$H$34, 1, 0))) -> 0 | AL59: =$C$20*(IF('Debt and DSCR'!AL4=0,-1, IF('Debt and DSCR'!AL4=$H$34, 1, 0))) -> 0 | AM59: =$C$20*(IF('Debt and DSCR'!AM4=0,-1, IF('Debt and DSCR'!AM4=$H$34, 1, 0))) -> 0 | AN59: =$C$20*(IF('Debt and DSCR'!AN4=0,-1, IF('Debt and DSCR'!AN4=$H$34, 1, 0))) -> 0 | AO59: =$C$20*(IF('Debt and DSCR'!AO4=0,-1, IF('Debt and DSCR'!AO4=$H$34, 1, 0))) -> 0 | AP59: =$C$20*(IF('Debt and DSCR'!AP4=0,-1, IF('Debt and DSCR'!AP4=$H$34, 1, 0))) -> 0 | AQ59: =$C$20*(IF('Debt and DSCR'!AQ4=0,-1, IF('Debt and DSCR'!AQ4=$H$34, 1, 0))) -> 0
B60: Interest earned on DSRF | D60: ='Debt and DSCR'!D26 -> 0 | E60: ='Debt and DSCR'!E26 -> 0 | F60: ='Debt and DSCR'!F26 -> 0 | G60: ='Debt and DSCR'!G26 -> 0 | H60: ='Debt and DSCR'!H26 -> 0 | I60: ='Debt and DSCR'!I26 -> 0 | J60: ='Debt and DSCR'!J26 -> 0 | K60: ='Debt and DSCR'!K26 -> 0 | L60: ='Debt and DSCR'!L26 -> 0 | M60: ='Debt and DSCR'!M26 -> 0 | N60: ='Debt and DSCR'!N26 -> 0 | O60: ='Debt and DSCR'!O26 -> 0 | P60: ='Debt and DSCR'!P26 -> 0 | Q60: ='Debt and DSCR'!Q26 -> 0 | R60: ='Debt and DSCR'!R26 -> 0 | S60: ='Debt and DSCR'!S26 -> 0 | T60: ='Debt and DSCR'!T26 -> 0 | U60: ='Debt and DSCR'!U26 -> 0 | V60: ='Debt and DSCR'!V26 -> 0 | W60: ='Debt and DSCR'!W26 -> 0 | X60: ='Debt and DSCR'!X26 -> 0 | Y60: ='Debt and DSCR'!Y26 -> 0 | Z60: ='Debt and DSCR'!Z26 -> 0 | AA60: ='Debt and DSCR'!AA26 -> 0 | AB60: ='Debt and DSCR'!AB26 -> 0 | AC60: ='Debt and DSCR'!AC26 -> 0 | AD60: ='Debt and DSCR'!AD26 -> 0 | AE60: ='Debt and DSCR'!AE26 -> 0 | AF60: ='Debt and DSCR'!AF26 -> 0 | AG60: ='Debt and DSCR'!AG26 -> 0 | AH60: ='Debt and DSCR'!AH26 -> 0 | AI60: ='Debt and DSCR'!AI26 -> 0 | AJ60: ='Debt and DSCR'!AJ26 -> 0 | AK60: ='Debt and DSCR'!AK26 -> 0 | AL60: ='Debt and DSCR'!AL26 -> 0 | AM60: ='Debt and DSCR'!AM26 -> 0 | AN60: ='Debt and DSCR'!AN26 -> 0 | AO60: ='Debt and DSCR'!AO26 -> 0 | AP60: ='Debt and DSCR'!AP26 -> 0 | AQ60: ='Debt and DSCR'!AQ26 -> 0
B61: Net Finance Costs | D61: =D57+D58+D59+D60 -> -159.0101138 | E61: -159.0101138 | F61: -159.0101138 | G61: -159.0101138 | H61: -159.0101138 | I61: -159.0101138 | J61: -159.0101138 | K61: -159.0101138 | L61: -159.0101138 | M61: -159.0101138 | N61: -159.0101138 | O61: -159.0101138 | P61: -159.0101138 | Q61: -159.0101138 | R61: -159.0101138 | S61: -159.0101138 | T61: -159.0101138 | U61: -159.0101138 | V61: 0 | W61: 0 | X61: 0 | Y61: 0 | Z61: 0 | AA61: 0 | AB61: 0 | AC61: 0 | AD61: 0 | AE61: 0 | AF61: 0 | AG61: 0 | AH61: 0 | AI61: 0 | AJ61: 0 | AK61: 0 | AL61: 0 | AM61: 0 | AN61: 0 | AO61: 0 | AP61: 0 | AQ61: 0
B63: State tax refund/(paid) | D63: =Taxes!D12 -> 0 | E63: =Taxes!E12 -> 0 | F63: =Taxes!F12 -> 0 | G63: =Taxes!G12 -> 0 | H63: =Taxes!H12 -> 0 | I63: =Taxes!I12 -> 0 | J63: =Taxes!J12 -> 0 | K63: =Taxes!K12 -> 0 | L63: =Taxes!L12 -> 0 | M63: =Taxes!M12 -> 0 | N63: =Taxes!N12 -> 0 | O63: =Taxes!O12 -> 0 | P63: =Taxes!P12 -> 0 | Q63: =Taxes!Q12 -> 0 | R63: =Taxes!R12 -> 0 | S63: =Taxes!S12 -> 0 | T63: =Taxes!T12 -> 0 | U63: =Taxes!U12 -> 0 | V63: =Taxes!V12 -> 0 | W63: =Taxes!W12 -> 0 | X63: =Taxes!X12 -> 0 | Y63: =Taxes!Y12 -> 0 | Z63: =Taxes!Z12 -> 0 | AA63: =Taxes!AA12 -> 0 | AB63: =Taxes!AB12 -> 0 | AC63: =Taxes!AC12 -> 0 | AD63: =Taxes!AD12 -> 0 | AE63: =Taxes!AE12 -> 0 | AF63: =Taxes!AF12 -> 0 | AG63: =Taxes!AG12 -> 0 | AH63: =Taxes!AH12 -> 0 | AI63: =Taxes!AI12 -> 0 | AJ63: =Taxes!AJ12 -> 0 | AK63: =Taxes!AK12 -> 0 | AL63: =Taxes!AL12 -> 0 | AM63: =Taxes!AM12 -> 0 | AN63: =Taxes!AN12 -> 0 | AO63: =Taxes!AO12 -> 0 | AP63: =Taxes!AP12 -> 0 | AQ63: =Taxes!AQ12 -> 0
B64: Federal tax refund (paid) | D64: =Taxes!D22 -> 144.181596 | E64: =Taxes!E24+Taxes!E22 -> 278.3106968 | F64: =Taxes!F24+Taxes!F22 -> 134.9046099 | G64: =Taxes!G24+Taxes!G22 -> 48.70465164 | H64: =Taxes!H24+Taxes!H22 -> 48.3471218 | I64: =Taxes!I24+Taxes!I22 -> 26.79571879 | J64: =Taxes!J24+Taxes!J22 -> -38.40158271 | K64: =Taxes!K24+Taxes!K22 -> -39.2537468 | L64: =Taxes!L24+Taxes!L22 -> -40.21043833 | M64: =Taxes!M24+Taxes!M22 -> -41.27866249 | N64: =Taxes!N24+Taxes!N22 -> -42.4658879 | O64: =Taxes!O24+Taxes!O22 -> -43.78007683 | P64: =Taxes!P24+Taxes!P22 -> -45.2297175 | Q64: =Taxes!Q24+Taxes!Q22 -> -46.82385834 | R64: =Taxes!R24+Taxes!R22 -> -48.57214463 | S64: =Taxes!S24+Taxes!S22 -> -50.48485737 | T64: =Taxes!T24+Taxes!T22 -> -52.57295483 | U64: =Taxes!U24+Taxes!U22 -> -54.8481167 | V64: =Taxes!V24+Taxes!V22 -> -57.32279115 | W64: =Taxes!W24+Taxes!W22 -> -56.39276485 | X64: =Taxes!X24+Taxes!X22 -> 0 | Y64: =Taxes!Y24+Taxes!Y22 -> 0 | Z64: =Taxes!Z24+Taxes!Z22 -> 0 | AA64: =Taxes!AA24+Taxes!AA22 -> 0 | AB64: =Taxes!AB24+Taxes!AB22 -> 0 | AC64: =Taxes!AC24+Taxes!AC22 -> 0 | AD64: =Taxes!AD24+Taxes!AD22 -> 0 | AE64: =Taxes!AE24+Taxes!AE22 -> 0 | AF64: =Taxes!AF24+Taxes!AF22 -> 0 | AG64: =Taxes!AG24+Taxes!AG22 -> 0 | AH64: =Taxes!AH24+Taxes!AH22 -> 0 | AI64: =Taxes!AI24+Taxes!AI22 -> 0 | AJ64: =Taxes!AJ24+Taxes!AJ22 -> 0 | AK64: =Taxes!AK24+Taxes!AK22 -> 0 | AL64: =Taxes!AL24+Taxes!AL22 -> 0 | AM64: =Taxes!AM24+Taxes!AM22 -> 0 | AN64: =Taxes!AN24+Taxes!AN22 -> 0 | AO64: =Taxes!AO24+Taxes!AO22 -> 0 | AP64: =Taxes!AP24+Taxes!AP22 -> 0 | AQ64: =Taxes!AQ24+Taxes!AQ22 -> 0
B65: Tax Credit - Federal PTC | D65: =Taxes!D23 -> 0 | E65: =Taxes!E23 -> 0 | F65: =Taxes!F23 -> 0 | G65: =Taxes!G23 -> 0 | H65: =Taxes!H23 -> 0 | I65: =Taxes!I23 -> 0 | J65: =Taxes!J23 -> 0 | K65: =Taxes!K23 -> 0 | L65: =Taxes!L23 -> 0 | M65: =Taxes!M23 -> 0 | N65: =Taxes!N23 -> 0 | O65: =Taxes!O23 -> 0 | P65: =Taxes!P23 -> 0 | Q65: =Taxes!Q23 -> 0 | R65: =Taxes!R23 -> 0 | S65: =Taxes!S23 -> 0 | T65: =Taxes!T23 -> 0 | U65: =Taxes!U23 -> 0 | V65: =Taxes!V23 -> 0 | W65: =Taxes!W23 -> 0 | X65: =Taxes!X23 -> 0 | Y65: =Taxes!Y23 -> 0 | Z65: =Taxes!Z23 -> 0 | AA65: =Taxes!AA23 -> 0 | AB65: =Taxes!AB23 -> 0 | AC65: =Taxes!AC23 -> 0 | AD65: =Taxes!AD23 -> 0 | AE65: =Taxes!AE23 -> 0 | AF65: =Taxes!AF23 -> 0 | AG65: =Taxes!AG23 -> 0 | AH65: =Taxes!AH23 -> 0 | AI65: =Taxes!AI23 -> 0 | AJ65: =Taxes!AJ23 -> 0 | AK65: =Taxes!AK23 -> 0 | AL65: =Taxes!AL23 -> 0 | AM65: =Taxes!AM23 -> 0 | AN65: =Taxes!AN23 -> 0 | AO65: =Taxes!AO23 -> 0 | AP65: =Taxes!AP23 -> 0 | AQ65: =Taxes!AQ23 -> 0
B66: Tax Credit - Federal ITC | D66: =Taxes!D24 -> 1062.420865 | E66: =Taxes!E24 -> 0 | F66: =Taxes!F24 -> 0 | G66: =Taxes!G24 -> 0 | H66: =Taxes!H24 -> 0 | I66: =Taxes!I24 -> 0 | J66: =Taxes!J24 -> 0 | K66: =Taxes!K24 -> 0 | L66: =Taxes!L24 -> 0 | M66: =Taxes!M24 -> 0 | N66: =Taxes!N24 -> 0 | O66: =Taxes!O24 -> 0 | P66: =Taxes!P24 -> 0 | Q66: =Taxes!Q24 -> 0 | R66: =Taxes!R24 -> 0 | S66: =Taxes!S24 -> 0 | T66: =Taxes!T24 -> 0 | U66: =Taxes!U24 -> 0 | V66: =Taxes!V24 -> 0 | W66: =Taxes!W24 -> 0 | X66: =Taxes!X24 -> 0 | Y66: =Taxes!Y24 -> 0 | Z66: =Taxes!Z24 -> 0 | AA66: =Taxes!AA24 -> 0 | AB66: =Taxes!AB24 -> 0 | AC66: =Taxes!AC24 -> 0 | AD66: =Taxes!AD24 -> 0 | AE66: =Taxes!AE24 -> 0 | AF66: =Taxes!AF24 -> 0 | AG66: =Taxes!AG24 -> 0 | AH66: =Taxes!AH24 -> 0 | AI66: =Taxes!AI24 -> 0 | AJ66: =Taxes!AJ24 -> 0 | AK66: =Taxes!AK24 -> 0 | AL66: =Taxes!AL24 -> 0 | AM66: =Taxes!AM24 -> 0 | AN66: =Taxes!AN24 -> 0 | AO66: =Taxes!AO24 -> 0 | AP66: =Taxes!AP24 -> 0 | AQ66: =Taxes!AQ24 -> 0
B67: Taxes Refunded/(Paid) | D67: =Taxes!D26 -> 1206.602461 | E67: =Taxes!E26 -> 278.3106968 | F67: =Taxes!F26 -> 134.9046099 | G67: =Taxes!G26 -> 48.70465164 | H67: =Taxes!H26 -> 48.3471218 | I67: =Taxes!I26 -> 26.79571879 | J67: =Taxes!J26 -> -38.40158271 | K67: =Taxes!K26 -> -39.2537468 | L67: =Taxes!L26 -> -40.21043833 | M67: =Taxes!M26 -> -41.27866249 | N67: =Taxes!N26 -> -42.4658879 | O67: =Taxes!O26 -> -43.78007683 | P67: =Taxes!P26 -> -45.2297175 | Q67: =Taxes!Q26 -> -46.82385834 | R67: =Taxes!R26 -> -48.57214463 | S67: =Taxes!S26 -> -50.48485737 | T67: =Taxes!T26 -> -52.57295483 | U67: =Taxes!U26 -> -54.8481167 | V67: =Taxes!V26 -> -57.32279115 | W67: =Taxes!W26 -> -56.39276485 | X67: =Taxes!X26 -> 0 | Y67: =Taxes!Y26 -> 0 | Z67: =Taxes!Z26 -> 0 | AA67: =Taxes!AA26 -> 0 | AB67: =Taxes!AB26 -> 0 | AC67: =Taxes!AC26 -> 0 | AD67: =Taxes!AD26 -> 0 | AE67: =Taxes!AE26 -> 0 | AF67: =Taxes!AF26 -> 0 | AG67: =Taxes!AG26 -> 0 | AH67: =Taxes!AH26 -> 0 | AI67: =Taxes!AI26 -> 0 | AJ67: =Taxes!AJ26 -> 0 | AK67: =Taxes!AK26 -> 0 | AL67: =Taxes!AL26 -> 0 | AM67: =Taxes!AM26 -> 0 | AN67: =Taxes!AN26 -> 0 | AO67: =Taxes!AO26 -> 0 | AP67: =Taxes!AP26 -> 0 | AQ67: =Taxes!AQ26 -> 0
B69: Equity Investment | C69: =-H38 -> -2068.924842
AR70: check:
B71: After-Tax Equity Cash Flow | C71: =C48+C53+C61+C69+C64 -> -2068.924842 | D71: =D48+D53+D61+D67 -> 1382.787744 | E71: 451.5328847 | F71: 305.1527763 | G71: 215.9674094 | H71: 212.6126156 | I71: 64.23352392 | J71: -3.367099075 | K71: -6.638989694 | L71: -10.03229919 | M71: -13.55452811 | N71: -17.21364951 | O71: -21.01813946 | P71: -24.97700941 | Q71: -29.09984079 | R71: -33.39682167 | S71: -37.87878602 | T71: -42.55725532 | U71: -47.44448299 | V71: 106.4566121 | W71: 104.7294204 | X71: 0 | Y71: 0 | Z71: 0 | AA71: 0 | AB71: 0 | AC71: 0 | AD71: 0 | AE71: 0 | AF71: 0 | AG71: 0 | AH71: 0 | AI71: 0 | AJ71: 0 | AK71: 0 | AL71: 0 | AM71: 0 | AN71: 0 | AO71: 0 | AP71: 0 | AQ71: 0 | AR71: =ROUND(IRR(C71:AQ71),5)-ROUND(H33,5) -> 0 | AS71: =ROUND(NPV(H33,$C$71:$AQ$71),3) -> 0
B73: Levelized Cost of Energy
B75: Levelization of Cost by Category | C75: 0 | D75: 1 | E75: 2 | F75: 3 | G75: 4 | H75: 5 | I75: 6 | J75: 7 | K75: 8 | L75: 9 | M75: 10 | N75: 11 | O75: 12 | P75: 13 | Q75: 14 | R75: 15 | S75: 16 | T75: 17 | U75: 18 | V75: 19 | W75: 20 | X75: 21 | Y75: 22 | Z75: 23 | AA75: 24 | AB75: 25 | AC75: 26 | AD75: 27 | AE75: 28 | AF75: 29 | AG75: 30 | AH75: 31 | AI75: 32 | AJ75: 33 | AK75: 34 | AL75: 35 | AM75: 36 | AN75: 37 | AO75: 38 | AP75: 39 | AQ75: 40
B76: Capital Costs | C76: =C71 -> -2068.924842 | D76: =D61-(D57-$C$18*VLOOKUP($H$25,$C$93:$AQ$101,D92+1)+D60)*$H$18 -> 139.6746013 | E76: 295.0774571 | F76: 126.8322353 | G76: 25.30844754 | H76: 23.90187533 | I76: -52.74842105 | J76: -129.4960874 | K76: -131.1951558 | L76: -133.0046636 | M76: -134.9317894 | N76: -136.9841784 | O76: -139.1699727 | P76: -141.4978436 | Q76: -143.9770262 | R76: -146.6173555 | S76: -149.4293063 | T76: -152.424034 | U76: -155.6134189 | V76: 0 | W76: 0 | X76: 0 | Y76: 0 | Z76: 0 | AA76: 0 | AB76: 0 | AC76: 0 | AD76: 0 | AE76: 0 | AF76: 0 | AG76: 0 | AH76: 0 | AI76: 0 | AJ76: 0 | AK76: 0 | AL76: 0 | AM76: 0 | AN76: 0 | AO76: 0 | AP76: 0 | AQ76: 0
B77: Property Tax & Insurance | D77: =+SUM(D51:D52)*(1-$H$18) -> -12.35763217 | E77: -12.60478481 | F77: -12.85688051 | G77: -13.11401812 | H77: -13.37629848 | I77: -13.64382445 | J77: -13.91670094 | K77: -14.19503496 | L77: -14.47893566 | M77: -14.76851437 | N77: -15.06388466 | O77: -15.36516235 | P77: -15.6724656 | Q77: -15.98591491 | R77: -16.30563321 | S77: -16.63174587 | T77: -16.96438079 | U77: -17.3036684 | V77: -17.64974177 | W77: -18.00273661 | X77: 0 | Y77: 0 | Z77: 0 | AA77: 0 | AB77: 0 | AC77: 0 | AD77: 0 | AE77: 0 | AF77: 0 | AG77: 0 | AH77: 0 | AI77: 0 | AJ77: 0 | AK77: 0 | AL77: 0 | AM77: 0 | AN77: 0 | AO77: 0 | AP77: 0 | AQ77: 0
B78: Investment Tax Credit | D78: =(IF(D42=1,1,0)-VLOOKUP($H$25,$C$93:$AQ$101,D92+1)*$H$24*$H$16)*$H$23*$C$18*$H$22 -> 1025.236135 | E78: -59.49556844 | F78: -35.69734106 | G78: -21.41840464 | H78: -21.41840464 | I78: -10.70920232 | J78: 0 | K78: 0 | L78: 0 | M78: 0 | N78: 0 | O78: 0 | P78: 0 | Q78: 0 | R78: 0 | S78: 0 | T78: 0 | U78: 0 | V78: 0 | W78: 0 | X78: 0 | Y78: 0 | Z78: 0 | AA78: 0 | AB78: 0 | AC78: 0 | AD78: 0 | AE78: 0 | AF78: 0 | AG78: 0 | AH78: 0 | AI78: 0 | AJ78: 0 | AK78: 0 | AL78: 0 | AM78: 0 | AN78: 0 | AO78: 0 | AP78: 0 | AQ78: 0
B79: Fixed Operations & Maintenance | D79: =D50*(1-$H$18) -> -21.10742712 | E79: -21.52957566 | F79: -21.96016718 | G79: -22.39937052 | H79: -22.84735793 | I79: -23.30430509 | J79: -23.77039119 | K79: -24.24579901 | L79: -24.73071499 | M79: -25.22532929 | N79: -25.72983588 | O79: -26.2444326 | P79: -26.76932125 | Q79: -27.30470767 | R79: -27.85080183 | S79: -28.40781786 | T79: -28.97597422 | U79: -29.55549371 | V79: -30.14660358 | W79: -30.74953565 | X79: 0 | Y79: 0 | Z79: 0 | AA79: 0 | AB79: 0 | AC79: 0 | AD79: 0 | AE79: 0 | AF79: 0 | AG79: 0 | AH79: 0 | AI79: 0 | AJ79: 0 | AK79: 0 | AL79: 0 | AM79: 0 | AN79: 0 | AO79: 0 | AP79: 0 | AQ79: 0
B80: Utility Incentive | D80: =D45*(1-$H$18) -> 82.52434085 | E80: 82.11171915 | F80: 81.70116055 | G80: 81.29265475 | H80: 80.88619148 | I80: 0 | J80: 0 | K80: 0 | L80: 0 | M80: 0 | N80: 0 | O80: 0 | P80: 0 | Q80: 0 | R80: 0 | S80: 0 | T80: 0 | U80: 0 | V80: 0 | W80: 0 | X80: 0 | Y80: 0 | Z80: 0 | AA80: 0 | AB80: 0 | AC80: 0 | AD80: 0 | AE80: 0 | AF80: 0 | AG80: 0 | AH80: 0 | AI80: 0 | AJ80: 0 | AK80: 0 | AL80: 0 | AM80: 0 | AN80: 0 | AO80: 0 | AP80: 0 | AQ80: 0
B81: Production Tax Credit | D81: =IF(D42<=$H$20,$H$19*(1+$H$21)^(Taxes!D4)*D44,0) -> 0 | E81: =IF(E42<=$H$20,$H$19*(1+$H$21)^(Taxes!E4)*E44,0) -> 0 | F81: =IF(F42<=$H$20,$H$19*(1+$H$21)^(Taxes!F4)*F44,0) -> 0 | G81: =IF(G42<=$H$20,$H$19*(1+$H$21)^(Taxes!G4)*G44,0) -> 0 | H81: =IF(H42<=$H$20,$H$19*(1+$H$21)^(Taxes!H4)*H44,0) -> 0 | I81: =IF(I42<=$H$20,$H$19*(1+$H$21)^(Taxes!I4)*I44,0) -> 0 | J81: =IF(J42<=$H$20,$H$19*(1+$H$21)^(Taxes!J4)*J44,0) -> 0 | K81: =IF(K42<=$H$20,$H$19*(1+$H$21)^(Taxes!K4)*K44,0) -> 0 | L81: =IF(L42<=$H$20,$H$19*(1+$H$21)^(Taxes!L4)*L44,0) -> 0 | M81: =IF(M42<=$H$20,$H$19*(1+$H$21)^(Taxes!M4)*M44,0) -> 0 | N81: =IF(N42<=$H$20,$H$19*(1+$H$21)^(Taxes!N4)*N44,0) -> 0 | O81: =IF(O42<=$H$20,$H$19*(1+$H$21)^(Taxes!O4)*O44,0) -> 0 | P81: =IF(P42<=$H$20,$H$19*(1+$H$21)^(Taxes!P4)*P44,0) -> 0 | Q81: =IF(Q42<=$H$20,$H$19*(1+$H$21)^(Taxes!Q4)*Q44,0) -> 0 | R81: =IF(R42<=$H$20,$H$19*(1+$H$21)^(Taxes!R4)*R44,0) -> 0 | S81: =IF(S42<=$H$20,$H$19*(1+$H$21)^(Taxes!S4)*S44,0) -> 0 | T81: =IF(T42<=$H$20,$H$19*(1+$H$21)^(Taxes!T4)*T44,0) -> 0 | U81: =IF(U42<=$H$20,$H$19*(1+$H$21)^(Taxes!U4)*U44,0) -> 0 | V81: =IF(V42<=$H$20,$H$19*(1+$H$21)^(Taxes!V4)*V44,0) -> 0 | W81: =IF(W42<=$H$20,$H$19*(1+$H$21)^(Taxes!W4)*W44,0) -> 0 | X81: =IF(X42<=$H$20,$H$19*(1+$H$21)^(Taxes!X4)*X44,0) -> 0 | Y81: =IF(Y42<=$H$20,$H$19*(1+$H$21)^(Taxes!Y4)*Y44,0) -> 0 | Z81: =IF(Z42<=$H$20,$H$19*(1+$H$21)^(Taxes!Z4)*Z44,0) -> 0 | AA81: =IF(AA42<=$H$20,$H$19*(1+$H$21)^(Taxes!AA4)*AA44,0) -> 0 | AB81: =IF(AB42<=$H$20,$H$19*(1+$H$21)^(Taxes!AB4)*AB44,0) -> 0 | AC81: =IF(AC42<=$H$20,$H$19*(1+$H$21)^(Taxes!AC4)*AC44,0) -> 0 | AD81: =IF(AD42<=$H$20,$H$19*(1+$H$21)^(Taxes!AD4)*AD44,0) -> 0 | AE81: =IF(AE42<=$H$20,$H$19*(1+$H$21)^(Taxes!AE4)*AE44,0) -> 0 | AF81: =IF(AF42<=$H$20,$H$19*(1+$H$21)^(Taxes!AF4)*AF44,0) -> 0 | AG81: =IF(AG42<=$H$20,$H$19*(1+$H$21)^(Taxes!AG4)*AG44,0) -> 0 | AH81: =IF(AH42<=$H$20,$H$19*(1+$H$21)^(Taxes!AH4)*AH44,0) -> 0 | AI81: =IF(AI42<=$H$20,$H$19*(1+$H$21)^(Taxes!AI4)*AI44,0) -> 0 | AJ81: =IF(AJ42<=$H$20,$H$19*(1+$H$21)^(Taxes!AJ4)*AJ44,0) -> 0 | AK81: =IF(AK42<=$H$20,$H$19*(1+$H$21)^(Taxes!AK4)*AK44,0) -> 0 | AL81: =IF(AL42<=$H$20,$H$19*(1+$H$21)^(Taxes!AL4)*AL44,0) -> 0 | AM81: =IF(AM42<=$H$20,$H$19*(1+$H$21)^(Taxes!AM4)*AM44,0) -> 0 | AN81: =IF(AN42<=$H$20,$H$19*(1+$H$21)^(Taxes!AN4)*AN44,0) -> 0 | AO81: =IF(AO42<=$H$20,$H$19*(1+$H$21)^(Taxes!AO4)*AO44,0) -> 0 | AP81: =IF(AP42<=$H$20,$H$19*(1+$H$21)^(Taxes!AP4)*AP44,0) -> 0 | AQ81: =IF(AQ42<=$H$20,$H$19*(1+$H$21)^(Taxes!AQ4)*AQ44,0) -> 0
B82: Total | C82: =SUM(C76:C81) -> -2068.924842 | D82: 1213.970018 | E82: 283.5592473 | F82: 138.0190071 | G82: 49.66930902 | H82: 47.14600576 | I82: -100.4057529 | J82: -167.1831795 | K82: -169.6359897 | L82: -172.2143142 | M82: -174.9256331 | N82: -177.7778989 | O82: -180.7795676 | P82: -183.9396305 | Q82: -187.2676487 | R82: -190.7737906 | S82: -194.4688701 | T82: -198.364389 | U82: -202.472581 | V82: -47.79634535 | W82: -48.75227226 | X82: 0 | Y82: 0 | Z82: 0 | AA82: 0 | AB82: 0 | AC82: 0 | AD82: 0 | AE82: 0 | AF82: 0 | AG82: 0 | AH82: 0 | AI82: 0 | AJ82: 0 | AK82: 0 | AL82: 0 | AM82: 0 | AN82: 0 | AO82: 0 | AP82: 0 | AQ82: 0
B84: Discount Rate | C84: =(1+H33)/(1+H37)-1 -> 0.119277027
B85: NPV Energy | C85: =NPV(C84,$D$44:$AQ$44)+$C$44 -> 10.73803283
B86: NPV Capacity | C86: =-PV(C84,C27,C16)*1000 -> 7.503421077
B87: LCOE ($/MWh) | C87: =-(C82+NPV(H33,D82:AQ82))/C85/(1-$H$18) -> 176.1323515
B90: MACRS Schedules
B92: MACRS Schedule | C92: Term | D92: 1 | E92: 2 | F92: 3 | G92: 4 | H92: 5 | I92: 6 | J92: 7 | K92: 8 | L92: 9 | M92: 10 | N92: 11 | O92: 12 | P92: 13 | Q92: 14 | R92: 15 | S92: 16 | T92: 17 | U92: 18 | V92: 19 | W92: 20 | X92: 21 | Y92: 22 | Z92: 23 | AA92: 24 | AB92: 25 | AC92: 26 | AD92: 27 | AE92: 28 | AF92: 29 | AG92: 30 | AH92: 31 | AI92: 32 | AJ92: 33 | AK92: 34 | AL92: 35 | AM92: 36 | AN92: 37 | AO92: 38 | AP92: 39 | AQ92: 40
C93: 0
C94: 3 | D94: 0.3333 | E94: 0.4445 | F94: 0.1481 | G94: 0.0741
C95: 5 | D95: 0.2 | E95: 0.32 | F95: 0.192 | G95: 0.1152 | H95: 0.1152 | I95: 0.0576
C96: 7 | D96: 0.1429 | E96: 0.2449 | F96: 0.1749 | G96: 0.1249 | H96: 0.0893 | I96: 0.0892 | J96: 0.0893 | K96: 0.0446
C97: 10 | D97: 0.1 | E97: 0.18 | F97: 0.144 | G97: 0.1152 | H97: 0.0922 | I97: 0.0737 | J97: 0.0655 | K97: 0.0655 | L97: 0.0656 | M97: 0.0655 | N97: 0.0328
C98: 15 | D98: 0.05 | E98: 0.095 | F98: 0.0855 | G98: 0.077 | H98: 0.0693 | I98: 0.0623 | J98: 0.059 | K98: 0.059 | L98: 0.0591 | M98: 0.059 | N98: 0.0591 | O98: 0.059 | P98: 0.0591 | Q98: 0.059 | R98: 0.0591 | S98: 0.0295
C99: 0 | D99: 0 | E99: 0 | F99: 0 | G99: 0 | H99: 0 | I99: 0 | J99: 0 | K99: 0 | L99: 0 | M99: 0 | N99: 0 | O99: 0 | P99: 0 | Q99: 0 | R99: 0 | S99: 0 | T99: 0 | U99: 0 | V99: 0 | W99: 0 | X99: 0 | Y99: 0 | Z99: 0 | AA99: 0 | AB99: 0 | AC99: 0 | AD99: 0 | AE99: 0 | AF99: 0 | AG99: 0 | AH99: 0 | AI99: 0 | AJ99: 0 | AK99: 0 | AL99: 0 | AM99: 0 | AN99: 0 | AO99: 0 | AP99: 0 | AQ99: 0
C100: 20 | D100: 0.0375 | E100: 0.07219 | F100: 0.06677 | G100: 0.06177 | H100: 0.05713 | I100: 0.05285 | J100: 0.04888 | K100: 0.04522 | L100: 0.04462 | M100: 0.04461 | N100: 0.04462 | O100: 0.04461 | P100: 0.04462 | Q100: 0.04461 | R100: 0.04462 | S100: 0.04461 | T100: 0.04462 | U100: 0.04461 | V100: 0.04462 | W100: 0.04461 | X100: 0.02231
C101: 5 + Bonus | D101: =50%+50%*D95 -> 0.6 | E101: =50%*E95 -> 0.16 | F101: =50%*F95 -> 0.096 | G101: =50%*G95 -> 0.0576 | H101: =50%*H95 -> 0.0576 | I101: =50%*I95 -> 0.0288

Sheet Taxes
B2: Taxes
B4: Year | C4: 0 | D4: 1 | E4: 2 | F4: 3 | G4: 4 | H4: 5 | I4: 6 | J4: 7 | K4: 8 | L4: 9 | M4: 10 | N4: 11 | O4: 12 | P4: 13 | Q4: 14 | R4: 15 | S4: 16 | T4: 17 | U4: 18 | V4: 19 | W4: 20 | X4: 21 | Y4: 22 | Z4: 23 | AA4: 24 | AB4: 25 | AC4: 26 | AD4: 27 | AE4: 28 | AF4: 29 | AG4: 30 | AH4: 31 | AI4: 32 | AJ4: 33 | AK4: 34 | AL4: 35 | AM4: 36 | AN4: 37 | AO4: 38 | AP4: 39 | AQ4: 40
B5: State Taxes
B6: Taxable operating income | D6: =+'IPP Proforma'!D55+'IPP Proforma'!D60 -> 335.1953963 | E6: =+'IPP Proforma'!E55+'IPP Proforma'!E60 -> 332.2323017 | F6: =+'IPP Proforma'!F55+'IPP Proforma'!F60 -> 329.2582801 | G6: =+'IPP Proforma'!G55+'IPP Proforma'!G60 -> 326.2728715 | H6: =+'IPP Proforma'!H55+'IPP Proforma'!H60 -> 323.2756076 | I6: =+'IPP Proforma'!I55+'IPP Proforma'!I60 -> 196.4479189 | J6: =+'IPP Proforma'!J55+'IPP Proforma'!J60 -> 194.0445974 | K6: =+'IPP Proforma'!K55+'IPP Proforma'!K60 -> 191.6248709 | L6: =+'IPP Proforma'!L55+'IPP Proforma'!L60 -> 189.1882529 | M6: =+'IPP Proforma'!M55+'IPP Proforma'!M60 -> 186.7342482 | N6: =+'IPP Proforma'!N55+'IPP Proforma'!N60 -> 184.2623522 | O6: =+'IPP Proforma'!O55+'IPP Proforma'!O60 -> 181.7720511 | P6: =+'IPP Proforma'!P55+'IPP Proforma'!P60 -> 179.2628219 | Q6: =+'IPP Proforma'!Q55+'IPP Proforma'!Q60 -> 176.7341313 | R6: =+'IPP Proforma'!R55+'IPP Proforma'!R60 -> 174.1854367 | S6: =+'IPP Proforma'!S55+'IPP Proforma'!S60 -> 171.6161851 | T6: =+'IPP Proforma'!T55+'IPP Proforma'!T60 -> 169.0258133 | U6: =+'IPP Proforma'!U55+'IPP Proforma'!U60 -> 166.4137475 | V6: =+'IPP Proforma'!V55+'IPP Proforma'!V60 -> 163.7794033 | W6: =+'IPP Proforma'!W55+'IPP Proforma'!W60 -> 161.1221853 | X6: =+'IPP Proforma'!X55+'IPP Proforma'!X60 -> 0 | Y6: =+'IPP Proforma'!Y55+'IPP Proforma'!Y60 -> 0 | Z6: =+'IPP Proforma'!Z55+'IPP Proforma'!Z60 -> 0 | AA6: =+'IPP Proforma'!AA55+'IPP Proforma'!AA60 -> 0 | AB6: =+'IPP Proforma'!AB55+'IPP Proforma'!AB60 -> 0 | AC6: =+'IPP Proforma'!AC55+'IPP Proforma'!AC60 -> 0 | AD6: =+'IPP Proforma'!AD55+'IPP Proforma'!AD60 -> 0 | AE6: =+'IPP Proforma'!AE55+'IPP Proforma'!AE60 -> 0 | AF6: =+'IPP Proforma'!AF55+'IPP Proforma'!AF60 -> 0 | AG6: =+'IPP Proforma'!AG55+'IPP Proforma'!AG60 -> 0 | AH6: =+'IPP Proforma'!AH55+'IPP Proforma'!AH60 -> 0 | AI6: =+'IPP Proforma'!AI55+'IPP Proforma'!AI60 -> 0 | AJ6: =+'IPP Proforma'!AJ55+'IPP Proforma'!AJ60 -> 0 | AK6: =+'IPP Proforma'!AK55+'IPP Proforma'!AK60 -> 0 | AL6: =+'IPP Proforma'!AL55+'IPP Proforma'!AL60 -> 0 | AM6: =+'IPP Proforma'!AM55+'IPP Proforma'!AM60 -> 0 | AN6: =+'IPP Proforma'!AN55+'IPP Proforma'!AN60 -> 0 | AO6: =+'IPP Proforma'!AO55+'IPP Proforma'!AO60 -> 0 | AP6: =+'IPP Proforma'!AP55+'IPP Proforma'!AP60 -> 0 | AQ6: =+'IPP Proforma'!AQ55+'IPP Proforma'!AQ60 -> 0
B7: Depreciation schedule (assumes LLP entity) | D7: =VLOOKUP('IPP Proforma'!$H$25,'IPP Proforma'!$C$93:$AQ$101,'IPP Proforma'!D92+1) -> 0.2 | E7: =VLOOKUP('IPP Proforma'!$H$25,'IPP Proforma'!$C$93:$AQ$101,'IPP Proforma'!E92+1) -> 0.32 | F7: =VLOOKUP('IPP Proforma'!$H$25,'IPP Proforma'!$C$93:$AQ$101,'IPP Proforma'!F92+1) -> 0.192 | G7: =VLOOKUP('IPP Proforma'!$H$25,'IPP Proforma'!$C$93:$AQ$101,'IPP Proforma'!G92+1) -> 0.1152 | H7: =VLOOKUP('IPP Proforma'!$H$25,'IPP Proforma'!$C$93:$AQ$101,'IPP Proforma'!H92+1) -> 0.1152 | I7: =VLOOKUP('IPP Proforma'!$H$25,'IPP Proforma'!$C$93:$AQ$101,'IPP Proforma'!I92+1) -> 0.0576 | J7: =VLOOKUP('IPP Proforma'!$H$25,'IPP Proforma'!$C$93:$AQ$101,'IPP Proforma'!J92+1) -> 0 | K7: =VLOOKUP('IPP Proforma'!$H$25,'IPP Proforma'!$C$93:$AQ$101,'IPP Proforma'!K92+1) -> 0 | L7: =VLOOKUP('IPP Proforma'!$H$25,'IPP Proforma'!$C$93:$AQ$101,'IPP Proforma'!L92+1) -> 0 | M7: =VLOOKUP('IPP Proforma'!$H$25,'IPP Proforma'!$C$93:$AQ$101,'IPP Proforma'!M92+1) -> 0 | N7: =VLOOKUP('IPP Proforma'!$H$25,'IPP Proforma'!$C$93:$AQ$101,'IPP Proforma'!N92+1) -> 0 | O7: =VLOOKUP('IPP Proforma'!$H$25,'IPP Proforma'!$C$93:$AQ$101,'IPP Proforma'!O92+1) -> 0 | P7: =VLOOKUP('IPP Proforma'!$H$25,'IPP Proforma'!$C$93:$AQ$101,'IPP Proforma'!P92+1) -> 0 | Q7: =VLOOKUP('IPP Proforma'!$H$25,'IPP Proforma'!$C$93:$AQ$101,'IPP Proforma'!Q92+1) -> 0 | R7: =VLOOKUP('IPP Proforma'!$H$25,'IPP Proforma'!$C$93:$AQ$101,'IPP Proforma'!R92+1) -> 0 | S7: =VLOOKUP('IPP Proforma'!$H$25,'IPP Proforma'!$C$93:$AQ$101,'IPP Proforma'!S92+1) -> 0 | T7: =VLOOKUP('IPP Proforma'!$H$25,'IPP Proforma'!$C$93:$AQ$101,'IPP Proforma'!T92+1) -> 0 | U7: =VLOOKUP('IPP Proforma'!$H$25,'IPP Proforma'!$C$93:$AQ$101,'IPP Proforma'!U92+1) -> 0 | V7: =VLOOKUP('IPP Proforma'!$H$25,'IPP Proforma'!$C$93:$AQ$101,'IPP Proforma'!V92+1) -> 0 | W7: =VLOOKUP('IPP Proforma'!$H$25,'IPP Proforma'!$C$93:$AQ$101,'IPP Proforma'!W92+1) -> 0 | X7: =VLOOKUP('IPP Proforma'!$H$25,'IPP Proforma'!$C$93:$AQ$101,'IPP Proforma'!X92+1) -> 0 | Y7: =VLOOKUP('IPP Proforma'!$H$25,'IPP Proforma'!$C$93:$AQ$101,'IPP Proforma'!Y92+1) -> 0 | Z7: =VLOOKUP('IPP Proforma'!$H$25,'IPP Proforma'!$C$93:$AQ$101,'IPP Proforma'!Z92+1) -> 0 | AA7: =VLOOKUP('IPP Proforma'!$H$25,'IPP Proforma'!$C$93:$AQ$101,'IPP Proforma'!AA92+1) -> 0 | AB7: =VLOOKUP('IPP Proforma'!$H$25,'IPP Proforma'!$C$93:$AQ$101,'IPP Proforma'!AB92+1) -> 0 | AC7: =VLOOKUP('IPP Proforma'!$H$25,'IPP Proforma'!$C$93:$AQ$101,'IPP Proforma'!AC92+1) -> 0 | AD7: =VLOOKUP('IPP Proforma'!$H$25,'IPP Proforma'!$C$93:$AQ$101,'IPP Proforma'!AD92+1) -> 0 | AE7: =VLOOKUP('IPP Proforma'!$H$25,'IPP Proforma'!$C$93:$AQ$101,'IPP Proforma'!AE92+1) -> 0 | AF7: =VLOOKUP('IPP Proforma'!$H$25,'IPP Proforma'!$C$93:$AQ$101,'IPP Proforma'!AF92+1) -> 0 | AG7: =VLOOKUP('IPP Proforma'!$H$25,'IPP Proforma'!$C$93:$AQ$101,'IPP Proforma'!AG92+1) -> 0 | AH7: =VLOOKUP('IPP Proforma'!$H$25,'IPP Proforma'!$C$93:$AQ$101,'IPP Proforma'!AH92+1) -> 0 | AI7: =VLOOKUP('IPP Proforma'!$H$25,'IPP Proforma'!$C$93:$AQ$101,'IPP Proforma'!AI92+1) -> 0 | AJ7: =VLOOKUP('IPP Proforma'!$H$25,'IPP Proforma'!$C$93:$AQ$101,'IPP Proforma'!AJ92+1) -> 0 | AK7: =VLOOKUP('IPP Proforma'!$H$25,'IPP Proforma'!$C$93:$AQ$101,'IPP Proforma'!AK92+1) -> 0 | AL7: =VLOOKUP('IPP Proforma'!$H$25,'IPP Proforma'!$C$93:$AQ$101,'IPP Proforma'!AL92+1) -> 0 | AM7: =VLOOKUP('IPP Proforma'!$H$25,'IPP Proforma'!$C$93:$AQ$101,'IPP Proforma'!AM92+1) -> 0 | AN7: =VLOOKUP('IPP Proforma'!$H$25,'IPP Proforma'!$C$93:$AQ$101,'IPP Proforma'!AN92+1) -> 0 | AO7: =VLOOKUP('IPP Proforma'!$H$25,'IPP Proforma'!$C$93:$AQ$101,'IPP Proforma'!AO92+1) -> 0 | AP7: =VLOOKUP('IPP Proforma'!$H$25,'IPP Proforma'!$C$93:$AQ$101,'IPP Proforma'!AP92+1) -> 0 | AQ7: =VLOOKUP('IPP Proforma'!$H$25,'IPP Proforma'!$C$93:$AQ$101,'IPP Proforma'!AQ92+1) -> 0
A8: 0.95 | B8: Depreciation Basis | C8: ='IPP Proforma'!C18 -> 3727.792509
B9: Depreciation | D9: =+$C8*D7 -> 745.5585018 | E9: 1192.893603 | F9: 715.7361617 | G9: 429.441697 | H9: 429.441697 | I9: 214.7208485 | J9: 0 | K9: 0 | L9: 0 | M9: 0 | N9: 0 | O9: 0 | P9: 0 | Q9: 0 | R9: 0 | S9: 0 | T9: 0 | U9: 0 | V9: 0 | W9: 0 | X9: 0 | Y9: 0 | Z9: 0 | AA9: 0 | AB9: 0 | AC9: 0 | AD9: 0 | AE9: 0 | AF9: 0 | AG9: 0 | AH9: 0 | AI9: 0 | AJ9: 0 | AK9: 0 | AL9: 0 | AM9: 0 | AN9: 0 | AO9: 0 | AP9: 0 | AQ9: 0
B10: Interest | D10: =+'IPP Proforma'!D57 -> -107.8263983 | E10: =+'IPP Proforma'!E57 -> -104.4994568 | F10: =+'IPP Proforma'!F57 -> -100.9562641 | G10: =+'IPP Proforma'!G57 -> -97.18276388 | H10: =+'IPP Proforma'!H57 -> -93.16398614 | I10: =+'IPP Proforma'!I57 -> -88.88398784 | J10: =+'IPP Proforma'!J57 -> -84.32578966 | K10: =+'IPP Proforma'!K57 -> -79.47130859 | L10: =+'IPP Proforma'!L57 -> -74.30128625 | M10: =+'IPP Proforma'!M57 -> -68.79521247 | N10: =+'IPP Proforma'!N57 -> -62.93124388 | O10: =+'IPP Proforma'!O57 -> -56.68611734 | P10: =+'IPP Proforma'!P57 -> -50.03505757 | Q10: =+'IPP Proforma'!Q57 -> -42.95167892 | R10: =+'IPP Proforma'!R57 -> -35.40788065 | S10: =+'IPP Proforma'!S57 -> -27.3737355 | T10: =+'IPP Proforma'!T57 -> -18.81737091 | U10: =+'IPP Proforma'!U57 -> -9.704842625 | V10: =+'IPP Proforma'!V57 -> 0 | W10: =+'IPP Proforma'!W57 -> 0 | X10: =+'IPP Proforma'!X57 -> 0 | Y10: =+'IPP Proforma'!Y57 -> 0 | Z10: =+'IPP Proforma'!Z57 -> 0 | AA10: =+'IPP Proforma'!AA57 -> 0 | AB10: =+'IPP Proforma'!AB57 -> 0 | AC10: =+'IPP Proforma'!AC57 -> 0 | AD10: =+'IPP Proforma'!AD57 -> 0 | AE10: =+'IPP Proforma'!AE57 -> 0 | AF10: =+'IPP Proforma'!AF57 -> 0 | AG10: =+'IPP Proforma'!AG57 -> 0 | AH10: =+'IPP Proforma'!AH57 -> 0 | AI10: =+'IPP Proforma'!AI57 -> 0 | AJ10: =+'IPP Proforma'!AJ57 -> 0 | AK10: =+'IPP Proforma'!AK57 -> 0 | AL10: =+'IPP Proforma'!AL57 -> 0 | AM10: =+'IPP Proforma'!AM57 -> 0 | AN10: =+'IPP Proforma'!AN57 -> 0 | AO10: =+'IPP Proforma'!AO57 -> 0 | AP10: =+'IPP Proforma'!AP57 -> 0 | AQ10: =+'IPP Proforma'!AQ57 -> 0
B11: Taxable income | D11: =+D6-D9+D10 -> -518.1895038 | E11: -965.160758 | F11: -487.4341457 | G11: -200.3515894 | H11: -199.3300755 | I11: -107.1569174 | J11: 109.7188078 | K11: 112.1535623 | L11: 114.8869667 | M11: 117.9390357 | N11: 121.3311083 | O11: 125.0859338 | P11: 129.2277643 | Q11: 133.7824524 | R11: 138.7775561 | S11: 144.2424496 | T11: 150.2084424 | U11: 156.7089049 | V11: 163.7794033 | W11: 161.1221853 | X11: 0 | Y11: 0 | Z11: 0 | AA11: 0 | AB11: 0 | AC11: 0 | AD11: 0 | AE11: 0 | AF11: 0 | AG11: 0 | AH11: 0 | AI11: 0 | AJ11: 0 | AK11: 0 | AL11: 0 | AM11: 0 | AN11: 0 | AO11: 0 | AP11: 0 | AQ11: 0
B12: Tax refund/(paid) | C12: =+'IPP Proforma'!H17 -> 0 | D12: =-$C$12*D11 -> 0 | E12: 0 | F12: 0 | G12: 0 | H12: 0 | I12: 0 | J12: 0 | K12: 0 | L12: 0 | M12: 0 | N12: 0 | O12: 0 | P12: 0 | Q12: 0 | R12: 0 | S12: 0 | T12: 0 | U12: 0 | V12: 0 | W12: 0 | X12: 0 | Y12: 0 | Z12: 0 | AA12: 0 | AB12: 0 | AC12: 0 | AD12: 0 | AE12: 0 | AF12: 0 | AG12: 0 | AH12: 0 | AI12: 0 | AJ12: 0 | AK12: 0 | AL12: 0 | AM12: 0 | AN12: 0 | AO12: 0 | AP12: 0 | AQ12: 0
B14: Federal Taxes
B15: Taxable operating income | D15: =+'IPP Proforma'!D55+'IPP Proforma'!D60 -> 335.1953963 | E15: =+'IPP Proforma'!E55+'IPP Proforma'!E60 -> 332.2323017 | F15: =+'IPP Proforma'!F55+'IPP Proforma'!F60 -> 329.2582801 | G15: =+'IPP Proforma'!G55+'IPP Proforma'!G60 -> 326.2728715 | H15: =+'IPP Proforma'!H55+'IPP Proforma'!H60 -> 323.2756076 | I15: =+'IPP Proforma'!I55+'IPP Proforma'!I60 -> 196.4479189 | J15: =+'IPP Proforma'!J55+'IPP Proforma'!J60 -> 194.0445974 | K15: =+'IPP Proforma'!K55+'IPP Proforma'!K60 -> 191.6248709 | L15: =+'IPP Proforma'!L55+'IPP Proforma'!L60 -> 189.1882529 | M15: =+'IPP Proforma'!M55+'IPP Proforma'!M60 -> 186.7342482 | N15: =+'IPP Proforma'!N55+'IPP Proforma'!N60 -> 184.2623522 | O15: =+'IPP Proforma'!O55+'IPP Proforma'!O60 -> 181.7720511 | P15: =+'IPP Proforma'!P55+'IPP Proforma'!P60 -> 179.2628219 | Q15: =+'IPP Proforma'!Q55+'IPP Proforma'!Q60 -> 176.7341313 | R15: =+'IPP Proforma'!R55+'IPP Proforma'!R60 -> 174.1854367 | S15: =+'IPP Proforma'!S55+'IPP Proforma'!S60 -> 171.6161851 | T15: =+'IPP Proforma'!T55+'IPP Proforma'!T60 -> 169.0258133 | U15: =+'IPP Proforma'!U55+'IPP Proforma'!U60 -> 166.4137475 | V15: =+'IPP Proforma'!V55+'IPP Proforma'!V60 -> 163.7794033 | W15: =+'IPP Proforma'!W55+'IPP Proforma'!W60 -> 161.1221853 | X15: =+'IPP Proforma'!X55+'IPP Proforma'!X60 -> 0 | Y15: =+'IPP Proforma'!Y55+'IPP Proforma'!Y60 -> 0 | Z15: =+'IPP Proforma'!Z55+'IPP Proforma'!Z60 -> 0 | AA15: =+'IPP Proforma'!AA55+'IPP Proforma'!AA60 -> 0 | AB15: =+'IPP Proforma'!AB55+'IPP Proforma'!AB60 -> 0 | AC15: =+'IPP Proforma'!AC55+'IPP Proforma'!AC60 -> 0 | AD15: =+'IPP Proforma'!AD55+'IPP Proforma'!AD60 -> 0 | AE15: =+'IPP Proforma'!AE55+'IPP Proforma'!AE60 -> 0 | AF15: =+'IPP Proforma'!AF55+'IPP Proforma'!AF60 -> 0 | AG15: =+'IPP Proforma'!AG55+'IPP Proforma'!AG60 -> 0 | AH15: =+'IPP Proforma'!AH55+'IPP Proforma'!AH60 -> 0 | AI15: =+'IPP Proforma'!AI55+'IPP Proforma'!AI60 -> 0 | AJ15: =+'IPP Proforma'!AJ55+'IPP Proforma'!AJ60 -> 0 | AK15: =+'IPP Proforma'!AK55+'IPP Proforma'!AK60 -> 0 | AL15: =+'IPP Proforma'!AL55+'IPP Proforma'!AL60 -> 0 | AM15: =+'IPP Proforma'!AM55+'IPP Proforma'!AM60 -> 0 | AN15: =+'IPP Proforma'!AN55+'IPP Proforma'!AN60 -> 0 | AO15: =+'IPP Proforma'!AO55+'IPP Proforma'!AO60 -> 0 | AP15: =+'IPP Proforma'!AP55+'IPP Proforma'!AP60 -> 0 | AQ15: =+'IPP Proforma'!AQ55+'IPP Proforma'!AQ60 -> 0
B16: Depreciation schedule | D16: =VLOOKUP('IPP Proforma'!$H$25,'IPP Proforma'!$C$93:$AQ$101,'IPP Proforma'!D92+1) -> 0.2 | E16: =VLOOKUP('IPP Proforma'!$H$25,'IPP Proforma'!$C$93:$AQ$101,'IPP Proforma'!E92+1) -> 0.32 | F16: =VLOOKUP('IPP Proforma'!$H$25,'IPP Proforma'!$C$93:$AQ$101,'IPP Proforma'!F92+1) -> 0.192 | G16: =VLOOKUP('IPP Proforma'!$H$25,'IPP Proforma'!$C$93:$AQ$101,'IPP Proforma'!G92+1) -> 0.1152 | H16: =VLOOKUP('IPP Proforma'!$H$25,'IPP Proforma'!$C$93:$AQ$101,'IPP Proforma'!H92+1) -> 0.1152 | I16: =VLOOKUP('IPP Proforma'!$H$25,'IPP Proforma'!$C$93:$AQ$101,'IPP Proforma'!I92+1) -> 0.0576 | J16: =VLOOKUP('IPP Proforma'!$H$25,'IPP Proforma'!$C$93:$AQ$101,'IPP Proforma'!J92+1) -> 0 | K16: =VLOOKUP('IPP Proforma'!$H$25,'IPP Proforma'!$C$93:$AQ$101,'IPP Proforma'!K92+1) -> 0 | L16: =VLOOKUP('IPP Proforma'!$H$25,'IPP Proforma'!$C$93:$AQ$101,'IPP Proforma'!L92+1) -> 0 | M16: =VLOOKUP('IPP Proforma'!$H$25,'IPP Proforma'!$C$93:$AQ$101,'IPP Proforma'!M92+1) -> 0 | N16: =VLOOKUP('IPP Proforma'!$H$25,'IPP Proforma'!$C$93:$AQ$101,'IPP Proforma'!N92+1) -> 0 | O16: =VLOOKUP('IPP Proforma'!$H$25,'IPP Proforma'!$C$93:$AQ$101,'IPP Proforma'!O92+1) -> 0 | P16: =VLOOKUP('IPP Proforma'!$H$25,'IPP Proforma'!$C$93:$AQ$101,'IPP Proforma'!P92+1) -> 0 | Q16: =VLOOKUP('IPP Proforma'!$H$25,'IPP Proforma'!$C$93:$AQ$101,'IPP Proforma'!Q92+1) -> 0 | R16: =VLOOKUP('IPP Proforma'!$H$25,'IPP Proforma'!$C$93:$AQ$101,'IPP Proforma'!R92+1) -> 0 | S16: =VLOOKUP('IPP Proforma'!$H$25,'IPP Proforma'!$C$93:$AQ$101,'IPP Proforma'!S92+1) -> 0 | T16: =VLOOKUP('IPP Proforma'!$H$25,'IPP Proforma'!$C$93:$AQ$101,'IPP Proforma'!T92+1) -> 0 | U16: =VLOOKUP('IPP Proforma'!$H$25,'IPP Proforma'!$C$93:$AQ$101,'IPP Proforma'!U92+1) -> 0 | V16: =VLOOKUP('IPP Proforma'!$H$25,'IPP Proforma'!$C$93:$AQ$101,'IPP Proforma'!V92+1) -> 0 | W16: =VLOOKUP('IPP Proforma'!$H$25,'IPP Proforma'!$C$93:$AQ$101,'IPP Proforma'!W92+1) -> 0 | X16: =VLOOKUP('IPP Proforma'!$H$25,'IPP Proforma'!$C$93:$AQ$101,'IPP Proforma'!X92+1) -> 0 | Y16: =VLOOKUP('IPP Proforma'!$H$25,'IPP Proforma'!$C$93:$AQ$101,'IPP Proforma'!Y92+1) -> 0 | Z16: =VLOOKUP('IPP Proforma'!$H$25,'IPP Proforma'!$C$93:$AQ$101,'IPP Proforma'!Z92+1) -> 0 | AA16: =VLOOKUP('IPP Proforma'!$H$25,'IPP Proforma'!$C$93:$AQ$101,'IPP Proforma'!AA92+1) -> 0 | AB16: =VLOOKUP('IPP Proforma'!$H$25,'IPP Proforma'!$C$93:$AQ$101,'IPP Proforma'!AB92+1) -> 0 | AC16: =VLOOKUP('IPP Proforma'!$H$25,'IPP Proforma'!$C$93:$AQ$101,'IPP Proforma'!AC92+1) -> 0 | AD16: =VLOOKUP('IPP Proforma'!$H$25,'IPP Proforma'!$C$93:$AQ$101,'IPP Proforma'!AD92+1) -> 0 | AE16: =VLOOKUP('IPP Proforma'!$H$25,'IPP Proforma'!$C$93:$AQ$101,'IPP Proforma'!AE92+1) -> 0 | AF16: =VLOOKUP('IPP Proforma'!$H$25,'IPP Proforma'!$C$93:$AQ$101,'IPP Proforma'!AF92+1) -> 0 | AG16: =VLOOKUP('IPP Proforma'!$H$25,'IPP Proforma'!$C$93:$AQ$101,'IPP Proforma'!AG92+1) -> 0 | AH16: =VLOOKUP('IPP Proforma'!$H$25,'IPP Proforma'!$C$93:$AQ$101,'IPP Proforma'!AH92+1) -> 0 | AI16: =VLOOKUP('IPP Proforma'!$H$25,'IPP Proforma'!$C$93:$AQ$101,'IPP Proforma'!AI92+1) -> 0 | AJ16: =VLOOKUP('IPP Proforma'!$H$25,'IPP Proforma'!$C$93:$AQ$101,'IPP Proforma'!AJ92+1) -> 0 | AK16: =VLOOKUP('IPP Proforma'!$H$25,'IPP Proforma'!$C$93:$AQ$101,'IPP Proforma'!AK92+1) -> 0 | AL16: =VLOOKUP('IPP Proforma'!$H$25,'IPP Proforma'!$C$93:$AQ$101,'IPP Proforma'!AL92+1) -> 0 | AM16: =VLOOKUP('IPP Proforma'!$H$25,'IPP Proforma'!$C$93:$AQ$101,'IPP Proforma'!AM92+1) -> 0 | AN16: =VLOOKUP('IPP Proforma'!$H$25,'IPP Proforma'!$C$93:$AQ$101,'IPP Proforma'!AN92+1) -> 0 | AO16: =VLOOKUP('IPP Proforma'!$H$25,'IPP Proforma'!$C$93:$AQ$101,'IPP Proforma'!AO92+1) -> 0 | AP16: =VLOOKUP('IPP Proforma'!$H$25,'IPP Proforma'!$C$93:$AQ$101,'IPP Proforma'!AP92+1) -> 0 | AQ16: =VLOOKUP('IPP Proforma'!$H$25,'IPP Proforma'!$C$93:$AQ$101,'IPP Proforma'!AQ92+1) -> 0
A17: 0.95 | B17: Depreciation basis | C17: =C8-D24*'IPP Proforma'!$H$24 -> 3196.582076
B18: Depreciation | D18: =+$C17*D16 -> 639.3164153 | E18: 1022.906264 | F18: 613.7437587 | G18: 368.2462552 | H18: 368.2462552 | I18: 184.1231276 | J18: 0 | K18: 0 | L18: 0 | M18: 0 | N18: 0 | O18: 0 | P18: 0 | Q18: 0 | R18: 0 | S18: 0 | T18: 0 | U18: 0 | V18: 0 | W18: 0 | X18: 0 | Y18: 0 | Z18: 0 | AA18: 0 | AB18: 0 | AC18: 0 | AD18: 0 | AE18: 0 | AF18: 0 | AG18: 0 | AH18: 0 | AI18: 0 | AJ18: 0 | AK18: 0 | AL18: 0 | AM18: 0 | AN18: 0 | AO18: 0 | AP18: 0 | AQ18: 0
B19: Interest | D19: =+'IPP Proforma'!D57 -> -107.8263983 | E19: =+'IPP Proforma'!E57 -> -104.4994568 | F19: =+'IPP Proforma'!F57 -> -100.9562641 | G19: =+'IPP Proforma'!G57 -> -97.18276388 | H19: =+'IPP Proforma'!H57 -> -93.16398614 | I19: =+'IPP Proforma'!I57 -> -88.88398784 | J19: =+'IPP Proforma'!J57 -> -84.32578966 | K19: =+'IPP Proforma'!K57 -> -79.47130859 | L19: =+'IPP Proforma'!L57 -> -74.30128625 | M19: =+'IPP Proforma'!M57 -> -68.79521247 | N19: =+'IPP Proforma'!N57 -> -62.93124388 | O19: =+'IPP Proforma'!O57 -> -56.68611734 | P19: =+'IPP Proforma'!P57 -> -50.03505757 | Q19: =+'IPP Proforma'!Q57 -> -42.95167892 | R19: =+'IPP Proforma'!R57 -> -35.40788065 | S19: =+'IPP Proforma'!S57 -> -27.3737355 | T19: =+'IPP Proforma'!T57 -> -18.81737091 | U19: =+'IPP Proforma'!U57 -> -9.704842625 | V19: =+'IPP Proforma'!V57 -> 0 | W19: =+'IPP Proforma'!W57 -> 0 | X19: =+'IPP Proforma'!X57 -> 0 | Y19: =+'IPP Proforma'!Y57 -> 0 | Z19: =+'IPP Proforma'!Z57 -> 0 | AA19: =+'IPP Proforma'!AA57 -> 0 | AB19: =+'IPP Proforma'!AB57 -> 0 | AC19: =+'IPP Proforma'!AC57 -> 0 | AD19: =+'IPP Proforma'!AD57 -> 0 | AE19: =+'IPP Proforma'!AE57 -> 0 | AF19: =+'IPP Proforma'!AF57 -> 0 | AG19: =+'IPP Proforma'!AG57 -> 0 | AH19: =+'IPP Proforma'!AH57 -> 0 | AI19: =+'IPP Proforma'!AI57 -> 0 | AJ19: =+'IPP Proforma'!AJ57 -> 0 | AK19: =+'IPP Proforma'!AK57 -> 0 | AL19: =+'IPP Proforma'!AL57 -> 0 | AM19: =+'IPP Proforma'!AM57 -> 0 | AN19: =+'IPP Proforma'!AN57 -> 0 | AO19: =+'IPP Proforma'!AO57 -> 0 | AP19: =+'IPP Proforma'!AP57 -> 0 | AQ19: =+'IPP Proforma'!AQ57 -> 0
B20: State taxes rebate/(paid) | D20: =+D12 -> 0 | E20: 0 | F20: 0 | G20: 0 | H20: 0 | I20: 0 | J20: 0 | K20: 0 | L20: 0 | M20: 0 | N20: 0 | O20: 0 | P20: 0 | Q20: 0 | R20: 0 | S20: 0 | T20: 0 | U20: 0 | V20: 0 | W20: 0 | X20: 0 | Y20: 0 | Z20: 0 | AA20: 0 | AB20: 0 | AC20: 0 | AD20: 0 | AE20: 0 | AF20: 0 | AG20: 0 | AH20: 0 | AI20: 0 | AJ20: 0 | AK20: 0 | AL20: 0 | AM20: 0 | AN20: 0 | AO20: 0 | AP20: 0 | AQ20: 0
B21: Taxable income | D21: =+D15-D18+D19+D20 -> -411.9474173 | E21: -795.1734196 | F21: -385.4417426 | G21: -139.1561475 | H21: -138.1346337 | I21: -76.55919653 | J21: 109.7188078 | K21: 112.1535623 | L21: 114.8869667 | M21: 117.9390357 | N21: 121.3311083 | O21: 125.0859338 | P21: 129.2277643 | Q21: 133.7824524 | R21: 138.7775561 | S21: 144.2424496 | T21: 150.2084424 | U21: 156.7089049 | V21: 163.7794033 | W21: 161.1221853 | X21: 0 | Y21: 0 | Z21: 0 | AA21: 0 | AB21: 0 | AC21: 0 | AD21: 0 | AE21: 0 | AF21: 0 | AG21: 0 | AH21: 0 | AI21: 0 | AJ21: 0 | AK21: 0 | AL21: 0 | AM21: 0 | AN21: 0 | AO21: 0 | AP21: 0 | AQ21: 0
B22: Tax refund/(paid) | C22: =+'IPP Proforma'!H16 -> 0.35 | D22: =-D21*$C22 -> 144.181596 | E22: 278.3106968 | F22: 134.9046099 | G22: 48.70465164 | H22: 48.3471218 | I22: 26.79571879 | J22: -38.40158271 | K22: -39.2537468 | L22: -40.21043833 | M22: -41.27866249 | N22: -42.4658879 | O22: -43.78007683 | P22: -45.2297175 | Q22: -46.82385834 | R22: -48.57214463 | S22: -50.48485737 | T22: -52.57295483 | U22: -54.8481167 | V22: -57.32279115 | W22: -56.39276485 | X22: 0 | Y22: 0 | Z22: 0 | AA22: 0 | AB22: 0 | AC22: 0 | AD22: 0 | AE22: 0 | AF22: 0 | AG22: 0 | AH22: 0 | AI22: 0 | AJ22: 0 | AK22: 0 | AL22: 0 | AM22: 0 | AN22: 0 | AO22: 0 | AP22: 0 | AQ22: 0
B23: Production tax credit | D23: =IF(D4<='IPP Proforma'!$H$20,'IPP Proforma'!$H$19*(1+'IPP Proforma'!$H$21)^(D4)*'IPP Proforma'!D44,0) -> 0 | E23: =IF(E4<='IPP Proforma'!$H$20,'IPP Proforma'!$H$19*(1+'IPP Proforma'!$H$21)^(E4)*'IPP Proforma'!E44,0) -> 0 | F23: =IF(F4<='IPP Proforma'!$H$20,'IPP Proforma'!$H$19*(1+'IPP Proforma'!$H$21)^(F4)*'IPP Proforma'!F44,0) -> 0 | G23: =IF(G4<='IPP Proforma'!$H$20,'IPP Proforma'!$H$19*(1+'IPP Proforma'!$H$21)^(G4)*'IPP Proforma'!G44,0) -> 0 | H23: =IF(H4<='IPP Proforma'!$H$20,'IPP Proforma'!$H$19*(1+'IPP Proforma'!$H$21)^(H4)*'IPP Proforma'!H44,0) -> 0 | I23: =IF(I4<='IPP Proforma'!$H$20,'IPP Proforma'!$H$19*(1+'IPP Proforma'!$H$21)^(I4)*'IPP Proforma'!I44,0) -> 0 | J23: =IF(J4<='IPP Proforma'!$H$20,'IPP Proforma'!$H$19*(1+'IPP Proforma'!$H$21)^(J4)*'IPP Proforma'!J44,0) -> 0 | K23: =IF(K4<='IPP Proforma'!$H$20,'IPP Proforma'!$H$19*(1+'IPP Proforma'!$H$21)^(K4)*'IPP Proforma'!K44,0) -> 0 | L23: =IF(L4<='IPP Proforma'!$H$20,'IPP Proforma'!$H$19*(1+'IPP Proforma'!$H$21)^(L4)*'IPP Proforma'!L44,0) -> 0 | M23: =IF(M4<='IPP Proforma'!$H$20,'IPP Proforma'!$H$19*(1+'IPP Proforma'!$H$21)^(M4)*'IPP Proforma'!M44,0) -> 0 | N23: =IF(N4<='IPP Proforma'!$H$20,'IPP Proforma'!$H$19*(1+'IPP Proforma'!$H$21)^(N4)*'IPP Proforma'!N44,0) -> 0 | O23: =IF(O4<='IPP Proforma'!$H$20,'IPP Proforma'!$H$19*(1+'IPP Proforma'!$H$21)^(O4)*'IPP Proforma'!O44,0) -> 0 | P23: =IF(P4<='IPP Proforma'!$H$20,'IPP Proforma'!$H$19*(1+'IPP Proforma'!$H$21)^(P4)*'IPP Proforma'!P44,0) -> 0 | Q23: =IF(Q4<='IPP Proforma'!$H$20,'IPP Proforma'!$H$19*(1+'IPP Proforma'!$H$21)^(Q4)*'IPP Proforma'!Q44,0) -> 0 | R23: =IF(R4<='IPP Proforma'!$H$20,'IPP Proforma'!$H$19*(1+'IPP Proforma'!$H$21)^(R4)*'IPP Proforma'!R44,0) -> 0 | S23: =IF(S4<='IPP Proforma'!$H$20,'IPP Proforma'!$H$19*(1+'IPP Proforma'!$H$21)^(S4)*'IPP Proforma'!S44,0) -> 0 | T23: =IF(T4<='IPP Proforma'!$H$20,'IPP Proforma'!$H$19*(1+'IPP Proforma'!$H$21)^(T4)*'IPP Proforma'!T44,0) -> 0 | U23: =IF(U4<='IPP Proforma'!$H$20,'IPP Proforma'!$H$19*(1+'IPP Proforma'!$H$21)^(U4)*'IPP Proforma'!U44,0) -> 0 | V23: =IF(V4<='IPP Proforma'!$H$20,'IPP Proforma'!$H$19*(1+'IPP Proforma'!$H$21)^(V4)*'IPP Proforma'!V44,0) -> 0 | W23: =IF(W4<='IPP Proforma'!$H$20,'IPP Proforma'!$H$19*(1+'IPP Proforma'!$H$21)^(W4)*'IPP Proforma'!W44,0) -> 0 | X23: =IF(X4<='IPP Proforma'!$H$20,'IPP Proforma'!$H$19*(1+'IPP Proforma'!$H$21)^(X4)*'IPP Proforma'!X44,0) -> 0 | Y23: =IF(Y4<='IPP Proforma'!$H$20,'IPP Proforma'!$H$19*(1+'IPP Proforma'!$H$21)^(Y4)*'IPP Proforma'!Y44,0) -> 0 | Z23: =IF(Z4<='IPP Proforma'!$H$20,'IPP Proforma'!$H$19*(1+'IPP Proforma'!$H$21)^(Z4)*'IPP Proforma'!Z44,0) -> 0 | AA23: =IF(AA4<='IPP Proforma'!$H$20,'IPP Proforma'!$H$19*(1+'IPP Proforma'!$H$21)^(AA4)*'IPP Proforma'!AA44,0) -> 0 | AB23: =IF(AB4<='IPP Proforma'!$H$20,'IPP Proforma'!$H$19*(1+'IPP Proforma'!$H$21)^(AB4)*'IPP Proforma'!AB44,0) -> 0 | AC23: =IF(AC4<='IPP Proforma'!$H$20,'IPP Proforma'!$H$19*(1+'IPP Proforma'!$H$21)^(AC4)*'IPP Proforma'!AC44,0) -> 0 | AD23: =IF(AD4<='IPP Proforma'!$H$20,'IPP Proforma'!$H$19*(1+'IPP Proforma'!$H$21)^(AD4)*'IPP Proforma'!AD44,0) -> 0 | AE23: =IF(AE4<='IPP Proforma'!$H$20,'IPP Proforma'!$H$19*(1+'IPP Proforma'!$H$21)^(AE4)*'IPP Proforma'!AE44,0) -> 0 | AF23: =IF(AF4<='IPP Proforma'!$H$20,'IPP Proforma'!$H$19*(1+'IPP Proforma'!$H$21)^(AF4)*'IPP Proforma'!AF44,0) -> 0 | AG23: =IF(AG4<='IPP Proforma'!$H$20,'IPP Proforma'!$H$19*(1+'IPP Proforma'!$H$21)^(AG4)*'IPP Proforma'!AG44,0) -> 0 | AH23: =IF(AH4<='IPP Proforma'!$H$20,'IPP Proforma'!$H$19*(1+'IPP Proforma'!$H$21)^(AH4)*'IPP Proforma'!AH44,0) -> 0 | AI23: =IF(AI4<='IPP Proforma'!$H$20,'IPP Proforma'!$H$19*(1+'IPP Proforma'!$H$21)^(AI4)*'IPP Proforma'!AI44,0) -> 0 | AJ23: =IF(AJ4<='IPP Proforma'!$H$20,'IPP Proforma'!$H$19*(1+'IPP Proforma'!$H$21)^(AJ4)*'IPP Proforma'!AJ44,0) -> 0 | AK23: =IF(AK4<='IPP Proforma'!$H$20,'IPP Proforma'!$H$19*(1+'IPP Proforma'!$H$21)^(AK4)*'IPP Proforma'!AK44,0) -> 0 | AL23: =IF(AL4<='IPP Proforma'!$H$20,'IPP Proforma'!$H$19*(1+'IPP Proforma'!$H$21)^(AL4)*'IPP Proforma'!AL44,0) -> 0 | AM23: =IF(AM4<='IPP Proforma'!$H$20,'IPP Proforma'!$H$19*(1+'IPP Proforma'!$H$21)^(AM4)*'IPP Proforma'!AM44,0) -> 0 | AN23: =IF(AN4<='IPP Proforma'!$H$20,'IPP Proforma'!$H$19*(1+'IPP Proforma'!$H$21)^(AN4)*'IPP Proforma'!AN44,0) -> 0 | AO23: =IF(AO4<='IPP Proforma'!$H$20,'IPP Proforma'!$H$19*(1+'IPP Proforma'!$H$21)^(AO4)*'IPP Proforma'!AO44,0) -> 0 | AP23: =IF(AP4<='IPP Proforma'!$H$20,'IPP Proforma'!$H$19*(1+'IPP Proforma'!$H$21)^(AP4)*'IPP Proforma'!AP44,0) -> 0 | AQ23: =IF(AQ4<='IPP Proforma'!$H$20,'IPP Proforma'!$H$19*(1+'IPP Proforma'!$H$21)^(AQ4)*'IPP Proforma'!AQ44,0) -> 0
B24: Investment tax credit | D24: =IF(D4=1,'IPP Proforma'!H22*'IPP Proforma'!H23*('IPP Proforma'!C18),0) -> 1062.420865
B26: Total Tax Refund (Paid) | D26: =+D24+D23+D22+D12 -> 1206.602461 | E26: 278.3106968 | F26: 134.9046099 | G26: 48.70465164 | H26: 48.3471218 | I26: 26.79571879 | J26: -38.40158271 | K26: -39.2537468 | L26: -40.21043833 | M26: -41.27866249 | N26: -42.4658879 | O26: -43.78007683 | P26: -45.2297175 | Q26: -46.82385834 | R26: -48.57214463 | S26: -50.48485737 | T26: -52.57295483 | U26: -54.8481167 | V26: -57.32279115 | W26: -56.39276485 | X26: 0 | Y26: 0 | Z26: 0 | AA26: 0 | AB26: 0 | AC26: 0 | AD26: 0 | AE26: 0 | AF26: 0 | AG26: 0 | AH26: 0 | AI26: 0 | AJ26: 0 | AK26: 0 | AL26: 0 | AM26: 0 | AN26: 0 | AO26: 0 | AP26: 0 | AQ26: 0

Sheet Debt and DSCR
B2: Debt and DSCR
B4: Debt Schedule | C4: 0 | D4: 1 | E4: 2 | F4: 3 | G4: 4 | H4: 5 | I4: 6 | J4: 7 | K4: 8 | L4: 9 | M4: 10 | N4: 11 | O4: 12 | P4: 13 | Q4: 14 | R4: 15 | S4: 16 | T4: 17 | U4: 18 | V4: 19 | W4: 20 | X4: 21 | Y4: 22 | Z4: 23 | AA4: 24 | AB4: 25 | AC4: 26 | AD4: 27 | AE4: 28 | AF4: 29 | AG4: 30 | AH4: 31 | AI4: 32 | AJ4: 33 | AK4: 34 | AL4: 35 | AM4: 36 | AN4: 37 | AO4: 38 | AP4: 39 | AQ4: 40
B5: Debt Term Flag | D5: =IF(D7>0, 1, 0) -> 1 | E5: 1 | F5: 1 | G5: 1 | H5: 1 | I5: 1 | J5: 1 | K5: 1 | L5: 1 | M5: 1 | N5: 1 | O5: 1 | P5: 1 | Q5: 1 | R5: 1 | S5: 1 | T5: 1 | U5: 1 | V5: 0 | W5: 0 | X5: 0 | Y5: 0 | Z5: 0 | AA5: 0 | AB5: 0 | AC5: 0 | AD5: 0 | AE5: 0 | AF5: 0 | AG5: 0 | AH5: 0 | AI5: 0 | AJ5: 0 | AK5: 0 | AL5: 0 | AM5: 0 | AN5: 0 | AO5: 0 | AP5: 0 | AQ5: 0
B6: Beginning Balance | D6: =C10 -> 1658.867666 | E6: 1607.683951 | F6: 1553.173294 | G6: 1495.119444 | H6: 1433.292094 | I6: 1367.445967 | J6: 1297.319841 | K6: 1222.635517 | L6: 1143.096712 | M6: 1058.387884 | N6: 968.1729828 | O6: 872.0941129 | P6: 769.7701165 | Q6: 660.7950603 | R6: 544.7366254 | S6: 421.1343923 | T6: 289.498014 | U6: 149.3052711 | V6: -2.50111043e-12 | W6: -2.50111043e-12 | X6: -2.50111043e-12 | Y6: -2.50111043e-12 | Z6: -2.50111043e-12 | AA6: -2.50111043e-12 | AB6: -2.50111043e-12 | AC6: -2.50111043e-12 | AD6: -2.50111043e-12 | AE6: -2.50111043e-12 | AF6: -2.50111043e-12 | AG6: -2.50111043e-12 | AH6: -2.50111043e-12 | AI6: -2.50111043e-12 | AJ6: -2.50111043e-12 | AK6: -2.50111043e-12 | AL6: -2.50111043e-12 | AM6: -2.50111043e-12 | AN6: -2.50111043e-12 | AO6: -2.50111043e-12 | AP6: -2.50111043e-12 | AQ6: -2.50111043e-12
B7: Debt Service | D7: =IF(AND(D4>0,'IPP Proforma'!$H$34>=D4),-PMT('IPP Proforma'!$H$32,'IPP Proforma'!$H$34,'IPP Proforma'!$H$39),0) -> 159.0101138 | E7: =IF(AND(E4>0,'IPP Proforma'!$H$34>=E4),-PMT('IPP Proforma'!$H$32,'IPP Proforma'!$H$34,'IPP Proforma'!$H$39),0) -> 159.0101138 | F7: =IF(AND(F4>0,'IPP Proforma'!$H$34>=F4),-PMT('IPP Proforma'!$H$32,'IPP Proforma'!$H$34,'IPP Proforma'!$H$39),0) -> 159.0101138 | G7: =IF(AND(G4>0,'IPP Proforma'!$H$34>=G4),-PMT('IPP Proforma'!$H$32,'IPP Proforma'!$H$34,'IPP Proforma'!$H$39),0) -> 159.0101138 | H7: =IF(AND(H4>0,'IPP Proforma'!$H$34>=H4),-PMT('IPP Proforma'!$H$32,'IPP Proforma'!$H$34,'IPP Proforma'!$H$39),0) -> 159.0101138 | I7: =IF(AND(I4>0,'IPP Proforma'!$H$34>=I4),-PMT('IPP Proforma'!$H$32,'IPP Proforma'!$H$34,'IPP Proforma'!$H$39),0) -> 159.0101138 | J7: =IF(AND(J4>0,'IPP Proforma'!$H$34>=J4),-PMT('IPP Proforma'!$H$32,'IPP Proforma'!$H$34,'IPP Proforma'!$H$39),0) -> 159.0101138 | K7: =IF(AND(K4>0,'IPP Proforma'!$H$34>=K4),-PMT('IPP Proforma'!$H$32,'IPP Proforma'!$H$34,'IPP Proforma'!$H$39),0) -> 159.0101138 | L7: =IF(AND(L4>0,'IPP Proforma'!$H$34>=L4),-PMT('IPP Proforma'!$H$32,'IPP Proforma'!$H$34,'IPP Proforma'!$H$39),0) -> 159.0101138 | M7: =IF(AND(M4>0,'IPP Proforma'!$H$34>=M4),-PMT('IPP Proforma'!$H$32,'IPP Proforma'!$H$34,'IPP Proforma'!$H$39),0) -> 159.0101138 | N7: =IF(AND(N4>0,'IPP Proforma'!$H$34>=N4),-PMT('IPP Proforma'!$H$32,'IPP Proforma'!$H$34,'IPP Proforma'!$H$39),0) -> 159.0101138 | O7: =IF(AND(O4>0,'IPP Proforma'!$H$34>=O4),-PMT('IPP Proforma'!$H$32,'IPP Proforma'!$H$34,'IPP Proforma'!$H$39),0) -> 159.0101138 | P7: =IF(AND(P4>0,'IPP Proforma'!$H$34>=P4),-PMT('IPP Proforma'!$H$32,'IPP Proforma'!$H$34,'IPP Proforma'!$H$39),0) -> 159.0101138 | Q7: =IF(AND(Q4>0,'IPP Proforma'!$H$34>=Q4),-PMT('IPP Proforma'!$H$32,'IPP Proforma'!$H$34,'IPP Proforma'!$H$39),0) -> 159.0101138 | R7: =IF(AND(R4>0,'IPP Proforma'!$H$34>=R4),-PMT('IPP Proforma'!$H$32,'IPP Proforma'!$H$34,'IPP Proforma'!$H$39),0) -> 159.0101138 | S7: =IF(AND(S4>0,'IPP Proforma'!$H$34>=S4),-PMT('IPP Proforma'!$H$32,'IPP Proforma'!$H$34,'IPP Proforma'!$H$39),0) -> 159.0101138 | T7: =IF(AND(T4>0,'IPP Proforma'!$H$34>=T4),-PMT('IPP Proforma'!$H$32,'IPP Proforma'!$H$34,'IPP Proforma'!$H$39),0) -> 159.0101138 | U7: =IF(AND(U4>0,'IPP Proforma'!$H$34>=U4),-PMT('IPP Proforma'!$H$32,'IPP Proforma'!$H$34,'IPP Proforma'!$H$39),0) -> 159.0101138 | V7: =IF(AND(V4>0,'IPP Proforma'!$H$34>=V4),-PMT('IPP Proforma'!$H$32,'IPP Proforma'!$H$34,'IPP Proforma'!$H$39),0) -> 0 | W7: =IF(AND(W4>0,'IPP Proforma'!$H$34>=W4),-PMT('IPP Proforma'!$H$32,'IPP Proforma'!$H$34,'IPP Proforma'!$H$39),0) -> 0 | X7: =IF(AND(X4>0,'IPP Proforma'!$H$34>=X4),-PMT('IPP Proforma'!$H$32,'IPP Proforma'!$H$34,'IPP Proforma'!$H$39),0) -> 0 | Y7: =IF(AND(Y4>0,'IPP Proforma'!$H$34>=Y4),-PMT('IPP Proforma'!$H$32,'IPP Proforma'!$H$34,'IPP Proforma'!$H$39),0) -> 0 | Z7: =IF(AND(Z4>0,'IPP Proforma'!$H$34>=Z4),-PMT('IPP Proforma'!$H$32,'IPP Proforma'!$H$34,'IPP Proforma'!$H$39),0) -> 0 | AA7: =IF(AND(AA4>0,'IPP Proforma'!$H$34>=AA4),-PMT('IPP Proforma'!$H$32,'IPP Proforma'!$H$34,'IPP Proforma'!$H$39),0) -> 0 | AB7: =IF(AND(AB4>0,'IPP Proforma'!$H$34>=AB4),-PMT('IPP Proforma'!$H$32,'IPP Proforma'!$H$34,'IPP Proforma'!$H$39),0) -> 0 | AC7: =IF(AND(AC4>0,'IPP Proforma'!$H$34>=AC4),-PMT('IPP Proforma'!$H$32,'IPP Proforma'!$H$34,'IPP Proforma'!$H$39),0) -> 0 | AD7: =IF(AND(AD4>0,'IPP Proforma'!$H$34>=AD4),-PMT('IPP Proforma'!$H$32,'IPP Proforma'!$H$34,'IPP Proforma'!$H$39),0) -> 0 | AE7: =IF(AND(AE4>0,'IPP Proforma'!$H$34>=AE4),-PMT('IPP Proforma'!$H$32,'IPP Proforma'!$H$34,'IPP Proforma'!$H$39),0) -> 0 | AF7: =IF(AND(AF4>0,'IPP Proforma'!$H$34>=AF4),-PMT('IPP Proforma'!$H$32,'IPP Proforma'!$H$34,'IPP Proforma'!$H$39),0) -> 0 | AG7: =IF(AND(AG4>0,'IPP Proforma'!$H$34>=AG4),-PMT('IPP Proforma'!$H$32,'IPP Proforma'!$H$34,'IPP Proforma'!$H$39),0) -> 0 | AH7: =IF(AND(AH4>0,'IPP Proforma'!$H$34>=AH4),-PMT('IPP Proforma'!$H$32,'IPP Proforma'!$H$34,'IPP Proforma'!$H$39),0) -> 0 | AI7: =IF(AND(AI4>0,'IPP Proforma'!$H$34>=AI4),-PMT('IPP Proforma'!$H$32,'IPP Proforma'!$H$34,'IPP Proforma'!$H$39),0) -> 0 | AJ7: =IF(AND(AJ4>0,'IPP Proforma'!$H$34>=AJ4),-PMT('IPP Proforma'!$H$32,'IPP Proforma'!$H$34,'IPP Proforma'!$H$39),0) -> 0 | AK7: =IF(AND(AK4>0,'IPP Proforma'!$H$34>=AK4),-PMT('IPP Proforma'!$H$32,'IPP Proforma'!$H$34,'IPP Proforma'!$H$39),0) -> 0 | AL7: =IF(AND(AL4>0,'IPP Proforma'!$H$34>=AL4),-PMT('IPP Proforma'!$H$32,'IPP Proforma'!$H$34,'IPP Proforma'!$H$39),0) -> 0 | AM7: =IF(AND(AM4>0,'IPP Proforma'!$H$34>=AM4),-PMT('IPP Proforma'!$H$32,'IPP Proforma'!$H$34,'IPP Proforma'!$H$39),0) -> 0 | AN7: =IF(AND(AN4>0,'IPP Proforma'!$H$34>=AN4),-PMT('IPP Proforma'!$H$32,'IPP Proforma'!$H$34,'IPP Proforma'!$H$39),0) -> 0 | AO7: =IF(AND(AO4>0,'IPP Proforma'!$H$34>=AO4),-PMT('IPP Proforma'!$H$32,'IPP Proforma'!$H$34,'IPP Proforma'!$H$39),0) -> 0 | AP7: =IF(AND(AP4>0,'IPP Proforma'!$H$34>=AP4),-PMT('IPP Proforma'!$H$32,'IPP Proforma'!$H$34,'IPP Proforma'!$H$39),0) -> 0 | AQ7: =IF(AND(AQ4>0,'IPP Proforma'!$H$34>=AQ4),-PMT('IPP Proforma'!$H$32,'IPP Proforma'!$H$34,'IPP Proforma'!$H$39),0) -> 0
B8: Interest | D8: =IF(AND(D6>0,'IPP Proforma'!$H$34>=D4),D6*'IPP Proforma'!$H$32,0) -> 107.8263983 | E8: =IF(AND(E6>0,'IPP Proforma'!$H$34>=E4),E6*'IPP Proforma'!$H$32,0) -> 104.4994568 | F8: =IF(AND(F6>0,'IPP Proforma'!$H$34>=F4),F6*'IPP Proforma'!$H$32,0) -> 100.9562641 | G8: =IF(AND(G6>0,'IPP Proforma'!$H$34>=G4),G6*'IPP Proforma'!$H$32,0) -> 97.18276388 | H8: =IF(AND(H6>0,'IPP Proforma'!$H$34>=H4),H6*'IPP Proforma'!$H$32,0) -> 93.16398614 | I8: =IF(AND(I6>0,'IPP Proforma'!$H$34>=I4),I6*'IPP Proforma'!$H$32,0) -> 88.88398784 | J8: =IF(AND(J6>0,'IPP Proforma'!$H$34>=J4),J6*'IPP Proforma'!$H$32,0) -> 84.32578966 | K8: =IF(AND(K6>0,'IPP Proforma'!$H$34>=K4),K6*'IPP Proforma'!$H$32,0) -> 79.47130859 | L8: =IF(AND(L6>0,'IPP Proforma'!$H$34>=L4),L6*'IPP Proforma'!$H$32,0) -> 74.30128625 | M8: =IF(AND(M6>0,'IPP Proforma'!$H$34>=M4),M6*'IPP Proforma'!$H$32,0) -> 68.79521247 | N8: =IF(AND(N6>0,'IPP Proforma'!$H$34>=N4),N6*'IPP Proforma'!$H$32,0) -> 62.93124388 | O8: =IF(AND(O6>0,'IPP Proforma'!$H$34>=O4),O6*'IPP Proforma'!$H$32,0) -> 56.68611734 | P8: =IF(AND(P6>0,'IPP Proforma'!$H$34>=P4),P6*'IPP Proforma'!$H$32,0) -> 50.03505757 | Q8: =IF(AND(Q6>0,'IPP Proforma'!$H$34>=Q4),Q6*'IPP Proforma'!$H$32,0) -> 42.95167892 | R8: =IF(AND(R6>0,'IPP Proforma'!$H$34>=R4),R6*'IPP Proforma'!$H$32,0) -> 35.40788065 | S8: =IF(AND(S6>0,'IPP Proforma'!$H$34>=S4),S6*'IPP Proforma'!$H$32,0) -> 27.3737355 | T8: =IF(AND(T6>0,'IPP Proforma'!$H$34>=T4),T6*'IPP Proforma'!$H$32,0) -> 18.81737091 | U8: =IF(AND(U6>0,'IPP Proforma'!$H$34>=U4),U6*'IPP Proforma'!$H$32,0) -> 9.704842625 | V8: =IF(AND(V6>0,'IPP Proforma'!$H$34>=V4),V6*'IPP Proforma'!$H$32,0) -> 0 | W8: =IF(AND(W6>0,'IPP Proforma'!$H$34>=W4),W6*'IPP Proforma'!$H$32,0) -> 0 | X8: =IF(AND(X6>0,'IPP Proforma'!$H$34>=X4),X6*'IPP Proforma'!$H$32,0) -> 0 | Y8: =IF(AND(Y6>0,'IPP Proforma'!$H$34>=Y4),Y6*'IPP Proforma'!$H$32,0) -> 0 | Z8: =IF(AND(Z6>0,'IPP Proforma'!$H$34>=Z4),Z6*'IPP Proforma'!$H$32,0) -> 0 | AA8: =IF(AND(AA6>0,'IPP Proforma'!$H$34>=AA4),AA6*'IPP Proforma'!$H$32,0) -> 0 | AB8: =IF(AND(AB6>0,'IPP Proforma'!$H$34>=AB4),AB6*'IPP Proforma'!$H$32,0) -> 0 | AC8: =IF(AND(AC6>0,'IPP Proforma'!$H$34>=AC4),AC6*'IPP Proforma'!$H$32,0) -> 0 | AD8: =IF(AND(AD6>0,'IPP Proforma'!$H$34>=AD4),AD6*'IPP Proforma'!$H$32,0) -> 0 | AE8: =IF(AND(AE6>0,'IPP Proforma'!$H$34>=AE4),AE6*'IPP Proforma'!$H$32,0) -> 0 | AF8: =IF(AND(AF6>0,'IPP Proforma'!$H$34>=AF4),AF6*'IPP Proforma'!$H$32,0) -> 0 | AG8: =IF(AND(AG6>0,'IPP Proforma'!$H$34>=AG4),AG6*'IPP Proforma'!$H$32,0) -> 0 | AH8: =IF(AND(AH6>0,'IPP Proforma'!$H$34>=AH4),AH6*'IPP Proforma'!$H$32,0) -> 0 | AI8: =IF(AND(AI6>0,'IPP Proforma'!$H$34>=AI4),AI6*'IPP Proforma'!$H$32,0) -> 0 | AJ8: =IF(AND(AJ6>0,'IPP Proforma'!$H$34>=AJ4),AJ6*'IPP Proforma'!$H$32,0) -> 0 | AK8: =IF(AND(AK6>0,'IPP Proforma'!$H$34>=AK4),AK6*'IPP Proforma'!$H$32,0) -> 0 | AL8: =IF(AND(AL6>0,'IPP Proforma'!$H$34>=AL4),AL6*'IPP Proforma'!$H$32,0) -> 0 | AM8: =IF(AND(AM6>0,'IPP Proforma'!$H$34>=AM4),AM6*'IPP Proforma'!$H$32,0) -> 0 | AN8: =IF(AND(AN6>0,'IPP Proforma'!$H$34>=AN4),AN6*'IPP Proforma'!$H$32,0) -> 0 | AO8: =IF(AND(AO6>0,'IPP Proforma'!$H$34>=AO4),AO6*'IPP Proforma'!$H$32,0) -> 0 | AP8: =IF(AND(AP6>0,'IPP Proforma'!$H$34>=AP4),AP6*'IPP Proforma'!$H$32,0) -> 0 | AQ8: =IF(AND(AQ6>0,'IPP Proforma'!$H$34>=AQ4),AQ6*'IPP Proforma'!$H$32,0) -> 0
B9: Principal | D9: =IF('IPP Proforma'!$H$34>=D4,D7-D8,0) -> 51.18371545 | E9: =IF('IPP Proforma'!$H$34>=E4,E7-E8,0) -> 54.51065696 | F9: =IF('IPP Proforma'!$H$34>=F4,F7-F8,0) -> 58.05384966 | G9: =IF('IPP Proforma'!$H$34>=G4,G7-G8,0) -> 61.82734989 | H9: =IF('IPP Proforma'!$H$34>=H4,H7-H8,0) -> 65.84612763 | I9: =IF('IPP Proforma'!$H$34>=I4,I7-I8,0) -> 70.12612593 | J9: =IF('IPP Proforma'!$H$34>=J4,J7-J8,0) -> 74.68432411 | K9: =IF('IPP Proforma'!$H$34>=K4,K7-K8,0) -> 79.53880518 | L9: =IF('IPP Proforma'!$H$34>=L4,L7-L8,0) -> 84.70882752 | M9: =IF('IPP Proforma'!$H$34>=M4,M7-M8,0) -> 90.21490131 | N9: =IF('IPP Proforma'!$H$34>=N4,N7-N8,0) -> 96.07886989 | O9: =IF('IPP Proforma'!$H$34>=O4,O7-O8,0) -> 102.3239964 | P9: =IF('IPP Proforma'!$H$34>=P4,P7-P8,0) -> 108.9750562 | Q9: =IF('IPP Proforma'!$H$34>=Q4,Q7-Q8,0) -> 116.0584349 | R9: =IF('IPP Proforma'!$H$34>=R4,R7-R8,0) -> 123.6022331 | S9: =IF('IPP Proforma'!$H$34>=S4,S7-S8,0) -> 131.6363783 | T9: =IF('IPP Proforma'!$H$34>=T4,T7-T8,0) -> 140.1927429 | U9: =IF('IPP Proforma'!$H$34>=U4,U7-U8,0) -> 149.3052711 | V9: =IF('IPP Proforma'!$H$34>=V4,V7-V8,0) -> 0 | W9: =IF('IPP Proforma'!$H$34>=W4,W7-W8,0) -> 0 | X9: =IF('IPP Proforma'!$H$34>=X4,X7-X8,0) -> 0 | Y9: =IF('IPP Proforma'!$H$34>=Y4,Y7-Y8,0) -> 0 | Z9: =IF('IPP Proforma'!$H$34>=Z4,Z7-Z8,0) -> 0 | AA9: =IF('IPP Proforma'!$H$34>=AA4,AA7-AA8,0) -> 0 | AB9: =IF('IPP Proforma'!$H$34>=AB4,AB7-AB8,0) -> 0 | AC9: =IF('IPP Proforma'!$H$34>=AC4,AC7-AC8,0) -> 0 | AD9: =IF('IPP Proforma'!$H$34>=AD4,AD7-AD8,0) -> 0 | AE9: =IF('IPP Proforma'!$H$34>=AE4,AE7-AE8,0) -> 0 | AF9: =IF('IPP Proforma'!$H$34>=AF4,AF7-AF8,0) -> 0 | AG9: =IF('IPP Proforma'!$H$34>=AG4,AG7-AG8,0) -> 0 | AH9: =IF('IPP Proforma'!$H$34>=AH4,AH7-AH8,0) -> 0 | AI9: =IF('IPP Proforma'!$H$34>=AI4,AI7-AI8,0) -> 0 | AJ9: =IF('IPP Proforma'!$H$34>=AJ4,AJ7-AJ8,0) -> 0 | AK9: =IF('IPP Proforma'!$H$34>=AK4,AK7-AK8,0) -> 0 | AL9: =IF('IPP Proforma'!$H$34>=AL4,AL7-AL8,0) -> 0 | AM9: =IF('IPP Proforma'!$H$34>=AM4,AM7-AM8,0) -> 0 | AN9: =IF('IPP Proforma'!$H$34>=AN4,AN7-AN8,0) -> 0 | AO9: =IF('IPP Proforma'!$H$34>=AO4,AO7-AO8,0) -> 0 | AP9: =IF('IPP Proforma'!$H$34>=AP4,AP7-AP8,0) -> 0 | AQ9: =IF('IPP Proforma'!$H$34>=AQ4,AQ7-AQ8,0) -> 0
B10: Ending Balance | C10: =IF(D4=1, IF('IPP Proforma'!$H$34>=D4,'IPP Proforma'!$H$39,0), C6-C9) -> 1658.867666 | D10: =IF(E4=1, IF('IPP Proforma'!$H$34>=E4,'IPP Proforma'!$H$39,0), D6-D9) -> 1607.683951 | E10: =IF(F4=1, IF('IPP Proforma'!$H$34>=F4,'IPP Proforma'!$H$39,0), E6-E9) -> 1553.173294 | F10: =IF(G4=1, IF('IPP Proforma'!$H$34>=G4,'IPP Proforma'!$H$39,0), F6-F9) -> 1495.119444 | G10: =IF(H4=1, IF('IPP Proforma'!$H$34>=H4,'IPP Proforma'!$H$39,0), G6-G9) -> 1433.292094 | H10: =IF(I4=1, IF('IPP Proforma'!$H$34>=I4,'IPP Proforma'!$H$39,0), H6-H9) -> 1367.445967 | I10: =IF(J4=1, IF('IPP Proforma'!$H$34>=J4,'IPP Proforma'!$H$39,0), I6-I9) -> 1297.319841 | J10: =IF(K4=1, IF('IPP Proforma'!$H$34>=K4,'IPP Proforma'!$H$39,0), J6-J9) -> 1222.635517 | K10: =IF(L4=1, IF('IPP Proforma'!$H$34>=L4,'IPP Proforma'!$H$39,0), K6-K9) -> 1143.096712 | L10: =IF(M4=1, IF('IPP Proforma'!$H$34>=M4,'IPP Proforma'!$H$39,0), L6-L9) -> 1058.387884 | M10: =IF(N4=1, IF('IPP Proforma'!$H$34>=N4,'IPP Proforma'!$H$39,0), M6-M9) -> 968.1729828 | N10: =IF(O4=1, IF('IPP Proforma'!$H$34>=O4,'IPP Proforma'!$H$39,0), N6-N9) -> 872.0941129 | O10: =IF(P4=1, IF('IPP Proforma'!$H$34>=P4,'IPP Proforma'!$H$39,0), O6-O9) -> 769.7701165 | P10: =IF(Q4=1, IF('IPP Proforma'!$H$34>=Q4,'IPP Proforma'!$H$39,0), P6-P9) -> 660.7950603 | Q10: =IF(R4=1, IF('IPP Proforma'!$H$34>=R4,'IPP Proforma'!$H$39,0), Q6-Q9) -> 544.7366254 | R10: =IF(S4=1, IF('IPP Proforma'!$H$34>=S4,'IPP Proforma'!$H$39,0), R6-R9) -> 421.1343923 | S10: =IF(T4=1, IF('IPP Proforma'!$H$34>=T4,'IPP Proforma'!$H$39,0), S6-S9) -> 289.498014 | T10: =IF(U4=1, IF('IPP Proforma'!$H$34>=U4,'IPP Proforma'!$H$39,0), T6-T9) -> 149.3052711 | U10: =IF(V4=1, IF('IPP Proforma'!$H$34>=V4,'IPP Proforma'!$H$39,0), U6-U9) -> -2.50111043e-12 | V10: =IF(W4=1, IF('IPP Proforma'!$H$34>=W4,'IPP Proforma'!$H$39,0), V6-V9) -> -2.50111043e-12 | W10: =IF(X4=1, IF('IPP Proforma'!$H$34>=X4,'IPP Proforma'!$H$39,0), W6-W9) -> -2.50111043e-12 | X10: =IF(Y4=1, IF('IPP Proforma'!$H$34>=Y4,'IPP Proforma'!$H$39,0), X6-X9) -> -2.50111043e-12 | Y10: =IF(Z4=1, IF('IPP Proforma'!$H$34>=Z4,'IPP Proforma'!$H$39,0), Y6-Y9) -> -2.50111043e-12 | Z10: =IF(AA4=1, IF('IPP Proforma'!$H$34>=AA4,'IPP Proforma'!$H$39,0), Z6-Z9) -> -2.50111043e-12 | AA10: =IF(AB4=1, IF('IPP Proforma'!$H$34>=AB4,'IPP Proforma'!$H$39,0), AA6-AA9) -> -2.50111043e-12 | AB10: =IF(AC4=1, IF('IPP Proforma'!$H$34>=AC4,'IPP Proforma'!$H$39,0), AB6-AB9) -> -2.50111043e-12 | AC10: =IF(AD4=1, IF('IPP Proforma'!$H$34>=AD4,'IPP Proforma'!$H$39,0), AC6-AC9) -> -2.50111043e-12 | AD10: =IF(AE4=1, IF('IPP Proforma'!$H$34>=AE4,'IPP Proforma'!$H$39,0), AD6-AD9) -> -2.50111043e-12 | AE10: =IF(AF4=1, IF('IPP Proforma'!$H$34>=AF4,'IPP Proforma'!$H$39,0), AE6-AE9) -> -2.50111043e-12 | AF10: =IF(AG4=1, IF('IPP Proforma'!$H$34>=AG4,'IPP Proforma'!$H$39,0), AF6-AF9) -> -2.50111043e-12 | AG10: =IF(AH4=1, IF('IPP Proforma'!$H$34>=AH4,'IPP Proforma'!$H$39,0), AG6-AG9) -> -2.50111043e-12 | AH10: =IF(AI4=1, IF('IPP Proforma'!$H$34>=AI4,'IPP Proforma'!$H$39,0), AH6-AH9) -> -2.50111043e-12 | AI10: =IF(AJ4=1, IF('IPP Proforma'!$H$34>=AJ4,'IPP Proforma'!$H$39,0), AI6-AI9) -> -2.50111043e-12 | AJ10: =IF(AK4=1, IF('IPP Proforma'!$H$34>=AK4,'IPP Proforma'!$H$39,0), AJ6-AJ9) -> -2.50111043e-12 | AK10: =IF(AL4=1, IF('IPP Proforma'!$H$34>=AL4,'IPP Proforma'!$H$39,0), AK6-AK9) -> -2.50111043e-12 | AL10: =IF(AM4=1, IF('IPP Proforma'!$H$34>=AM4,'IPP Proforma'!$H$39,0), AL6-AL9) -> -2.50111043e-12 | AM10: =IF(AN4=1, IF('IPP Proforma'!$H$34>=AN4,'IPP Proforma'!$H$39,0), AM6-AM9) -> -2.50111043e-12 | AN10: =IF(AO4=1, IF('IPP Proforma'!$H$34>=AO4,'IPP Proforma'!$H$39,0), AN6-AN9) -> -2.50111043e-12 | AO10: =IF(AP4=1, IF('IPP Proforma'!$H$34>=AP4,'IPP Proforma'!$H$39,0), AO6-AO9) -> -2.50111043e-12 | AP10: =IF(AQ4=1, IF('IPP Proforma'!$H$34>=AQ4,'IPP Proforma'!$H$39,0), AP6-AP9) -> -2.50111043e-12 | AQ10: =IF(AR4=1, IF('IPP Proforma'!$H$34>=AR4,'IPP Proforma'!$H$39,0), AQ6-AQ9) -> -2.50111043e-12
B13: DSCR | C13: =C4 -> 0 | D13: 1 | E13: 2 | F13: 3 | G13: 4 | H13: 5 | I13: 6 | J13: 7 | K13: 8 | L13: 9 | M13: 10 | N13: 11 | O13: 12 | P13: 13 | Q13: 14 | R13: 15 | S13: 16 | T13: 17 | U13: 18 | V13: 19 | W13: 20 | X13: 21 | Y13: 22 | Z13: 23 | AA13: 24 | AB13: 25 | AC13: 26 | AD13: 27 | AE13: 28 | AF13: 29 | AG13: 30 | AH13: 31 | AI13: 32 | AJ13: 33 | AK13: 34 | AL13: 35 | AM13: 36 | AN13: 37 | AO13: 38 | AP13: 39 | AQ13: 40
B14: Cash Flow Available for Debt Service (CFADS) | D14: ='IPP Proforma'!D55*D5 -> 335.1953963 | E14: ='IPP Proforma'!E55*E5 -> 332.2323017 | F14: ='IPP Proforma'!F55*F5 -> 329.2582801 | G14: ='IPP Proforma'!G55*G5 -> 326.2728715 | H14: ='IPP Proforma'!H55*H5 -> 323.2756076 | I14: ='IPP Proforma'!I55*I5 -> 196.4479189 | J14: ='IPP Proforma'!J55*J5 -> 194.0445974 | K14: ='IPP Proforma'!K55*K5 -> 191.6248709 | L14: ='IPP Proforma'!L55*L5 -> 189.1882529 | M14: ='IPP Proforma'!M55*M5 -> 186.7342482 | N14: ='IPP Proforma'!N55*N5 -> 184.2623522 | O14: ='IPP Proforma'!O55*O5 -> 181.7720511 | P14: ='IPP Proforma'!P55*P5 -> 179.2628219 | Q14: ='IPP Proforma'!Q55*Q5 -> 176.7341313 | R14: ='IPP Proforma'!R55*R5 -> 174.1854367 | S14: ='IPP Proforma'!S55*S5 -> 171.6161851 | T14: ='IPP Proforma'!T55*T5 -> 169.0258133 | U14: ='IPP Proforma'!U55*U5 -> 166.4137475 | V14: ='IPP Proforma'!V55*V5 -> 0 | W14: ='IPP Proforma'!W55*W5 -> 0 | X14: ='IPP Proforma'!X55*X5 -> 0 | Y14: ='IPP Proforma'!Y55*Y5 -> 0 | Z14: ='IPP Proforma'!Z55*Z5 -> 0 | AA14: ='IPP Proforma'!AA55*AA5 -> 0 | AB14: ='IPP Proforma'!AB55*AB5 -> 0 | AC14: ='IPP Proforma'!AC55*AC5 -> 0 | AD14: ='IPP Proforma'!AD55*AD5 -> 0 | AE14: ='IPP Proforma'!AE55*AE5 -> 0 | AF14: ='IPP Proforma'!AF55*AF5 -> 0 | AG14: ='IPP Proforma'!AG55*AG5 -> 0 | AH14: ='IPP Proforma'!AH55*AH5 -> 0 | AI14: ='IPP Proforma'!AI55*AI5 -> 0 | AJ14: ='IPP Proforma'!AJ55*AJ5 -> 0 | AK14: ='IPP Proforma'!AK55*AK5 -> 0 | AL14: ='IPP Proforma'!AL55*AL5 -> 0 | AM14: ='IPP Proforma'!AM55*AM5 -> 0 | AN14: ='IPP Proforma'!AN55*AN5 -> 0 | AO14: ='IPP Proforma'!AO55*AO5 -> 0 | AP14: ='IPP Proforma'!AP55*AP5 -> 0 | AQ14: ='IPP Proforma'!AQ55*AQ5 -> 0
B15: Debt Service Coverage Ratio (DSCR) | D15: =IF(D7=0, 0, D14/D7) -> 2.108013059 | E15: 2.089378429 | F15: 2.070675081 | G15: 2.05190012 | H15: 2.033050603 | I15: 1.235442918 | J15: 1.22032865 | K15: 1.205111212 | L15: 1.189787545 | M15: 1.174354535 | N15: 1.158809008 | O15: 1.143147733 | P15: 1.127367421 | Q15: 1.111464718 | R15: 1.095436212 | S15: 1.079278425 | T15: 1.062987814 | U15: 1.046560772 | V15: 0 | W15: 0 | X15: 0 | Y15: 0 | Z15: 0 | AA15: 0 | AB15: 0 | AC15: 0 | AD15: 0 | AE15: 0 | AF15: 0 | AG15: 0 | AH15: 0 | AI15: 0 | AJ15: 0 | AK15: 0 | AL15: 0 | AM15: 0 | AN15: 0 | AO15: 0 | AP15: 0 | AQ15: 0
B16: Average of DSCRs | C16: =SUM(D15:AQ15)/'IPP Proforma'!H34 -> 1.400171903
B17: CFADS / DS | C17: =SUM(D14:AQ14)/SUM(D7:AQ7) -> 1.400171903
B18: Target DSCR | C18: ='IPP Proforma'!Q31 -> 0
B20: Debt Service Fund | C20: =C4 -> 0 | D20: 1 | E20: 2 | F20: 3 | G20: 4 | H20: 5 | I20: 6 | J20: 7 | K20: 8 | L20: 9 | M20: 10 | N20: 11 | O20: 12 | P20: 13 | Q20: 14 | R20: 15 | S20: 16 | T20: 17 | U20: 18 | V20: 19 | W20: 20 | X20: 21 | Y20: 22 | Z20: 23 | AA20: 24 | AB20: 25 | AC20: 26 | AD20: 27 | AE20: 28 | AF20: 29 | AG20: 30 | AH20: 31 | AI20: 32 | AJ20: 33 | AK20: 34 | AL20: 35 | AM20: 36 | AN20: 37 | AO20: 38 | AP20: 39 | AQ20: 40
B21: Beginning Balance | D21: =+C24 -> 0 | E21: 0 | F21: 0 | G21: 0 | H21: 0 | I21: 0 | J21: 0 | K21: 0 | L21: 0 | M21: 0 | N21: 0 | O21: 0 | P21: 0 | Q21: 0 | R21: 0 | S21: 0 | T21: 0 | U21: 0 | V21: 0 | W21: 0 | X21: 0 | Y21: 0 | Z21: 0 | AA21: 0 | AB21: 0 | AC21: 0 | AD21: 0 | AE21: 0 | AF21: 0 | AG21: 0 | AH21: 0 | AI21: 0 | AJ21: 0 | AK21: 0 | AL21: 0 | AM21: 0 | AN21: 0 | AO21: 0 | AP21: 0 | AQ21: 0
B22: Initial Funding | C22: ='IPP Proforma'!C20 -> 0 | D22: =+-(MIN(0,'IPP Proforma'!D59)) -> 0 | E22: =+-(MIN(0,'IPP Proforma'!E59)) -> 0 | F22: =+-(MIN(0,'IPP Proforma'!F59)) -> 0 | G22: =+-(MIN(0,'IPP Proforma'!G59)) -> 0 | H22: =+-(MIN(0,'IPP Proforma'!H59)) -> 0 | I22: =+-(MIN(0,'IPP Proforma'!I59)) -> 0 | J22: =+-(MIN(0,'IPP Proforma'!J59)) -> 0 | K22: =+-(MIN(0,'IPP Proforma'!K59)) -> 0 | L22: =+-(MIN(0,'IPP Proforma'!L59)) -> 0 | M22: =+-(MIN(0,'IPP Proforma'!M59)) -> 0 | N22: =+-(MIN(0,'IPP Proforma'!N59)) -> 0 | O22: =+-(MIN(0,'IPP Proforma'!O59)) -> 0 | P22: =+-(MIN(0,'IPP Proforma'!P59)) -> 0 | Q22: =+-(MIN(0,'IPP Proforma'!Q59)) -> 0 | R22: =+-(MIN(0,'IPP Proforma'!R59)) -> 0 | S22: =+-(MIN(0,'IPP Proforma'!S59)) -> 0 | T22: =+-(MIN(0,'IPP Proforma'!T59)) -> 0 | U22: =+-(MIN(0,'IPP Proforma'!U59)) -> 0 | V22: =+-(MIN(0,'IPP Proforma'!V59)) -> 0 | W22: =+-(MIN(0,'IPP Proforma'!W59)) -> 0 | X22: =+-(MIN(0,'IPP Proforma'!X59)) -> 0 | Y22: =+-(MIN(0,'IPP Proforma'!Y59)) -> 0 | Z22: =+-(MIN(0,'IPP Proforma'!Z59)) -> 0 | AA22: =+-(MIN(0,'IPP Proforma'!AA59)) -> 0 | AB22: =+-(MIN(0,'IPP Proforma'!AB59)) -> 0 | AC22: =+-(MIN(0,'IPP Proforma'!AC59)) -> 0 | AD22: =+-(MIN(0,'IPP Proforma'!AD59)) -> 0 | AE22: =+-(MIN(0,'IPP Proforma'!AE59)) -> 0 | AF22: =+-(MIN(0,'IPP Proforma'!AF59)) -> 0 | AG22: =+-(MIN(0,'IPP Proforma'!AG59)) -> 0 | AH22: =+-(MIN(0,'IPP Proforma'!AH59)) -> 0 | AI22: =+-(MIN(0,'IPP Proforma'!AI59)) -> 0 | AJ22: =+-(MIN(0,'IPP Proforma'!AJ59)) -> 0 | AK22: =+-(MIN(0,'IPP Proforma'!AK59)) -> 0 | AL22: =+-(MIN(0,'IPP Proforma'!AL59)) -> 0 | AM22: =+-(MIN(0,'IPP Proforma'!AM59)) -> 0 | AN22: =+-(MIN(0,'IPP Proforma'!AN59)) -> 0 | AO22: =+-(MIN(0,'IPP Proforma'!AO59)) -> 0 | AP22: =+-(MIN(0,'IPP Proforma'!AP59)) -> 0 | AQ22: =+-(MIN(0,'IPP Proforma'!AQ59)) -> 0
B23: Withdrawal | C23: =+-(MAX(0,'IPP Proforma'!C59)) -> 0 | D23: =+-(MAX(0,'IPP Proforma'!D59)) -> 0 | E23: =+-(MAX(0,'IPP Proforma'!E59)) -> 0 | F23: =+-(MAX(0,'IPP Proforma'!F59)) -> 0 | G23: =+-(MAX(0,'IPP Proforma'!G59)) -> 0 | H23: =+-(MAX(0,'IPP Proforma'!H59)) -> 0 | I23: =+-(MAX(0,'IPP Proforma'!I59)) -> 0 | J23: =+-(MAX(0,'IPP Proforma'!J59)) -> 0 | K23: =+-(MAX(0,'IPP Proforma'!K59)) -> 0 | L23: =+-(MAX(0,'IPP Proforma'!L59)) -> 0 | M23: =+-(MAX(0,'IPP Proforma'!M59)) -> 0 | N23: =+-(MAX(0,'IPP Proforma'!N59)) -> 0 | O23: =+-(MAX(0,'IPP Proforma'!O59)) -> 0 | P23: =+-(MAX(0,'IPP Proforma'!P59)) -> 0 | Q23: =+-(MAX(0,'IPP Proforma'!Q59)) -> 0 | R23: =+-(MAX(0,'IPP Proforma'!R59)) -> 0 | S23: =+-(MAX(0,'IPP Proforma'!S59)) -> 0 | T23: =+-(MAX(0,'IPP Proforma'!T59)) -> 0 | U23: =+-(MAX(0,'IPP Proforma'!U59)) -> 0 | V23: =+-(MAX(0,'IPP Proforma'!V59)) -> 0 | W23: =+-(MAX(0,'IPP Proforma'!W59)) -> 0 | X23: =+-(MAX(0,'IPP Proforma'!X59)) -> 0 | Y23: =+-(MAX(0,'IPP Proforma'!Y59)) -> 0 | Z23: =+-(MAX(0,'IPP Proforma'!Z59)) -> 0 | AA23: =+-(MAX(0,'IPP Proforma'!AA59)) -> 0 | AB23: =+-(MAX(0,'IPP Proforma'!AB59)) -> 0 | AC23: =+-(MAX(0,'IPP Proforma'!AC59)) -> 0 | AD23: =+-(MAX(0,'IPP Proforma'!AD59)) -> 0 | AE23: =+-(MAX(0,'IPP Proforma'!AE59)) -> 0 | AF23: =+-(MAX(0,'IPP Proforma'!AF59)) -> 0 | AG23: =+-(MAX(0,'IPP Proforma'!AG59)) -> 0 | AH23: =+-(MAX(0,'IPP Proforma'!AH59)) -> 0 | AI23: =+-(MAX(0,'IPP Proforma'!AI59)) -> 0 | AJ23: =+-(MAX(0,'IPP Proforma'!AJ59)) -> 0 | AK23: =+-(MAX(0,'IPP Proforma'!AK59)) -> 0 | AL23: =+-(MAX(0,'IPP Proforma'!AL59)) -> 0 | AM23: =+-(MAX(0,'IPP Proforma'!AM59)) -> 0 | AN23: =+-(MAX(0,'IPP Proforma'!AN59)) -> 0 | AO23: =+-(MAX(0,'IPP Proforma'!AO59)) -> 0 | AP23: =+-(MAX(0,'IPP Proforma'!AP59)) -> 0 | AQ23: =+-(MAX(0,'IPP Proforma'!AQ59)) -> 0
B24: Ending Balance | C24: =SUM(C21:C23) -> 0 | D24: 0 | E24: 0 | F24: 0 | G24: 0 | H24: 0 | I24: 0 | J24: 0 | K24: 0 | L24: 0 | M24: 0 | N24: 0 | O24: 0 | P24: 0 | Q24: 0 | R24: 0 | S24: 0 | T24: 0 | U24: 0 | V24: 0 | W24: 0 | X24: 0 | Y24: 0 | Z24: 0 | AA24: 0 | AB24: 0 | AC24: 0 | AD24: 0 | AE24: 0 | AF24: 0 | AG24: 0 | AH24: 0 | AI24: 0 | AJ24: 0 | AK24: 0 | AL24: 0 | AM24: 0 | AN24: 0 | AO24: 0 | AP24: 0 | AQ24: 0
B25: Interest Rate | C25: =+'IPP Proforma'!H36 -> 0.0325
B26: Earned Interest | C26: =+C21*$C$25 -> 0 | D26: 0 | E26: 0 | F26: 0 | G26: 0 | H26: 0 | I26: 0 | J26: 0 | K26: 0 | L26: 0 | M26: 0 | N26: 0 | O26: 0 | P26: 0 | Q26: 0 | R26: 0 | S26: 0 | T26: 0 | U26: 0 | V26: 0 | W26: 0 | X26: 0 | Y26: 0 | Z26: 0 | AA26: 0 | AB26: 0 | AC26: 0 | AD26: 0 | AE26: 0 | AF26: 0 | AG26: 0 | AH26: 0 | AI26: 0 | AJ26: 0 | AK26: 0 | AL26: 0 | AM26: 0 | AN26: 0 | AO26: 0 | AP26: 0 | AQ26: 0

Sheet Equity Optimizer
B2: Equity Optimizer
B4: WACC | C4: ='IPP Proforma'!H35 -> 0.085 | G4: Optimized Debt % | I4: =C46 -> 0.445
B6: First | C6: Debt % | D6: Equity % | E6: Equity Return | G6: Capital | H6: Prop Tax/Ins | I6: ITC | J6: Fixed O&M | K6: Incentive | L6: PTC | M6: LCOE | N6: DSCR
B7: Iteration | C7: 0 | D7: =1-C7 -> 1 | E7: =($C$4-'IPP Proforma'!$H$32*$C7*(1-'IPP Proforma'!$H$18))/(1-$C7) -> 0.085 | G7: =(('IPP Proforma'!$C$18+-PMT('IPP Proforma'!$H$32, 'IPP Proforma'!$H$34,'IPP Proforma'!$C$18*$C7)*'IPP Proforma'!$C$19/12)*(1-$C7)+PV($E7,'IPP Proforma'!$H$34,PMT('IPP Proforma'!$H$32,'IPP Proforma'!$H$34,('IPP Proforma'!$C$18+-PMT('IPP Proforma'!$H$32, 'IPP Proforma'!$H$34,'IPP Proforma'!$C$18*$C7)*'IPP Proforma'!$C$19/12)*$C7)+(-PMT('IPP Proforma'!$H$32, 'IPP Proforma'!$H$34,'IPP Proforma'!$C$18*$C7)*'IPP Proforma'!$C$19/12)*'IPP Proforma'!$H$36)-((-PMT('IPP Proforma'!$H$32, 'IPP Proforma'!$H$34,'IPP Proforma'!$C$18*$C7)*'IPP Proforma'!$C$19/12)/(1+$E7)^'IPP Proforma'!$H$34+(PV($E7,'IPP Proforma'!$H$34,(-PMT('IPP Proforma'!$H$32, 'IPP Proforma'!$H$34,'IPP Proforma'!$C$18*$C7)*'IPP Proforma'!$C$19/12)*'IPP Proforma'!$H$36)*'IPP Proforma'!$H$18))+(NPV($E7,IPMT('IPP Proforma'!$H$32,OFFSET('IPP Proforma'!$D$42,0,0,1,'IPP Proforma'!$H$34),'IPP Proforma'!$H$34,('IPP Proforma'!$C$18+-PMT('IPP Proforma'!$H$32, 'IPP Proforma'!$H$34,'IPP Proforma'!$C$18*$C7)*'IPP Proforma'!$C$19/12)*$C7))-NPV($E7,OFFSET('IPP Proforma'!$D$93,MATCH('IPP Proforma'!$H$25,'IPP Proforma'!$C$94:$C$101,0),0,1,40)*'IPP Proforma'!$C$18))*'IPP Proforma'!$H$18)/(1-'IPP Proforma'!$H$18)/NPV((1+$E7)/(1+'IPP Proforma'!$H$37)-1,'IPP Proforma'!$D$44:$AQ$44) -> 305.9877761 | H7: =-PV((1+$E7)/(1+'IPP Proforma'!$C$30)-1,'IPP Proforma'!$C$27,'IPP Proforma'!$C$18*'IPP Proforma'!$C$36)/NPV((1+$E7)/(1+'IPP Proforma'!$H$37)-1,'IPP Proforma'!$D$44:$AQ$44)+NPV($E7,'IPP Proforma'!$C$18*'IPP Proforma'!$C$35*(1-(OFFSET('IPP Proforma'!$D$42,0,0,1,'IPP Proforma'!$C$27)-1)/'IPP Proforma'!$C$27))/NPV((1+$E7)/(1+'IPP Proforma'!$H$37)-1,'IPP Proforma'!$D$44:$AQ$44) -> 15.38535944 | I7: =(PV($E7,1,'IPP Proforma'!$H$22*'IPP Proforma'!$H$23*'IPP Proforma'!$C$18)/(1-'IPP Proforma'!$H$18)+'IPP Proforma'!$H$24*'IPP Proforma'!$H$23*'IPP Proforma'!$H$22*NPV($E7,OFFSET('IPP Proforma'!$D$93,MATCH('IPP Proforma'!$H$25,'IPP Proforma'!$C$94:$C$101,0),0,1,40)*'IPP Proforma'!$C$18)*'IPP Proforma'!$H$16/(1-'IPP Proforma'!$H$18))/NPV((1+$E7)/(1+'IPP Proforma'!$H$37)-1,'IPP Proforma'!$D$44:$AQ$44) -> -94.71242831 | J7: =-PV((1+$E7)/(1+'IPP Proforma'!$C$30)-1,'IPP Proforma'!$C$27,'IPP Proforma'!$C$31*'IPP Proforma'!$C$16*1000)/NPV((1+$E7)/(1+'IPP Proforma'!$H$37)-1,'IPP Proforma'!$D$44:$AQ$44) -> 26.27893019 | K7: =-NPV((1+$E7)-1,'IPP Proforma'!$D$45:$AQ$45)/NPV((1+$E7)/(1+'IPP Proforma'!$H$37)-1,'IPP Proforma'!$D$44:$AQ$44) -> -36.76216456 | L7: =PV((1+$E7)/(1+'IPP Proforma'!$H$21)/(1-'IPP Proforma'!$C$26)-1,'IPP Proforma'!$H$20,'IPP Proforma'!$H$19*'IPP Proforma'!$C$16*8760*'IPP Proforma'!$C$24/(1-'IPP Proforma'!$C$26))/(1-'IPP Proforma'!$H$18)/NPV((1+$E7)/(1+'IPP Proforma'!$H$37)-1,'IPP Proforma'!$D$44:$AQ$44) -> 0 | M7: =SUM(G7:L7) -> 216.1774728 | N7: =-IF($C7=0,-99.99,IF($C7=1,99.99,AVERAGE((($M7*(1+'IPP Proforma'!$H$37)^OFFSET('IPP Proforma'!$D$42,0,0,1,'IPP Proforma'!$H$34))*(8760*'IPP Proforma'!$C$16*'IPP Proforma'!$C$24*(1-'IPP Proforma'!$C$26)^(OFFSET('IPP Proforma'!$D$42,0,0,1,'IPP Proforma'!$H$34)-1))+OFFSET('IPP Proforma'!$D$45,0,0,1,'IPP Proforma'!$H$34)-'IPP Proforma'!$C$16*'IPP Proforma'!$C$31*(1+'IPP Proforma'!$C$30)^OFFSET('IPP Proforma'!$D$42,0,0,1,'IPP Proforma'!$H$34)*1000-'IPP Proforma'!$C$16*'IPP Proforma'!$C$17*'IPP Proforma'!$C$36*(1+'IPP Proforma'!$C$30)^OFFSET('IPP Proforma'!$D$42,0,0,1,'IPP Proforma'!$H$34)*1000-'IPP Proforma'!$C$16*'IPP Proforma'!$C$17*'IPP Proforma'!$C$35*(1-(OFFSET('IPP Proforma'!$D$42,0,0,1,'IPP Proforma'!$H$34)-1)/'IPP Proforma'!$C$27)*1000)/PMT('IPP Proforma'!$H$32,'IPP Proforma'!$H$34,$C7*('IPP Proforma'!$C$18+-PMT('IPP Proforma'!$H$32, 'IPP Proforma'!$H$34,'IPP Proforma'!$C$18*$C7)*'IPP Proforma'!$C$19/12))))) -> 99.99
C8: =C7+10% -> 0.1 | D8: 0.9 | E8: =($C$4-'IPP Proforma'!$H$32*$C8*(1-'IPP Proforma'!$H$18))/(1-$C8) -> 0.08975 | G8: =(('IPP Proforma'!$C$18+-PMT('IPP Proforma'!$H$32, 'IPP Proforma'!$H$34,'IPP Proforma'!$C$18*$C8)*'IPP Proforma'!$C$19/12)*(1-$C8)+PV($E8,'IPP Proforma'!$H$34,PMT('IPP Proforma'!$H$32,'IPP Proforma'!$H$34,('IPP Proforma'!$C$18+-PMT('IPP Proforma'!$H$32, 'IPP Proforma'!$H$34,'IPP Proforma'!$C$18*$C8)*'IPP Proforma'!$C$19/12)*$C8)+(-PMT('IPP Proforma'!$H$32, 'IPP Proforma'!$H$34,'IPP Proforma'!$C$18*$C8)*'IPP Proforma'!$C$19/12)*'IPP Proforma'!$H$36)-((-PMT('IPP Proforma'!$H$32, 'IPP Proforma'!$H$34,'IPP Proforma'!$C$18*$C8)*'IPP Proforma'!$C$19/12)/(1+$E8)^'IPP Proforma'!$H$34+(PV($E8,'IPP Proforma'!$H$34,(-PMT('IPP Proforma'!$H$32, 'IPP Proforma'!$H$34,'IPP Proforma'!$C$18*$C8)*'IPP Proforma'!$C$19/12)*'IPP Proforma'!$H$36)*'IPP Proforma'!$H$18))+(NPV($E8,IPMT('IPP Proforma'!$H$32,OFFSET('IPP Proforma'!$D$42,0,0,1,'IPP Proforma'!$H$34),'IPP Proforma'!$H$34,('IPP Proforma'!$C$18+-PMT('IPP Proforma'!$H$32, 'IPP Proforma'!$H$34,'IPP Proforma'!$C$18*$C8)*'IPP Proforma'!$C$19/12)*$C8))-NPV($E8,OFFSET('IPP Proforma'!$D$93,MATCH('IPP Proforma'!$H$25,'IPP Proforma'!$C$94:$C$101,0),0,1,40)*'IPP Proforma'!$C$18))*'IPP Proforma'!$H$18)/(1-'IPP Proforma'!$H$18)/NPV((1+$E8)/(1+'IPP Proforma'!$H$37)-1,'IPP Proforma'!$D$44:$AQ$44) -> 304.4017124 | H8: =-PV((1+$E8)/(1+'IPP Proforma'!$C$30)-1,'IPP Proforma'!$C$27,'IPP Proforma'!$C$18*'IPP Proforma'!$C$36)/NPV((1+$E8)/(1+'IPP Proforma'!$H$37)-1,'IPP Proforma'!$D$44:$AQ$44)+NPV($E8,'IPP Proforma'!$C$18*'IPP Proforma'!$C$35*(1-(OFFSET('IPP Proforma'!$D$42,0,0,1,'IPP Proforma'!$C$27)-1)/'IPP Proforma'!$C$27))/NPV((1+$E8)/(1+'IPP Proforma'!$H$37)-1,'IPP Proforma'!$D$44:$AQ$44) -> 15.33594691 | I8: =(PV($E8,1,'IPP Proforma'!$H$22*'IPP Proforma'!$H$23*'IPP Proforma'!$C$18)/(1-'IPP Proforma'!$H$18)+'IPP Proforma'!$H$24*'IPP Proforma'!$H$23*'IPP Proforma'!$H$22*NPV($E8,OFFSET('IPP Proforma'!$D$93,MATCH('IPP Proforma'!$H$25,'IPP Proforma'!$C$94:$C$101,0),0,1,40)*'IPP Proforma'!$C$18)*'IPP Proforma'!$H$16/(1-'IPP Proforma'!$H$18))/NPV((1+$E8)/(1+'IPP Proforma'!$H$37)-1,'IPP Proforma'!$D$44:$AQ$44) -> -97.64611343 | J8: =-PV((1+$E8)/(1+'IPP Proforma'!$C$30)-1,'IPP Proforma'!$C$27,'IPP Proforma'!$C$31*'IPP Proforma'!$C$16*1000)/NPV((1+$E8)/(1+'IPP Proforma'!$H$37)-1,'IPP Proforma'!$D$44:$AQ$44) -> 26.19453122 | K8: =-NPV((1+$E8)-1,'IPP Proforma'!$D$45:$AQ$45)/NPV((1+$E8)/(1+'IPP Proforma'!$H$37)-1,'IPP Proforma'!$D$44:$AQ$44) -> -37.55258892 | L8: =PV((1+$E8)/(1+'IPP Proforma'!$H$21)/(1-'IPP Proforma'!$C$26)-1,'IPP Proforma'!$H$20,'IPP Proforma'!$H$19*'IPP Proforma'!$C$16*8760*'IPP Proforma'!$C$24/(1-'IPP Proforma'!$C$26))/(1-'IPP Proforma'!$H$18)/NPV((1+$E8)/(1+'IPP Proforma'!$H$37)-1,'IPP Proforma'!$D$44:$AQ$44) -> 0 | M8: 210.7334882 | N8: =-IF($C8=0,-99.99,IF($C8=1,99.99,AVERAGE((($M8*(1+'IPP Proforma'!$H$37)^OFFSET('IPP Proforma'!$D$42,0,0,1,'IPP Proforma'!$H$34))*(8760*'IPP Proforma'!$C$16*'IPP Proforma'!$C$24*(1-'IPP Proforma'!$C$26)^(OFFSET('IPP Proforma'!$D$42,0,0,1,'IPP Proforma'!$H$34)-1))+OFFSET('IPP Proforma'!$D$45,0,0,1,'IPP Proforma'!$H$34)-'IPP Proforma'!$C$16*'IPP Proforma'!$C$31*(1+'IPP Proforma'!$C$30)^OFFSET('IPP Proforma'!$D$42,0,0,1,'IPP Proforma'!$H$34)*1000-'IPP Proforma'!$C$16*'IPP Proforma'!$C$17*'IPP Proforma'!$C$36*(1+'IPP Proforma'!$C$30)^OFFSET('IPP Proforma'!$D$42,0,0,1,'IPP Proforma'!$H$34)*1000-'IPP Proforma'!$C$16*'IPP Proforma'!$C$17*'IPP Proforma'!$C$35*(1-(OFFSET('IPP Proforma'!$D$42,0,0,1,'IPP Proforma'!$H$34)-1)/'IPP Proforma'!$C$27)*1000)/PMT('IPP Proforma'!$H$32,'IPP Proforma'!$H$34,$C8*('IPP Proforma'!$C$18+-PMT('IPP Proforma'!$H$32, 'IPP Proforma'!$H$34,'IPP Proforma'!$C$18*$C8)*'IPP Proforma'!$C$19/12))))) -> 7.599546751
C9: 0.2 | D9: 0.8 | E9: =($C$4-'IPP Proforma'!$H$32*$C9*(1-'IPP Proforma'!$H$18))/(1-$C9) -> 0.0956875 | G9: =(('IPP Proforma'!$C$18+-PMT('IPP Proforma'!$H$32, 'IPP Proforma'!$H$34,'IPP Proforma'!$C$18*$C9)*'IPP Proforma'!$C$19/12)*(1-$C9)+PV($E9,'IPP Proforma'!$H$34,PMT('IPP Proforma'!$H$32,'IPP Proforma'!$H$34,('IPP Proforma'!$C$18+-PMT('IPP Proforma'!$H$32, 'IPP Proforma'!$H$34,'IPP Proforma'!$C$18*$C9)*'IPP Proforma'!$C$19/12)*$C9)+(-PMT('IPP Proforma'!$H$32, 'IPP Proforma'!$H$34,'IPP Proforma'!$C$18*$C9)*'IPP Proforma'!$C$19/12)*'IPP Proforma'!$H$36)-((-PMT('IPP Proforma'!$H$32, 'IPP Proforma'!$H$34,'IPP Proforma'!$C$18*$C9)*'IPP Proforma'!$C$19/12)/(1+$E9)^'IPP Proforma'!$H$34+(PV($E9,'IPP Proforma'!$H$34,(-PMT('IPP Proforma'!$H$32, 'IPP Proforma'!$H$34,'IPP Proforma'!$C$18*$C9)*'IPP Proforma'!$C$19/12)*'IPP Proforma'!$H$36)*'IPP Proforma'!$H$18))+(NPV($E9,IPMT('IPP Proforma'!$H$32,OFFSET('IPP Proforma'!$D$42,0,0,1,'IPP Proforma'!$H$34),'IPP Proforma'!$H$34,('IPP Proforma'!$C$18+-PMT('IPP Proforma'!$H$32, 'IPP Proforma'!$H$34,'IPP Proforma'!$C$18*$C9)*'IPP Proforma'!$C$19/12)*$C9))-NPV($E9,OFFSET('IPP Proforma'!$D$93,MATCH('IPP Proforma'!$H$25,'IPP Proforma'!$C$94:$C$101,0),0,1,40)*'IPP Proforma'!$C$18))*'IPP Proforma'!$H$18)/(1-'IPP Proforma'!$H$18)/NPV((1+$E9)/(1+'IPP Proforma'!$H$37)-1,'IPP Proforma'!$D$44:$AQ$44) -> 302.3782425 | H9: =-PV((1+$E9)/(1+'IPP Proforma'!$C$30)-1,'IPP Proforma'!$C$27,'IPP Proforma'!$C$18*'IPP Proforma'!$C$36)/NPV((1+$E9)/(1+'IPP Proforma'!$H$37)-1,'IPP Proforma'!$D$44:$AQ$44)+NPV($E9,'IPP Proforma'!$C$18*'IPP Proforma'!$C$35*(1-(OFFSET('IPP Proforma'!$D$42,0,0,1,'IPP Proforma'!$C$27)-1)/'IPP Proforma'!$C$27))/NPV((1+$E9)/(1+'IPP Proforma'!$H$37)-1,'IPP Proforma'!$D$44:$AQ$44) -> 15.27557791 | I9: =(PV($E9,1,'IPP Proforma'!$H$22*'IPP Proforma'!$H$23*'IPP Proforma'!$C$18)/(1-'IPP Proforma'!$H$18)+'IPP Proforma'!$H$24*'IPP Proforma'!$H$23*'IPP Proforma'!$H$22*NPV($E9,OFFSET('IPP Proforma'!$D$93,MATCH('IPP Proforma'!$H$25,'IPP Proforma'!$C$94:$C$101,0),0,1,40)*'IPP Proforma'!$C$18)*'IPP Proforma'!$H$16/(1-'IPP Proforma'!$H$18))/NPV((1+$E9)/(1+'IPP Proforma'!$H$37)-1,'IPP Proforma'!$D$44:$AQ$44) -> -101.3434462 | J9: =-PV((1+$E9)/(1+'IPP Proforma'!$C$30)-1,'IPP Proforma'!$C$27,'IPP Proforma'!$C$31*'IPP Proforma'!$C$16*1000)/NPV((1+$E9)/(1+'IPP Proforma'!$H$37)-1,'IPP Proforma'!$D$44:$AQ$44) -> 26.09141808 | K9: =-NPV((1+$E9)-1,'IPP Proforma'!$D$45:$AQ$45)/NPV((1+$E9)/(1+'IPP Proforma'!$H$37)-1,'IPP Proforma'!$D$44:$AQ$44) -> -38.53247867 | L9: =PV((1+$E9)/(1+'IPP Proforma'!$H$21)/(1-'IPP Proforma'!$C$26)-1,'IPP Proforma'!$H$20,'IPP Proforma'!$H$19*'IPP Proforma'!$C$16*8760*'IPP Proforma'!$C$24/(1-'IPP Proforma'!$C$26))/(1-'IPP Proforma'!$H$18)/NPV((1+$E9)/(1+'IPP Proforma'!$H$37)-1,'IPP Proforma'!$D$44:$AQ$44) -> 0 | M9: 203.8693136 | N9: =-IF($C9=0,-99.99,IF($C9=1,99.99,AVERAGE((($M9*(1+'IPP Proforma'!$H$37)^OFFSET('IPP Proforma'!$D$42,0,0,1,'IPP Proforma'!$H$34))*(8760*'IPP Proforma'!$C$16*'IPP Proforma'!$C$24*(1-'IPP Proforma'!$C$26)^(OFFSET('IPP Proforma'!$D$42,0,0,1,'IPP Proforma'!$H$34)-1))+OFFSET('IPP Proforma'!$D$45,0,0,1,'IPP Proforma'!$H$34)-'IPP Proforma'!$C$16*'IPP Proforma'!$C$31*(1+'IPP Proforma'!$C$30)^OFFSET('IPP Proforma'!$D$42,0,0,1,'IPP Proforma'!$H$34)*1000-'IPP Proforma'!$C$16*'IPP Proforma'!$C$17*'IPP Proforma'!$C$36*(1+'IPP Proforma'!$C$30)^OFFSET('IPP Proforma'!$D$42,0,0,1,'IPP Proforma'!$H$34)*1000-'IPP Proforma'!$C$16*'IPP Proforma'!$C$17*'IPP Proforma'!$C$35*(1-(OFFSET('IPP Proforma'!$D$42,0,0,1,'IPP Proforma'!$H$34)-1)/'IPP Proforma'!$C$27)*1000)/PMT('IPP Proforma'!$H$32,'IPP Proforma'!$H$34,$C9*('IPP Proforma'!$C$18+-PMT('IPP Proforma'!$H$32, 'IPP Proforma'!$H$34,'IPP Proforma'!$C$18*$C9)*'IPP Proforma'!$C$19/12))))) -> 3.66400389
C10: 0.3 | D10: 0.7 | E10: =($C$4-'IPP Proforma'!$H$32*$C10*(1-'IPP Proforma'!$H$18))/(1-$C10) -> 0.1033214286 | G10: =(('IPP Proforma'!$C$18+-PMT('IPP Proforma'!$H$32, 'IPP Proforma'!$H$34,'IPP Proforma'!$C$18*$C10)*'IPP Proforma'!$C$19/12)*(1-$C10)+PV($E10,'IPP Proforma'!$H$34,PMT('IPP Proforma'!$H$32,'IPP Proforma'!$H$34,('IPP Proforma'!$C$18+-PMT('IPP Proforma'!$H$32, 'IPP Proforma'!$H$34,'IPP Proforma'!$C$18*$C10)*'IPP Proforma'!$C$19/12)*$C10)+(-PMT('IPP Proforma'!$H$32, 'IPP Proforma'!$H$34,'IPP Proforma'!$C$18*$C10)*'IPP Proforma'!$C$19/12)*'IPP Proforma'!$H$36)-((-PMT('IPP Proforma'!$H$32, 'IPP Proforma'!$H$34,'IPP Proforma'!$C$18*$C10)*'IPP Proforma'!$C$19/12)/(1+$E10)^'IPP Proforma'!$H$34+(PV($E10,'IPP Proforma'!$H$34,(-PMT('IPP Proforma'!$H$32, 'IPP Proforma'!$H$34,'IPP Proforma'!$C$18*$C10)*'IPP Proforma'!$C$19/12)*'IPP Proforma'!$H$36)*'IPP Proforma'!$H$18))+(NPV($E10,IPMT('IPP Proforma'!$H$32,OFFSET('IPP Proforma'!$D$42,0,0,1,'IPP Proforma'!$H$34),'IPP Proforma'!$H$34,('IPP Proforma'!$C$18+-PMT('IPP Proforma'!$H$32, 'IPP Proforma'!$H$34,'IPP Proforma'!$C$18*$C10)*'IPP Proforma'!$C$19/12)*$C10))-NPV($E10,OFFSET('IPP Proforma'!$D$93,MATCH('IPP Proforma'!$H$25,'IPP Proforma'!$C$94:$C$101,0),0,1,40)*'IPP Proforma'!$C$18))*'IPP Proforma'!$H$18)/(1-'IPP Proforma'!$H$18)/NPV((1+$E10)/(1+'IPP Proforma'!$H$37)-1,'IPP Proforma'!$D$44:$AQ$44) -> 299.7183391 | H10: =-PV((1+$E10)/(1+'IPP Proforma'!$C$30)-1,'IPP Proforma'!$C$27,'IPP Proforma'!$C$18*'IPP Proforma'!$C$36)/NPV((1+$E10)/(1+'IPP Proforma'!$H$37)-1,'IPP Proforma'!$D$44:$AQ$44)+NPV($E10,'IPP Proforma'!$C$18*'IPP Proforma'!$C$35*(1-(OFFSET('IPP Proforma'!$D$42,0,0,1,'IPP Proforma'!$C$27)-1)/'IPP Proforma'!$C$27))/NPV((1+$E10)/(1+'IPP Proforma'!$H$37)-1,'IPP Proforma'!$D$44:$AQ$44) -> 15.20024617 | I10: =(PV($E10,1,'IPP Proforma'!$H$22*'IPP Proforma'!$H$23*'IPP Proforma'!$C$18)/(1-'IPP Proforma'!$H$18)+'IPP Proforma'!$H$24*'IPP Proforma'!$H$23*'IPP Proforma'!$H$22*NPV($E10,OFFSET('IPP Proforma'!$D$93,MATCH('IPP Proforma'!$H$25,'IPP Proforma'!$C$94:$C$101,0),0,1,40)*'IPP Proforma'!$C$18)*'IPP Proforma'!$H$16/(1-'IPP Proforma'!$H$18))/NPV((1+$E10)/(1+'IPP Proforma'!$H$37)-1,'IPP Proforma'!$D$44:$AQ$44) -> -106.1413201 | J10: =-PV((1+$E10)/(1+'IPP Proforma'!$C$30)-1,'IPP Proforma'!$C$27,'IPP Proforma'!$C$31*'IPP Proforma'!$C$16*1000)/NPV((1+$E10)/(1+'IPP Proforma'!$H$37)-1,'IPP Proforma'!$D$44:$AQ$44) -> 25.96274788 | K10: =-NPV((1+$E10)-1,'IPP Proforma'!$D$45:$AQ$45)/NPV((1+$E10)/(1+'IPP Proforma'!$H$37)-1,'IPP Proforma'!$D$44:$AQ$44) -> -39.77767964 | L10: =PV((1+$E10)/(1+'IPP Proforma'!$H$21)/(1-'IPP Proforma'!$C$26)-1,'IPP Proforma'!$H$20,'IPP Proforma'!$H$19*'IPP Proforma'!$C$16*8760*'IPP Proforma'!$C$24/(1-'IPP Proforma'!$C$26))/(1-'IPP Proforma'!$H$18)/NPV((1+$E10)/(1+'IPP Proforma'!$H$37)-1,'IPP Proforma'!$D$44:$AQ$44) -> 0 | M10: 194.9623334 | N10: =-IF($C10=0,-99.99,IF($C10=1,99.99,AVERAGE((($M10*(1+'IPP Proforma'!$H$37)^OFFSET('IPP Proforma'!$D$42,0,0,1,'IPP Proforma'!$H$34))*(8760*'IPP Proforma'!$C$16*'IPP Proforma'!$C$24*(1-'IPP Proforma'!$C$26)^(OFFSET('IPP Proforma'!$D$42,0,0,1,'IPP Proforma'!$H$34)-1))+OFFSET('IPP Proforma'!$D$45,0,0,1,'IPP Proforma'!$H$34)-'IPP Proforma'!$C$16*'IPP Proforma'!$C$31*(1+'IPP Proforma'!$C$30)^OFFSET('IPP Proforma'!$D$42,0,0,1,'IPP Proforma'!$H$34)*1000-'IPP Proforma'!$C$16*'IPP Proforma'!$C$17*'IPP Proforma'!$C$36*(1+'IPP Proforma'!$C$30)^OFFSET('IPP Proforma'!$D$42,0,0,1,'IPP Proforma'!$H$34)*1000-'IPP Proforma'!$C$16*'IPP Proforma'!$C$17*'IPP Proforma'!$C$35*(1-(OFFSET('IPP Proforma'!$D$42,0,0,1,'IPP Proforma'!$H$34)-1)/'IPP Proforma'!$C$27)*1000)/PMT('IPP Proforma'!$H$32,'IPP Proforma'!$H$34,$C10*('IPP Proforma'!$C$18+-PMT('IPP Proforma'!$H$32, 'IPP Proforma'!$H$34,'IPP Proforma'!$C$18*$C10)*'IPP Proforma'!$C$19/12))))) -> 2.325219242
C11: 0.4 | D11: 0.6 | E11: =($C$4-'IPP Proforma'!$H$32*$C11*(1-'IPP Proforma'!$H$18))/(1-$C11) -> 0.1135 | G11: =(('IPP Proforma'!$C$18+-PMT('IPP Proforma'!$H$32, 'IPP Proforma'!$H$34,'IPP Proforma'!$C$18*$C11)*'IPP Proforma'!$C$19/12)*(1-$C11)+PV($E11,'IPP Proforma'!$H$34,PMT('IPP Proforma'!$H$32,'IPP Proforma'!$H$34,('IPP Proforma'!$C$18+-PMT('IPP Proforma'!$H$32, 'IPP Proforma'!$H$34,'IPP Proforma'!$C$18*$C11)*'IPP Proforma'!$C$19/12)*$C11)+(-PMT('IPP Proforma'!$H$32, 'IPP Proforma'!$H$34,'IPP Proforma'!$C$18*$C11)*'IPP Proforma'!$C$19/12)*'IPP Proforma'!$H$36)-((-PMT('IPP Proforma'!$H$32, 'IPP Proforma'!$H$34,'IPP Proforma'!$C$18*$C11)*'IPP Proforma'!$C$19/12)/(1+$E11)^'IPP Proforma'!$H$34+(PV($E11,'IPP Proforma'!$H$34,(-PMT('IPP Proforma'!$H$32, 'IPP Proforma'!$H$34,'IPP Proforma'!$C$18*$C11)*'IPP Proforma'!$C$19/12)*'IPP Proforma'!$H$36)*'IPP Proforma'!$H$18))+(NPV($E11,IPMT('IPP Proforma'!$H$32,OFFSET('IPP Proforma'!$D$42,0,0,1,'IPP Proforma'!$H$34),'IPP Proforma'!$H$34,('IPP Proforma'!$C$18+-PMT('IPP Proforma'!$H$32, 'IPP Proforma'!$H$34,'IPP Proforma'!$C$18*$C11)*'IPP Proforma'!$C$19/12)*$C11))-NPV($E11,OFFSET('IPP Proforma'!$D$93,MATCH('IPP Proforma'!$H$25,'IPP Proforma'!$C$94:$C$101,0),0,1,40)*'IPP Proforma'!$C$18))*'IPP Proforma'!$H$18)/(1-'IPP Proforma'!$H$18)/NPV((1+$E11)/(1+'IPP Proforma'!$H$37)-1,'IPP Proforma'!$D$44:$AQ$44) -> 296.088092 | H11: =-PV((1+$E11)/(1+'IPP Proforma'!$C$30)-1,'IPP Proforma'!$C$27,'IPP Proforma'!$C$18*'IPP Proforma'!$C$36)/NPV((1+$E11)/(1+'IPP Proforma'!$H$37)-1,'IPP Proforma'!$D$44:$AQ$44)+NPV($E11,'IPP Proforma'!$C$18*'IPP Proforma'!$C$35*(1-(OFFSET('IPP Proforma'!$D$42,0,0,1,'IPP Proforma'!$C$27)-1)/'IPP Proforma'!$C$27))/NPV((1+$E11)/(1+'IPP Proforma'!$H$37)-1,'IPP Proforma'!$D$44:$AQ$44) -> 15.10379589 | I11: =(PV($E11,1,'IPP Proforma'!$H$22*'IPP Proforma'!$H$23*'IPP Proforma'!$C$18)/(1-'IPP Proforma'!$H$18)+'IPP Proforma'!$H$24*'IPP Proforma'!$H$23*'IPP Proforma'!$H$22*NPV($E11,OFFSET('IPP Proforma'!$D$93,MATCH('IPP Proforma'!$H$25,'IPP Proforma'!$C$94:$C$101,0),0,1,40)*'IPP Proforma'!$C$18)*'IPP Proforma'!$H$16/(1-'IPP Proforma'!$H$18))/NPV((1+$E11)/(1+'IPP Proforma'!$H$37)-1,'IPP Proforma'!$D$44:$AQ$44) -> -112.6043788 | J11: =-PV((1+$E11)/(1+'IPP Proforma'!$C$30)-1,'IPP Proforma'!$C$27,'IPP Proforma'!$C$31*'IPP Proforma'!$C$16*1000)/NPV((1+$E11)/(1+'IPP Proforma'!$H$37)-1,'IPP Proforma'!$D$44:$AQ$44) -> 25.79800618 | K11: =-NPV((1+$E11)-1,'IPP Proforma'!$D$45:$AQ$45)/NPV((1+$E11)/(1+'IPP Proforma'!$H$37)-1,'IPP Proforma'!$D$44:$AQ$44) -> -41.40950731 | L11: =PV((1+$E11)/(1+'IPP Proforma'!$H$21)/(1-'IPP Proforma'!$C$26)-1,'IPP Proforma'!$H$20,'IPP Proforma'!$H$19*'IPP Proforma'!$C$16*8760*'IPP Proforma'!$C$24/(1-'IPP Proforma'!$C$26))/(1-'IPP Proforma'!$H$18)/NPV((1+$E11)/(1+'IPP Proforma'!$H$37)-1,'IPP Proforma'!$D$44:$AQ$44) -> 0 | M11: 182.9760079 | N11: =-IF($C11=0,-99.99,IF($C11=1,99.99,AVERAGE((($M11*(1+'IPP Proforma'!$H$37)^OFFSET('IPP Proforma'!$D$42,0,0,1,'IPP Proforma'!$H$34))*(8760*'IPP Proforma'!$C$16*'IPP Proforma'!$C$24*(1-'IPP Proforma'!$C$26)^(OFFSET('IPP Proforma'!$D$42,0,0,1,'IPP Proforma'!$H$34)-1))+OFFSET('IPP Proforma'!$D$45,0,0,1,'IPP Proforma'!$H$34)-'IPP Proforma'!$C$16*'IPP Proforma'!$C$31*(1+'IPP Proforma'!$C$30)^OFFSET('IPP Proforma'!$D$42,0,0,1,'IPP Proforma'!$H$34)*1000-'IPP Proforma'!$C$16*'IPP Proforma'!$C$17*'IPP Proforma'!$C$36*(1+'IPP Proforma'!$C$30)^OFFSET('IPP Proforma'!$D$42,0,0,1,'IPP Proforma'!$H$34)*1000-'IPP Proforma'!$C$16*'IPP Proforma'!$C$17*'IPP Proforma'!$C$35*(1-(OFFSET('IPP Proforma'!$D$42,0,0,1,'IPP Proforma'!$H$34)-1)/'IPP Proforma'!$C$27)*1000)/PMT('IPP Proforma'!$H$32,'IPP Proforma'!$H$34,$C11*('IPP Proforma'!$C$18+-PMT('IPP Proforma'!$H$32, 'IPP Proforma'!$H$34,'IPP Proforma'!$C$18*$C11)*'IPP Proforma'!$C$19/12))))) -> 1.625373066
C12: 0.5 | D12: 0.5 | E12: =($C$4-'IPP Proforma'!$H$32*$C12*(1-'IPP Proforma'!$H$18))/(1-$C12) -> 0.12775 | G12: =(('IPP Proforma'!$C$18+-PMT('IPP Proforma'!$H$32, 'IPP Proforma'!$H$34,'IPP Proforma'!$C$18*$C12)*'IPP Proforma'!$C$19/12)*(1-$C12)+PV($E12,'IPP Proforma'!$H$34,PMT('IPP Proforma'!$H$32,'IPP Proforma'!$H$34,('IPP Proforma'!$C$18+-PMT('IPP Proforma'!$H$32, 'IPP Proforma'!$H$34,'IPP Proforma'!$C$18*$C12)*'IPP Proforma'!$C$19/12)*$C12)+(-PMT('IPP Proforma'!$H$32, 'IPP Proforma'!$H$34,'IPP Proforma'!$C$18*$C12)*'IPP Proforma'!$C$19/12)*'IPP Proforma'!$H$36)-((-PMT('IPP Proforma'!$H$32, 'IPP Proforma'!$H$34,'IPP Proforma'!$C$18*$C12)*'IPP Proforma'!$C$19/12)/(1+$E12)^'IPP Proforma'!$H$34+(PV($E12,'IPP Proforma'!$H$34,(-PMT('IPP Proforma'!$H$32, 'IPP Proforma'!$H$34,'IPP Proforma'!$C$18*$C12)*'IPP Proforma'!$C$19/12)*'IPP Proforma'!$H$36)*'IPP Proforma'!$H$18))+(NPV($E12,IPMT('IPP Proforma'!$H$32,OFFSET('IPP Proforma'!$D$42,0,0,1,'IPP Proforma'!$H$34),'IPP Proforma'!$H$34,('IPP Proforma'!$C$18+-PMT('IPP Proforma'!$H$32, 'IPP Proforma'!$H$34,'IPP Proforma'!$C$18*$C12)*'IPP Proforma'!$C$19/12)*$C12))-NPV($E12,OFFSET('IPP Proforma'!$D$93,MATCH('IPP Proforma'!$H$25,'IPP Proforma'!$C$94:$C$101,0),0,1,40)*'IPP Proforma'!$C$18))*'IPP Proforma'!$H$18)/(1-'IPP Proforma'!$H$18)/NPV((1+$E12)/(1+'IPP Proforma'!$H$37)-1,'IPP Proforma'!$D$44:$AQ$44) -> 290.8892161 | H12: =-PV((1+$E12)/(1+'IPP Proforma'!$C$30)-1,'IPP Proforma'!$C$27,'IPP Proforma'!$C$18*'IPP Proforma'!$C$36)/NPV((1+$E12)/(1+'IPP Proforma'!$H$37)-1,'IPP Proforma'!$D$44:$AQ$44)+NPV($E12,'IPP Proforma'!$C$18*'IPP Proforma'!$C$35*(1-(OFFSET('IPP Proforma'!$D$42,0,0,1,'IPP Proforma'!$C$27)-1)/'IPP Proforma'!$C$27))/NPV((1+$E12)/(1+'IPP Proforma'!$H$37)-1,'IPP Proforma'!$D$44:$AQ$44) -> 14.97634966 | I12: =(PV($E12,1,'IPP Proforma'!$H$22*'IPP Proforma'!$H$23*'IPP Proforma'!$C$18)/(1-'IPP Proforma'!$H$18)+'IPP Proforma'!$H$24*'IPP Proforma'!$H$23*'IPP Proforma'!$H$22*NPV($E12,OFFSET('IPP Proforma'!$D$93,MATCH('IPP Proforma'!$H$25,'IPP Proforma'!$C$94:$C$101,0),0,1,40)*'IPP Proforma'!$C$18)*'IPP Proforma'!$H$16/(1-'IPP Proforma'!$H$18))/NPV((1+$E12)/(1+'IPP Proforma'!$H$37)-1,'IPP Proforma'!$D$44:$AQ$44) -> -121.7511761 | J12: =-PV((1+$E12)/(1+'IPP Proforma'!$C$30)-1,'IPP Proforma'!$C$27,'IPP Proforma'!$C$31*'IPP Proforma'!$C$16*1000)/NPV((1+$E12)/(1+'IPP Proforma'!$H$37)-1,'IPP Proforma'!$D$44:$AQ$44) -> 25.58032193 | K12: =-NPV((1+$E12)-1,'IPP Proforma'!$D$45:$AQ$45)/NPV((1+$E12)/(1+'IPP Proforma'!$H$37)-1,'IPP Proforma'!$D$44:$AQ$44) -> -43.63327753 | L12: =PV((1+$E12)/(1+'IPP Proforma'!$H$21)/(1-'IPP Proforma'!$C$26)-1,'IPP Proforma'!$H$20,'IPP Proforma'!$H$19*'IPP Proforma'!$C$16*8760*'IPP Proforma'!$C$24/(1-'IPP Proforma'!$C$26))/(1-'IPP Proforma'!$H$18)/NPV((1+$E12)/(1+'IPP Proforma'!$H$37)-1,'IPP Proforma'!$D$44:$AQ$44) -> 0 | M12: 166.0614341 | N12: =-IF($C12=0,-99.99,IF($C12=1,99.99,AVERAGE((($M12*(1+'IPP Proforma'!$H$37)^OFFSET('IPP Proforma'!$D$42,0,0,1,'IPP Proforma'!$H$34))*(8760*'IPP Proforma'!$C$16*'IPP Proforma'!$C$24*(1-'IPP Proforma'!$C$26)^(OFFSET('IPP Proforma'!$D$42,0,0,1,'IPP Proforma'!$H$34)-1))+OFFSET('IPP Proforma'!$D$45,0,0,1,'IPP Proforma'!$H$34)-'IPP Proforma'!$C$16*'IPP Proforma'!$C$31*(1+'IPP Proforma'!$C$30)^OFFSET('IPP Proforma'!$D$42,0,0,1,'IPP Proforma'!$H$34)*1000-'IPP Proforma'!$C$16*'IPP Proforma'!$C$17*'IPP Proforma'!$C$36*(1+'IPP Proforma'!$C$30)^OFFSET('IPP Proforma'!$D$42,0,0,1,'IPP Proforma'!$H$34)*1000-'IPP Proforma'!$C$16*'IPP Proforma'!$C$17*'IPP Proforma'!$C$35*(1-(OFFSET('IPP Proforma'!$D$42,0,0,1,'IPP Proforma'!$H$34)-1)/'IPP Proforma'!$C$27)*1000)/PMT('IPP Proforma'!$H$32,'IPP Proforma'!$H$34,$C12*('IPP Proforma'!$C$18+-PMT('IPP Proforma'!$H$32, 'IPP Proforma'!$H$34,'IPP Proforma'!$C$18*$C12)*'IPP Proforma'!$C$19/12))))) -> 1.166474176
C13: 0.6 | D13: 0.4 | E13: =($C$4-'IPP Proforma'!$H$32*$C13*(1-'IPP Proforma'!$H$18))/(1-$C13) -> 0.149125 | G13: =(('IPP Proforma'!$C$18+-PMT('IPP Proforma'!$H$32, 'IPP Proforma'!$H$34,'IPP Proforma'!$C$18*$C13)*'IPP Proforma'!$C$19/12)*(1-$C13)+PV($E13,'IPP Proforma'!$H$34,PMT('IPP Proforma'!$H$32,'IPP Proforma'!$H$34,('IPP Proforma'!$C$18+-PMT('IPP Proforma'!$H$32, 'IPP Proforma'!$H$34,'IPP Proforma'!$C$18*$C13)*'IPP Proforma'!$C$19/12)*$C13)+(-PMT('IPP Proforma'!$H$32, 'IPP Proforma'!$H$34,'IPP Proforma'!$C$18*$C13)*'IPP Proforma'!$C$19/12)*'IPP Proforma'!$H$36)-((-PMT('IPP Proforma'!$H$32, 'IPP Proforma'!$H$34,'IPP Proforma'!$C$18*$C13)*'IPP Proforma'!$C$19/12)/(1+$E13)^'IPP Proforma'!$H$34+(PV($E13,'IPP Proforma'!$H$34,(-PMT('IPP Proforma'!$H$32, 'IPP Proforma'!$H$34,'IPP Proforma'!$C$18*$C13)*'IPP Proforma'!$C$19/12)*'IPP Proforma'!$H$36)*'IPP Proforma'!$H$18))+(NPV($E13,IPMT('IPP Proforma'!$H$32,OFFSET('IPP Proforma'!$D$42,0,0,1,'IPP Proforma'!$H$34),'IPP Proforma'!$H$34,('IPP Proforma'!$C$18+-PMT('IPP Proforma'!$H$32, 'IPP Proforma'!$H$34,'IPP Proforma'!$C$18*$C13)*'IPP Proforma'!$C$19/12)*$C13))-NPV($E13,OFFSET('IPP Proforma'!$D$93,MATCH('IPP Proforma'!$H$25,'IPP Proforma'!$C$94:$C$101,0),0,1,40)*'IPP Proforma'!$C$18))*'IPP Proforma'!$H$18)/(1-'IPP Proforma'!$H$18)/NPV((1+$E13)/(1+'IPP Proforma'!$H$37)-1,'IPP Proforma'!$D$44:$AQ$44) -> 282.9587926 | H13: =-PV((1+$E13)/(1+'IPP Proforma'!$C$30)-1,'IPP Proforma'!$C$27,'IPP Proforma'!$C$18*'IPP Proforma'!$C$36)/NPV((1+$E13)/(1+'IPP Proforma'!$H$37)-1,'IPP Proforma'!$D$44:$AQ$44)+NPV($E13,'IPP Proforma'!$C$18*'IPP Proforma'!$C$35*(1-(OFFSET('IPP Proforma'!$D$42,0,0,1,'IPP Proforma'!$C$27)-1)/'IPP Proforma'!$C$27))/NPV((1+$E13)/(1+'IPP Proforma'!$H$37)-1,'IPP Proforma'!$D$44:$AQ$44) -> 14.80129857 | I13: =(PV($E13,1,'IPP Proforma'!$H$22*'IPP Proforma'!$H$23*'IPP Proforma'!$C$18)/(1-'IPP Proforma'!$H$18)+'IPP Proforma'!$H$24*'IPP Proforma'!$H$23*'IPP Proforma'!$H$22*NPV($E13,OFFSET('IPP Proforma'!$D$93,MATCH('IPP Proforma'!$H$25,'IPP Proforma'!$C$94:$C$101,0),0,1,40)*'IPP Proforma'!$C$18)*'IPP Proforma'!$H$16/(1-'IPP Proforma'!$H$18))/NPV((1+$E13)/(1+'IPP Proforma'!$H$37)-1,'IPP Proforma'!$D$44:$AQ$44) -> -135.6068118 | J13: =-PV((1+$E13)/(1+'IPP Proforma'!$C$30)-1,'IPP Proforma'!$C$27,'IPP Proforma'!$C$31*'IPP Proforma'!$C$16*1000)/NPV((1+$E13)/(1+'IPP Proforma'!$H$37)-1,'IPP Proforma'!$D$44:$AQ$44) -> 25.28132629 | K13: =-NPV((1+$E13)-1,'IPP Proforma'!$D$45:$AQ$45)/NPV((1+$E13)/(1+'IPP Proforma'!$H$37)-1,'IPP Proforma'!$D$44:$AQ$44) -> -46.82100876 | L13: =PV((1+$E13)/(1+'IPP Proforma'!$H$21)/(1-'IPP Proforma'!$C$26)-1,'IPP Proforma'!$H$20,'IPP Proforma'!$H$19*'IPP Proforma'!$C$16*8760*'IPP Proforma'!$C$24/(1-'IPP Proforma'!$C$26))/(1-'IPP Proforma'!$H$18)/NPV((1+$E13)/(1+'IPP Proforma'!$H$37)-1,'IPP Proforma'!$D$44:$AQ$44) -> 0 | M13: 140.613597 | N13: =-IF($C13=0,-99.99,IF($C13=1,99.99,AVERAGE((($M13*(1+'IPP Proforma'!$H$37)^OFFSET('IPP Proforma'!$D$42,0,0,1,'IPP Proforma'!$H$34))*(8760*'IPP Proforma'!$C$16*'IPP Proforma'!$C$24*(1-'IPP Proforma'!$C$26)^(OFFSET('IPP Proforma'!$D$42,0,0,1,'IPP Proforma'!$H$34)-1))+OFFSET('IPP Proforma'!$D$45,0,0,1,'IPP Proforma'!$H$34)-'IPP Proforma'!$C$16*'IPP Proforma'!$C$31*(1+'IPP Proforma'!$C$30)^OFFSET('IPP Proforma'!$D$42,0,0,1,'IPP Proforma'!$H$34)*1000-'IPP Proforma'!$C$16*'IPP Proforma'!$C$17*'IPP Proforma'!$C$36*(1+'IPP Proforma'!$C$30)^OFFSET('IPP Proforma'!$D$42,0,0,1,'IPP Proforma'!$H$34)*1000-'IPP Proforma'!$C$16*'IPP Proforma'!$C$17*'IPP Proforma'!$C$35*(1-(OFFSET('IPP Proforma'!$D$42,0,0,1,'IPP Proforma'!$H$34)-1)/'IPP Proforma'!$C$27)*1000)/PMT('IPP Proforma'!$H$32,'IPP Proforma'!$H$34,$C13*('IPP Proforma'!$C$18+-PMT('IPP Proforma'!$H$32, 'IPP Proforma'!$H$34,'IPP Proforma'!$C$18*$C13)*'IPP Proforma'!$C$19/12))))) -> 0.8042805433
C14: 0.7 | D14: 0.3 | E14: =($C$4-'IPP Proforma'!$H$32*$C14*(1-'IPP Proforma'!$H$18))/(1-$C14) -> 0.18475 | G14: =(('IPP Proforma'!$C$18+-PMT('IPP Proforma'!$H$32, 'IPP Proforma'!$H$34,'IPP Proforma'!$C$18*$C14)*'IPP Proforma'!$C$19/12)*(1-$C14)+PV($E14,'IPP Proforma'!$H$34,PMT('IPP Proforma'!$H$32,'IPP Proforma'!$H$34,('IPP Proforma'!$C$18+-PMT('IPP Proforma'!$H$32, 'IPP Proforma'!$H$34,'IPP Proforma'!$C$18*$C14)*'IPP Proforma'!$C$19/12)*$C14)+(-PMT('IPP Proforma'!$H$32, 'IPP Proforma'!$H$34,'IPP Proforma'!$C$18*$C14)*'IPP Proforma'!$C$19/12)*'IPP Proforma'!$H$36)-((-PMT('IPP Proforma'!$H$32, 'IPP Proforma'!$H$34,'IPP Proforma'!$C$18*$C14)*'IPP Proforma'!$C$19/12)/(1+$E14)^'IPP Proforma'!$H$34+(PV($E14,'IPP Proforma'!$H$34,(-PMT('IPP Proforma'!$H$32, 'IPP Proforma'!$H$34,'IPP Proforma'!$C$18*$C14)*'IPP Proforma'!$C$19/12)*'IPP Proforma'!$H$36)*'IPP Proforma'!$H$18))+(NPV($E14,IPMT('IPP Proforma'!$H$32,OFFSET('IPP Proforma'!$D$42,0,0,1,'IPP Proforma'!$H$34),'IPP Proforma'!$H$34,('IPP Proforma'!$C$18+-PMT('IPP Proforma'!$H$32, 'IPP Proforma'!$H$34,'IPP Proforma'!$C$18*$C14)*'IPP Proforma'!$C$19/12)*$C14))-NPV($E14,OFFSET('IPP Proforma'!$D$93,MATCH('IPP Proforma'!$H$25,'IPP Proforma'!$C$94:$C$101,0),0,1,40)*'IPP Proforma'!$C$18))*'IPP Proforma'!$H$18)/(1-'IPP Proforma'!$H$18)/NPV((1+$E14)/(1+'IPP Proforma'!$H$37)-1,'IPP Proforma'!$D$44:$AQ$44) -> 269.8007108 | H14: =-PV((1+$E14)/(1+'IPP Proforma'!$C$30)-1,'IPP Proforma'!$C$27,'IPP Proforma'!$C$18*'IPP Proforma'!$C$36)/NPV((1+$E14)/(1+'IPP Proforma'!$H$37)-1,'IPP Proforma'!$D$44:$AQ$44)+NPV($E14,'IPP Proforma'!$C$18*'IPP Proforma'!$C$35*(1-(OFFSET('IPP Proforma'!$D$42,0,0,1,'IPP Proforma'!$C$27)-1)/'IPP Proforma'!$C$27))/NPV((1+$E14)/(1+'IPP Proforma'!$H$37)-1,'IPP Proforma'!$D$44:$AQ$44) -> 14.54958162 | I14: =(PV($E14,1,'IPP Proforma'!$H$22*'IPP Proforma'!$H$23*'IPP Proforma'!$C$18)/(1-'IPP Proforma'!$H$18)+'IPP Proforma'!$H$24*'IPP Proforma'!$H$23*'IPP Proforma'!$H$22*NPV($E14,OFFSET('IPP Proforma'!$D$93,MATCH('IPP Proforma'!$H$25,'IPP Proforma'!$C$94:$C$101,0),0,1,40)*'IPP Proforma'!$C$18)*'IPP Proforma'!$H$16/(1-'IPP Proforma'!$H$18))/NPV((1+$E14)/(1+'IPP Proforma'!$H$37)-1,'IPP Proforma'!$D$44:$AQ$44) -> -158.7789047 | J14: =-PV((1+$E14)/(1+'IPP Proforma'!$C$30)-1,'IPP Proforma'!$C$27,'IPP Proforma'!$C$31*'IPP Proforma'!$C$16*1000)/NPV((1+$E14)/(1+'IPP Proforma'!$H$37)-1,'IPP Proforma'!$D$44:$AQ$44) -> 24.85138169 | K14: =-NPV((1+$E14)-1,'IPP Proforma'!$D$45:$AQ$45)/NPV((1+$E14)/(1+'IPP Proforma'!$H$37)-1,'IPP Proforma'!$D$44:$AQ$44) -> -51.70186633 | L14: =PV((1+$E14)/(1+'IPP Proforma'!$H$21)/(1-'IPP Proforma'!$C$26)-1,'IPP Proforma'!$H$20,'IPP Proforma'!$H$19*'IPP Proforma'!$C$16*8760*'IPP Proforma'!$C$24/(1-'IPP Proforma'!$C$26))/(1-'IPP Proforma'!$H$18)/NPV((1+$E14)/(1+'IPP Proforma'!$H$37)-1,'IPP Proforma'!$D$44:$AQ$44) -> 0 | M14: 98.72090307 | N14: =-IF($C14=0,-99.99,IF($C14=1,99.99,AVERAGE((($M14*(1+'IPP Proforma'!$H$37)^OFFSET('IPP Proforma'!$D$42,0,0,1,'IPP Proforma'!$H$34))*(8760*'IPP Proforma'!$C$16*'IPP Proforma'!$C$24*(1-'IPP Proforma'!$C$26)^(OFFSET('IPP Proforma'!$D$42,0,0,1,'IPP Proforma'!$H$34)-1))+OFFSET('IPP Proforma'!$D$45,0,0,1,'IPP Proforma'!$H$34)-'IPP Proforma'!$C$16*'IPP Proforma'!$C$31*(1+'IPP Proforma'!$C$30)^OFFSET('IPP Proforma'!$D$42,0,0,1,'IPP Proforma'!$H$34)*1000-'IPP Proforma'!$C$16*'IPP Proforma'!$C$17*'IPP Proforma'!$C$36*(1+'IPP Proforma'!$C$30)^OFFSET('IPP Proforma'!$D$42,0,0,1,'IPP Proforma'!$H$34)*1000-'IPP Proforma'!$C$16*'IPP Proforma'!$C$17*'IPP Proforma'!$C$35*(1-(OFFSET('IPP Proforma'!$D$42,0,0,1,'IPP Proforma'!$H$34)-1)/'IPP Proforma'!$C$27)*1000)/PMT('IPP Proforma'!$H$32,'IPP Proforma'!$H$34,$C14*('IPP Proforma'!$C$18+-PMT('IPP Proforma'!$H$32, 'IPP Proforma'!$H$34,'IPP Proforma'!$C$18*$C14)*'IPP Proforma'!$C$19/12))))) -> 0.4526365327
C15: 0.8 | D15: 0.2 | E15: =($C$4-'IPP Proforma'!$H$32*$C15*(1-'IPP Proforma'!$H$18))/(1-$C15) -> 0.256 | G15: =(('IPP Proforma'!$C$18+-PMT('IPP Proforma'!$H$32, 'IPP Proforma'!$H$34,'IPP Proforma'!$C$18*$C15)*'IPP Proforma'!$C$19/12)*(1-$C15)+PV($E15,'IPP Proforma'!$H$34,PMT('IPP Proforma'!$H$32,'IPP Proforma'!$H$34,('IPP Proforma'!$C$18+-PMT('IPP Proforma'!$H$32, 'IPP Proforma'!$H$34,'IPP Proforma'!$C$18*$C15)*'IPP Proforma'!$C$19/12)*$C15)+(-PMT('IPP Proforma'!$H$32, 'IPP Proforma'!$H$34,'IPP Proforma'!$C$18*$C15)*'IPP Proforma'!$C$19/12)*'IPP Proforma'!$H$36)-((-PMT('IPP Proforma'!$H$32, 'IPP Proforma'!$H$34,'IPP Proforma'!$C$18*$C15)*'IPP Proforma'!$C$19/12)/(1+$E15)^'IPP Proforma'!$H$34+(PV($E15,'IPP Proforma'!$H$34,(-PMT('IPP Proforma'!$H$32, 'IPP Proforma'!$H$34,'IPP Proforma'!$C$18*$C15)*'IPP Proforma'!$C$19/12)*'IPP Proforma'!$H$36)*'IPP Proforma'!$H$18))+(NPV($E15,IPMT('IPP Proforma'!$H$32,OFFSET('IPP Proforma'!$D$42,0,0,1,'IPP Proforma'!$H$34),'IPP Proforma'!$H$34,('IPP Proforma'!$C$18+-PMT('IPP Proforma'!$H$32, 'IPP Proforma'!$H$34,'IPP Proforma'!$C$18*$C15)*'IPP Proforma'!$C$19/12)*$C15))-NPV($E15,OFFSET('IPP Proforma'!$D$93,MATCH('IPP Proforma'!$H$25,'IPP Proforma'!$C$94:$C$101,0),0,1,40)*'IPP Proforma'!$C$18))*'IPP Proforma'!$H$18)/(1-'IPP Proforma'!$H$18)/NPV((1+$E15)/(1+'IPP Proforma'!$H$37)-1,'IPP Proforma'!$D$44:$AQ$44) -> 245.4604959 | H15: =-PV((1+$E15)/(1+'IPP Proforma'!$C$30)-1,'IPP Proforma'!$C$27,'IPP Proforma'!$C$18*'IPP Proforma'!$C$36)/NPV((1+$E15)/(1+'IPP Proforma'!$H$37)-1,'IPP Proforma'!$D$44:$AQ$44)+NPV($E15,'IPP Proforma'!$C$18*'IPP Proforma'!$C$35*(1-(OFFSET('IPP Proforma'!$D$42,0,0,1,'IPP Proforma'!$C$27)-1)/'IPP Proforma'!$C$27))/NPV((1+$E15)/(1+'IPP Proforma'!$H$37)-1,'IPP Proforma'!$D$44:$AQ$44) -> 14.17119078 | I15: =(PV($E15,1,'IPP Proforma'!$H$22*'IPP Proforma'!$H$23*'IPP Proforma'!$C$18)/(1-'IPP Proforma'!$H$18)+'IPP Proforma'!$H$24*'IPP Proforma'!$H$23*'IPP Proforma'!$H$22*NPV($E15,OFFSET('IPP Proforma'!$D$93,MATCH('IPP Proforma'!$H$25,'IPP Proforma'!$C$94:$C$101,0),0,1,40)*'IPP Proforma'!$C$18)*'IPP Proforma'!$H$16/(1-'IPP Proforma'!$H$18))/NPV((1+$E15)/(1+'IPP Proforma'!$H$37)-1,'IPP Proforma'!$D$44:$AQ$44) -> -204.0834401 | J15: =-PV((1+$E15)/(1+'IPP Proforma'!$C$30)-1,'IPP Proforma'!$C$27,'IPP Proforma'!$C$31*'IPP Proforma'!$C$16*1000)/NPV((1+$E15)/(1+'IPP Proforma'!$H$37)-1,'IPP Proforma'!$D$44:$AQ$44) -> 24.20507202 | K15: =-NPV((1+$E15)-1,'IPP Proforma'!$D$45:$AQ$45)/NPV((1+$E15)/(1+'IPP Proforma'!$H$37)-1,'IPP Proforma'!$D$44:$AQ$44) -> -59.80276798 | L15: =PV((1+$E15)/(1+'IPP Proforma'!$H$21)/(1-'IPP Proforma'!$C$26)-1,'IPP Proforma'!$H$20,'IPP Proforma'!$H$19*'IPP Proforma'!$C$16*8760*'IPP Proforma'!$C$24/(1-'IPP Proforma'!$C$26))/(1-'IPP Proforma'!$H$18)/NPV((1+$E15)/(1+'IPP Proforma'!$H$37)-1,'IPP Proforma'!$D$44:$AQ$44) -> 0 | M15: 19.95055059 | N15: =-IF($C15=0,-99.99,IF($C15=1,99.99,AVERAGE((($M15*(1+'IPP Proforma'!$H$37)^OFFSET('IPP Proforma'!$D$42,0,0,1,'IPP Proforma'!$H$34))*(8760*'IPP Proforma'!$C$16*'IPP Proforma'!$C$24*(1-'IPP Proforma'!$C$26)^(OFFSET('IPP Proforma'!$D$42,0,0,1,'IPP Proforma'!$H$34)-1))+OFFSET('IPP Proforma'!$D$45,0,0,1,'IPP Proforma'!$H$34)-'IPP Proforma'!$C$16*'IPP Proforma'!$C$31*(1+'IPP Proforma'!$C$30)^OFFSET('IPP Proforma'!$D$42,0,0,1,'IPP Proforma'!$H$34)*1000-'IPP Proforma'!$C$16*'IPP Proforma'!$C$17*'IPP Proforma'!$C$36*(1+'IPP Proforma'!$C$30)^OFFSET('IPP Proforma'!$D$42,0,0,1,'IPP Proforma'!$H$34)*1000-'IPP Proforma'!$C$16*'IPP Proforma'!$C$17*'IPP Proforma'!$C$35*(1-(OFFSET('IPP Proforma'!$D$42,0,0,1,'IPP Proforma'!$H$34)-1)/'IPP Proforma'!$C$27)*1000)/PMT('IPP Proforma'!$H$32,'IPP Proforma'!$H$34,$C15*('IPP Proforma'!$C$18+-PMT('IPP Proforma'!$H$32, 'IPP Proforma'!$H$34,'IPP Proforma'!$C$18*$C15)*'IPP Proforma'!$C$19/12))))) -> 0.006548723052
C16: 0.9 | D16: 0.1 | E16: =($C$4-'IPP Proforma'!$H$32*$C16*(1-'IPP Proforma'!$H$18))/(1-$C16) -> 0.46975 | G16: =(('IPP Proforma'!$C$18+-PMT('IPP Proforma'!$H$32, 'IPP Proforma'!$H$34,'IPP Proforma'!$C$18*$C16)*'IPP Proforma'!$C$19/12)*(1-$C16)+PV($E16,'IPP Proforma'!$H$34,PMT('IPP Proforma'!$H$32,'IPP Proforma'!$H$34,('IPP Proforma'!$C$18+-PMT('IPP Proforma'!$H$32, 'IPP Proforma'!$H$34,'IPP Proforma'!$C$18*$C16)*'IPP Proforma'!$C$19/12)*$C16)+(-PMT('IPP Proforma'!$H$32, 'IPP Proforma'!$H$34,'IPP Proforma'!$C$18*$C16)*'IPP Proforma'!$C$19/12)*'IPP Proforma'!$H$36)-((-PMT('IPP Proforma'!$H$32, 'IPP Proforma'!$H$34,'IPP Proforma'!$C$18*$C16)*'IPP Proforma'!$C$19/12)/(1+$E16)^'IPP Proforma'!$H$34+(PV($E16,'IPP Proforma'!$H$34,(-PMT('IPP Proforma'!$H$32, 'IPP Proforma'!$H$34,'IPP Proforma'!$C$18*$C16)*'IPP Proforma'!$C$19/12)*'IPP Proforma'!$H$36)*'IPP Proforma'!$H$18))+(NPV($E16,IPMT('IPP Proforma'!$H$32,OFFSET('IPP Proforma'!$D$42,0,0,1,'IPP Proforma'!$H$34),'IPP Proforma'!$H$34,('IPP Proforma'!$C$18+-PMT('IPP Proforma'!$H$32, 'IPP Proforma'!$H$34,'IPP Proforma'!$C$18*$C16)*'IPP Proforma'!$C$19/12)*$C16))-NPV($E16,OFFSET('IPP Proforma'!$D$93,MATCH('IPP Proforma'!$H$25,'IPP Proforma'!$C$94:$C$101,0),0,1,40)*'IPP Proforma'!$C$18))*'IPP Proforma'!$H$18)/(1-'IPP Proforma'!$H$18)/NPV((1+$E16)/(1+'IPP Proforma'!$H$37)-1,'IPP Proforma'!$D$44:$AQ$44) -> 195.8679047 | H16: =-PV((1+$E16)/(1+'IPP Proforma'!$C$30)-1,'IPP Proforma'!$C$27,'IPP Proforma'!$C$18*'IPP Proforma'!$C$36)/NPV((1+$E16)/(1+'IPP Proforma'!$H$37)-1,'IPP Proforma'!$D$44:$AQ$44)+NPV($E16,'IPP Proforma'!$C$18*'IPP Proforma'!$C$35*(1-(OFFSET('IPP Proforma'!$D$42,0,0,1,'IPP Proforma'!$C$27)-1)/'IPP Proforma'!$C$27))/NPV((1+$E16)/(1+'IPP Proforma'!$H$37)-1,'IPP Proforma'!$D$44:$AQ$44) -> 13.6061726 | I16: =(PV($E16,1,'IPP Proforma'!$H$22*'IPP Proforma'!$H$23*'IPP Proforma'!$C$18)/(1-'IPP Proforma'!$H$18)+'IPP Proforma'!$H$24*'IPP Proforma'!$H$23*'IPP Proforma'!$H$22*NPV($E16,OFFSET('IPP Proforma'!$D$93,MATCH('IPP Proforma'!$H$25,'IPP Proforma'!$C$94:$C$101,0),0,1,40)*'IPP Proforma'!$C$18)*'IPP Proforma'!$H$16/(1-'IPP Proforma'!$H$18))/NPV((1+$E16)/(1+'IPP Proforma'!$H$37)-1,'IPP Proforma'!$D$44:$AQ$44) -> -322.0883678 | J16: =-PV((1+$E16)/(1+'IPP Proforma'!$C$30)-1,'IPP Proforma'!$C$27,'IPP Proforma'!$C$31*'IPP Proforma'!$C$16*1000)/NPV((1+$E16)/(1+'IPP Proforma'!$H$37)-1,'IPP Proforma'!$D$44:$AQ$44) -> 23.23999393 | K16: =-NPV((1+$E16)-1,'IPP Proforma'!$D$45:$AQ$45)/NPV((1+$E16)/(1+'IPP Proforma'!$H$37)-1,'IPP Proforma'!$D$44:$AQ$44) -> -73.88683393 | L16: =PV((1+$E16)/(1+'IPP Proforma'!$H$21)/(1-'IPP Proforma'!$C$26)-1,'IPP Proforma'!$H$20,'IPP Proforma'!$H$19*'IPP Proforma'!$C$16*8760*'IPP Proforma'!$C$24/(1-'IPP Proforma'!$C$26))/(1-'IPP Proforma'!$H$18)/NPV((1+$E16)/(1+'IPP Proforma'!$H$37)-1,'IPP Proforma'!$D$44:$AQ$44) -> 0 | M16: -163.2611304 | N16: =-IF($C16=0,-99.99,IF($C16=1,99.99,AVERAGE((($M16*(1+'IPP Proforma'!$H$37)^OFFSET('IPP Proforma'!$D$42,0,0,1,'IPP Proforma'!$H$34))*(8760*'IPP Proforma'!$C$16*'IPP Proforma'!$C$24*(1-'IPP Proforma'!$C$26)^(OFFSET('IPP Proforma'!$D$42,0,0,1,'IPP Proforma'!$H$34)-1))+OFFSET('IPP Proforma'!$D$45,0,0,1,'IPP Proforma'!$H$34)-'IPP Proforma'!$C$16*'IPP Proforma'!$C$31*(1+'IPP Proforma'!$C$30)^OFFSET('IPP Proforma'!$D$42,0,0,1,'IPP Proforma'!$H$34)*1000-'IPP Proforma'!$C$16*'IPP Proforma'!$C$17*'IPP Proforma'!$C$36*(1+'IPP Proforma'!$C$30)^OFFSET('IPP Proforma'!$D$42,0,0,1,'IPP Proforma'!$H$34)*1000-'IPP Proforma'!$C$16*'IPP Proforma'!$C$17*'IPP Proforma'!$C$35*(1-(OFFSET('IPP Proforma'!$D$42,0,0,1,'IPP Proforma'!$H$34)-1)/'IPP Proforma'!$C$27)*1000)/PMT('IPP Proforma'!$H$32,'IPP Proforma'!$H$34,$C16*('IPP Proforma'!$C$18+-PMT('IPP Proforma'!$H$32, 'IPP Proforma'!$H$34,'IPP Proforma'!$C$18*$C16)*'IPP Proforma'!$C$19/12))))) -> -0.799472983
C17: 1 | D17: 0 | E17: =($C$4-'IPP Proforma'!$H$32*$C17*(1-'IPP Proforma'!$H$18))/(1-$C17) -> 3.850577681e+14 | G17: =(('IPP Proforma'!$C$18+-PMT('IPP Proforma'!$H$32, 'IPP Proforma'!$H$34,'IPP Proforma'!$C$18*$C17)*'IPP Proforma'!$C$19/12)*(1-$C17)+PV($E17,'IPP Proforma'!$H$34,PMT('IPP Proforma'!$H$32,'IPP Proforma'!$H$34,('IPP Proforma'!$C$18+-PMT('IPP Proforma'!$H$32, 'IPP Proforma'!$H$34,'IPP Proforma'!$C$18*$C17)*'IPP Proforma'!$C$19/12)*$C17)+(-PMT('IPP Proforma'!$H$32, 'IPP Proforma'!$H$34,'IPP Proforma'!$C$18*$C17)*'IPP Proforma'!$C$19/12)*'IPP Proforma'!$H$36)-((-PMT('IPP Proforma'!$H$32, 'IPP Proforma'!$H$34,'IPP Proforma'!$C$18*$C17)*'IPP Proforma'!$C$19/12)/(1+$E17)^'IPP Proforma'!$H$34+(PV($E17,'IPP Proforma'!$H$34,(-PMT('IPP Proforma'!$H$32, 'IPP Proforma'!$H$34,'IPP Proforma'!$C$18*$C17)*'IPP Proforma'!$C$19/12)*'IPP Proforma'!$H$36)*'IPP Proforma'!$H$18))+(NPV($E17,IPMT('IPP Proforma'!$H$32,OFFSET('IPP Proforma'!$D$42,0,0,1,'IPP Proforma'!$H$34),'IPP Proforma'!$H$34,('IPP Proforma'!$C$18+-PMT('IPP Proforma'!$H$32, 'IPP Proforma'!$H$34,'IPP Proforma'!$C$18*$C17)*'IPP Proforma'!$C$19/12)*$C17))-NPV($E17,OFFSET('IPP Proforma'!$D$93,MATCH('IPP Proforma'!$H$25,'IPP Proforma'!$C$94:$C$101,0),0,1,40)*'IPP Proforma'!$C$18))*'IPP Proforma'!$H$18)/(1-'IPP Proforma'!$H$18)/NPV((1+$E17)/(1+'IPP Proforma'!$H$37)-1,'IPP Proforma'!$D$44:$AQ$44) ->  | H17: =-PV((1+$E17)/(1+'IPP Proforma'!$C$30)-1,'IPP Proforma'!$C$27,'IPP Proforma'!$C$18*'IPP Proforma'!$C$36)/NPV((1+$E17)/(1+'IPP Proforma'!$H$37)-1,'IPP Proforma'!$D$44:$AQ$44)+NPV($E17,'IPP Proforma'!$C$18*'IPP Proforma'!$C$35*(1-(OFFSET('IPP Proforma'!$D$42,0,0,1,'IPP Proforma'!$C$27)-1)/'IPP Proforma'!$C$27))/NPV((1+$E17)/(1+'IPP Proforma'!$H$37)-1,'IPP Proforma'!$D$44:$AQ$44) ->  | I17: =(PV($E17,1,'IPP Proforma'!$H$22*'IPP Proforma'!$H$23*'IPP Proforma'!$C$18)/(1-'IPP Proforma'!$H$18)+'IPP Proforma'!$H$24*'IPP Proforma'!$H$23*'IPP Proforma'!$H$22*NPV($E17,OFFSET('IPP Proforma'!$D$93,MATCH('IPP Proforma'!$H$25,'IPP Proforma'!$C$94:$C$101,0),0,1,40)*'IPP Proforma'!$C$18)*'IPP Proforma'!$H$16/(1-'IPP Proforma'!$H$18))/NPV((1+$E17)/(1+'IPP Proforma'!$H$37)-1,'IPP Proforma'!$D$44:$AQ$44) ->  | J17: =-PV((1+$E17)/(1+'IPP Proforma'!$C$30)-1,'IPP Proforma'!$C$27,'IPP Proforma'!$C$31*'IPP Proforma'!$C$16*1000)/NPV((1+$E17)/(1+'IPP Proforma'!$H$37)-1,'IPP Proforma'!$D$44:$AQ$44) ->  | K17: =-NPV((1+$E17)-1,'IPP Proforma'!$D$45:$AQ$45)/NPV((1+$E17)/(1+'IPP Proforma'!$H$37)-1,'IPP Proforma'!$D$44:$AQ$44) ->  | L17: =PV((1+$E17)/(1+'IPP Proforma'!$H$21)/(1-'IPP Proforma'!$C$26)-1,'IPP Proforma'!$H$20,'IPP Proforma'!$H$19*'IPP Proforma'!$C$16*8760*'IPP Proforma'!$C$24/(1-'IPP Proforma'!$C$26))/(1-'IPP Proforma'!$H$18)/NPV((1+$E17)/(1+'IPP Proforma'!$H$37)-1,'IPP Proforma'!$D$44:$AQ$44) ->  | N17: =-IF($C17=0,-99.99,IF($C17=1,99.99,AVERAGE((($M17*(1+'IPP Proforma'!$H$37)^OFFSET('IPP Proforma'!$D$42,0,0,1,'IPP Proforma'!$H$34))*(8760*'IPP Proforma'!$C$16*'IPP Proforma'!$C$24*(1-'IPP Proforma'!$C$26)^(OFFSET('IPP Proforma'!$D$42,0,0,1,'IPP Proforma'!$H$34)-1))+OFFSET('IPP Proforma'!$D$45,0,0,1,'IPP Proforma'!$H$34)-'IPP Proforma'!$C$16*'IPP Proforma'!$C$31*(1+'IPP Proforma'!$C$30)^OFFSET('IPP Proforma'!$D$42,0,0,1,'IPP Proforma'!$H$34)*1000-'IPP Proforma'!$C$16*'IPP Proforma'!$C$17*'IPP Proforma'!$C$36*(1+'IPP Proforma'!$C$30)^OFFSET('IPP Proforma'!$D$42,0,0,1,'IPP Proforma'!$H$34)*1000-'IPP Proforma'!$C$16*'IPP Proforma'!$C$17*'IPP Proforma'!$C$35*(1-(OFFSET('IPP Proforma'!$D$42,0,0,1,'IPP Proforma'!$H$34)-1)/'IPP Proforma'!$C$27)*1000)/PMT('IPP Proforma'!$H$32,'IPP Proforma'!$H$34,$C17*('IPP Proforma'!$C$18+-PMT('IPP Proforma'!$H$32, 'IPP Proforma'!$H$34,'IPP Proforma'!$C$18*$C17)*'IPP Proforma'!$C$19/12))))) -> -99.99
B19: Second | C19: Debt % | D19: Equity % | E19: Equity Return | G19: Capital | H19: Prop Tax/Ins | I19: ITC | J19: Fixed O&M | K19: Var O&M | L19: PTC | M19: LCOE | N19: DSCR
B20: Iteration | C20: =MAX(IF(NOT(ISERROR(N7:N17)),IF(N7:N17>targetDSCR,C7:C17))) -> 0.4 | D20: =1-C20 -> 0.6 | E20: =($C$4-'IPP Proforma'!$H$32*$C20*(1-'IPP Proforma'!$H$18))/(1-$C20) -> 0.1135 | G20: =(('IPP Proforma'!$C$18+-PMT('IPP Proforma'!$H$32, 'IPP Proforma'!$H$34,'IPP Proforma'!$C$18*$C20)*'IPP Proforma'!$C$19/12)*(1-$C20)+PV($E20,'IPP Proforma'!$H$34,PMT('IPP Proforma'!$H$32,'IPP Proforma'!$H$34,('IPP Proforma'!$C$18+-PMT('IPP Proforma'!$H$32, 'IPP Proforma'!$H$34,'IPP Proforma'!$C$18*$C20)*'IPP Proforma'!$C$19/12)*$C20)+(-PMT('IPP Proforma'!$H$32, 'IPP Proforma'!$H$34,'IPP Proforma'!$C$18*$C20)*'IPP Proforma'!$C$19/12)*'IPP Proforma'!$H$36)-((-PMT('IPP Proforma'!$H$32, 'IPP Proforma'!$H$34,'IPP Proforma'!$C$18*$C20)*'IPP Proforma'!$C$19/12)/(1+$E20)^'IPP Proforma'!$H$34+(PV($E20,'IPP Proforma'!$H$34,(-PMT('IPP Proforma'!$H$32, 'IPP Proforma'!$H$34,'IPP Proforma'!$C$18*$C20)*'IPP Proforma'!$C$19/12)*'IPP Proforma'!$H$36)*'IPP Proforma'!$H$18))+(NPV($E20,IPMT('IPP Proforma'!$H$32,OFFSET('IPP Proforma'!$D$42,0,0,1,'IPP Proforma'!$H$34),'IPP Proforma'!$H$34,('IPP Proforma'!$C$18+-PMT('IPP Proforma'!$H$32, 'IPP Proforma'!$H$34,'IPP Proforma'!$C$18*$C20)*'IPP Proforma'!$C$19/12)*$C20))-NPV($E20,OFFSET('IPP Proforma'!$D$93,MATCH('IPP Proforma'!$H$25,'IPP Proforma'!$C$94:$C$101,0),0,1,40)*'IPP Proforma'!$C$18))*'IPP Proforma'!$H$18)/(1-'IPP Proforma'!$H$18)/NPV((1+$E20)/(1+'IPP Proforma'!$H$37)-1,'IPP Proforma'!$D$44:$AQ$44) -> 296.088092 | H20: =-PV((1+$E20)/(1+'IPP Proforma'!$C$30)-1,'IPP Proforma'!$C$27,'IPP Proforma'!$C$18*'IPP Proforma'!$C$36)/NPV((1+$E20)/(1+'IPP Proforma'!$H$37)-1,'IPP Proforma'!$D$44:$AQ$44)+NPV($E20,'IPP Proforma'!$C$18*'IPP Proforma'!$C$35*(1-(OFFSET('IPP Proforma'!$D$42,0,0,1,'IPP Proforma'!$C$27)-1)/'IPP Proforma'!$C$27))/NPV((1+$E20)/(1+'IPP Proforma'!$H$37)-1,'IPP Proforma'!$D$44:$AQ$44) -> 15.10379589 | I20: =(PV($E20,1,'IPP Proforma'!$H$22*'IPP Proforma'!$H$23*'IPP Proforma'!$C$18)/(1-'IPP Proforma'!$H$18)+'IPP Proforma'!$H$24*'IPP Proforma'!$H$23*'IPP Proforma'!$H$22*NPV($E20,OFFSET('IPP Proforma'!$D$93,MATCH('IPP Proforma'!$H$25,'IPP Proforma'!$C$94:$C$101,0),0,1,40)*'IPP Proforma'!$C$18)*'IPP Proforma'!$H$16/(1-'IPP Proforma'!$H$18))/NPV((1+$E20)/(1+'IPP Proforma'!$H$37)-1,'IPP Proforma'!$D$44:$AQ$44) -> -112.6043788 | J20: =-PV((1+$E20)/(1+'IPP Proforma'!$C$30)-1,'IPP Proforma'!$C$27,'IPP Proforma'!$C$31*'IPP Proforma'!$C$16*1000)/NPV((1+$E20)/(1+'IPP Proforma'!$H$37)-1,'IPP Proforma'!$D$44:$AQ$44) -> 25.79800618 | K20: =-NPV((1+$E20)-1,'IPP Proforma'!$D$45:$AQ$45)/NPV((1+$E20)/(1+'IPP Proforma'!$H$37)-1,'IPP Proforma'!$D$44:$AQ$44) -> -41.40950731 | L20: =PV((1+$E20)/(1+'IPP Proforma'!$H$21)/(1-'IPP Proforma'!$C$26)-1,'IPP Proforma'!$H$20,'IPP Proforma'!$H$19*'IPP Proforma'!$C$16*8760*'IPP Proforma'!$C$24/(1-'IPP Proforma'!$C$26))/(1-'IPP Proforma'!$H$18)/NPV((1+$E20)/(1+'IPP Proforma'!$H$37)-1,'IPP Proforma'!$D$44:$AQ$44) -> 0 | M20: =SUM(G20:L20) -> 182.9760079 | N20: =-IF($C20=0,-99.99,IF($C20=1,99.99,AVERAGE((($M20*(1+'IPP Proforma'!$H$37)^OFFSET('IPP Proforma'!$D$42,0,0,1,'IPP Proforma'!$H$34))*(8760*'IPP Proforma'!$C$16*'IPP Proforma'!$C$24*(1-'IPP Proforma'!$C$26)^(OFFSET('IPP Proforma'!$D$42,0,0,1,'IPP Proforma'!$H$34)-1))+OFFSET('IPP Proforma'!$D$45,0,0,1,'IPP Proforma'!$H$34)-'IPP Proforma'!$C$16*'IPP Proforma'!$C$31*(1+'IPP Proforma'!$C$30)^OFFSET('IPP Proforma'!$D$42,0,0,1,'IPP Proforma'!$H$34)*1000-'IPP Proforma'!$C$16*'IPP Proforma'!$C$17*'IPP Proforma'!$C$36*(1+'IPP Proforma'!$C$30)^OFFSET('IPP Proforma'!$D$42,0,0,1,'IPP Proforma'!$H$34)*1000-'IPP Proforma'!$C$16*'IPP Proforma'!$C$17*'IPP Proforma'!$C$35*(1-(OFFSET('IPP Proforma'!$D$42,0,0,1,'IPP Proforma'!$H$34)-1)/'IPP Proforma'!$C$27)*1000)/PMT('IPP Proforma'!$H$32,'IPP Proforma'!$H$34,$C20*('IPP Proforma'!$C$18+-PMT('IPP Proforma'!$H$32, 'IPP Proforma'!$H$34,'IPP Proforma'!$C$18*$C20)*'IPP Proforma'!$C$19/12))))) -> 1.625373066
C21: =C20+1% -> 0.41 | D21: 0.59 | E21: =($C$4-'IPP Proforma'!$H$32*$C21*(1-'IPP Proforma'!$H$18))/(1-$C21) -> 0.1147076271 | G21: =(('IPP Proforma'!$C$18+-PMT('IPP Proforma'!$H$32, 'IPP Proforma'!$H$34,'IPP Proforma'!$C$18*$C21)*'IPP Proforma'!$C$19/12)*(1-$C21)+PV($E21,'IPP Proforma'!$H$34,PMT('IPP Proforma'!$H$32,'IPP Proforma'!$H$34,('IPP Proforma'!$C$18+-PMT('IPP Proforma'!$H$32, 'IPP Proforma'!$H$34,'IPP Proforma'!$C$18*$C21)*'IPP Proforma'!$C$19/12)*$C21)+(-PMT('IPP Proforma'!$H$32, 'IPP Proforma'!$H$34,'IPP Proforma'!$C$18*$C21)*'IPP Proforma'!$C$19/12)*'IPP Proforma'!$H$36)-((-PMT('IPP Proforma'!$H$32, 'IPP Proforma'!$H$34,'IPP Proforma'!$C$18*$C21)*'IPP Proforma'!$C$19/12)/(1+$E21)^'IPP Proforma'!$H$34+(PV($E21,'IPP Proforma'!$H$34,(-PMT('IPP Proforma'!$H$32, 'IPP Proforma'!$H$34,'IPP Proforma'!$C$18*$C21)*'IPP Proforma'!$C$19/12)*'IPP Proforma'!$H$36)*'IPP Proforma'!$H$18))+(NPV($E21,IPMT('IPP Proforma'!$H$32,OFFSET('IPP Proforma'!$D$42,0,0,1,'IPP Proforma'!$H$34),'IPP Proforma'!$H$34,('IPP Proforma'!$C$18+-PMT('IPP Proforma'!$H$32, 'IPP Proforma'!$H$34,'IPP Proforma'!$C$18*$C21)*'IPP Proforma'!$C$19/12)*$C21))-NPV($E21,OFFSET('IPP Proforma'!$D$93,MATCH('IPP Proforma'!$H$25,'IPP Proforma'!$C$94:$C$101,0),0,1,40)*'IPP Proforma'!$C$18))*'IPP Proforma'!$H$18)/(1-'IPP Proforma'!$H$18)/NPV((1+$E21)/(1+'IPP Proforma'!$H$37)-1,'IPP Proforma'!$D$44:$AQ$44) -> 295.652099 | H21: =-PV((1+$E21)/(1+'IPP Proforma'!$C$30)-1,'IPP Proforma'!$C$27,'IPP Proforma'!$C$18*'IPP Proforma'!$C$36)/NPV((1+$E21)/(1+'IPP Proforma'!$H$37)-1,'IPP Proforma'!$D$44:$AQ$44)+NPV($E21,'IPP Proforma'!$C$18*'IPP Proforma'!$C$35*(1-(OFFSET('IPP Proforma'!$D$42,0,0,1,'IPP Proforma'!$C$27)-1)/'IPP Proforma'!$C$27))/NPV((1+$E21)/(1+'IPP Proforma'!$H$37)-1,'IPP Proforma'!$D$44:$AQ$44) -> 15.09265396 | I21: =(PV($E21,1,'IPP Proforma'!$H$22*'IPP Proforma'!$H$23*'IPP Proforma'!$C$18)/(1-'IPP Proforma'!$H$18)+'IPP Proforma'!$H$24*'IPP Proforma'!$H$23*'IPP Proforma'!$H$22*NPV($E21,OFFSET('IPP Proforma'!$D$93,MATCH('IPP Proforma'!$H$25,'IPP Proforma'!$C$94:$C$101,0),0,1,40)*'IPP Proforma'!$C$18)*'IPP Proforma'!$H$16/(1-'IPP Proforma'!$H$18))/NPV((1+$E21)/(1+'IPP Proforma'!$H$37)-1,'IPP Proforma'!$D$44:$AQ$44) -> -113.3755107 | J21: =-PV((1+$E21)/(1+'IPP Proforma'!$C$30)-1,'IPP Proforma'!$C$27,'IPP Proforma'!$C$31*'IPP Proforma'!$C$16*1000)/NPV((1+$E21)/(1+'IPP Proforma'!$H$37)-1,'IPP Proforma'!$D$44:$AQ$44) -> 25.77897523 | K21: =-NPV((1+$E21)-1,'IPP Proforma'!$D$45:$AQ$45)/NPV((1+$E21)/(1+'IPP Proforma'!$H$37)-1,'IPP Proforma'!$D$44:$AQ$44) -> -41.60080388 | L21: =PV((1+$E21)/(1+'IPP Proforma'!$H$21)/(1-'IPP Proforma'!$C$26)-1,'IPP Proforma'!$H$20,'IPP Proforma'!$H$19*'IPP Proforma'!$C$16*8760*'IPP Proforma'!$C$24/(1-'IPP Proforma'!$C$26))/(1-'IPP Proforma'!$H$18)/NPV((1+$E21)/(1+'IPP Proforma'!$H$37)-1,'IPP Proforma'!$D$44:$AQ$44) -> 0 | M21: 181.5474135 | N21: =-IF($C21=0,-99.99,IF($C21=1,99.99,AVERAGE((($M21*(1+'IPP Proforma'!$H$37)^OFFSET('IPP Proforma'!$D$42,0,0,1,'IPP Proforma'!$H$34))*(8760*'IPP Proforma'!$C$16*'IPP Proforma'!$C$24*(1-'IPP Proforma'!$C$26)^(OFFSET('IPP Proforma'!$D$42,0,0,1,'IPP Proforma'!$H$34)-1))+OFFSET('IPP Proforma'!$D$45,0,0,1,'IPP Proforma'!$H$34)-'IPP Proforma'!$C$16*'IPP Proforma'!$C$31*(1+'IPP Proforma'!$C$30)^OFFSET('IPP Proforma'!$D$42,0,0,1,'IPP Proforma'!$H$34)*1000-'IPP Proforma'!$C$16*'IPP Proforma'!$C$17*'IPP Proforma'!$C$36*(1+'IPP Proforma'!$C$30)^OFFSET('IPP Proforma'!$D$42,0,0,1,'IPP Proforma'!$H$34)*1000-'IPP Proforma'!$C$16*'IPP Proforma'!$C$17*'IPP Proforma'!$C$35*(1-(OFFSET('IPP Proforma'!$D$42,0,0,1,'IPP Proforma'!$H$34)-1)/'IPP Proforma'!$C$27)*1000)/PMT('IPP Proforma'!$H$32,'IPP Proforma'!$H$34,$C21*('IPP Proforma'!$C$18+-PMT('IPP Proforma'!$H$32, 'IPP Proforma'!$H$34,'IPP Proforma'!$C$18*$C21)*'IPP Proforma'!$C$19/12))))) -> 1.571946022
C22: 0.42 | D22: 0.58 | E22: =($C$4-'IPP Proforma'!$H$32*$C22*(1-'IPP Proforma'!$H$18))/(1-$C22) -> 0.1159568966 | G22: =(('IPP Proforma'!$C$18+-PMT('IPP Proforma'!$H$32, 'IPP Proforma'!$H$34,'IPP Proforma'!$C$18*$C22)*'IPP Proforma'!$C$19/12)*(1-$C22)+PV($E22,'IPP Proforma'!$H$34,PMT('IPP Proforma'!$H$32,'IPP Proforma'!$H$34,('IPP Proforma'!$C$18+-PMT('IPP Proforma'!$H$32, 'IPP Proforma'!$H$34,'IPP Proforma'!$C$18*$C22)*'IPP Proforma'!$C$19/12)*$C22)+(-PMT('IPP Proforma'!$H$32, 'IPP Proforma'!$H$34,'IPP Proforma'!$C$18*$C22)*'IPP Proforma'!$C$19/12)*'IPP Proforma'!$H$36)-((-PMT('IPP Proforma'!$H$32, 'IPP Proforma'!$H$34,'IPP Proforma'!$C$18*$C22)*'IPP Proforma'!$C$19/12)/(1+$E22)^'IPP Proforma'!$H$34+(PV($E22,'IPP Proforma'!$H$34,(-PMT('IPP Proforma'!$H$32, 'IPP Proforma'!$H$34,'IPP Proforma'!$C$18*$C22)*'IPP Proforma'!$C$19/12)*'IPP Proforma'!$H$36)*'IPP Proforma'!$H$18))+(NPV($E22,IPMT('IPP Proforma'!$H$32,OFFSET('IPP Proforma'!$D$42,0,0,1,'IPP Proforma'!$H$34),'IPP Proforma'!$H$34,('IPP Proforma'!$C$18+-PMT('IPP Proforma'!$H$32, 'IPP Proforma'!$H$34,'IPP Proforma'!$C$18*$C22)*'IPP Proforma'!$C$19/12)*$C22))-NPV($E22,OFFSET('IPP Proforma'!$D$93,MATCH('IPP Proforma'!$H$25,'IPP Proforma'!$C$94:$C$101,0),0,1,40)*'IPP Proforma'!$C$18))*'IPP Proforma'!$H$18)/(1-'IPP Proforma'!$H$18)/NPV((1+$E22)/(1+'IPP Proforma'!$H$37)-1,'IPP Proforma'!$D$44:$AQ$44) -> 295.2000433 | H22: =-PV((1+$E22)/(1+'IPP Proforma'!$C$30)-1,'IPP Proforma'!$C$27,'IPP Proforma'!$C$18*'IPP Proforma'!$C$36)/NPV((1+$E22)/(1+'IPP Proforma'!$H$37)-1,'IPP Proforma'!$D$44:$AQ$44)+NPV($E22,'IPP Proforma'!$C$18*'IPP Proforma'!$C$35*(1-(OFFSET('IPP Proforma'!$D$42,0,0,1,'IPP Proforma'!$C$27)-1)/'IPP Proforma'!$C$27))/NPV((1+$E22)/(1+'IPP Proforma'!$H$37)-1,'IPP Proforma'!$D$44:$AQ$44) -> 15.08119476 | I22: =(PV($E22,1,'IPP Proforma'!$H$22*'IPP Proforma'!$H$23*'IPP Proforma'!$C$18)/(1-'IPP Proforma'!$H$18)+'IPP Proforma'!$H$24*'IPP Proforma'!$H$23*'IPP Proforma'!$H$22*NPV($E22,OFFSET('IPP Proforma'!$D$93,MATCH('IPP Proforma'!$H$25,'IPP Proforma'!$C$94:$C$101,0),0,1,40)*'IPP Proforma'!$C$18)*'IPP Proforma'!$H$16/(1-'IPP Proforma'!$H$18))/NPV((1+$E22)/(1+'IPP Proforma'!$H$37)-1,'IPP Proforma'!$D$44:$AQ$44) -> -114.1741033 | J22: =-PV((1+$E22)/(1+'IPP Proforma'!$C$30)-1,'IPP Proforma'!$C$27,'IPP Proforma'!$C$31*'IPP Proforma'!$C$16*1000)/NPV((1+$E22)/(1+'IPP Proforma'!$H$37)-1,'IPP Proforma'!$D$44:$AQ$44) -> 25.75940237 | K22: =-NPV((1+$E22)-1,'IPP Proforma'!$D$45:$AQ$45)/NPV((1+$E22)/(1+'IPP Proforma'!$H$37)-1,'IPP Proforma'!$D$44:$AQ$44) -> -41.79816045 | L22: =PV((1+$E22)/(1+'IPP Proforma'!$H$21)/(1-'IPP Proforma'!$C$26)-1,'IPP Proforma'!$H$20,'IPP Proforma'!$H$19*'IPP Proforma'!$C$16*8760*'IPP Proforma'!$C$24/(1-'IPP Proforma'!$C$26))/(1-'IPP Proforma'!$H$18)/NPV((1+$E22)/(1+'IPP Proforma'!$H$37)-1,'IPP Proforma'!$D$44:$AQ$44) -> 0 | M22: 180.0683767 | N22: =-IF($C22=0,-99.99,IF($C22=1,99.99,AVERAGE((($M22*(1+'IPP Proforma'!$H$37)^OFFSET('IPP Proforma'!$D$42,0,0,1,'IPP Proforma'!$H$34))*(8760*'IPP Proforma'!$C$16*'IPP Proforma'!$C$24*(1-'IPP Proforma'!$C$26)^(OFFSET('IPP Proforma'!$D$42,0,0,1,'IPP Proforma'!$H$34)-1))+OFFSET('IPP Proforma'!$D$45,0,0,1,'IPP Proforma'!$H$34)-'IPP Proforma'!$C$16*'IPP Proforma'!$C$31*(1+'IPP Proforma'!$C$30)^OFFSET('IPP Proforma'!$D$42,0,0,1,'IPP Proforma'!$H$34)*1000-'IPP Proforma'!$C$16*'IPP Proforma'!$C$17*'IPP Proforma'!$C$36*(1+'IPP Proforma'!$C$30)^OFFSET('IPP Proforma'!$D$42,0,0,1,'IPP Proforma'!$H$34)*1000-'IPP Proforma'!$C$16*'IPP Proforma'!$C$17*'IPP Proforma'!$C$35*(1-(OFFSET('IPP Proforma'!$D$42,0,0,1,'IPP Proforma'!$H$34)-1)/'IPP Proforma'!$C$27)*1000)/PMT('IPP Proforma'!$H$32,'IPP Proforma'!$H$34,$C22*('IPP Proforma'!$C$18+-PMT('IPP Proforma'!$H$32, 'IPP Proforma'!$H$34,'IPP Proforma'!$C$18*$C22)*'IPP Proforma'!$C$19/12))))) -> 1.520588016
C23: 0.43 | D23: 0.57 | E23: =($C$4-'IPP Proforma'!$H$32*$C23*(1-'IPP Proforma'!$H$18))/(1-$C23) -> 0.11725 | G23: =(('IPP Proforma'!$C$18+-PMT('IPP Proforma'!$H$32, 'IPP Proforma'!$H$34,'IPP Proforma'!$C$18*$C23)*'IPP Proforma'!$C$19/12)*(1-$C23)+PV($E23,'IPP Proforma'!$H$34,PMT('IPP Proforma'!$H$32,'IPP Proforma'!$H$34,('IPP Proforma'!$C$18+-PMT('IPP Proforma'!$H$32, 'IPP Proforma'!$H$34,'IPP Proforma'!$C$18*$C23)*'IPP Proforma'!$C$19/12)*$C23)+(-PMT('IPP Proforma'!$H$32, 'IPP Proforma'!$H$34,'IPP Proforma'!$C$18*$C23)*'IPP Proforma'!$C$19/12)*'IPP Proforma'!$H$36)-((-PMT('IPP Proforma'!$H$32, 'IPP Proforma'!$H$34,'IPP Proforma'!$C$18*$C23)*'IPP Proforma'!$C$19/12)/(1+$E23)^'IPP Proforma'!$H$34+(PV($E23,'IPP Proforma'!$H$34,(-PMT('IPP Proforma'!$H$32, 'IPP Proforma'!$H$34,'IPP Proforma'!$C$18*$C23)*'IPP Proforma'!$C$19/12)*'IPP Proforma'!$H$36)*'IPP Proforma'!$H$18))+(NPV($E23,IPMT('IPP Proforma'!$H$32,OFFSET('IPP Proforma'!$D$42,0,0,1,'IPP Proforma'!$H$34),'IPP Proforma'!$H$34,('IPP Proforma'!$C$18+-PMT('IPP Proforma'!$H$32, 'IPP Proforma'!$H$34,'IPP Proforma'!$C$18*$C23)*'IPP Proforma'!$C$19/12)*$C23))-NPV($E23,OFFSET('IPP Proforma'!$D$93,MATCH('IPP Proforma'!$H$25,'IPP Proforma'!$C$94:$C$101,0),0,1,40)*'IPP Proforma'!$C$18))*'IPP Proforma'!$H$18)/(1-'IPP Proforma'!$H$18)/NPV((1+$E23)/(1+'IPP Proforma'!$H$37)-1,'IPP Proforma'!$D$44:$AQ$44) -> 294.7310711 | H23: =-PV((1+$E23)/(1+'IPP Proforma'!$C$30)-1,'IPP Proforma'!$C$27,'IPP Proforma'!$C$18*'IPP Proforma'!$C$36)/NPV((1+$E23)/(1+'IPP Proforma'!$H$37)-1,'IPP Proforma'!$D$44:$AQ$44)+NPV($E23,'IPP Proforma'!$C$18*'IPP Proforma'!$C$35*(1-(OFFSET('IPP Proforma'!$D$42,0,0,1,'IPP Proforma'!$C$27)-1)/'IPP Proforma'!$C$27))/NPV((1+$E23)/(1+'IPP Proforma'!$H$37)-1,'IPP Proforma'!$D$44:$AQ$44) -> 15.06940506 | I23: =(PV($E23,1,'IPP Proforma'!$H$22*'IPP Proforma'!$H$23*'IPP Proforma'!$C$18)/(1-'IPP Proforma'!$H$18)+'IPP Proforma'!$H$24*'IPP Proforma'!$H$23*'IPP Proforma'!$H$22*NPV($E23,OFFSET('IPP Proforma'!$D$93,MATCH('IPP Proforma'!$H$25,'IPP Proforma'!$C$94:$C$101,0),0,1,40)*'IPP Proforma'!$C$18)*'IPP Proforma'!$H$16/(1-'IPP Proforma'!$H$18))/NPV((1+$E23)/(1+'IPP Proforma'!$H$37)-1,'IPP Proforma'!$D$44:$AQ$44) -> -115.0016184 | J23: =-PV((1+$E23)/(1+'IPP Proforma'!$C$30)-1,'IPP Proforma'!$C$27,'IPP Proforma'!$C$31*'IPP Proforma'!$C$16*1000)/NPV((1+$E23)/(1+'IPP Proforma'!$H$37)-1,'IPP Proforma'!$D$44:$AQ$44) -> 25.739265 | K23: =-NPV((1+$E23)-1,'IPP Proforma'!$D$45:$AQ$45)/NPV((1+$E23)/(1+'IPP Proforma'!$H$37)-1,'IPP Proforma'!$D$44:$AQ$44) -> -42.00186104 | L23: =PV((1+$E23)/(1+'IPP Proforma'!$H$21)/(1-'IPP Proforma'!$C$26)-1,'IPP Proforma'!$H$20,'IPP Proforma'!$H$19*'IPP Proforma'!$C$16*8760*'IPP Proforma'!$C$24/(1-'IPP Proforma'!$C$26))/(1-'IPP Proforma'!$H$18)/NPV((1+$E23)/(1+'IPP Proforma'!$H$37)-1,'IPP Proforma'!$D$44:$AQ$44) -> 0 | M23: 178.5362617 | N23: =-IF($C23=0,-99.99,IF($C23=1,99.99,AVERAGE((($M23*(1+'IPP Proforma'!$H$37)^OFFSET('IPP Proforma'!$D$42,0,0,1,'IPP Proforma'!$H$34))*(8760*'IPP Proforma'!$C$16*'IPP Proforma'!$C$24*(1-'IPP Proforma'!$C$26)^(OFFSET('IPP Proforma'!$D$42,0,0,1,'IPP Proforma'!$H$34)-1))+OFFSET('IPP Proforma'!$D$45,0,0,1,'IPP Proforma'!$H$34)-'IPP Proforma'!$C$16*'IPP Proforma'!$C$31*(1+'IPP Proforma'!$C$30)^OFFSET('IPP Proforma'!$D$42,0,0,1,'IPP Proforma'!$H$34)*1000-'IPP Proforma'!$C$16*'IPP Proforma'!$C$17*'IPP Proforma'!$C$36*(1+'IPP Proforma'!$C$30)^OFFSET('IPP Proforma'!$D$42,0,0,1,'IPP Proforma'!$H$34)*1000-'IPP Proforma'!$C$16*'IPP Proforma'!$C$17*'IPP Proforma'!$C$35*(1-(OFFSET('IPP Proforma'!$D$42,0,0,1,'IPP Proforma'!$H$34)-1)/'IPP Proforma'!$C$27)*1000)/PMT('IPP Proforma'!$H$32,'IPP Proforma'!$H$34,$C23*('IPP Proforma'!$C$18+-PMT('IPP Proforma'!$H$32, 'IPP Proforma'!$H$34,'IPP Proforma'!$C$18*$C23)*'IPP Proforma'!$C$19/12))))) -> 1.47113045
C24: 0.44 | D24: 0.56 | E24: =($C$4-'IPP Proforma'!$H$32*$C24*(1-'IPP Proforma'!$H$18))/(1-$C24) -> 0.1185892857 | G24: =(('IPP Proforma'!$C$18+-PMT('IPP Proforma'!$H$32, 'IPP Proforma'!$H$34,'IPP Proforma'!$C$18*$C24)*'IPP Proforma'!$C$19/12)*(1-$C24)+PV($E24,'IPP Proforma'!$H$34,PMT('IPP Proforma'!$H$32,'IPP Proforma'!$H$34,('IPP Proforma'!$C$18+-PMT('IPP Proforma'!$H$32, 'IPP Proforma'!$H$34,'IPP Proforma'!$C$18*$C24)*'IPP Proforma'!$C$19/12)*$C24)+(-PMT('IPP Proforma'!$H$32, 'IPP Proforma'!$H$34,'IPP Proforma'!$C$18*$C24)*'IPP Proforma'!$C$19/12)*'IPP Proforma'!$H$36)-((-PMT('IPP Proforma'!$H$32, 'IPP Proforma'!$H$34,'IPP Proforma'!$C$18*$C24)*'IPP Proforma'!$C$19/12)/(1+$E24)^'IPP Proforma'!$H$34+(PV($E24,'IPP Proforma'!$H$34,(-PMT('IPP Proforma'!$H$32, 'IPP Proforma'!$H$34,'IPP Proforma'!$C$18*$C24)*'IPP Proforma'!$C$19/12)*'IPP Proforma'!$H$36)*'IPP Proforma'!$H$18))+(NPV($E24,IPMT('IPP Proforma'!$H$32,OFFSET('IPP Proforma'!$D$42,0,0,1,'IPP Proforma'!$H$34),'IPP Proforma'!$H$34,('IPP Proforma'!$C$18+-PMT('IPP Proforma'!$H$32, 'IPP Proforma'!$H$34,'IPP Proforma'!$C$18*$C24)*'IPP Proforma'!$C$19/12)*$C24))-NPV($E24,OFFSET('IPP Proforma'!$D$93,MATCH('IPP Proforma'!$H$25,'IPP Proforma'!$C$94:$C$101,0),0,1,40)*'IPP Proforma'!$C$18))*'IPP Proforma'!$H$18)/(1-'IPP Proforma'!$H$18)/NPV((1+$E24)/(1+'IPP Proforma'!$H$37)-1,'IPP Proforma'!$D$44:$AQ$44) -> 294.24427 | H24: =-PV((1+$E24)/(1+'IPP Proforma'!$C$30)-1,'IPP Proforma'!$C$27,'IPP Proforma'!$C$18*'IPP Proforma'!$C$36)/NPV((1+$E24)/(1+'IPP Proforma'!$H$37)-1,'IPP Proforma'!$D$44:$AQ$44)+NPV($E24,'IPP Proforma'!$C$18*'IPP Proforma'!$C$35*(1-(OFFSET('IPP Proforma'!$D$42,0,0,1,'IPP Proforma'!$C$27)-1)/'IPP Proforma'!$C$27))/NPV((1+$E24)/(1+'IPP Proforma'!$H$37)-1,'IPP Proforma'!$D$44:$AQ$44) -> 15.05727091 | I24: =(PV($E24,1,'IPP Proforma'!$H$22*'IPP Proforma'!$H$23*'IPP Proforma'!$C$18)/(1-'IPP Proforma'!$H$18)+'IPP Proforma'!$H$24*'IPP Proforma'!$H$23*'IPP Proforma'!$H$22*NPV($E24,OFFSET('IPP Proforma'!$D$93,MATCH('IPP Proforma'!$H$25,'IPP Proforma'!$C$94:$C$101,0),0,1,40)*'IPP Proforma'!$C$18)*'IPP Proforma'!$H$16/(1-'IPP Proforma'!$H$18))/NPV((1+$E24)/(1+'IPP Proforma'!$H$37)-1,'IPP Proforma'!$D$44:$AQ$44) -> -115.8596217 | J24: =-PV((1+$E24)/(1+'IPP Proforma'!$C$30)-1,'IPP Proforma'!$C$27,'IPP Proforma'!$C$31*'IPP Proforma'!$C$16*1000)/NPV((1+$E24)/(1+'IPP Proforma'!$H$37)-1,'IPP Proforma'!$D$44:$AQ$44) -> 25.71853929 | K24: =-NPV((1+$E24)-1,'IPP Proforma'!$D$45:$AQ$45)/NPV((1+$E24)/(1+'IPP Proforma'!$H$37)-1,'IPP Proforma'!$D$44:$AQ$44) -> -42.21220712 | L24: =PV((1+$E24)/(1+'IPP Proforma'!$H$21)/(1-'IPP Proforma'!$C$26)-1,'IPP Proforma'!$H$20,'IPP Proforma'!$H$19*'IPP Proforma'!$C$16*8760*'IPP Proforma'!$C$24/(1-'IPP Proforma'!$C$26))/(1-'IPP Proforma'!$H$18)/NPV((1+$E24)/(1+'IPP Proforma'!$H$37)-1,'IPP Proforma'!$D$44:$AQ$44) -> 0 | M24: 176.9482514 | N24: =-IF($C24=0,-99.99,IF($C24=1,99.99,AVERAGE((($M24*(1+'IPP Proforma'!$H$37)^OFFSET('IPP Proforma'!$D$42,0,0,1,'IPP Proforma'!$H$34))*(8760*'IPP Proforma'!$C$16*'IPP Proforma'!$C$24*(1-'IPP Proforma'!$C$26)^(OFFSET('IPP Proforma'!$D$42,0,0,1,'IPP Proforma'!$H$34)-1))+OFFSET('IPP Proforma'!$D$45,0,0,1,'IPP Proforma'!$H$34)-'IPP Proforma'!$C$16*'IPP Proforma'!$C$31*(1+'IPP Proforma'!$C$30)^OFFSET('IPP Proforma'!$D$42,0,0,1,'IPP Proforma'!$H$34)*1000-'IPP Proforma'!$C$16*'IPP Proforma'!$C$17*'IPP Proforma'!$C$36*(1+'IPP Proforma'!$C$30)^OFFSET('IPP Proforma'!$D$42,0,0,1,'IPP Proforma'!$H$34)*1000-'IPP Proforma'!$C$16*'IPP Proforma'!$C$17*'IPP Proforma'!$C$35*(1-(OFFSET('IPP Proforma'!$D$42,0,0,1,'IPP Proforma'!$H$34)-1)/'IPP Proforma'!$C$27)*1000)/PMT('IPP Proforma'!$H$32,'IPP Proforma'!$H$34,$C24*('IPP Proforma'!$C$18+-PMT('IPP Proforma'!$H$32, 'IPP Proforma'!$H$34,'IPP Proforma'!$C$18*$C24)*'IPP Proforma'!$C$19/12))))) -> 1.423418419
C25: 0.45 | D25: 0.55 | E25: =($C$4-'IPP Proforma'!$H$32*$C25*(1-'IPP Proforma'!$H$18))/(1-$C25) -> 0.1199772727 | G25: =(('IPP Proforma'!$C$18+-PMT('IPP Proforma'!$H$32, 'IPP Proforma'!$H$34,'IPP Proforma'!$C$18*$C25)*'IPP Proforma'!$C$19/12)*(1-$C25)+PV($E25,'IPP Proforma'!$H$34,PMT('IPP Proforma'!$H$32,'IPP Proforma'!$H$34,('IPP Proforma'!$C$18+-PMT('IPP Proforma'!$H$32, 'IPP Proforma'!$H$34,'IPP Proforma'!$C$18*$C25)*'IPP Proforma'!$C$19/12)*$C25)+(-PMT('IPP Proforma'!$H$32, 'IPP Proforma'!$H$34,'IPP Proforma'!$C$18*$C25)*'IPP Proforma'!$C$19/12)*'IPP Proforma'!$H$36)-((-PMT('IPP Proforma'!$H$32, 'IPP Proforma'!$H$34,'IPP Proforma'!$C$18*$C25)*'IPP Proforma'!$C$19/12)/(1+$E25)^'IPP Proforma'!$H$34+(PV($E25,'IPP Proforma'!$H$34,(-PMT('IPP Proforma'!$H$32, 'IPP Proforma'!$H$34,'IPP Proforma'!$C$18*$C25)*'IPP Proforma'!$C$19/12)*'IPP Proforma'!$H$36)*'IPP Proforma'!$H$18))+(NPV($E25,IPMT('IPP Proforma'!$H$32,OFFSET('IPP Proforma'!$D$42,0,0,1,'IPP Proforma'!$H$34),'IPP Proforma'!$H$34,('IPP Proforma'!$C$18+-PMT('IPP Proforma'!$H$32, 'IPP Proforma'!$H$34,'IPP Proforma'!$C$18*$C25)*'IPP Proforma'!$C$19/12)*$C25))-NPV($E25,OFFSET('IPP Proforma'!$D$93,MATCH('IPP Proforma'!$H$25,'IPP Proforma'!$C$94:$C$101,0),0,1,40)*'IPP Proforma'!$C$18))*'IPP Proforma'!$H$18)/(1-'IPP Proforma'!$H$18)/NPV((1+$E25)/(1+'IPP Proforma'!$H$37)-1,'IPP Proforma'!$D$44:$AQ$44) -> 293.7386639 | H25: =-PV((1+$E25)/(1+'IPP Proforma'!$C$30)-1,'IPP Proforma'!$C$27,'IPP Proforma'!$C$18*'IPP Proforma'!$C$36)/NPV((1+$E25)/(1+'IPP Proforma'!$H$37)-1,'IPP Proforma'!$D$44:$AQ$44)+NPV($E25,'IPP Proforma'!$C$18*'IPP Proforma'!$C$35*(1-(OFFSET('IPP Proforma'!$D$42,0,0,1,'IPP Proforma'!$C$27)-1)/'IPP Proforma'!$C$27))/NPV((1+$E25)/(1+'IPP Proforma'!$H$37)-1,'IPP Proforma'!$D$44:$AQ$44) -> 15.04477761 | I25: =(PV($E25,1,'IPP Proforma'!$H$22*'IPP Proforma'!$H$23*'IPP Proforma'!$C$18)/(1-'IPP Proforma'!$H$18)+'IPP Proforma'!$H$24*'IPP Proforma'!$H$23*'IPP Proforma'!$H$22*NPV($E25,OFFSET('IPP Proforma'!$D$93,MATCH('IPP Proforma'!$H$25,'IPP Proforma'!$C$94:$C$101,0),0,1,40)*'IPP Proforma'!$C$18)*'IPP Proforma'!$H$16/(1-'IPP Proforma'!$H$18))/NPV((1+$E25)/(1+'IPP Proforma'!$H$37)-1,'IPP Proforma'!$D$44:$AQ$44) -> -116.7497917 | J25: =-PV((1+$E25)/(1+'IPP Proforma'!$C$30)-1,'IPP Proforma'!$C$27,'IPP Proforma'!$C$31*'IPP Proforma'!$C$16*1000)/NPV((1+$E25)/(1+'IPP Proforma'!$H$37)-1,'IPP Proforma'!$D$44:$AQ$44) -> 25.69720013 | K25: =-NPV((1+$E25)-1,'IPP Proforma'!$D$45:$AQ$45)/NPV((1+$E25)/(1+'IPP Proforma'!$H$37)-1,'IPP Proforma'!$D$44:$AQ$44) -> -42.42951895 | L25: =PV((1+$E25)/(1+'IPP Proforma'!$H$21)/(1-'IPP Proforma'!$C$26)-1,'IPP Proforma'!$H$20,'IPP Proforma'!$H$19*'IPP Proforma'!$C$16*8760*'IPP Proforma'!$C$24/(1-'IPP Proforma'!$C$26))/(1-'IPP Proforma'!$H$18)/NPV((1+$E25)/(1+'IPP Proforma'!$H$37)-1,'IPP Proforma'!$D$44:$AQ$44) -> 0 | M25: 175.301331 | N25: =-IF($C25=0,-99.99,IF($C25=1,99.99,AVERAGE((($M25*(1+'IPP Proforma'!$H$37)^OFFSET('IPP Proforma'!$D$42,0,0,1,'IPP Proforma'!$H$34))*(8760*'IPP Proforma'!$C$16*'IPP Proforma'!$C$24*(1-'IPP Proforma'!$C$26)^(OFFSET('IPP Proforma'!$D$42,0,0,1,'IPP Proforma'!$H$34)-1))+OFFSET('IPP Proforma'!$D$45,0,0,1,'IPP Proforma'!$H$34)-'IPP Proforma'!$C$16*'IPP Proforma'!$C$31*(1+'IPP Proforma'!$C$30)^OFFSET('IPP Proforma'!$D$42,0,0,1,'IPP Proforma'!$H$34)*1000-'IPP Proforma'!$C$16*'IPP Proforma'!$C$17*'IPP Proforma'!$C$36*(1+'IPP Proforma'!$C$30)^OFFSET('IPP Proforma'!$D$42,0,0,1,'IPP Proforma'!$H$34)*1000-'IPP Proforma'!$C$16*'IPP Proforma'!$C$17*'IPP Proforma'!$C$35*(1-(OFFSET('IPP Proforma'!$D$42,0,0,1,'IPP Proforma'!$H$34)-1)/'IPP Proforma'!$C$27)*1000)/PMT('IPP Proforma'!$H$32,'IPP Proforma'!$H$34,$C25*('IPP Proforma'!$C$18+-PMT('IPP Proforma'!$H$32, 'IPP Proforma'!$H$34,'IPP Proforma'!$C$18*$C25)*'IPP Proforma'!$C$19/12))))) -> 1.377309052
C26: 0.46 | D26: 0.54 | E26: =($C$4-'IPP Proforma'!$H$32*$C26*(1-'IPP Proforma'!$H$18))/(1-$C26) -> 0.1214166667 | G26: =(('IPP Proforma'!$C$18+-PMT('IPP Proforma'!$H$32, 'IPP Proforma'!$H$34,'IPP Proforma'!$C$18*$C26)*'IPP Proforma'!$C$19/12)*(1-$C26)+PV($E26,'IPP Proforma'!$H$34,PMT('IPP Proforma'!$H$32,'IPP Proforma'!$H$34,('IPP Proforma'!$C$18+-PMT('IPP Proforma'!$H$32, 'IPP Proforma'!$H$34,'IPP Proforma'!$C$18*$C26)*'IPP Proforma'!$C$19/12)*$C26)+(-PMT('IPP Proforma'!$H$32, 'IPP Proforma'!$H$34,'IPP Proforma'!$C$18*$C26)*'IPP Proforma'!$C$19/12)*'IPP Proforma'!$H$36)-((-PMT('IPP Proforma'!$H$32, 'IPP Proforma'!$H$34,'IPP Proforma'!$C$18*$C26)*'IPP Proforma'!$C$19/12)/(1+$E26)^'IPP Proforma'!$H$34+(PV($E26,'IPP Proforma'!$H$34,(-PMT('IPP Proforma'!$H$32, 'IPP Proforma'!$H$34,'IPP Proforma'!$C$18*$C26)*'IPP Proforma'!$C$19/12)*'IPP Proforma'!$H$36)*'IPP Proforma'!$H$18))+(NPV($E26,IPMT('IPP Proforma'!$H$32,OFFSET('IPP Proforma'!$D$42,0,0,1,'IPP Proforma'!$H$34),'IPP Proforma'!$H$34,('IPP Proforma'!$C$18+-PMT('IPP Proforma'!$H$32, 'IPP Proforma'!$H$34,'IPP Proforma'!$C$18*$C26)*'IPP Proforma'!$C$19/12)*$C26))-NPV($E26,OFFSET('IPP Proforma'!$D$93,MATCH('IPP Proforma'!$H$25,'IPP Proforma'!$C$94:$C$101,0),0,1,40)*'IPP Proforma'!$C$18))*'IPP Proforma'!$H$18)/(1-'IPP Proforma'!$H$18)/NPV((1+$E26)/(1+'IPP Proforma'!$H$37)-1,'IPP Proforma'!$D$44:$AQ$44) -> 293.2132076 | H26: =-PV((1+$E26)/(1+'IPP Proforma'!$C$30)-1,'IPP Proforma'!$C$27,'IPP Proforma'!$C$18*'IPP Proforma'!$C$36)/NPV((1+$E26)/(1+'IPP Proforma'!$H$37)-1,'IPP Proforma'!$D$44:$AQ$44)+NPV($E26,'IPP Proforma'!$C$18*'IPP Proforma'!$C$35*(1-(OFFSET('IPP Proforma'!$D$42,0,0,1,'IPP Proforma'!$C$27)-1)/'IPP Proforma'!$C$27))/NPV((1+$E26)/(1+'IPP Proforma'!$H$37)-1,'IPP Proforma'!$D$44:$AQ$44) -> 15.03190963 | I26: =(PV($E26,1,'IPP Proforma'!$H$22*'IPP Proforma'!$H$23*'IPP Proforma'!$C$18)/(1-'IPP Proforma'!$H$18)+'IPP Proforma'!$H$24*'IPP Proforma'!$H$23*'IPP Proforma'!$H$22*NPV($E26,OFFSET('IPP Proforma'!$D$93,MATCH('IPP Proforma'!$H$25,'IPP Proforma'!$C$94:$C$101,0),0,1,40)*'IPP Proforma'!$C$18)*'IPP Proforma'!$H$16/(1-'IPP Proforma'!$H$18))/NPV((1+$E26)/(1+'IPP Proforma'!$H$37)-1,'IPP Proforma'!$D$44:$AQ$44) -> -117.67393 | J26: =-PV((1+$E26)/(1+'IPP Proforma'!$C$30)-1,'IPP Proforma'!$C$27,'IPP Proforma'!$C$31*'IPP Proforma'!$C$16*1000)/NPV((1+$E26)/(1+'IPP Proforma'!$H$37)-1,'IPP Proforma'!$D$44:$AQ$44) -> 25.67522101 | K26: =-NPV((1+$E26)-1,'IPP Proforma'!$D$45:$AQ$45)/NPV((1+$E26)/(1+'IPP Proforma'!$H$37)-1,'IPP Proforma'!$D$44:$AQ$44) -> -42.65413697 | L26: =PV((1+$E26)/(1+'IPP Proforma'!$H$21)/(1-'IPP Proforma'!$C$26)-1,'IPP Proforma'!$H$20,'IPP Proforma'!$H$19*'IPP Proforma'!$C$16*8760*'IPP Proforma'!$C$24/(1-'IPP Proforma'!$C$26))/(1-'IPP Proforma'!$H$18)/NPV((1+$E26)/(1+'IPP Proforma'!$H$37)-1,'IPP Proforma'!$D$44:$AQ$44) -> 0 | M26: 173.5922713 | N26: =-IF($C26=0,-99.99,IF($C26=1,99.99,AVERAGE((($M26*(1+'IPP Proforma'!$H$37)^OFFSET('IPP Proforma'!$D$42,0,0,1,'IPP Proforma'!$H$34))*(8760*'IPP Proforma'!$C$16*'IPP Proforma'!$C$24*(1-'IPP Proforma'!$C$26)^(OFFSET('IPP Proforma'!$D$42,0,0,1,'IPP Proforma'!$H$34)-1))+OFFSET('IPP Proforma'!$D$45,0,0,1,'IPP Proforma'!$H$34)-'IPP Proforma'!$C$16*'IPP Proforma'!$C$31*(1+'IPP Proforma'!$C$30)^OFFSET('IPP Proforma'!$D$42,0,0,1,'IPP Proforma'!$H$34)*1000-'IPP Proforma'!$C$16*'IPP Proforma'!$C$17*'IPP Proforma'!$C$36*(1+'IPP Proforma'!$C$30)^OFFSET('IPP Proforma'!$D$42,0,0,1,'IPP Proforma'!$H$34)*1000-'IPP Proforma'!$C$16*'IPP Proforma'!$C$17*'IPP Proforma'!$C$35*(1-(OFFSET('IPP Proforma'!$D$42,0,0,1,'IPP Proforma'!$H$34)-1)/'IPP Proforma'!$C$27)*1000)/PMT('IPP Proforma'!$H$32,'IPP Proforma'!$H$34,$C26*('IPP Proforma'!$C$18+-PMT('IPP Proforma'!$H$32, 'IPP Proforma'!$H$34,'IPP Proforma'!$C$18*$C26)*'IPP Proforma'!$C$19/12))))) -> 1.332670059
C27: 0.47 | D27: 0.53 | E27: =($C$4-'IPP Proforma'!$H$32*$C27*(1-'IPP Proforma'!$H$18))/(1-$C27) -> 0.1229103774 | G27: =(('IPP Proforma'!$C$18+-PMT('IPP Proforma'!$H$32, 'IPP Proforma'!$H$34,'IPP Proforma'!$C$18*$C27)*'IPP Proforma'!$C$19/12)*(1-$C27)+PV($E27,'IPP Proforma'!$H$34,PMT('IPP Proforma'!$H$32,'IPP Proforma'!$H$34,('IPP Proforma'!$C$18+-PMT('IPP Proforma'!$H$32, 'IPP Proforma'!$H$34,'IPP Proforma'!$C$18*$C27)*'IPP Proforma'!$C$19/12)*$C27)+(-PMT('IPP Proforma'!$H$32, 'IPP Proforma'!$H$34,'IPP Proforma'!$C$18*$C27)*'IPP Proforma'!$C$19/12)*'IPP Proforma'!$H$36)-((-PMT('IPP Proforma'!$H$32, 'IPP Proforma'!$H$34,'IPP Proforma'!$C$18*$C27)*'IPP Proforma'!$C$19/12)/(1+$E27)^'IPP Proforma'!$H$34+(PV($E27,'IPP Proforma'!$H$34,(-PMT('IPP Proforma'!$H$32, 'IPP Proforma'!$H$34,'IPP Proforma'!$C$18*$C27)*'IPP Proforma'!$C$19/12)*'IPP Proforma'!$H$36)*'IPP Proforma'!$H$18))+(NPV($E27,IPMT('IPP Proforma'!$H$32,OFFSET('IPP Proforma'!$D$42,0,0,1,'IPP Proforma'!$H$34),'IPP Proforma'!$H$34,('IPP Proforma'!$C$18+-PMT('IPP Proforma'!$H$32, 'IPP Proforma'!$H$34,'IPP Proforma'!$C$18*$C27)*'IPP Proforma'!$C$19/12)*$C27))-NPV($E27,OFFSET('IPP Proforma'!$D$93,MATCH('IPP Proforma'!$H$25,'IPP Proforma'!$C$94:$C$101,0),0,1,40)*'IPP Proforma'!$C$18))*'IPP Proforma'!$H$18)/(1-'IPP Proforma'!$H$18)/NPV((1+$E27)/(1+'IPP Proforma'!$H$37)-1,'IPP Proforma'!$D$44:$AQ$44) -> 292.6667813 | H27: =-PV((1+$E27)/(1+'IPP Proforma'!$C$30)-1,'IPP Proforma'!$C$27,'IPP Proforma'!$C$18*'IPP Proforma'!$C$36)/NPV((1+$E27)/(1+'IPP Proforma'!$H$37)-1,'IPP Proforma'!$D$44:$AQ$44)+NPV($E27,'IPP Proforma'!$C$18*'IPP Proforma'!$C$35*(1-(OFFSET('IPP Proforma'!$D$42,0,0,1,'IPP Proforma'!$C$27)-1)/'IPP Proforma'!$C$27))/NPV((1+$E27)/(1+'IPP Proforma'!$H$37)-1,'IPP Proforma'!$D$44:$AQ$44) -> 15.01865063 | I27: =(PV($E27,1,'IPP Proforma'!$H$22*'IPP Proforma'!$H$23*'IPP Proforma'!$C$18)/(1-'IPP Proforma'!$H$18)+'IPP Proforma'!$H$24*'IPP Proforma'!$H$23*'IPP Proforma'!$H$22*NPV($E27,OFFSET('IPP Proforma'!$D$93,MATCH('IPP Proforma'!$H$25,'IPP Proforma'!$C$94:$C$101,0),0,1,40)*'IPP Proforma'!$C$18)*'IPP Proforma'!$H$16/(1-'IPP Proforma'!$H$18))/NPV((1+$E27)/(1+'IPP Proforma'!$H$37)-1,'IPP Proforma'!$D$44:$AQ$44) -> -118.6339727 | J27: =-PV((1+$E27)/(1+'IPP Proforma'!$C$30)-1,'IPP Proforma'!$C$27,'IPP Proforma'!$C$31*'IPP Proforma'!$C$16*1000)/NPV((1+$E27)/(1+'IPP Proforma'!$H$37)-1,'IPP Proforma'!$D$44:$AQ$44) -> 25.65257399 | K27: =-NPV((1+$E27)-1,'IPP Proforma'!$D$45:$AQ$45)/NPV((1+$E27)/(1+'IPP Proforma'!$H$37)-1,'IPP Proforma'!$D$44:$AQ$44) -> -42.88642337 | L27: =PV((1+$E27)/(1+'IPP Proforma'!$H$21)/(1-'IPP Proforma'!$C$26)-1,'IPP Proforma'!$H$20,'IPP Proforma'!$H$19*'IPP Proforma'!$C$16*8760*'IPP Proforma'!$C$24/(1-'IPP Proforma'!$C$26))/(1-'IPP Proforma'!$H$18)/NPV((1+$E27)/(1+'IPP Proforma'!$H$37)-1,'IPP Proforma'!$D$44:$AQ$44) -> 0 | M27: 171.8176099 | N27: =-IF($C27=0,-99.99,IF($C27=1,99.99,AVERAGE((($M27*(1+'IPP Proforma'!$H$37)^OFFSET('IPP Proforma'!$D$42,0,0,1,'IPP Proforma'!$H$34))*(8760*'IPP Proforma'!$C$16*'IPP Proforma'!$C$24*(1-'IPP Proforma'!$C$26)^(OFFSET('IPP Proforma'!$D$42,0,0,1,'IPP Proforma'!$H$34)-1))+OFFSET('IPP Proforma'!$D$45,0,0,1,'IPP Proforma'!$H$34)-'IPP Proforma'!$C$16*'IPP Proforma'!$C$31*(1+'IPP Proforma'!$C$30)^OFFSET('IPP Proforma'!$D$42,0,0,1,'IPP Proforma'!$H$34)*1000-'IPP Proforma'!$C$16*'IPP Proforma'!$C$17*'IPP Proforma'!$C$36*(1+'IPP Proforma'!$C$30)^OFFSET('IPP Proforma'!$D$42,0,0,1,'IPP Proforma'!$H$34)*1000-'IPP Proforma'!$C$16*'IPP Proforma'!$C$17*'IPP Proforma'!$C$35*(1-(OFFSET('IPP Proforma'!$D$42,0,0,1,'IPP Proforma'!$H$34)-1)/'IPP Proforma'!$C$27)*1000)/PMT('IPP Proforma'!$H$32,'IPP Proforma'!$H$34,$C27*('IPP Proforma'!$C$18+-PMT('IPP Proforma'!$H$32, 'IPP Proforma'!$H$34,'IPP Proforma'!$C$18*$C27)*'IPP Proforma'!$C$19/12))))) -> 1.289378442
C28: 0.48 | D28: 0.52 | E28: =($C$4-'IPP Proforma'!$H$32*$C28*(1-'IPP Proforma'!$H$18))/(1-$C28) -> 0.1244615385 | G28: =(('IPP Proforma'!$C$18+-PMT('IPP Proforma'!$H$32, 'IPP Proforma'!$H$34,'IPP Proforma'!$C$18*$C28)*'IPP Proforma'!$C$19/12)*(1-$C28)+PV($E28,'IPP Proforma'!$H$34,PMT('IPP Proforma'!$H$32,'IPP Proforma'!$H$34,('IPP Proforma'!$C$18+-PMT('IPP Proforma'!$H$32, 'IPP Proforma'!$H$34,'IPP Proforma'!$C$18*$C28)*'IPP Proforma'!$C$19/12)*$C28)+(-PMT('IPP Proforma'!$H$32, 'IPP Proforma'!$H$34,'IPP Proforma'!$C$18*$C28)*'IPP Proforma'!$C$19/12)*'IPP Proforma'!$H$36)-((-PMT('IPP Proforma'!$H$32, 'IPP Proforma'!$H$34,'IPP Proforma'!$C$18*$C28)*'IPP Proforma'!$C$19/12)/(1+$E28)^'IPP Proforma'!$H$34+(PV($E28,'IPP Proforma'!$H$34,(-PMT('IPP Proforma'!$H$32, 'IPP Proforma'!$H$34,'IPP Proforma'!$C$18*$C28)*'IPP Proforma'!$C$19/12)*'IPP Proforma'!$H$36)*'IPP Proforma'!$H$18))+(NPV($E28,IPMT('IPP Proforma'!$H$32,OFFSET('IPP Proforma'!$D$42,0,0,1,'IPP Proforma'!$H$34),'IPP Proforma'!$H$34,('IPP Proforma'!$C$18+-PMT('IPP Proforma'!$H$32, 'IPP Proforma'!$H$34,'IPP Proforma'!$C$18*$C28)*'IPP Proforma'!$C$19/12)*$C28))-NPV($E28,OFFSET('IPP Proforma'!$D$93,MATCH('IPP Proforma'!$H$25,'IPP Proforma'!$C$94:$C$101,0),0,1,40)*'IPP Proforma'!$C$18))*'IPP Proforma'!$H$18)/(1-'IPP Proforma'!$H$18)/NPV((1+$E28)/(1+'IPP Proforma'!$H$37)-1,'IPP Proforma'!$D$44:$AQ$44) -> 292.0981834 | H28: =-PV((1+$E28)/(1+'IPP Proforma'!$C$30)-1,'IPP Proforma'!$C$27,'IPP Proforma'!$C$18*'IPP Proforma'!$C$36)/NPV((1+$E28)/(1+'IPP Proforma'!$H$37)-1,'IPP Proforma'!$D$44:$AQ$44)+NPV($E28,'IPP Proforma'!$C$18*'IPP Proforma'!$C$35*(1-(OFFSET('IPP Proforma'!$D$42,0,0,1,'IPP Proforma'!$C$27)-1)/'IPP Proforma'!$C$27))/NPV((1+$E28)/(1+'IPP Proforma'!$H$37)-1,'IPP Proforma'!$D$44:$AQ$44) -> 15.0049833 | I28: =(PV($E28,1,'IPP Proforma'!$H$22*'IPP Proforma'!$H$23*'IPP Proforma'!$C$18)/(1-'IPP Proforma'!$H$18)+'IPP Proforma'!$H$24*'IPP Proforma'!$H$23*'IPP Proforma'!$H$22*NPV($E28,OFFSET('IPP Proforma'!$D$93,MATCH('IPP Proforma'!$H$25,'IPP Proforma'!$C$94:$C$101,0),0,1,40)*'IPP Proforma'!$C$18)*'IPP Proforma'!$H$16/(1-'IPP Proforma'!$H$18))/NPV((1+$E28)/(1+'IPP Proforma'!$H$37)-1,'IPP Proforma'!$D$44:$AQ$44) -> -119.6320026 | J28: =-PV((1+$E28)/(1+'IPP Proforma'!$C$30)-1,'IPP Proforma'!$C$27,'IPP Proforma'!$C$31*'IPP Proforma'!$C$16*1000)/NPV((1+$E28)/(1+'IPP Proforma'!$H$37)-1,'IPP Proforma'!$D$44:$AQ$44) -> 25.62922955 | K28: =-NPV((1+$E28)-1,'IPP Proforma'!$D$45:$AQ$45)/NPV((1+$E28)/(1+'IPP Proforma'!$H$37)-1,'IPP Proforma'!$D$44:$AQ$44) -> -43.12676378 | L28: =PV((1+$E28)/(1+'IPP Proforma'!$H$21)/(1-'IPP Proforma'!$C$26)-1,'IPP Proforma'!$H$20,'IPP Proforma'!$H$19*'IPP Proforma'!$C$16*8760*'IPP Proforma'!$C$24/(1-'IPP Proforma'!$C$26))/(1-'IPP Proforma'!$H$18)/NPV((1+$E28)/(1+'IPP Proforma'!$H$37)-1,'IPP Proforma'!$D$44:$AQ$44) -> 0 | M28: 169.9736299 | N28: =-IF($C28=0,-99.99,IF($C28=1,99.99,AVERAGE((($M28*(1+'IPP Proforma'!$H$37)^OFFSET('IPP Proforma'!$D$42,0,0,1,'IPP Proforma'!$H$34))*(8760*'IPP Proforma'!$C$16*'IPP Proforma'!$C$24*(1-'IPP Proforma'!$C$26)^(OFFSET('IPP Proforma'!$D$42,0,0,1,'IPP Proforma'!$H$34)-1))+OFFSET('IPP Proforma'!$D$45,0,0,1,'IPP Proforma'!$H$34)-'IPP Proforma'!$C$16*'IPP Proforma'!$C$31*(1+'IPP Proforma'!$C$30)^OFFSET('IPP Proforma'!$D$42,0,0,1,'IPP Proforma'!$H$34)*1000-'IPP Proforma'!$C$16*'IPP Proforma'!$C$17*'IPP Proforma'!$C$36*(1+'IPP Proforma'!$C$30)^OFFSET('IPP Proforma'!$D$42,0,0,1,'IPP Proforma'!$H$34)*1000-'IPP Proforma'!$C$16*'IPP Proforma'!$C$17*'IPP Proforma'!$C$35*(1-(OFFSET('IPP Proforma'!$D$42,0,0,1,'IPP Proforma'!$H$34)-1)/'IPP Proforma'!$C$27)*1000)/PMT('IPP Proforma'!$H$32,'IPP Proforma'!$H$34,$C28*('IPP Proforma'!$C$18+-PMT('IPP Proforma'!$H$32, 'IPP Proforma'!$H$34,'IPP Proforma'!$C$18*$C28)*'IPP Proforma'!$C$19/12))))) -> 1.247319357
C29: 0.49 | D29: 0.51 | E29: =($C$4-'IPP Proforma'!$H$32*$C29*(1-'IPP Proforma'!$H$18))/(1-$C29) -> 0.1260735294 | G29: =(('IPP Proforma'!$C$18+-PMT('IPP Proforma'!$H$32, 'IPP Proforma'!$H$34,'IPP Proforma'!$C$18*$C29)*'IPP Proforma'!$C$19/12)*(1-$C29)+PV($E29,'IPP Proforma'!$H$34,PMT('IPP Proforma'!$H$32,'IPP Proforma'!$H$34,('IPP Proforma'!$C$18+-PMT('IPP Proforma'!$H$32, 'IPP Proforma'!$H$34,'IPP Proforma'!$C$18*$C29)*'IPP Proforma'!$C$19/12)*$C29)+(-PMT('IPP Proforma'!$H$32, 'IPP Proforma'!$H$34,'IPP Proforma'!$C$18*$C29)*'IPP Proforma'!$C$19/12)*'IPP Proforma'!$H$36)-((-PMT('IPP Proforma'!$H$32, 'IPP Proforma'!$H$34,'IPP Proforma'!$C$18*$C29)*'IPP Proforma'!$C$19/12)/(1+$E29)^'IPP Proforma'!$H$34+(PV($E29,'IPP Proforma'!$H$34,(-PMT('IPP Proforma'!$H$32, 'IPP Proforma'!$H$34,'IPP Proforma'!$C$18*$C29)*'IPP Proforma'!$C$19/12)*'IPP Proforma'!$H$36)*'IPP Proforma'!$H$18))+(NPV($E29,IPMT('IPP Proforma'!$H$32,OFFSET('IPP Proforma'!$D$42,0,0,1,'IPP Proforma'!$H$34),'IPP Proforma'!$H$34,('IPP Proforma'!$C$18+-PMT('IPP Proforma'!$H$32, 'IPP Proforma'!$H$34,'IPP Proforma'!$C$18*$C29)*'IPP Proforma'!$C$19/12)*$C29))-NPV($E29,OFFSET('IPP Proforma'!$D$93,MATCH('IPP Proforma'!$H$25,'IPP Proforma'!$C$94:$C$101,0),0,1,40)*'IPP Proforma'!$C$18))*'IPP Proforma'!$H$18)/(1-'IPP Proforma'!$H$18)/NPV((1+$E29)/(1+'IPP Proforma'!$H$37)-1,'IPP Proforma'!$D$44:$AQ$44) -> 291.5061239 | H29: =-PV((1+$E29)/(1+'IPP Proforma'!$C$30)-1,'IPP Proforma'!$C$27,'IPP Proforma'!$C$18*'IPP Proforma'!$C$36)/NPV((1+$E29)/(1+'IPP Proforma'!$H$37)-1,'IPP Proforma'!$D$44:$AQ$44)+NPV($E29,'IPP Proforma'!$C$18*'IPP Proforma'!$C$35*(1-(OFFSET('IPP Proforma'!$D$42,0,0,1,'IPP Proforma'!$C$27)-1)/'IPP Proforma'!$C$27))/NPV((1+$E29)/(1+'IPP Proforma'!$H$37)-1,'IPP Proforma'!$D$44:$AQ$44) -> 14.99088941 | I29: =(PV($E29,1,'IPP Proforma'!$H$22*'IPP Proforma'!$H$23*'IPP Proforma'!$C$18)/(1-'IPP Proforma'!$H$18)+'IPP Proforma'!$H$24*'IPP Proforma'!$H$23*'IPP Proforma'!$H$22*NPV($E29,OFFSET('IPP Proforma'!$D$93,MATCH('IPP Proforma'!$H$25,'IPP Proforma'!$C$94:$C$101,0),0,1,40)*'IPP Proforma'!$C$18)*'IPP Proforma'!$H$16/(1-'IPP Proforma'!$H$18))/NPV((1+$E29)/(1+'IPP Proforma'!$H$37)-1,'IPP Proforma'!$D$44:$AQ$44) -> -120.6702637 | J29: =-PV((1+$E29)/(1+'IPP Proforma'!$C$30)-1,'IPP Proforma'!$C$27,'IPP Proforma'!$C$31*'IPP Proforma'!$C$16*1000)/NPV((1+$E29)/(1+'IPP Proforma'!$H$37)-1,'IPP Proforma'!$D$44:$AQ$44) -> 25.60515651 | K29: =-NPV((1+$E29)-1,'IPP Proforma'!$D$45:$AQ$45)/NPV((1+$E29)/(1+'IPP Proforma'!$H$37)-1,'IPP Proforma'!$D$44:$AQ$44) -> -43.3755691 | L29: =PV((1+$E29)/(1+'IPP Proforma'!$H$21)/(1-'IPP Proforma'!$C$26)-1,'IPP Proforma'!$H$20,'IPP Proforma'!$H$19*'IPP Proforma'!$C$16*8760*'IPP Proforma'!$C$24/(1-'IPP Proforma'!$C$26))/(1-'IPP Proforma'!$H$18)/NPV((1+$E29)/(1+'IPP Proforma'!$H$37)-1,'IPP Proforma'!$D$44:$AQ$44) -> 0 | M29: 168.0563371 | N29: =-IF($C29=0,-99.99,IF($C29=1,99.99,AVERAGE((($M29*(1+'IPP Proforma'!$H$37)^OFFSET('IPP Proforma'!$D$42,0,0,1,'IPP Proforma'!$H$34))*(8760*'IPP Proforma'!$C$16*'IPP Proforma'!$C$24*(1-'IPP Proforma'!$C$26)^(OFFSET('IPP Proforma'!$D$42,0,0,1,'IPP Proforma'!$H$34)-1))+OFFSET('IPP Proforma'!$D$45,0,0,1,'IPP Proforma'!$H$34)-'IPP Proforma'!$C$16*'IPP Proforma'!$C$31*(1+'IPP Proforma'!$C$30)^OFFSET('IPP Proforma'!$D$42,0,0,1,'IPP Proforma'!$H$34)*1000-'IPP Proforma'!$C$16*'IPP Proforma'!$C$17*'IPP Proforma'!$C$36*(1+'IPP Proforma'!$C$30)^OFFSET('IPP Proforma'!$D$42,0,0,1,'IPP Proforma'!$H$34)*1000-'IPP Proforma'!$C$16*'IPP Proforma'!$C$17*'IPP Proforma'!$C$35*(1-(OFFSET('IPP Proforma'!$D$42,0,0,1,'IPP Proforma'!$H$34)-1)/'IPP Proforma'!$C$27)*1000)/PMT('IPP Proforma'!$H$32,'IPP Proforma'!$H$34,$C29*('IPP Proforma'!$C$18+-PMT('IPP Proforma'!$H$32, 'IPP Proforma'!$H$34,'IPP Proforma'!$C$18*$C29)*'IPP Proforma'!$C$19/12))))) -> 1.206385098
C30: 0.5 | D30: 0.5 | E30: =($C$4-'IPP Proforma'!$H$32*$C30*(1-'IPP Proforma'!$H$18))/(1-$C30) -> 0.12775 | G30: =(('IPP Proforma'!$C$18+-PMT('IPP Proforma'!$H$32, 'IPP Proforma'!$H$34,'IPP Proforma'!$C$18*$C30)*'IPP Proforma'!$C$19/12)*(1-$C30)+PV($E30,'IPP Proforma'!$H$34,PMT('IPP Proforma'!$H$32,'IPP Proforma'!$H$34,('IPP Proforma'!$C$18+-PMT('IPP Proforma'!$H$32, 'IPP Proforma'!$H$34,'IPP Proforma'!$C$18*$C30)*'IPP Proforma'!$C$19/12)*$C30)+(-PMT('IPP Proforma'!$H$32, 'IPP Proforma'!$H$34,'IPP Proforma'!$C$18*$C30)*'IPP Proforma'!$C$19/12)*'IPP Proforma'!$H$36)-((-PMT('IPP Proforma'!$H$32, 'IPP Proforma'!$H$34,'IPP Proforma'!$C$18*$C30)*'IPP Proforma'!$C$19/12)/(1+$E30)^'IPP Proforma'!$H$34+(PV($E30,'IPP Proforma'!$H$34,(-PMT('IPP Proforma'!$H$32, 'IPP Proforma'!$H$34,'IPP Proforma'!$C$18*$C30)*'IPP Proforma'!$C$19/12)*'IPP Proforma'!$H$36)*'IPP Proforma'!$H$18))+(NPV($E30,IPMT('IPP Proforma'!$H$32,OFFSET('IPP Proforma'!$D$42,0,0,1,'IPP Proforma'!$H$34),'IPP Proforma'!$H$34,('IPP Proforma'!$C$18+-PMT('IPP Proforma'!$H$32, 'IPP Proforma'!$H$34,'IPP Proforma'!$C$18*$C30)*'IPP Proforma'!$C$19/12)*$C30))-NPV($E30,OFFSET('IPP Proforma'!$D$93,MATCH('IPP Proforma'!$H$25,'IPP Proforma'!$C$94:$C$101,0),0,1,40)*'IPP Proforma'!$C$18))*'IPP Proforma'!$H$18)/(1-'IPP Proforma'!$H$18)/NPV((1+$E30)/(1+'IPP Proforma'!$H$37)-1,'IPP Proforma'!$D$44:$AQ$44) -> 290.8892161 | H30: =-PV((1+$E30)/(1+'IPP Proforma'!$C$30)-1,'IPP Proforma'!$C$27,'IPP Proforma'!$C$18*'IPP Proforma'!$C$36)/NPV((1+$E30)/(1+'IPP Proforma'!$H$37)-1,'IPP Proforma'!$D$44:$AQ$44)+NPV($E30,'IPP Proforma'!$C$18*'IPP Proforma'!$C$35*(1-(OFFSET('IPP Proforma'!$D$42,0,0,1,'IPP Proforma'!$C$27)-1)/'IPP Proforma'!$C$27))/NPV((1+$E30)/(1+'IPP Proforma'!$H$37)-1,'IPP Proforma'!$D$44:$AQ$44) -> 14.97634966 | I30: =(PV($E30,1,'IPP Proforma'!$H$22*'IPP Proforma'!$H$23*'IPP Proforma'!$C$18)/(1-'IPP Proforma'!$H$18)+'IPP Proforma'!$H$24*'IPP Proforma'!$H$23*'IPP Proforma'!$H$22*NPV($E30,OFFSET('IPP Proforma'!$D$93,MATCH('IPP Proforma'!$H$25,'IPP Proforma'!$C$94:$C$101,0),0,1,40)*'IPP Proforma'!$C$18)*'IPP Proforma'!$H$16/(1-'IPP Proforma'!$H$18))/NPV((1+$E30)/(1+'IPP Proforma'!$H$37)-1,'IPP Proforma'!$D$44:$AQ$44) -> -121.7511761 | J30: =-PV((1+$E30)/(1+'IPP Proforma'!$C$30)-1,'IPP Proforma'!$C$27,'IPP Proforma'!$C$31*'IPP Proforma'!$C$16*1000)/NPV((1+$E30)/(1+'IPP Proforma'!$H$37)-1,'IPP Proforma'!$D$44:$AQ$44) -> 25.58032193 | K30: =-NPV((1+$E30)-1,'IPP Proforma'!$D$45:$AQ$45)/NPV((1+$E30)/(1+'IPP Proforma'!$H$37)-1,'IPP Proforma'!$D$44:$AQ$44) -> -43.63327753 | L30: =PV((1+$E30)/(1+'IPP Proforma'!$H$21)/(1-'IPP Proforma'!$C$26)-1,'IPP Proforma'!$H$20,'IPP Proforma'!$H$19*'IPP Proforma'!$C$16*8760*'IPP Proforma'!$C$24/(1-'IPP Proforma'!$C$26))/(1-'IPP Proforma'!$H$18)/NPV((1+$E30)/(1+'IPP Proforma'!$H$37)-1,'IPP Proforma'!$D$44:$AQ$44) -> 0 | M30: 166.0614341 | N30: =-IF($C30=0,-99.99,IF($C30=1,99.99,AVERAGE((($M30*(1+'IPP Proforma'!$H$37)^OFFSET('IPP Proforma'!$D$42,0,0,1,'IPP Proforma'!$H$34))*(8760*'IPP Proforma'!$C$16*'IPP Proforma'!$C$24*(1-'IPP Proforma'!$C$26)^(OFFSET('IPP Proforma'!$D$42,0,0,1,'IPP Proforma'!$H$34)-1))+OFFSET('IPP Proforma'!$D$45,0,0,1,'IPP Proforma'!$H$34)-'IPP Proforma'!$C$16*'IPP Proforma'!$C$31*(1+'IPP Proforma'!$C$30)^OFFSET('IPP Proforma'!$D$42,0,0,1,'IPP Proforma'!$H$34)*1000-'IPP Proforma'!$C$16*'IPP Proforma'!$C$17*'IPP Proforma'!$C$36*(1+'IPP Proforma'!$C$30)^OFFSET('IPP Proforma'!$D$42,0,0,1,'IPP Proforma'!$H$34)*1000-'IPP Proforma'!$C$16*'IPP Proforma'!$C$17*'IPP Proforma'!$C$35*(1-(OFFSET('IPP Proforma'!$D$42,0,0,1,'IPP Proforma'!$H$34)-1)/'IPP Proforma'!$C$27)*1000)/PMT('IPP Proforma'!$H$32,'IPP Proforma'!$H$34,$C30*('IPP Proforma'!$C$18+-PMT('IPP Proforma'!$H$32, 'IPP Proforma'!$H$34,'IPP Proforma'!$C$18*$C30)*'IPP Proforma'!$C$19/12))))) -> 1.166474176
B32: Third | C32: Debt % | D32: Equity % | E32: Equity Return | G32: Capital | H32: Prop Tax/Ins | I32: ITC | J32: Fixed O&M | K32: Var O&M | L32: PTC | M32: LCOE | N32: DSCR
B33: Iteration | C33: =MAX(IF(NOT(ISERROR(N20:N30)),IF(N20:N30>targetDSCR,C20:C30))) -> 0.44 | D33: =1-C33 -> 0.56 | E33: =($C$4-'IPP Proforma'!$H$32*$C33*(1-'IPP Proforma'!$H$18))/(1-$C33) -> 0.1185892857 | G33: =(('IPP Proforma'!$C$18+-PMT('IPP Proforma'!$H$32, 'IPP Proforma'!$H$34,'IPP Proforma'!$C$18*$C33)*'IPP Proforma'!$C$19/12)*(1-$C33)+PV($E33,'IPP Proforma'!$H$34,PMT('IPP Proforma'!$H$32,'IPP Proforma'!$H$34,('IPP Proforma'!$C$18+-PMT('IPP Proforma'!$H$32, 'IPP Proforma'!$H$34,'IPP Proforma'!$C$18*$C33)*'IPP Proforma'!$C$19/12)*$C33)+(-PMT('IPP Proforma'!$H$32, 'IPP Proforma'!$H$34,'IPP Proforma'!$C$18*$C33)*'IPP Proforma'!$C$19/12)*'IPP Proforma'!$H$36)-((-PMT('IPP Proforma'!$H$32, 'IPP Proforma'!$H$34,'IPP Proforma'!$C$18*$C33)*'IPP Proforma'!$C$19/12)/(1+$E33)^'IPP Proforma'!$H$34+(PV($E33,'IPP Proforma'!$H$34,(-PMT('IPP Proforma'!$H$32, 'IPP Proforma'!$H$34,'IPP Proforma'!$C$18*$C33)*'IPP Proforma'!$C$19/12)*'IPP Proforma'!$H$36)*'IPP Proforma'!$H$18))+(NPV($E33,IPMT('IPP Proforma'!$H$32,OFFSET('IPP Proforma'!$D$42,0,0,1,'IPP Proforma'!$H$34),'IPP Proforma'!$H$34,('IPP Proforma'!$C$18+-PMT('IPP Proforma'!$H$32, 'IPP Proforma'!$H$34,'IPP Proforma'!$C$18*$C33)*'IPP Proforma'!$C$19/12)*$C33))-NPV($E33,OFFSET('IPP Proforma'!$D$93,MATCH('IPP Proforma'!$H$25,'IPP Proforma'!$C$94:$C$101,0),0,1,40)*'IPP Proforma'!$C$18))*'IPP Proforma'!$H$18)/(1-'IPP Proforma'!$H$18)/NPV((1+$E33)/(1+'IPP Proforma'!$H$37)-1,'IPP Proforma'!$D$44:$AQ$44) -> 294.24427 | H33: =-PV((1+$E33)/(1+'IPP Proforma'!$C$30)-1,'IPP Proforma'!$C$27,'IPP Proforma'!$C$18*'IPP Proforma'!$C$36)/NPV((1+$E33)/(1+'IPP Proforma'!$H$37)-1,'IPP Proforma'!$D$44:$AQ$44)+NPV($E33,'IPP Proforma'!$C$18*'IPP Proforma'!$C$35*(1-(OFFSET('IPP Proforma'!$D$42,0,0,1,'IPP Proforma'!$C$27)-1)/'IPP Proforma'!$C$27))/NPV((1+$E33)/(1+'IPP Proforma'!$H$37)-1,'IPP Proforma'!$D$44:$AQ$44) -> 15.05727091 | I33: =(PV($E33,1,'IPP Proforma'!$H$22*'IPP Proforma'!$H$23*'IPP Proforma'!$C$18)/(1-'IPP Proforma'!$H$18)+'IPP Proforma'!$H$24*'IPP Proforma'!$H$23*'IPP Proforma'!$H$22*NPV($E33,OFFSET('IPP Proforma'!$D$93,MATCH('IPP Proforma'!$H$25,'IPP Proforma'!$C$94:$C$101,0),0,1,40)*'IPP Proforma'!$C$18)*'IPP Proforma'!$H$16/(1-'IPP Proforma'!$H$18))/NPV((1+$E33)/(1+'IPP Proforma'!$H$37)-1,'IPP Proforma'!$D$44:$AQ$44) -> -115.8596217 | J33: =-PV((1+$E33)/(1+'IPP Proforma'!$C$30)-1,'IPP Proforma'!$C$27,'IPP Proforma'!$C$31*'IPP Proforma'!$C$16*1000)/NPV((1+$E33)/(1+'IPP Proforma'!$H$37)-1,'IPP Proforma'!$D$44:$AQ$44) -> 25.71853929 | K33: =-NPV((1+$E33)-1,'IPP Proforma'!$D$45:$AQ$45)/NPV((1+$E33)/(1+'IPP Proforma'!$H$37)-1,'IPP Proforma'!$D$44:$AQ$44) -> -42.21220712 | L33: =PV((1+$E33)/(1+'IPP Proforma'!$H$21)/(1-'IPP Proforma'!$C$26)-1,'IPP Proforma'!$H$20,'IPP Proforma'!$H$19*'IPP Proforma'!$C$16*8760*'IPP Proforma'!$C$24/(1-'IPP Proforma'!$C$26))/(1-'IPP Proforma'!$H$18)/NPV((1+$E33)/(1+'IPP Proforma'!$H$37)-1,'IPP Proforma'!$D$44:$AQ$44) -> 0 | M33: =SUM(G33:L33) -> 176.9482514 | N33: =-IF($C33=0,-99.99,IF($C33=1,99.99,AVERAGE((($M33*(1+'IPP Proforma'!$H$37)^OFFSET('IPP Proforma'!$D$42,0,0,1,'IPP Proforma'!$H$34))*(8760*'IPP Proforma'!$C$16*'IPP Proforma'!$C$24*(1-'IPP Proforma'!$C$26)^(OFFSET('IPP Proforma'!$D$42,0,0,1,'IPP Proforma'!$H$34)-1))+OFFSET('IPP Proforma'!$D$45,0,0,1,'IPP Proforma'!$H$34)-'IPP Proforma'!$C$16*'IPP Proforma'!$C$31*(1+'IPP Proforma'!$C$30)^OFFSET('IPP Proforma'!$D$42,0,0,1,'IPP Proforma'!$H$34)*1000-'IPP Proforma'!$C$16*'IPP Proforma'!$C$17*'IPP Proforma'!$C$36*(1+'IPP Proforma'!$C$30)^OFFSET('IPP Proforma'!$D$42,0,0,1,'IPP Proforma'!$H$34)*1000-'IPP Proforma'!$C$16*'IPP Proforma'!$C$17*'IPP Proforma'!$C$35*(1-(OFFSET('IPP Proforma'!$D$42,0,0,1,'IPP Proforma'!$H$34)-1)/'IPP Proforma'!$C$27)*1000)/PMT('IPP Proforma'!$H$32,'IPP Proforma'!$H$34,$C33*('IPP Proforma'!$C$18+-PMT('IPP Proforma'!$H$32, 'IPP Proforma'!$H$34,'IPP Proforma'!$C$18*$C33)*'IPP Proforma'!$C$19/12))))) -> 1.423418419
C34: =C33+0.1% -> 0.441 | D34: 0.559 | E34: =($C$4-'IPP Proforma'!$H$32*$C34*(1-'IPP Proforma'!$H$18))/(1-$C34) -> 0.1187258497 | G34: =(('IPP Proforma'!$C$18+-PMT('IPP Proforma'!$H$32, 'IPP Proforma'!$H$34,'IPP Proforma'!$C$18*$C34)*'IPP Proforma'!$C$19/12)*(1-$C34)+PV($E34,'IPP Proforma'!$H$34,PMT('IPP Proforma'!$H$32,'IPP Proforma'!$H$34,('IPP Proforma'!$C$18+-PMT('IPP Proforma'!$H$32, 'IPP Proforma'!$H$34,'IPP Proforma'!$C$18*$C34)*'IPP Proforma'!$C$19/12)*$C34)+(-PMT('IPP Proforma'!$H$32, 'IPP Proforma'!$H$34,'IPP Proforma'!$C$18*$C34)*'IPP Proforma'!$C$19/12)*'IPP Proforma'!$H$36)-((-PMT('IPP Proforma'!$H$32, 'IPP Proforma'!$H$34,'IPP Proforma'!$C$18*$C34)*'IPP Proforma'!$C$19/12)/(1+$E34)^'IPP Proforma'!$H$34+(PV($E34,'IPP Proforma'!$H$34,(-PMT('IPP Proforma'!$H$32, 'IPP Proforma'!$H$34,'IPP Proforma'!$C$18*$C34)*'IPP Proforma'!$C$19/12)*'IPP Proforma'!$H$36)*'IPP Proforma'!$H$18))+(NPV($E34,IPMT('IPP Proforma'!$H$32,OFFSET('IPP Proforma'!$D$42,0,0,1,'IPP Proforma'!$H$34),'IPP Proforma'!$H$34,('IPP Proforma'!$C$18+-PMT('IPP Proforma'!$H$32, 'IPP Proforma'!$H$34,'IPP Proforma'!$C$18*$C34)*'IPP Proforma'!$C$19/12)*$C34))-NPV($E34,OFFSET('IPP Proforma'!$D$93,MATCH('IPP Proforma'!$H$25,'IPP Proforma'!$C$94:$C$101,0),0,1,40)*'IPP Proforma'!$C$18))*'IPP Proforma'!$H$18)/(1-'IPP Proforma'!$H$18)/NPV((1+$E34)/(1+'IPP Proforma'!$H$37)-1,'IPP Proforma'!$D$44:$AQ$44) -> 294.1945723 | H34: =-PV((1+$E34)/(1+'IPP Proforma'!$C$30)-1,'IPP Proforma'!$C$27,'IPP Proforma'!$C$18*'IPP Proforma'!$C$36)/NPV((1+$E34)/(1+'IPP Proforma'!$H$37)-1,'IPP Proforma'!$D$44:$AQ$44)+NPV($E34,'IPP Proforma'!$C$18*'IPP Proforma'!$C$35*(1-(OFFSET('IPP Proforma'!$D$42,0,0,1,'IPP Proforma'!$C$27)-1)/'IPP Proforma'!$C$27))/NPV((1+$E34)/(1+'IPP Proforma'!$H$37)-1,'IPP Proforma'!$D$44:$AQ$44) -> 15.05603799 | I34: =(PV($E34,1,'IPP Proforma'!$H$22*'IPP Proforma'!$H$23*'IPP Proforma'!$C$18)/(1-'IPP Proforma'!$H$18)+'IPP Proforma'!$H$24*'IPP Proforma'!$H$23*'IPP Proforma'!$H$22*NPV($E34,OFFSET('IPP Proforma'!$D$93,MATCH('IPP Proforma'!$H$25,'IPP Proforma'!$C$94:$C$101,0),0,1,40)*'IPP Proforma'!$C$18)*'IPP Proforma'!$H$16/(1-'IPP Proforma'!$H$18))/NPV((1+$E34)/(1+'IPP Proforma'!$H$37)-1,'IPP Proforma'!$D$44:$AQ$44) -> -115.9471625 | J34: =-PV((1+$E34)/(1+'IPP Proforma'!$C$30)-1,'IPP Proforma'!$C$27,'IPP Proforma'!$C$31*'IPP Proforma'!$C$16*1000)/NPV((1+$E34)/(1+'IPP Proforma'!$H$37)-1,'IPP Proforma'!$D$44:$AQ$44) -> 25.71643341 | K34: =-NPV((1+$E34)-1,'IPP Proforma'!$D$45:$AQ$45)/NPV((1+$E34)/(1+'IPP Proforma'!$H$37)-1,'IPP Proforma'!$D$44:$AQ$44) -> -42.23361939 | L34: =PV((1+$E34)/(1+'IPP Proforma'!$H$21)/(1-'IPP Proforma'!$C$26)-1,'IPP Proforma'!$H$20,'IPP Proforma'!$H$19*'IPP Proforma'!$C$16*8760*'IPP Proforma'!$C$24/(1-'IPP Proforma'!$C$26))/(1-'IPP Proforma'!$H$18)/NPV((1+$E34)/(1+'IPP Proforma'!$H$37)-1,'IPP Proforma'!$D$44:$AQ$44) -> 0 | M34: 176.7862618 | N34: =-IF($C34=0,-99.99,IF($C34=1,99.99,AVERAGE((($M34*(1+'IPP Proforma'!$H$37)^OFFSET('IPP Proforma'!$D$42,0,0,1,'IPP Proforma'!$H$34))*(8760*'IPP Proforma'!$C$16*'IPP Proforma'!$C$24*(1-'IPP Proforma'!$C$26)^(OFFSET('IPP Proforma'!$D$42,0,0,1,'IPP Proforma'!$H$34)-1))+OFFSET('IPP Proforma'!$D$45,0,0,1,'IPP Proforma'!$H$34)-'IPP Proforma'!$C$16*'IPP Proforma'!$C$31*(1+'IPP Proforma'!$C$30)^OFFSET('IPP Proforma'!$D$42,0,0,1,'IPP Proforma'!$H$34)*1000-'IPP Proforma'!$C$16*'IPP Proforma'!$C$17*'IPP Proforma'!$C$36*(1+'IPP Proforma'!$C$30)^OFFSET('IPP Proforma'!$D$42,0,0,1,'IPP Proforma'!$H$34)*1000-'IPP Proforma'!$C$16*'IPP Proforma'!$C$17*'IPP Proforma'!$C$35*(1-(OFFSET('IPP Proforma'!$D$42,0,0,1,'IPP Proforma'!$H$34)-1)/'IPP Proforma'!$C$27)*1000)/PMT('IPP Proforma'!$H$32,'IPP Proforma'!$H$34,$C34*('IPP Proforma'!$C$18+-PMT('IPP Proforma'!$H$32, 'IPP Proforma'!$H$34,'IPP Proforma'!$C$18*$C34)*'IPP Proforma'!$C$19/12))))) -> 1.418737624
C35: 0.442 | D35: 0.558 | E35: =($C$4-'IPP Proforma'!$H$32*$C35*(1-'IPP Proforma'!$H$18))/(1-$C35) -> 0.1188629032 | G35: =(('IPP Proforma'!$C$18+-PMT('IPP Proforma'!$H$32, 'IPP Proforma'!$H$34,'IPP Proforma'!$C$18*$C35)*'IPP Proforma'!$C$19/12)*(1-$C35)+PV($E35,'IPP Proforma'!$H$34,PMT('IPP Proforma'!$H$32,'IPP Proforma'!$H$34,('IPP Proforma'!$C$18+-PMT('IPP Proforma'!$H$32, 'IPP Proforma'!$H$34,'IPP Proforma'!$C$18*$C35)*'IPP Proforma'!$C$19/12)*$C35)+(-PMT('IPP Proforma'!$H$32, 'IPP Proforma'!$H$34,'IPP Proforma'!$C$18*$C35)*'IPP Proforma'!$C$19/12)*'IPP Proforma'!$H$36)-((-PMT('IPP Proforma'!$H$32, 'IPP Proforma'!$H$34,'IPP Proforma'!$C$18*$C35)*'IPP Proforma'!$C$19/12)/(1+$E35)^'IPP Proforma'!$H$34+(PV($E35,'IPP Proforma'!$H$34,(-PMT('IPP Proforma'!$H$32, 'IPP Proforma'!$H$34,'IPP Proforma'!$C$18*$C35)*'IPP Proforma'!$C$19/12)*'IPP Proforma'!$H$36)*'IPP Proforma'!$H$18))+(NPV($E35,IPMT('IPP Proforma'!$H$32,OFFSET('IPP Proforma'!$D$42,0,0,1,'IPP Proforma'!$H$34),'IPP Proforma'!$H$34,('IPP Proforma'!$C$18+-PMT('IPP Proforma'!$H$32, 'IPP Proforma'!$H$34,'IPP Proforma'!$C$18*$C35)*'IPP Proforma'!$C$19/12)*$C35))-NPV($E35,OFFSET('IPP Proforma'!$D$93,MATCH('IPP Proforma'!$H$25,'IPP Proforma'!$C$94:$C$101,0),0,1,40)*'IPP Proforma'!$C$18))*'IPP Proforma'!$H$18)/(1-'IPP Proforma'!$H$18)/NPV((1+$E35)/(1+'IPP Proforma'!$H$37)-1,'IPP Proforma'!$D$44:$AQ$44) -> 294.1446856 | H35: =-PV((1+$E35)/(1+'IPP Proforma'!$C$30)-1,'IPP Proforma'!$C$27,'IPP Proforma'!$C$18*'IPP Proforma'!$C$36)/NPV((1+$E35)/(1+'IPP Proforma'!$H$37)-1,'IPP Proforma'!$D$44:$AQ$44)+NPV($E35,'IPP Proforma'!$C$18*'IPP Proforma'!$C$35*(1-(OFFSET('IPP Proforma'!$D$42,0,0,1,'IPP Proforma'!$C$27)-1)/'IPP Proforma'!$C$27))/NPV((1+$E35)/(1+'IPP Proforma'!$H$37)-1,'IPP Proforma'!$D$44:$AQ$44) -> 15.05480147 | I35: =(PV($E35,1,'IPP Proforma'!$H$22*'IPP Proforma'!$H$23*'IPP Proforma'!$C$18)/(1-'IPP Proforma'!$H$18)+'IPP Proforma'!$H$24*'IPP Proforma'!$H$23*'IPP Proforma'!$H$22*NPV($E35,OFFSET('IPP Proforma'!$D$93,MATCH('IPP Proforma'!$H$25,'IPP Proforma'!$C$94:$C$101,0),0,1,40)*'IPP Proforma'!$C$18)*'IPP Proforma'!$H$16/(1-'IPP Proforma'!$H$18))/NPV((1+$E35)/(1+'IPP Proforma'!$H$37)-1,'IPP Proforma'!$D$44:$AQ$44) -> -116.0350265 | J35: =-PV((1+$E35)/(1+'IPP Proforma'!$C$30)-1,'IPP Proforma'!$C$27,'IPP Proforma'!$C$31*'IPP Proforma'!$C$16*1000)/NPV((1+$E35)/(1+'IPP Proforma'!$H$37)-1,'IPP Proforma'!$D$44:$AQ$44) -> 25.71432136 | K35: =-NPV((1+$E35)-1,'IPP Proforma'!$D$45:$AQ$45)/NPV((1+$E35)/(1+'IPP Proforma'!$H$37)-1,'IPP Proforma'!$D$44:$AQ$44) -> -42.25510163 | L35: =PV((1+$E35)/(1+'IPP Proforma'!$H$21)/(1-'IPP Proforma'!$C$26)-1,'IPP Proforma'!$H$20,'IPP Proforma'!$H$19*'IPP Proforma'!$C$16*8760*'IPP Proforma'!$C$24/(1-'IPP Proforma'!$C$26))/(1-'IPP Proforma'!$H$18)/NPV((1+$E35)/(1+'IPP Proforma'!$H$37)-1,'IPP Proforma'!$D$44:$AQ$44) -> 0 | M35: 176.6236802 | N35: =-IF($C35=0,-99.99,IF($C35=1,99.99,AVERAGE((($M35*(1+'IPP Proforma'!$H$37)^OFFSET('IPP Proforma'!$D$42,0,0,1,'IPP Proforma'!$H$34))*(8760*'IPP Proforma'!$C$16*'IPP Proforma'!$C$24*(1-'IPP Proforma'!$C$26)^(OFFSET('IPP Proforma'!$D$42,0,0,1,'IPP Proforma'!$H$34)-1))+OFFSET('IPP Proforma'!$D$45,0,0,1,'IPP Proforma'!$H$34)-'IPP Proforma'!$C$16*'IPP Proforma'!$C$31*(1+'IPP Proforma'!$C$30)^OFFSET('IPP Proforma'!$D$42,0,0,1,'IPP Proforma'!$H$34)*1000-'IPP Proforma'!$C$16*'IPP Proforma'!$C$17*'IPP Proforma'!$C$36*(1+'IPP Proforma'!$C$30)^OFFSET('IPP Proforma'!$D$42,0,0,1,'IPP Proforma'!$H$34)*1000-'IPP Proforma'!$C$16*'IPP Proforma'!$C$17*'IPP Proforma'!$C$35*(1-(OFFSET('IPP Proforma'!$D$42,0,0,1,'IPP Proforma'!$H$34)-1)/'IPP Proforma'!$C$27)*1000)/PMT('IPP Proforma'!$H$32,'IPP Proforma'!$H$34,$C35*('IPP Proforma'!$C$18+-PMT('IPP Proforma'!$H$32, 'IPP Proforma'!$H$34,'IPP Proforma'!$C$18*$C35)*'IPP Proforma'!$C$19/12))))) -> 1.41407271
C36: 0.443 | D36: 0.557 | E36: =($C$4-'IPP Proforma'!$H$32*$C36*(1-'IPP Proforma'!$H$18))/(1-$C36) -> 0.1190004488 | G36: =(('IPP Proforma'!$C$18+-PMT('IPP Proforma'!$H$32, 'IPP Proforma'!$H$34,'IPP Proforma'!$C$18*$C36)*'IPP Proforma'!$C$19/12)*(1-$C36)+PV($E36,'IPP Proforma'!$H$34,PMT('IPP Proforma'!$H$32,'IPP Proforma'!$H$34,('IPP Proforma'!$C$18+-PMT('IPP Proforma'!$H$32, 'IPP Proforma'!$H$34,'IPP Proforma'!$C$18*$C36)*'IPP Proforma'!$C$19/12)*$C36)+(-PMT('IPP Proforma'!$H$32, 'IPP Proforma'!$H$34,'IPP Proforma'!$C$18*$C36)*'IPP Proforma'!$C$19/12)*'IPP Proforma'!$H$36)-((-PMT('IPP Proforma'!$H$32, 'IPP Proforma'!$H$34,'IPP Proforma'!$C$18*$C36)*'IPP Proforma'!$C$19/12)/(1+$E36)^'IPP Proforma'!$H$34+(PV($E36,'IPP Proforma'!$H$34,(-PMT('IPP Proforma'!$H$32, 'IPP Proforma'!$H$34,'IPP Proforma'!$C$18*$C36)*'IPP Proforma'!$C$19/12)*'IPP Proforma'!$H$36)*'IPP Proforma'!$H$18))+(NPV($E36,IPMT('IPP Proforma'!$H$32,OFFSET('IPP Proforma'!$D$42,0,0,1,'IPP Proforma'!$H$34),'IPP Proforma'!$H$34,('IPP Proforma'!$C$18+-PMT('IPP Proforma'!$H$32, 'IPP Proforma'!$H$34,'IPP Proforma'!$C$18*$C36)*'IPP Proforma'!$C$19/12)*$C36))-NPV($E36,OFFSET('IPP Proforma'!$D$93,MATCH('IPP Proforma'!$H$25,'IPP Proforma'!$C$94:$C$101,0),0,1,40)*'IPP Proforma'!$C$18))*'IPP Proforma'!$H$18)/(1-'IPP Proforma'!$H$18)/NPV((1+$E36)/(1+'IPP Proforma'!$H$37)-1,'IPP Proforma'!$D$44:$AQ$44) -> 294.0946088 | H36: =-PV((1+$E36)/(1+'IPP Proforma'!$C$30)-1,'IPP Proforma'!$C$27,'IPP Proforma'!$C$18*'IPP Proforma'!$C$36)/NPV((1+$E36)/(1+'IPP Proforma'!$H$37)-1,'IPP Proforma'!$D$44:$AQ$44)+NPV($E36,'IPP Proforma'!$C$18*'IPP Proforma'!$C$35*(1-(OFFSET('IPP Proforma'!$D$42,0,0,1,'IPP Proforma'!$C$27)-1)/'IPP Proforma'!$C$27))/NPV((1+$E36)/(1+'IPP Proforma'!$H$37)-1,'IPP Proforma'!$D$44:$AQ$44) -> 15.05356132 | I36: =(PV($E36,1,'IPP Proforma'!$H$22*'IPP Proforma'!$H$23*'IPP Proforma'!$C$18)/(1-'IPP Proforma'!$H$18)+'IPP Proforma'!$H$24*'IPP Proforma'!$H$23*'IPP Proforma'!$H$22*NPV($E36,OFFSET('IPP Proforma'!$D$93,MATCH('IPP Proforma'!$H$25,'IPP Proforma'!$C$94:$C$101,0),0,1,40)*'IPP Proforma'!$C$18)*'IPP Proforma'!$H$16/(1-'IPP Proforma'!$H$18))/NPV((1+$E36)/(1+'IPP Proforma'!$H$37)-1,'IPP Proforma'!$D$44:$AQ$44) -> -116.1232157 | J36: =-PV((1+$E36)/(1+'IPP Proforma'!$C$30)-1,'IPP Proforma'!$C$27,'IPP Proforma'!$C$31*'IPP Proforma'!$C$16*1000)/NPV((1+$E36)/(1+'IPP Proforma'!$H$37)-1,'IPP Proforma'!$D$44:$AQ$44) -> 25.71220313 | K36: =-NPV((1+$E36)-1,'IPP Proforma'!$D$45:$AQ$45)/NPV((1+$E36)/(1+'IPP Proforma'!$H$37)-1,'IPP Proforma'!$D$44:$AQ$44) -> -42.27665418 | L36: =PV((1+$E36)/(1+'IPP Proforma'!$H$21)/(1-'IPP Proforma'!$C$26)-1,'IPP Proforma'!$H$20,'IPP Proforma'!$H$19*'IPP Proforma'!$C$16*8760*'IPP Proforma'!$C$24/(1-'IPP Proforma'!$C$26))/(1-'IPP Proforma'!$H$18)/NPV((1+$E36)/(1+'IPP Proforma'!$H$37)-1,'IPP Proforma'!$D$44:$AQ$44) -> 0 | M36: 176.4605034 | N36: =-IF($C36=0,-99.99,IF($C36=1,99.99,AVERAGE((($M36*(1+'IPP Proforma'!$H$37)^OFFSET('IPP Proforma'!$D$42,0,0,1,'IPP Proforma'!$H$34))*(8760*'IPP Proforma'!$C$16*'IPP Proforma'!$C$24*(1-'IPP Proforma'!$C$26)^(OFFSET('IPP Proforma'!$D$42,0,0,1,'IPP Proforma'!$H$34)-1))+OFFSET('IPP Proforma'!$D$45,0,0,1,'IPP Proforma'!$H$34)-'IPP Proforma'!$C$16*'IPP Proforma'!$C$31*(1+'IPP Proforma'!$C$30)^OFFSET('IPP Proforma'!$D$42,0,0,1,'IPP Proforma'!$H$34)*1000-'IPP Proforma'!$C$16*'IPP Proforma'!$C$17*'IPP Proforma'!$C$36*(1+'IPP Proforma'!$C$30)^OFFSET('IPP Proforma'!$D$42,0,0,1,'IPP Proforma'!$H$34)*1000-'IPP Proforma'!$C$16*'IPP Proforma'!$C$17*'IPP Proforma'!$C$35*(1-(OFFSET('IPP Proforma'!$D$42,0,0,1,'IPP Proforma'!$H$34)-1)/'IPP Proforma'!$C$27)*1000)/PMT('IPP Proforma'!$H$32,'IPP Proforma'!$H$34,$C36*('IPP Proforma'!$C$18+-PMT('IPP Proforma'!$H$32, 'IPP Proforma'!$H$34,'IPP Proforma'!$C$18*$C36)*'IPP Proforma'!$C$19/12))))) -> 1.409423541
C37: 0.444 | D37: 0.556 | E37: =($C$4-'IPP Proforma'!$H$32*$C37*(1-'IPP Proforma'!$H$18))/(1-$C37) -> 0.1191384892 | G37: =(('IPP Proforma'!$C$18+-PMT('IPP Proforma'!$H$32, 'IPP Proforma'!$H$34,'IPP Proforma'!$C$18*$C37)*'IPP Proforma'!$C$19/12)*(1-$C37)+PV($E37,'IPP Proforma'!$H$34,PMT('IPP Proforma'!$H$32,'IPP Proforma'!$H$34,('IPP Proforma'!$C$18+-PMT('IPP Proforma'!$H$32, 'IPP Proforma'!$H$34,'IPP Proforma'!$C$18*$C37)*'IPP Proforma'!$C$19/12)*$C37)+(-PMT('IPP Proforma'!$H$32, 'IPP Proforma'!$H$34,'IPP Proforma'!$C$18*$C37)*'IPP Proforma'!$C$19/12)*'IPP Proforma'!$H$36)-((-PMT('IPP Proforma'!$H$32, 'IPP Proforma'!$H$34,'IPP Proforma'!$C$18*$C37)*'IPP Proforma'!$C$19/12)/(1+$E37)^'IPP Proforma'!$H$34+(PV($E37,'IPP Proforma'!$H$34,(-PMT('IPP Proforma'!$H$32, 'IPP Proforma'!$H$34,'IPP Proforma'!$C$18*$C37)*'IPP Proforma'!$C$19/12)*'IPP Proforma'!$H$36)*'IPP Proforma'!$H$18))+(NPV($E37,IPMT('IPP Proforma'!$H$32,OFFSET('IPP Proforma'!$D$42,0,0,1,'IPP Proforma'!$H$34),'IPP Proforma'!$H$34,('IPP Proforma'!$C$18+-PMT('IPP Proforma'!$H$32, 'IPP Proforma'!$H$34,'IPP Proforma'!$C$18*$C37)*'IPP Proforma'!$C$19/12)*$C37))-NPV($E37,OFFSET('IPP Proforma'!$D$93,MATCH('IPP Proforma'!$H$25,'IPP Proforma'!$C$94:$C$101,0),0,1,40)*'IPP Proforma'!$C$18))*'IPP Proforma'!$H$18)/(1-'IPP Proforma'!$H$18)/NPV((1+$E37)/(1+'IPP Proforma'!$H$37)-1,'IPP Proforma'!$D$44:$AQ$44) -> 294.0443411 | H37: =-PV((1+$E37)/(1+'IPP Proforma'!$C$30)-1,'IPP Proforma'!$C$27,'IPP Proforma'!$C$18*'IPP Proforma'!$C$36)/NPV((1+$E37)/(1+'IPP Proforma'!$H$37)-1,'IPP Proforma'!$D$44:$AQ$44)+NPV($E37,'IPP Proforma'!$C$18*'IPP Proforma'!$C$35*(1-(OFFSET('IPP Proforma'!$D$42,0,0,1,'IPP Proforma'!$C$27)-1)/'IPP Proforma'!$C$27))/NPV((1+$E37)/(1+'IPP Proforma'!$H$37)-1,'IPP Proforma'!$D$44:$AQ$44) -> 15.05231754 | I37: =(PV($E37,1,'IPP Proforma'!$H$22*'IPP Proforma'!$H$23*'IPP Proforma'!$C$18)/(1-'IPP Proforma'!$H$18)+'IPP Proforma'!$H$24*'IPP Proforma'!$H$23*'IPP Proforma'!$H$22*NPV($E37,OFFSET('IPP Proforma'!$D$93,MATCH('IPP Proforma'!$H$25,'IPP Proforma'!$C$94:$C$101,0),0,1,40)*'IPP Proforma'!$C$18)*'IPP Proforma'!$H$16/(1-'IPP Proforma'!$H$18))/NPV((1+$E37)/(1+'IPP Proforma'!$H$37)-1,'IPP Proforma'!$D$44:$AQ$44) -> -116.2117317 | J37: =-PV((1+$E37)/(1+'IPP Proforma'!$C$30)-1,'IPP Proforma'!$C$27,'IPP Proforma'!$C$31*'IPP Proforma'!$C$16*1000)/NPV((1+$E37)/(1+'IPP Proforma'!$H$37)-1,'IPP Proforma'!$D$44:$AQ$44) -> 25.71007869 | K37: =-NPV((1+$E37)-1,'IPP Proforma'!$D$45:$AQ$45)/NPV((1+$E37)/(1+'IPP Proforma'!$H$37)-1,'IPP Proforma'!$D$44:$AQ$44) -> -42.29827737 | L37: =PV((1+$E37)/(1+'IPP Proforma'!$H$21)/(1-'IPP Proforma'!$C$26)-1,'IPP Proforma'!$H$20,'IPP Proforma'!$H$19*'IPP Proforma'!$C$16*8760*'IPP Proforma'!$C$24/(1-'IPP Proforma'!$C$26))/(1-'IPP Proforma'!$H$18)/NPV((1+$E37)/(1+'IPP Proforma'!$H$37)-1,'IPP Proforma'!$D$44:$AQ$44) -> 0 | M37: 176.2967283 | N37: =-IF($C37=0,-99.99,IF($C37=1,99.99,AVERAGE((($M37*(1+'IPP Proforma'!$H$37)^OFFSET('IPP Proforma'!$D$42,0,0,1,'IPP Proforma'!$H$34))*(8760*'IPP Proforma'!$C$16*'IPP Proforma'!$C$24*(1-'IPP Proforma'!$C$26)^(OFFSET('IPP Proforma'!$D$42,0,0,1,'IPP Proforma'!$H$34)-1))+OFFSET('IPP Proforma'!$D$45,0,0,1,'IPP Proforma'!$H$34)-'IPP Proforma'!$C$16*'IPP Proforma'!$C$31*(1+'IPP Proforma'!$C$30)^OFFSET('IPP Proforma'!$D$42,0,0,1,'IPP Proforma'!$H$34)*1000-'IPP Proforma'!$C$16*'IPP Proforma'!$C$17*'IPP Proforma'!$C$36*(1+'IPP Proforma'!$C$30)^OFFSET('IPP Proforma'!$D$42,0,0,1,'IPP Proforma'!$H$34)*1000-'IPP Proforma'!$C$16*'IPP Proforma'!$C$17*'IPP Proforma'!$C$35*(1-(OFFSET('IPP Proforma'!$D$42,0,0,1,'IPP Proforma'!$H$34)-1)/'IPP Proforma'!$C$27)*1000)/PMT('IPP Proforma'!$H$32,'IPP Proforma'!$H$34,$C37*('IPP Proforma'!$C$18+-PMT('IPP Proforma'!$H$32, 'IPP Proforma'!$H$34,'IPP Proforma'!$C$18*$C37)*'IPP Proforma'!$C$19/12))))) -> 1.404789983
C38: 0.445 | D38: 0.555 | E38: =($C$4-'IPP Proforma'!$H$32*$C38*(1-'IPP Proforma'!$H$18))/(1-$C38) -> 0.119277027 | G38: =(('IPP Proforma'!$C$18+-PMT('IPP Proforma'!$H$32, 'IPP Proforma'!$H$34,'IPP Proforma'!$C$18*$C38)*'IPP Proforma'!$C$19/12)*(1-$C38)+PV($E38,'IPP Proforma'!$H$34,PMT('IPP Proforma'!$H$32,'IPP Proforma'!$H$34,('IPP Proforma'!$C$18+-PMT('IPP Proforma'!$H$32, 'IPP Proforma'!$H$34,'IPP Proforma'!$C$18*$C38)*'IPP Proforma'!$C$19/12)*$C38)+(-PMT('IPP Proforma'!$H$32, 'IPP Proforma'!$H$34,'IPP Proforma'!$C$18*$C38)*'IPP Proforma'!$C$19/12)*'IPP Proforma'!$H$36)-((-PMT('IPP Proforma'!$H$32, 'IPP Proforma'!$H$34,'IPP Proforma'!$C$18*$C38)*'IPP Proforma'!$C$19/12)/(1+$E38)^'IPP Proforma'!$H$34+(PV($E38,'IPP Proforma'!$H$34,(-PMT('IPP Proforma'!$H$32, 'IPP Proforma'!$H$34,'IPP Proforma'!$C$18*$C38)*'IPP Proforma'!$C$19/12)*'IPP Proforma'!$H$36)*'IPP Proforma'!$H$18))+(NPV($E38,IPMT('IPP Proforma'!$H$32,OFFSET('IPP Proforma'!$D$42,0,0,1,'IPP Proforma'!$H$34),'IPP Proforma'!$H$34,('IPP Proforma'!$C$18+-PMT('IPP Proforma'!$H$32, 'IPP Proforma'!$H$34,'IPP Proforma'!$C$18*$C38)*'IPP Proforma'!$C$19/12)*$C38))-NPV($E38,OFFSET('IPP Proforma'!$D$93,MATCH('IPP Proforma'!$H$25,'IPP Proforma'!$C$94:$C$101,0),0,1,40)*'IPP Proforma'!$C$18))*'IPP Proforma'!$H$18)/(1-'IPP Proforma'!$H$18)/NPV((1+$E38)/(1+'IPP Proforma'!$H$37)-1,'IPP Proforma'!$D$44:$AQ$44) -> 293.9938812 | H38: =-PV((1+$E38)/(1+'IPP Proforma'!$C$30)-1,'IPP Proforma'!$C$27,'IPP Proforma'!$C$18*'IPP Proforma'!$C$36)/NPV((1+$E38)/(1+'IPP Proforma'!$H$37)-1,'IPP Proforma'!$D$44:$AQ$44)+NPV($E38,'IPP Proforma'!$C$18*'IPP Proforma'!$C$35*(1-(OFFSET('IPP Proforma'!$D$42,0,0,1,'IPP Proforma'!$C$27)-1)/'IPP Proforma'!$C$27))/NPV((1+$E38)/(1+'IPP Proforma'!$H$37)-1,'IPP Proforma'!$D$44:$AQ$44) -> 15.0510701 | I38: =(PV($E38,1,'IPP Proforma'!$H$22*'IPP Proforma'!$H$23*'IPP Proforma'!$C$18)/(1-'IPP Proforma'!$H$18)+'IPP Proforma'!$H$24*'IPP Proforma'!$H$23*'IPP Proforma'!$H$22*NPV($E38,OFFSET('IPP Proforma'!$D$93,MATCH('IPP Proforma'!$H$25,'IPP Proforma'!$C$94:$C$101,0),0,1,40)*'IPP Proforma'!$C$18)*'IPP Proforma'!$H$16/(1-'IPP Proforma'!$H$18))/NPV((1+$E38)/(1+'IPP Proforma'!$H$37)-1,'IPP Proforma'!$D$44:$AQ$44) -> -116.3005763 | J38: =-PV((1+$E38)/(1+'IPP Proforma'!$C$30)-1,'IPP Proforma'!$C$27,'IPP Proforma'!$C$31*'IPP Proforma'!$C$16*1000)/NPV((1+$E38)/(1+'IPP Proforma'!$H$37)-1,'IPP Proforma'!$D$44:$AQ$44) -> 25.70794801 | K38: =-NPV((1+$E38)-1,'IPP Proforma'!$D$45:$AQ$45)/NPV((1+$E38)/(1+'IPP Proforma'!$H$37)-1,'IPP Proforma'!$D$44:$AQ$44) -> -42.31997153 | L38: =PV((1+$E38)/(1+'IPP Proforma'!$H$21)/(1-'IPP Proforma'!$C$26)-1,'IPP Proforma'!$H$20,'IPP Proforma'!$H$19*'IPP Proforma'!$C$16*8760*'IPP Proforma'!$C$24/(1-'IPP Proforma'!$C$26))/(1-'IPP Proforma'!$H$18)/NPV((1+$E38)/(1+'IPP Proforma'!$H$37)-1,'IPP Proforma'!$D$44:$AQ$44) -> 0 | M38: 176.1323515 | N38: =-IF($C38=0,-99.99,IF($C38=1,99.99,AVERAGE((($M38*(1+'IPP Proforma'!$H$37)^OFFSET('IPP Proforma'!$D$42,0,0,1,'IPP Proforma'!$H$34))*(8760*'IPP Proforma'!$C$16*'IPP Proforma'!$C$24*(1-'IPP Proforma'!$C$26)^(OFFSET('IPP Proforma'!$D$42,0,0,1,'IPP Proforma'!$H$34)-1))+OFFSET('IPP Proforma'!$D$45,0,0,1,'IPP Proforma'!$H$34)-'IPP Proforma'!$C$16*'IPP Proforma'!$C$31*(1+'IPP Proforma'!$C$30)^OFFSET('IPP Proforma'!$D$42,0,0,1,'IPP Proforma'!$H$34)*1000-'IPP Proforma'!$C$16*'IPP Proforma'!$C$17*'IPP Proforma'!$C$36*(1+'IPP Proforma'!$C$30)^OFFSET('IPP Proforma'!$D$42,0,0,1,'IPP Proforma'!$H$34)*1000-'IPP Proforma'!$C$16*'IPP Proforma'!$C$17*'IPP Proforma'!$C$35*(1-(OFFSET('IPP Proforma'!$D$42,0,0,1,'IPP Proforma'!$H$34)-1)/'IPP Proforma'!$C$27)*1000)/PMT('IPP Proforma'!$H$32,'IPP Proforma'!$H$34,$C38*('IPP Proforma'!$C$18+-PMT('IPP Proforma'!$H$32, 'IPP Proforma'!$H$34,'IPP Proforma'!$C$18*$C38)*'IPP Proforma'!$C$19/12))))) -> 1.400171903
C39: 0.446 | D39: 0.554 | E39: =($C$4-'IPP Proforma'!$H$32*$C39*(1-'IPP Proforma'!$H$18))/(1-$C39) -> 0.119416065 | G39: =(('IPP Proforma'!$C$18+-PMT('IPP Proforma'!$H$32, 'IPP Proforma'!$H$34,'IPP Proforma'!$C$18*$C39)*'IPP Proforma'!$C$19/12)*(1-$C39)+PV($E39,'IPP Proforma'!$H$34,PMT('IPP Proforma'!$H$32,'IPP Proforma'!$H$34,('IPP Proforma'!$C$18+-PMT('IPP Proforma'!$H$32, 'IPP Proforma'!$H$34,'IPP Proforma'!$C$18*$C39)*'IPP Proforma'!$C$19/12)*$C39)+(-PMT('IPP Proforma'!$H$32, 'IPP Proforma'!$H$34,'IPP Proforma'!$C$18*$C39)*'IPP Proforma'!$C$19/12)*'IPP Proforma'!$H$36)-((-PMT('IPP Proforma'!$H$32, 'IPP Proforma'!$H$34,'IPP Proforma'!$C$18*$C39)*'IPP Proforma'!$C$19/12)/(1+$E39)^'IPP Proforma'!$H$34+(PV($E39,'IPP Proforma'!$H$34,(-PMT('IPP Proforma'!$H$32, 'IPP Proforma'!$H$34,'IPP Proforma'!$C$18*$C39)*'IPP Proforma'!$C$19/12)*'IPP Proforma'!$H$36)*'IPP Proforma'!$H$18))+(NPV($E39,IPMT('IPP Proforma'!$H$32,OFFSET('IPP Proforma'!$D$42,0,0,1,'IPP Proforma'!$H$34),'IPP Proforma'!$H$34,('IPP Proforma'!$C$18+-PMT('IPP Proforma'!$H$32, 'IPP Proforma'!$H$34,'IPP Proforma'!$C$18*$C39)*'IPP Proforma'!$C$19/12)*$C39))-NPV($E39,OFFSET('IPP Proforma'!$D$93,MATCH('IPP Proforma'!$H$25,'IPP Proforma'!$C$94:$C$101,0),0,1,40)*'IPP Proforma'!$C$18))*'IPP Proforma'!$H$18)/(1-'IPP Proforma'!$H$18)/NPV((1+$E39)/(1+'IPP Proforma'!$H$37)-1,'IPP Proforma'!$D$44:$AQ$44) -> 293.9432282 | H39: =-PV((1+$E39)/(1+'IPP Proforma'!$C$30)-1,'IPP Proforma'!$C$27,'IPP Proforma'!$C$18*'IPP Proforma'!$C$36)/NPV((1+$E39)/(1+'IPP Proforma'!$H$37)-1,'IPP Proforma'!$D$44:$AQ$44)+NPV($E39,'IPP Proforma'!$C$18*'IPP Proforma'!$C$35*(1-(OFFSET('IPP Proforma'!$D$42,0,0,1,'IPP Proforma'!$C$27)-1)/'IPP Proforma'!$C$27))/NPV((1+$E39)/(1+'IPP Proforma'!$H$37)-1,'IPP Proforma'!$D$44:$AQ$44) -> 15.049819 | I39: =(PV($E39,1,'IPP Proforma'!$H$22*'IPP Proforma'!$H$23*'IPP Proforma'!$C$18)/(1-'IPP Proforma'!$H$18)+'IPP Proforma'!$H$24*'IPP Proforma'!$H$23*'IPP Proforma'!$H$22*NPV($E39,OFFSET('IPP Proforma'!$D$93,MATCH('IPP Proforma'!$H$25,'IPP Proforma'!$C$94:$C$101,0),0,1,40)*'IPP Proforma'!$C$18)*'IPP Proforma'!$H$16/(1-'IPP Proforma'!$H$18))/NPV((1+$E39)/(1+'IPP Proforma'!$H$37)-1,'IPP Proforma'!$D$44:$AQ$44) -> -116.3897513 | J39: =-PV((1+$E39)/(1+'IPP Proforma'!$C$30)-1,'IPP Proforma'!$C$27,'IPP Proforma'!$C$31*'IPP Proforma'!$C$16*1000)/NPV((1+$E39)/(1+'IPP Proforma'!$H$37)-1,'IPP Proforma'!$D$44:$AQ$44) -> 25.70581107 | K39: =-NPV((1+$E39)-1,'IPP Proforma'!$D$45:$AQ$45)/NPV((1+$E39)/(1+'IPP Proforma'!$H$37)-1,'IPP Proforma'!$D$44:$AQ$44) -> -42.34173701 | L39: =PV((1+$E39)/(1+'IPP Proforma'!$H$21)/(1-'IPP Proforma'!$C$26)-1,'IPP Proforma'!$H$20,'IPP Proforma'!$H$19*'IPP Proforma'!$C$16*8760*'IPP Proforma'!$C$24/(1-'IPP Proforma'!$C$26))/(1-'IPP Proforma'!$H$18)/NPV((1+$E39)/(1+'IPP Proforma'!$H$37)-1,'IPP Proforma'!$D$44:$AQ$44) -> 0 | M39: 175.96737 | N39: =-IF($C39=0,-99.99,IF($C39=1,99.99,AVERAGE((($M39*(1+'IPP Proforma'!$H$37)^OFFSET('IPP Proforma'!$D$42,0,0,1,'IPP Proforma'!$H$34))*(8760*'IPP Proforma'!$C$16*'IPP Proforma'!$C$24*(1-'IPP Proforma'!$C$26)^(OFFSET('IPP Proforma'!$D$42,0,0,1,'IPP Proforma'!$H$34)-1))+OFFSET('IPP Proforma'!$D$45,0,0,1,'IPP Proforma'!$H$34)-'IPP Proforma'!$C$16*'IPP Proforma'!$C$31*(1+'IPP Proforma'!$C$30)^OFFSET('IPP Proforma'!$D$42,0,0,1,'IPP Proforma'!$H$34)*1000-'IPP Proforma'!$C$16*'IPP Proforma'!$C$17*'IPP Proforma'!$C$36*(1+'IPP Proforma'!$C$30)^OFFSET('IPP Proforma'!$D$42,0,0,1,'IPP Proforma'!$H$34)*1000-'IPP Proforma'!$C$16*'IPP Proforma'!$C$17*'IPP Proforma'!$C$35*(1-(OFFSET('IPP Proforma'!$D$42,0,0,1,'IPP Proforma'!$H$34)-1)/'IPP Proforma'!$C$27)*1000)/PMT('IPP Proforma'!$H$32,'IPP Proforma'!$H$34,$C39*('IPP Proforma'!$C$18+-PMT('IPP Proforma'!$H$32, 'IPP Proforma'!$H$34,'IPP Proforma'!$C$18*$C39)*'IPP Proforma'!$C$19/12))))) -> 1.395569167
C40: 0.447 | D40: 0.553 | E40: =($C$4-'IPP Proforma'!$H$32*$C40*(1-'IPP Proforma'!$H$18))/(1-$C40) -> 0.1195556058 | G40: =(('IPP Proforma'!$C$18+-PMT('IPP Proforma'!$H$32, 'IPP Proforma'!$H$34,'IPP Proforma'!$C$18*$C40)*'IPP Proforma'!$C$19/12)*(1-$C40)+PV($E40,'IPP Proforma'!$H$34,PMT('IPP Proforma'!$H$32,'IPP Proforma'!$H$34,('IPP Proforma'!$C$18+-PMT('IPP Proforma'!$H$32, 'IPP Proforma'!$H$34,'IPP Proforma'!$C$18*$C40)*'IPP Proforma'!$C$19/12)*$C40)+(-PMT('IPP Proforma'!$H$32, 'IPP Proforma'!$H$34,'IPP Proforma'!$C$18*$C40)*'IPP Proforma'!$C$19/12)*'IPP Proforma'!$H$36)-((-PMT('IPP Proforma'!$H$32, 'IPP Proforma'!$H$34,'IPP Proforma'!$C$18*$C40)*'IPP Proforma'!$C$19/12)/(1+$E40)^'IPP Proforma'!$H$34+(PV($E40,'IPP Proforma'!$H$34,(-PMT('IPP Proforma'!$H$32, 'IPP Proforma'!$H$34,'IPP Proforma'!$C$18*$C40)*'IPP Proforma'!$C$19/12)*'IPP Proforma'!$H$36)*'IPP Proforma'!$H$18))+(NPV($E40,IPMT('IPP Proforma'!$H$32,OFFSET('IPP Proforma'!$D$42,0,0,1,'IPP Proforma'!$H$34),'IPP Proforma'!$H$34,('IPP Proforma'!$C$18+-PMT('IPP Proforma'!$H$32, 'IPP Proforma'!$H$34,'IPP Proforma'!$C$18*$C40)*'IPP Proforma'!$C$19/12)*$C40))-NPV($E40,OFFSET('IPP Proforma'!$D$93,MATCH('IPP Proforma'!$H$25,'IPP Proforma'!$C$94:$C$101,0),0,1,40)*'IPP Proforma'!$C$18))*'IPP Proforma'!$H$18)/(1-'IPP Proforma'!$H$18)/NPV((1+$E40)/(1+'IPP Proforma'!$H$37)-1,'IPP Proforma'!$D$44:$AQ$44) -> 293.892381 | H40: =-PV((1+$E40)/(1+'IPP Proforma'!$C$30)-1,'IPP Proforma'!$C$27,'IPP Proforma'!$C$18*'IPP Proforma'!$C$36)/NPV((1+$E40)/(1+'IPP Proforma'!$H$37)-1,'IPP Proforma'!$D$44:$AQ$44)+NPV($E40,'IPP Proforma'!$C$18*'IPP Proforma'!$C$35*(1-(OFFSET('IPP Proforma'!$D$42,0,0,1,'IPP Proforma'!$C$27)-1)/'IPP Proforma'!$C$27))/NPV((1+$E40)/(1+'IPP Proforma'!$H$37)-1,'IPP Proforma'!$D$44:$AQ$44) -> 15.04856422 | I40: =(PV($E40,1,'IPP Proforma'!$H$22*'IPP Proforma'!$H$23*'IPP Proforma'!$C$18)/(1-'IPP Proforma'!$H$18)+'IPP Proforma'!$H$24*'IPP Proforma'!$H$23*'IPP Proforma'!$H$22*NPV($E40,OFFSET('IPP Proforma'!$D$93,MATCH('IPP Proforma'!$H$25,'IPP Proforma'!$C$94:$C$101,0),0,1,40)*'IPP Proforma'!$C$18)*'IPP Proforma'!$H$16/(1-'IPP Proforma'!$H$18))/NPV((1+$E40)/(1+'IPP Proforma'!$H$37)-1,'IPP Proforma'!$D$44:$AQ$44) -> -116.4792585 | J40: =-PV((1+$E40)/(1+'IPP Proforma'!$C$30)-1,'IPP Proforma'!$C$27,'IPP Proforma'!$C$31*'IPP Proforma'!$C$16*1000)/NPV((1+$E40)/(1+'IPP Proforma'!$H$37)-1,'IPP Proforma'!$D$44:$AQ$44) -> 25.70366784 | K40: =-NPV((1+$E40)-1,'IPP Proforma'!$D$45:$AQ$45)/NPV((1+$E40)/(1+'IPP Proforma'!$H$37)-1,'IPP Proforma'!$D$44:$AQ$44) -> -42.36357415 | L40: =PV((1+$E40)/(1+'IPP Proforma'!$H$21)/(1-'IPP Proforma'!$C$26)-1,'IPP Proforma'!$H$20,'IPP Proforma'!$H$19*'IPP Proforma'!$C$16*8760*'IPP Proforma'!$C$24/(1-'IPP Proforma'!$C$26))/(1-'IPP Proforma'!$H$18)/NPV((1+$E40)/(1+'IPP Proforma'!$H$37)-1,'IPP Proforma'!$D$44:$AQ$44) -> 0 | M40: 175.8017804 | N40: =-IF($C40=0,-99.99,IF($C40=1,99.99,AVERAGE((($M40*(1+'IPP Proforma'!$H$37)^OFFSET('IPP Proforma'!$D$42,0,0,1,'IPP Proforma'!$H$34))*(8760*'IPP Proforma'!$C$16*'IPP Proforma'!$C$24*(1-'IPP Proforma'!$C$26)^(OFFSET('IPP Proforma'!$D$42,0,0,1,'IPP Proforma'!$H$34)-1))+OFFSET('IPP Proforma'!$D$45,0,0,1,'IPP Proforma'!$H$34)-'IPP Proforma'!$C$16*'IPP Proforma'!$C$31*(1+'IPP Proforma'!$C$30)^OFFSET('IPP Proforma'!$D$42,0,0,1,'IPP Proforma'!$H$34)*1000-'IPP Proforma'!$C$16*'IPP Proforma'!$C$17*'IPP Proforma'!$C$36*(1+'IPP Proforma'!$C$30)^OFFSET('IPP Proforma'!$D$42,0,0,1,'IPP Proforma'!$H$34)*1000-'IPP Proforma'!$C$16*'IPP Proforma'!$C$17*'IPP Proforma'!$C$35*(1-(OFFSET('IPP Proforma'!$D$42,0,0,1,'IPP Proforma'!$H$34)-1)/'IPP Proforma'!$C$27)*1000)/PMT('IPP Proforma'!$H$32,'IPP Proforma'!$H$34,$C40*('IPP Proforma'!$C$18+-PMT('IPP Proforma'!$H$32, 'IPP Proforma'!$H$34,'IPP Proforma'!$C$18*$C40)*'IPP Proforma'!$C$19/12))))) -> 1.390981645
C41: 0.448 | D41: 0.552 | E41: =($C$4-'IPP Proforma'!$H$32*$C41*(1-'IPP Proforma'!$H$18))/(1-$C41) -> 0.1196956522 | G41: =(('IPP Proforma'!$C$18+-PMT('IPP Proforma'!$H$32, 'IPP Proforma'!$H$34,'IPP Proforma'!$C$18*$C41)*'IPP Proforma'!$C$19/12)*(1-$C41)+PV($E41,'IPP Proforma'!$H$34,PMT('IPP Proforma'!$H$32,'IPP Proforma'!$H$34,('IPP Proforma'!$C$18+-PMT('IPP Proforma'!$H$32, 'IPP Proforma'!$H$34,'IPP Proforma'!$C$18*$C41)*'IPP Proforma'!$C$19/12)*$C41)+(-PMT('IPP Proforma'!$H$32, 'IPP Proforma'!$H$34,'IPP Proforma'!$C$18*$C41)*'IPP Proforma'!$C$19/12)*'IPP Proforma'!$H$36)-((-PMT('IPP Proforma'!$H$32, 'IPP Proforma'!$H$34,'IPP Proforma'!$C$18*$C41)*'IPP Proforma'!$C$19/12)/(1+$E41)^'IPP Proforma'!$H$34+(PV($E41,'IPP Proforma'!$H$34,(-PMT('IPP Proforma'!$H$32, 'IPP Proforma'!$H$34,'IPP Proforma'!$C$18*$C41)*'IPP Proforma'!$C$19/12)*'IPP Proforma'!$H$36)*'IPP Proforma'!$H$18))+(NPV($E41,IPMT('IPP Proforma'!$H$32,OFFSET('IPP Proforma'!$D$42,0,0,1,'IPP Proforma'!$H$34),'IPP Proforma'!$H$34,('IPP Proforma'!$C$18+-PMT('IPP Proforma'!$H$32, 'IPP Proforma'!$H$34,'IPP Proforma'!$C$18*$C41)*'IPP Proforma'!$C$19/12)*$C41))-NPV($E41,OFFSET('IPP Proforma'!$D$93,MATCH('IPP Proforma'!$H$25,'IPP Proforma'!$C$94:$C$101,0),0,1,40)*'IPP Proforma'!$C$18))*'IPP Proforma'!$H$18)/(1-'IPP Proforma'!$H$18)/NPV((1+$E41)/(1+'IPP Proforma'!$H$37)-1,'IPP Proforma'!$D$44:$AQ$44) -> 293.8413386 | H41: =-PV((1+$E41)/(1+'IPP Proforma'!$C$30)-1,'IPP Proforma'!$C$27,'IPP Proforma'!$C$18*'IPP Proforma'!$C$36)/NPV((1+$E41)/(1+'IPP Proforma'!$H$37)-1,'IPP Proforma'!$D$44:$AQ$44)+NPV($E41,'IPP Proforma'!$C$18*'IPP Proforma'!$C$35*(1-(OFFSET('IPP Proforma'!$D$42,0,0,1,'IPP Proforma'!$C$27)-1)/'IPP Proforma'!$C$27))/NPV((1+$E41)/(1+'IPP Proforma'!$H$37)-1,'IPP Proforma'!$D$44:$AQ$44) -> 15.04730573 | I41: =(PV($E41,1,'IPP Proforma'!$H$22*'IPP Proforma'!$H$23*'IPP Proforma'!$C$18)/(1-'IPP Proforma'!$H$18)+'IPP Proforma'!$H$24*'IPP Proforma'!$H$23*'IPP Proforma'!$H$22*NPV($E41,OFFSET('IPP Proforma'!$D$93,MATCH('IPP Proforma'!$H$25,'IPP Proforma'!$C$94:$C$101,0),0,1,40)*'IPP Proforma'!$C$18)*'IPP Proforma'!$H$16/(1-'IPP Proforma'!$H$18))/NPV((1+$E41)/(1+'IPP Proforma'!$H$37)-1,'IPP Proforma'!$D$44:$AQ$44) -> -116.5690997 | J41: =-PV((1+$E41)/(1+'IPP Proforma'!$C$30)-1,'IPP Proforma'!$C$27,'IPP Proforma'!$C$31*'IPP Proforma'!$C$16*1000)/NPV((1+$E41)/(1+'IPP Proforma'!$H$37)-1,'IPP Proforma'!$D$44:$AQ$44) -> 25.70151829 | K41: =-NPV((1+$E41)-1,'IPP Proforma'!$D$45:$AQ$45)/NPV((1+$E41)/(1+'IPP Proforma'!$H$37)-1,'IPP Proforma'!$D$44:$AQ$44) -> -42.38548329 | L41: =PV((1+$E41)/(1+'IPP Proforma'!$H$21)/(1-'IPP Proforma'!$C$26)-1,'IPP Proforma'!$H$20,'IPP Proforma'!$H$19*'IPP Proforma'!$C$16*8760*'IPP Proforma'!$C$24/(1-'IPP Proforma'!$C$26))/(1-'IPP Proforma'!$H$18)/NPV((1+$E41)/(1+'IPP Proforma'!$H$37)-1,'IPP Proforma'!$D$44:$AQ$44) -> 0 | M41: 175.6355796 | N41: =-IF($C41=0,-99.99,IF($C41=1,99.99,AVERAGE((($M41*(1+'IPP Proforma'!$H$37)^OFFSET('IPP Proforma'!$D$42,0,0,1,'IPP Proforma'!$H$34))*(8760*'IPP Proforma'!$C$16*'IPP Proforma'!$C$24*(1-'IPP Proforma'!$C$26)^(OFFSET('IPP Proforma'!$D$42,0,0,1,'IPP Proforma'!$H$34)-1))+OFFSET('IPP Proforma'!$D$45,0,0,1,'IPP Proforma'!$H$34)-'IPP Proforma'!$C$16*'IPP Proforma'!$C$31*(1+'IPP Proforma'!$C$30)^OFFSET('IPP Proforma'!$D$42,0,0,1,'IPP Proforma'!$H$34)*1000-'IPP Proforma'!$C$16*'IPP Proforma'!$C$17*'IPP Proforma'!$C$36*(1+'IPP Proforma'!$C$30)^OFFSET('IPP Proforma'!$D$42,0,0,1,'IPP Proforma'!$H$34)*1000-'IPP Proforma'!$C$16*'IPP Proforma'!$C$17*'IPP Proforma'!$C$35*(1-(OFFSET('IPP Proforma'!$D$42,0,0,1,'IPP Proforma'!$H$34)-1)/'IPP Proforma'!$C$27)*1000)/PMT('IPP Proforma'!$H$32,'IPP Proforma'!$H$34,$C41*('IPP Proforma'!$C$18+-PMT('IPP Proforma'!$H$32, 'IPP Proforma'!$H$34,'IPP Proforma'!$C$18*$C41)*'IPP Proforma'!$C$19/12))))) -> 1.386409204
C42: 0.449 | D42: 0.551 | E42: =($C$4-'IPP Proforma'!$H$32*$C42*(1-'IPP Proforma'!$H$18))/(1-$C42) -> 0.1198362069 | G42: =(('IPP Proforma'!$C$18+-PMT('IPP Proforma'!$H$32, 'IPP Proforma'!$H$34,'IPP Proforma'!$C$18*$C42)*'IPP Proforma'!$C$19/12)*(1-$C42)+PV($E42,'IPP Proforma'!$H$34,PMT('IPP Proforma'!$H$32,'IPP Proforma'!$H$34,('IPP Proforma'!$C$18+-PMT('IPP Proforma'!$H$32, 'IPP Proforma'!$H$34,'IPP Proforma'!$C$18*$C42)*'IPP Proforma'!$C$19/12)*$C42)+(-PMT('IPP Proforma'!$H$32, 'IPP Proforma'!$H$34,'IPP Proforma'!$C$18*$C42)*'IPP Proforma'!$C$19/12)*'IPP Proforma'!$H$36)-((-PMT('IPP Proforma'!$H$32, 'IPP Proforma'!$H$34,'IPP Proforma'!$C$18*$C42)*'IPP Proforma'!$C$19/12)/(1+$E42)^'IPP Proforma'!$H$34+(PV($E42,'IPP Proforma'!$H$34,(-PMT('IPP Proforma'!$H$32, 'IPP Proforma'!$H$34,'IPP Proforma'!$C$18*$C42)*'IPP Proforma'!$C$19/12)*'IPP Proforma'!$H$36)*'IPP Proforma'!$H$18))+(NPV($E42,IPMT('IPP Proforma'!$H$32,OFFSET('IPP Proforma'!$D$42,0,0,1,'IPP Proforma'!$H$34),'IPP Proforma'!$H$34,('IPP Proforma'!$C$18+-PMT('IPP Proforma'!$H$32, 'IPP Proforma'!$H$34,'IPP Proforma'!$C$18*$C42)*'IPP Proforma'!$C$19/12)*$C42))-NPV($E42,OFFSET('IPP Proforma'!$D$93,MATCH('IPP Proforma'!$H$25,'IPP Proforma'!$C$94:$C$101,0),0,1,40)*'IPP Proforma'!$C$18))*'IPP Proforma'!$H$18)/(1-'IPP Proforma'!$H$18)/NPV((1+$E42)/(1+'IPP Proforma'!$H$37)-1,'IPP Proforma'!$D$44:$AQ$44) -> 293.7900999 | H42: =-PV((1+$E42)/(1+'IPP Proforma'!$C$30)-1,'IPP Proforma'!$C$27,'IPP Proforma'!$C$18*'IPP Proforma'!$C$36)/NPV((1+$E42)/(1+'IPP Proforma'!$H$37)-1,'IPP Proforma'!$D$44:$AQ$44)+NPV($E42,'IPP Proforma'!$C$18*'IPP Proforma'!$C$35*(1-(OFFSET('IPP Proforma'!$D$42,0,0,1,'IPP Proforma'!$C$27)-1)/'IPP Proforma'!$C$27))/NPV((1+$E42)/(1+'IPP Proforma'!$H$37)-1,'IPP Proforma'!$D$44:$AQ$44) -> 15.04604353 | I42: =(PV($E42,1,'IPP Proforma'!$H$22*'IPP Proforma'!$H$23*'IPP Proforma'!$C$18)/(1-'IPP Proforma'!$H$18)+'IPP Proforma'!$H$24*'IPP Proforma'!$H$23*'IPP Proforma'!$H$22*NPV($E42,OFFSET('IPP Proforma'!$D$93,MATCH('IPP Proforma'!$H$25,'IPP Proforma'!$C$94:$C$101,0),0,1,40)*'IPP Proforma'!$C$18)*'IPP Proforma'!$H$16/(1-'IPP Proforma'!$H$18))/NPV((1+$E42)/(1+'IPP Proforma'!$H$37)-1,'IPP Proforma'!$D$44:$AQ$44) -> -116.6592768 | J42: =-PV((1+$E42)/(1+'IPP Proforma'!$C$30)-1,'IPP Proforma'!$C$27,'IPP Proforma'!$C$31*'IPP Proforma'!$C$16*1000)/NPV((1+$E42)/(1+'IPP Proforma'!$H$37)-1,'IPP Proforma'!$D$44:$AQ$44) -> 25.69936239 | K42: =-NPV((1+$E42)-1,'IPP Proforma'!$D$45:$AQ$45)/NPV((1+$E42)/(1+'IPP Proforma'!$H$37)-1,'IPP Proforma'!$D$44:$AQ$44) -> -42.40746477 | L42: =PV((1+$E42)/(1+'IPP Proforma'!$H$21)/(1-'IPP Proforma'!$C$26)-1,'IPP Proforma'!$H$20,'IPP Proforma'!$H$19*'IPP Proforma'!$C$16*8760*'IPP Proforma'!$C$24/(1-'IPP Proforma'!$C$26))/(1-'IPP Proforma'!$H$18)/NPV((1+$E42)/(1+'IPP Proforma'!$H$37)-1,'IPP Proforma'!$D$44:$AQ$44) -> 0 | M42: 175.4687642 | N42: =-IF($C42=0,-99.99,IF($C42=1,99.99,AVERAGE((($M42*(1+'IPP Proforma'!$H$37)^OFFSET('IPP Proforma'!$D$42,0,0,1,'IPP Proforma'!$H$34))*(8760*'IPP Proforma'!$C$16*'IPP Proforma'!$C$24*(1-'IPP Proforma'!$C$26)^(OFFSET('IPP Proforma'!$D$42,0,0,1,'IPP Proforma'!$H$34)-1))+OFFSET('IPP Proforma'!$D$45,0,0,1,'IPP Proforma'!$H$34)-'IPP Proforma'!$C$16*'IPP Proforma'!$C$31*(1+'IPP Proforma'!$C$30)^OFFSET('IPP Proforma'!$D$42,0,0,1,'IPP Proforma'!$H$34)*1000-'IPP Proforma'!$C$16*'IPP Proforma'!$C$17*'IPP Proforma'!$C$36*(1+'IPP Proforma'!$C$30)^OFFSET('IPP Proforma'!$D$42,0,0,1,'IPP Proforma'!$H$34)*1000-'IPP Proforma'!$C$16*'IPP Proforma'!$C$17*'IPP Proforma'!$C$35*(1-(OFFSET('IPP Proforma'!$D$42,0,0,1,'IPP Proforma'!$H$34)-1)/'IPP Proforma'!$C$27)*1000)/PMT('IPP Proforma'!$H$32,'IPP Proforma'!$H$34,$C42*('IPP Proforma'!$C$18+-PMT('IPP Proforma'!$H$32, 'IPP Proforma'!$H$34,'IPP Proforma'!$C$18*$C42)*'IPP Proforma'!$C$19/12))))) -> 1.381851716
C43: 0.45 | D43: 0.55 | E43: =($C$4-'IPP Proforma'!$H$32*$C43*(1-'IPP Proforma'!$H$18))/(1-$C43) -> 0.1199772727 | G43: =(('IPP Proforma'!$C$18+-PMT('IPP Proforma'!$H$32, 'IPP Proforma'!$H$34,'IPP Proforma'!$C$18*$C43)*'IPP Proforma'!$C$19/12)*(1-$C43)+PV($E43,'IPP Proforma'!$H$34,PMT('IPP Proforma'!$H$32,'IPP Proforma'!$H$34,('IPP Proforma'!$C$18+-PMT('IPP Proforma'!$H$32, 'IPP Proforma'!$H$34,'IPP Proforma'!$C$18*$C43)*'IPP Proforma'!$C$19/12)*$C43)+(-PMT('IPP Proforma'!$H$32, 'IPP Proforma'!$H$34,'IPP Proforma'!$C$18*$C43)*'IPP Proforma'!$C$19/12)*'IPP Proforma'!$H$36)-((-PMT('IPP Proforma'!$H$32, 'IPP Proforma'!$H$34,'IPP Proforma'!$C$18*$C43)*'IPP Proforma'!$C$19/12)/(1+$E43)^'IPP Proforma'!$H$34+(PV($E43,'IPP Proforma'!$H$34,(-PMT('IPP Proforma'!$H$32, 'IPP Proforma'!$H$34,'IPP Proforma'!$C$18*$C43)*'IPP Proforma'!$C$19/12)*'IPP Proforma'!$H$36)*'IPP Proforma'!$H$18))+(NPV($E43,IPMT('IPP Proforma'!$H$32,OFFSET('IPP Proforma'!$D$42,0,0,1,'IPP Proforma'!$H$34),'IPP Proforma'!$H$34,('IPP Proforma'!$C$18+-PMT('IPP Proforma'!$H$32, 'IPP Proforma'!$H$34,'IPP Proforma'!$C$18*$C43)*'IPP Proforma'!$C$19/12)*$C43))-NPV($E43,OFFSET('IPP Proforma'!$D$93,MATCH('IPP Proforma'!$H$25,'IPP Proforma'!$C$94:$C$101,0),0,1,40)*'IPP Proforma'!$C$18))*'IPP Proforma'!$H$18)/(1-'IPP Proforma'!$H$18)/NPV((1+$E43)/(1+'IPP Proforma'!$H$37)-1,'IPP Proforma'!$D$44:$AQ$44) -> 293.7386639 | H43: =-PV((1+$E43)/(1+'IPP Proforma'!$C$30)-1,'IPP Proforma'!$C$27,'IPP Proforma'!$C$18*'IPP Proforma'!$C$36)/NPV((1+$E43)/(1+'IPP Proforma'!$H$37)-1,'IPP Proforma'!$D$44:$AQ$44)+NPV($E43,'IPP Proforma'!$C$18*'IPP Proforma'!$C$35*(1-(OFFSET('IPP Proforma'!$D$42,0,0,1,'IPP Proforma'!$C$27)-1)/'IPP Proforma'!$C$27))/NPV((1+$E43)/(1+'IPP Proforma'!$H$37)-1,'IPP Proforma'!$D$44:$AQ$44) -> 15.04477761 | I43: =(PV($E43,1,'IPP Proforma'!$H$22*'IPP Proforma'!$H$23*'IPP Proforma'!$C$18)/(1-'IPP Proforma'!$H$18)+'IPP Proforma'!$H$24*'IPP Proforma'!$H$23*'IPP Proforma'!$H$22*NPV($E43,OFFSET('IPP Proforma'!$D$93,MATCH('IPP Proforma'!$H$25,'IPP Proforma'!$C$94:$C$101,0),0,1,40)*'IPP Proforma'!$C$18)*'IPP Proforma'!$H$16/(1-'IPP Proforma'!$H$18))/NPV((1+$E43)/(1+'IPP Proforma'!$H$37)-1,'IPP Proforma'!$D$44:$AQ$44) -> -116.7497917 | J43: =-PV((1+$E43)/(1+'IPP Proforma'!$C$30)-1,'IPP Proforma'!$C$27,'IPP Proforma'!$C$31*'IPP Proforma'!$C$16*1000)/NPV((1+$E43)/(1+'IPP Proforma'!$H$37)-1,'IPP Proforma'!$D$44:$AQ$44) -> 25.69720013 | K43: =-NPV((1+$E43)-1,'IPP Proforma'!$D$45:$AQ$45)/NPV((1+$E43)/(1+'IPP Proforma'!$H$37)-1,'IPP Proforma'!$D$44:$AQ$44) -> -42.42951895 | L43: =PV((1+$E43)/(1+'IPP Proforma'!$H$21)/(1-'IPP Proforma'!$C$26)-1,'IPP Proforma'!$H$20,'IPP Proforma'!$H$19*'IPP Proforma'!$C$16*8760*'IPP Proforma'!$C$24/(1-'IPP Proforma'!$C$26))/(1-'IPP Proforma'!$H$18)/NPV((1+$E43)/(1+'IPP Proforma'!$H$37)-1,'IPP Proforma'!$D$44:$AQ$44) -> 0 | M43: 175.301331 | N43: =-IF($C43=0,-99.99,IF($C43=1,99.99,AVERAGE((($M43*(1+'IPP Proforma'!$H$37)^OFFSET('IPP Proforma'!$D$42,0,0,1,'IPP Proforma'!$H$34))*(8760*'IPP Proforma'!$C$16*'IPP Proforma'!$C$24*(1-'IPP Proforma'!$C$26)^(OFFSET('IPP Proforma'!$D$42,0,0,1,'IPP Proforma'!$H$34)-1))+OFFSET('IPP Proforma'!$D$45,0,0,1,'IPP Proforma'!$H$34)-'IPP Proforma'!$C$16*'IPP Proforma'!$C$31*(1+'IPP Proforma'!$C$30)^OFFSET('IPP Proforma'!$D$42,0,0,1,'IPP Proforma'!$H$34)*1000-'IPP Proforma'!$C$16*'IPP Proforma'!$C$17*'IPP Proforma'!$C$36*(1+'IPP Proforma'!$C$30)^OFFSET('IPP Proforma'!$D$42,0,0,1,'IPP Proforma'!$H$34)*1000-'IPP Proforma'!$C$16*'IPP Proforma'!$C$17*'IPP Proforma'!$C$35*(1-(OFFSET('IPP Proforma'!$D$42,0,0,1,'IPP Proforma'!$H$34)-1)/'IPP Proforma'!$C$27)*1000)/PMT('IPP Proforma'!$H$32,'IPP Proforma'!$H$34,$C43*('IPP Proforma'!$C$18+-PMT('IPP Proforma'!$H$32, 'IPP Proforma'!$H$34,'IPP Proforma'!$C$18*$C43)*'IPP Proforma'!$C$19/12))))) -> 1.377309052
C45: Debt % | D45: Equity % | E45: Equity Return | G45: Capital | H45: Prop Tax/Ins | I45: ITC | J45: Fixed O&M | K45: Var O&M | L45: PTC | M45: LCOE | N45: DSCR
B46: Solution | C46: =MAX(IF(NOT(ISERROR(N32:N42)),IF(N32:N42>targetDSCR,C32:C42))) -> 0.445 | D46: =1-C46 -> 0.555 | E46: =($C$4-'IPP Proforma'!$H$32*$C46*(1-'IPP Proforma'!$H$18))/(1-$C46) -> 0.119277027 | G46: =(('IPP Proforma'!$C$18+-PMT('IPP Proforma'!$H$32, 'IPP Proforma'!$H$34,'IPP Proforma'!$C$18*$C46)*'IPP Proforma'!$C$19/12)*(1-$C46)+PV($E46,'IPP Proforma'!$H$34,PMT('IPP Proforma'!$H$32,'IPP Proforma'!$H$34,('IPP Proforma'!$C$18+-PMT('IPP Proforma'!$H$32, 'IPP Proforma'!$H$34,'IPP Proforma'!$C$18*$C46)*'IPP Proforma'!$C$19/12)*$C46)+(-PMT('IPP Proforma'!$H$32, 'IPP Proforma'!$H$34,'IPP Proforma'!$C$18*$C46)*'IPP Proforma'!$C$19/12)*'IPP Proforma'!$H$36)-((-PMT('IPP Proforma'!$H$32, 'IPP Proforma'!$H$34,'IPP Proforma'!$C$18*$C46)*'IPP Proforma'!$C$19/12)/(1+$E46)^'IPP Proforma'!$H$34+(PV($E46,'IPP Proforma'!$H$34,(-PMT('IPP Proforma'!$H$32, 'IPP Proforma'!$H$34,'IPP Proforma'!$C$18*$C46)*'IPP Proforma'!$C$19/12)*'IPP Proforma'!$H$36)*'IPP Proforma'!$H$18))+(NPV($E46,IPMT('IPP Proforma'!$H$32,OFFSET('IPP Proforma'!$D$42,0,0,1,'IPP Proforma'!$H$34),'IPP Proforma'!$H$34,('IPP Proforma'!$C$18+-PMT('IPP Proforma'!$H$32, 'IPP Proforma'!$H$34,'IPP Proforma'!$C$18*$C46)*'IPP Proforma'!$C$19/12)*$C46))-NPV($E46,OFFSET('IPP Proforma'!$D$93,MATCH('IPP Proforma'!$H$25,'IPP Proforma'!$C$94:$C$101,0),0,1,40)*'IPP Proforma'!$C$18))*'IPP Proforma'!$H$18)/(1-'IPP Proforma'!$H$18)/NPV((1+$E46)/(1+'IPP Proforma'!$H$37)-1,'IPP Proforma'!$D$44:$AQ$44) -> 293.9938812 | H46: =-PV((1+$E46)/(1+'IPP Proforma'!$C$30)-1,'IPP Proforma'!$C$27,'IPP Proforma'!$C$18*'IPP Proforma'!$C$36)/NPV((1+$E46)/(1+'IPP Proforma'!$H$37)-1,'IPP Proforma'!$D$44:$AQ$44)+NPV($E46,'IPP Proforma'!$C$18*'IPP Proforma'!$C$35*(1-(OFFSET('IPP Proforma'!$D$42,0,0,1,'IPP Proforma'!$C$27)-1)/'IPP Proforma'!$C$27))/NPV((1+$E46)/(1+'IPP Proforma'!$H$37)-1,'IPP Proforma'!$D$44:$AQ$44) -> 15.0510701 | I46: =(PV($E46,1,'IPP Proforma'!$H$22*'IPP Proforma'!$H$23*'IPP Proforma'!$C$18)/(1-'IPP Proforma'!$H$18)+'IPP Proforma'!$H$24*'IPP Proforma'!$H$23*'IPP Proforma'!$H$22*NPV($E46,OFFSET('IPP Proforma'!$D$93,MATCH('IPP Proforma'!$H$25,'IPP Proforma'!$C$94:$C$101,0),0,1,40)*'IPP Proforma'!$C$18)*'IPP Proforma'!$H$16/(1-'IPP Proforma'!$H$18))/NPV((1+$E46)/(1+'IPP Proforma'!$H$37)-1,'IPP Proforma'!$D$44:$AQ$44) -> -116.3005763 | J46: =-PV((1+$E46)/(1+'IPP Proforma'!$C$30)-1,'IPP Proforma'!$C$27,'IPP Proforma'!$C$31*'IPP Proforma'!$C$16*1000)/NPV((1+$E46)/(1+'IPP Proforma'!$H$37)-1,'IPP Proforma'!$D$44:$AQ$44) -> 25.70794801 | K46: =-NPV((1+$E46)-1,'IPP Proforma'!$D$45:$AQ$45)/NPV((1+$E46)/(1+'IPP Proforma'!$H$37)-1,'IPP Proforma'!$D$44:$AQ$44) -> -42.31997153 | L46: =PV((1+$E46)/(1+'IPP Proforma'!$H$21)/(1-'IPP Proforma'!$C$26)-1,'IPP Proforma'!$H$20,'IPP Proforma'!$H$19*'IPP Proforma'!$C$16*8760*'IPP Proforma'!$C$24/(1-'IPP Proforma'!$C$26))/(1-'IPP Proforma'!$H$18)/NPV((1+$E46)/(1+'IPP Proforma'!$H$37)-1,'IPP Proforma'!$D$44:$AQ$44) -> 0 | M46: =SUM(G46:L46) -> 176.1323515 | N46: =-IF($C46=0,-99.99,IF($C46=1,99.99,AVERAGE((($M46*(1+'IPP Proforma'!$H$37)^OFFSET('IPP Proforma'!$D$42,0,0,1,'IPP Proforma'!$H$34))*(8760*'IPP Proforma'!$C$16*'IPP Proforma'!$C$24*(1-'IPP Proforma'!$C$26)^(OFFSET('IPP Proforma'!$D$42,0,0,1,'IPP Proforma'!$H$34)-1))+OFFSET('IPP Proforma'!$D$45,0,0,1,'IPP Proforma'!$H$34)-'IPP Proforma'!$C$16*'IPP Proforma'!$C$31*(1+'IPP Proforma'!$C$30)^OFFSET('IPP Proforma'!$D$42,0,0,1,'IPP Proforma'!$H$34)*1000-'IPP Proforma'!$C$16*'IPP Proforma'!$C$17*'IPP Proforma'!$C$36*(1+'IPP Proforma'!$C$30)^OFFSET('IPP Proforma'!$D$42,0,0,1,'IPP Proforma'!$H$34)*1000-'IPP Proforma'!$C$16*'IPP Proforma'!$C$17*'IPP Proforma'!$C$35*(1-(OFFSET('IPP Proforma'!$D$42,0,0,1,'IPP Proforma'!$H$34)-1)/'IPP Proforma'!$C$27)*1000)/PMT('IPP Proforma'!$H$32,'IPP Proforma'!$H$34,$C46*('IPP Proforma'!$C$18+-PMT('IPP Proforma'!$H$32, 'IPP Proforma'!$H$34,'IPP Proforma'!$C$18*$C46)*'IPP Proforma'!$C$19/12))))) -> 1.400171903

Sheet Summary Calcs
B2: Levelized Cost of Capacity by Cost Category for All Cases
B7: Active Case
B9: Customer Class | C9: Utility | D9: Technology | E9: Utility Incentive Status | F9: Install Year | G9: Capital | H9: Property Tax & Insurance | I9: ITC | J9: Fixed O&M | K9: Utility Incentive | L9: PTC | M9: Total | N9: NPV Equity Return Check | O9: DSCR
B10: =customerClass -> Public | C10: =utility -> NVE South | D10: =technology -> Wind | E10: =incentiveStatus -> Incentivized | F10: =installYear -> 2016 | G10: =TRANSPOSE('IPP Proforma'!M16:M22) -> 420.7302131 | H10: 21.53935962 | I10: -166.4360021 | J10: 36.790257 | K10: -60.56347352 | L10: 0 | M10: 252.060354 | N10: ='IPP Proforma'!$R$25 -> 0 | O10: =dscr -> 1.400171903
B12: All Cases
B14: Customer Class | C14: Utility | D14: Technology | E14: Utility Incentive Status | F14: Install Year | G14: Capital | H14: Property Tax & Insurance | I14: ITC | J14: Fixed O&M | K14: Utility Incentive | L14: PTC | M14: Total | N14: NPV Equity Return Check | O14: DSCR
B15: Commercial | C15: NVE North | D15: Wind | E15: Incentivized | F15: 2009 | G15: 987.3519319 | H15: 50.33753016 | I15: -373.0769641 | J15: 32.13334917 | K15: -286.9189451 | L15: 0 | M15: 409.8269022 | N15: 0 | O15: 1.402810242
B16: Commercial | C16: NVE North | D16: Wind | E16: Incentivized | F16: 2010 | G16: 989.4127857 | H16: 50.38540637 | I16: -368.9337989 | J16: 32.80718954 | K16: -340.6378846 | L16: 0 | M16: 363.0336981 | N16: 0 | O16: 1.40531225
B17: Commercial | C17: NVE North | D17: Wind | E17: Incentivized | F17: 2011 | G17: 554.2241842 | H17: 28.77530659 | I17: -201.9060206 | J17: 33.57508342 | K17: -273.3722667 | L17: 0 | M17: 141.2962869 | N17: 0 | O17: 1.400819639
B18: Commercial | C18: NVE North | D18: Wind | E18: Incentivized | F18: 2012 | G18: 404.2693517 | H18: 20.94354434 | I18: -146.7992305 | J18: 34.24938803 | K18: -234.8822164 | L18: 0 | M18: 77.78083714 | N18: 0 | O18: 1.407149974
B19: Commercial | C19: NVE North | D19: Wind | E19: Incentivized | F19: 2013 | G19: 418.7181845 | H19: 21.69797189 | I19: -152.6914195 | J19: 34.92357234 | K19: -235.7067104 | L19: 0 | M19: 86.94159876 | N19: 0 | O19: 1.404528038
B20: Commercial | C20: NVE North | D20: Wind | E20: Incentivized | F20: 2014 | G20: 410.8932315 | H20: 21.53471229 | I20: -166.8562611 | J20: 35.35401686 | K20: -32.07180758 | L20: 0 | M20: 268.853892 | N20: 0 | O20: 1.401581184
B21: Commercial | C21: NVE North | D21: Wind | E21: Incentivized | F21: 2015 | G21: 419.6472063 | H21: 21.51575976 | I21: -168.5810191 | J21: 36.02936012 | K21: -32.29572125 | L21: 0 | M21: 276.3155858 | N21: 0 | O21: 1.401267771
B22: Commercial | C22: NVE North | D22: Wind | E22: Incentivized | F22: 2016 | G22: 419.6472063 | H22: 21.51575976 | I22: -168.5810191 | J22: 36.74994732 | K22: -32.29572125 | L22: 0 | M22: 277.036173 | N22: 0 | O22: 1.40098934
B23: Commercial | C23: NVE North | D23: Wind | E23: Non-Incentivized | F23: 2009 | G23: 974.112824 | H23: 50.04516499 | I23: -399.3781095 | J23: 31.94671562 | K23: 0 | L23: 0 | M23: 656.7265951 | N23: 0 | O23: 1.403678127
B24: Commercial | C24: NVE North | D24: Wind | E24: Non-Incentivized | F24: 2010 | G24: 974.112824 | H24: 50.04516499 | I24: -399.3781095 | J24: 32.58564993 | K24: 0 | L24: 0 | M24: 657.3655295 | N24: 0 | O24: 1.403573564
B25: Commercial | C25: NVE North | D25: Wind | E25: Non-Incentivized | F25: 2011 | G25: 542.9708915 | H25: 28.51209012 | I25: -224.900829 | J25: 33.26796193 | K25: 0 | L25: 0 | M25: 379.8501146 | N25: 0 | O25: 1.403999476
B26: Commercial | C26: NVE North | D26: Wind | E26: Non-Incentivized | F26: 2012 | G26: 394.3186954 | H26: 20.69453176 | I26: -168.8872241 | J26: 33.84217289 | K26: 0 | L26: 0 | M26: 279.9681759 | N26: 0 | O26: 1.400702479
B27: Commercial | C27: NVE North | D27: Wind | E27: Non-Incentivized | F27: 2013 | G27: 408.6492031 | H27: 21.44662176 | I27: -175.0249997 | J27: 34.51901635 | K27: 0 | L27: 0 | M27: 289.5898415 | N27: 0 | O27: 1.400934191
B28: Commercial | C28: NVE North | D28: Wind | E28: Non-Incentivized | F28: 2014 | G28: 409.5194309 | H28: 21.50438468 | I28: -169.6246722 | J28: 35.30422735 | K28: 0 | L28: 0 | M28: 296.7033708 | N28: 0 | O28: 1.400055106
B29: Commercial | C29: NVE North | D29: Wind | E29: Non-Incentivized | F29: 2015 | G29: 418.3419501 | H29: 21.48780783 | I29: -171.1571181 | J29: 35.98255302 | K29: 0 | L29: 0 | M29: 304.6551929 | N29: 0 | O29: 1.403717624
B30: Commercial | C30: NVE North | D30: Wind | E30: Non-Incentivized | F30: 2016 | G30: 418.3419501 | H30: 21.48780783 | I30: -171.1571181 | J30: 36.70220408 | K30: 0 | L30: 0 | M30: 305.3748439 | N30: 0 | O30: 1.403442954
B31: Commercial | C31: NVE North | D31: PV | E31: Incentivized | F31: 2004 | G31: 1031.013233 | H31: 50.93593658 | I31: 0 | J31: 19.1919406 | K31: -648.3355226 | L31: 0 | M31: 452.8055877 | N31: 0 | O31: 1.401098835
B32: Commercial | C32: NVE North | D32: PV | E32: Incentivized | F32: 2005 | G32: 1042.65681 | H32: 51.79772238 | I32: 0 | J32: 19.50884264 | K32: -538.7740867 | L32: 0 | M32: 575.1892887 | N32: 0 | O32: 1.400580928
B33: Commercial | C33: NVE North | D33: PV | E33: Incentivized | F33: 2006 | G33: 1700.949381 | H33: 83.18923852 | I33: -640.871856 | J33: 20.12533456 | K33: -356.2607467 | L33: 0 | M33: 807.1313512 | N33: 0 | O33: 1.403571661
B34: Commercial | C34: NVE North | D34: PV | E34: Incentivized | F34: 2007 | G34: 907.6395215 | H34: 44.2286021 | I34: -328.5036399 | J34: 20.58691843 | K34: -344.9546713 | L34: 0 | M34: 298.9967309 | N34: 0 | O34: 1.405118649
B35: Commercial | C35: NVE North | D35: PV | E35: Incentivized | F35: 2008 | G35: 1046.976568 | H35: 52.46521147 | I35: -395.2208006 | J35: 20.97537604 | K35: -291.0676596 | L35: 0 | M35: 434.1286956 | N35: 0 | O35: 1.404914052
B36: Commercial | C36: NVE North | D36: PV | E36: Incentivized | F36: 2009 | G36: 636.8508709 | H36: 32.37648597 | I36: -232.653839 | J36: 21.47419491 | K36: -279.1908016 | L36: 0 | M36: 178.8569112 | N36: 0 | O36: 1.40071846
B37: Commercial | C37: NVE North | D37: PV | E37: Incentivized | F37: 2010 | G37: 701.3194025 | H37: 35.69634991 | I37: -259.9400079 | J37: 21.88091216 | K37: -259.8871493 | L37: 0 | M37: 239.0695074 | N37: 0 | O37: 1.405367636
B38: Commercial | C38: NVE North | D38: PV | E38: Incentivized | F38: 2011 | G38: 676.0437381 | H38: 35.23540189 | I38: -258.2594005 | J38: 22.30714419 | K38: -193.1982672 | L38: 0 | M38: 282.1286164 | N38: 0 | O38: 1.404984509
B39: Commercial | C39: NVE North | D39: PV | E39: Incentivized | F39: 2012 | G39: 580.8023366 | H39: 30.25655046 | I39: -228.1316945 | J39: 22.7027862 | K39: -157.3036919 | L39: 0 | M39: 248.3262868 | N39: 0 | O39: 1.404393092
B40: Commercial | C40: NVE North | D40: PV | E40: Incentivized | F40: 2013 | G40: 418.1313026 | H40: 21.748614 | I40: -160.9218373 | J40: 23.19114448 | K40: -143.2487031 | L40: 0 | M40: 158.9005207 | N40: 0 | O40: 1.404898919
B41: Commercial | C41: NVE North | D41: PV | E41: Incentivized | F41: 2014 | G41: 420.0849121 | H41: 22.01431025 | I41: -170.4168341 | J41: 23.57103881 | K41: -35.91758009 | L41: 0 | M41: 259.335847 | N41: 0 | O41: 1.402930225
B42: Commercial | C42: NVE North | D42: PV | E42: Incentivized | F42: 2015 | G42: 422.0783528 | H42: 21.64670828 | I42: -170.0624931 | J42: 24.0144909 | K42: -28.90676607 | L42: 0 | M42: 268.7702928 | N42: 0 | O42: 1.401788812
B43: Commercial | C43: NVE North | D43: PV | E43: Incentivized | F43: 2016 | G43: 416.5517117 | H43: 21.37384921 | I43: -168.6802793 | J43: 24.48603477 | K43: -18.90615652 | L43: 0 | M43: 274.8251598 | N43: 0 | O43: 1.404003627
B44: Commercial | C44: NVE North | D44: PV | E44: Non-Incentivized | F44: 2004 | G44: 947.4691491 | H44: 49.58682419 | I44: 0 | J44: 18.68361413 | K44: 0 | L44: 0 | M44: 1015.739587 | N44: 0 | O44: 1.403014168
B45: Commercial | C45: NVE North | D45: PV | E45: Non-Incentivized | F45: 2005 | G45: 966.8052542 | H45: 50.59880019 | I45: 0 | J45: 19.05728641 | K45: 0 | L45: 0 | M45: 1036.461341 | N45: 0 | O45: 1.403015388
B46: Commercial | C46: NVE North | D46: PV | E46: Non-Incentivized | F46: 2006 | G46: 1683.94007 | H46: 82.84156568 | I46: -672.9588777 | J46: 20.04122474 | K46: 0 | L46: 0 | M46: 1113.863983 | N46: 0 | O46: 1.400508757
B47: Commercial | C47: NVE North | D47: PV | E47: Non-Incentivized | F47: 2007 | G47: 892.8735334 | H47: 43.92044255 | I47: -356.4696169 | J47: 20.44348059 | K47: 0 | L47: 0 | M47: 600.7678397 | N47: 0 | O47: 1.402897989
B48: Commercial | C48: NVE North | D48: PV | E48: Non-Incentivized | F48: 2008 | G48: 1033.157493 | H48: 52.16583297 | I48: -422.5360056 | J48: 20.85568574 | K48: 0 | L48: 0 | M48: 683.6430065 | N48: 0 | O48: 1.401680357
B49: Commercial | C49: NVE North | D49: PV | E49: Non-Incentivized | F49: 2009 | G49: 625.021435 | H49: 32.11055236 | I49: -256.2535601 | J49: 21.29781041 | K49: 0 | L49: 0 | M49: 422.1762377 | N49: 0 | O49: 1.403474135
B50: Commercial | C50: NVE North | D50: PV | E50: Non-Incentivized | F50: 2010 | G50: 689.8277348 | H50: 35.4399839 | I50: -282.8236009 | J50: 21.72376662 | K50: 0 | L50: 0 | M50: 464.1678844 | N50: 0 | O50: 1.403886025
B51: Commercial | C51: NVE North | D51: PV | E51: Non-Incentivized | F51: 2011 | G51: 667.0182937 | H51: 35.02974293 | I51: -276.579518 | J51: 22.17694378 | K51: 0 | L51: 0 | M51: 447.6454624 | N51: 0 | O51: 1.404127957
B52: Commercial | C52: NVE North | D52: PV | E52: Non-Incentivized | F52: 2012 | G52: 572.8140507 | H52: 30.06562295 | I52: -245.6288281 | J52: 22.55952511 | K52: 0 | L52: 0 | M52: 379.8103707 | N52: 0 | O52: 1.404197941
B53: Commercial | C53: NVE North | D53: PV | E53: Non-Incentivized | F53: 2013 | G53: 411.1336127 | H53: 21.57940813 | I53: -176.2985167 | J53: 23.01071561 | K53: 0 | L53: 0 | M53: 279.4252197 | N53: 0 | O53: 1.401360124
B54: Commercial | C54: NVE North | D54: PV | E54: Non-Incentivized | F54: 2014 | G54: 418.5326714 | H54: 21.98004466 | I54: -173.5448122 | J54: 23.53435015 | K54: 0 | L54: 0 | M54: 290.502254 | N54: 0 | O54: 1.400495571
B55: Commercial | C55: NVE North | D55: PV | E55: Non-Incentivized | F55: 2015 | G55: 420.9012569 | H55: 21.62155292 | I55: -172.3847087 | J55: 23.98658396 | K55: 0 | L55: 0 | M55: 294.1246851 | N55: 0 | O55: 1.404080373
B56: Commercial | C56: NVE North | D56: PV | E56: Non-Incentivized | F56: 2016 | G56: 415.7441944 | H56: 21.35663639 | I56: -170.2725774 | J56: 24.46631564 | K56: 0 | L56: 0 | M56: 291.294569 | N56: 0 | O56: 1.403783494
B57: Commercial | C57: NVE South | D57: Wind | E57: Incentivized | F57: 2009 | G57: 987.3519319 | H57: 50.33753016 | I57: -373.0769641 | J57: 32.13334917 | K57: -286.9189451 | L57: 0 | M57: 409.8269022 | N57: 0 | O57: 1.402810242
B58: Commercial | C58: NVE South | D58: Wind | E58: Incentivized | F58: 2010 | G58: 989.4127857 | H58: 50.38540637 | I58: -368.9337989 | J58: 32.80718954 | K58: -340.6378846 | L58: 0 | M58: 363.0336981 | N58: 0 | O58: 1.40531225
B59: Commercial | C59: NVE South | D59: Wind | E59: Incentivized | F59: 2011 | G59: 554.2241842 | H59: 28.77530659 | I59: -201.9060206 | J59: 33.57508342 | K59: -273.3722667 | L59: 0 | M59: 141.2962869 | N59: 0 | O59: 1.400819639
B60: Commercial | C60: NVE South | D60: Wind | E60: Incentivized | F60: 2012 | G60: 404.2693517 | H60: 20.94354434 | I60: -146.7992305 | J60: 34.24938803 | K60: -234.8822164 | L60: 0 | M60: 77.78083714 | N60: 0 | O60: 1.407149974
B61: Commercial | C61: NVE South | D61: Wind | E61: Incentivized | F61: 2013 | G61: 418.7181845 | H61: 21.69797189 | I61: -152.6914195 | J61: 34.92357234 | K61: -235.7067104 | L61: 0 | M61: 86.94159876 | N61: 0 | O61: 1.404528038
B62: Commercial | C62: NVE South | D62: Wind | E62: Incentivized | F62: 2014 | G62: 410.8235867 | H62: 21.53315961 | I62: -166.9969027 | J62: 35.3514678 | K62: -30.31558257 | L62: 0 | M62: 270.3957288 | N62: 0 | O62: 1.401663072
B63: Commercial | C63: NVE South | D63: Wind | E63: Incentivized | F63: 2015 | G63: 419.5771829 | H63: 21.51424679 | I63: -168.7194648 | J63: 36.02682655 | K63: -30.52674882 | L63: 0 | M63: 277.8720426 | N63: 0 | O63: 1.40133371
B64: Commercial | C64: NVE South | D64: Wind | E64: Incentivized | F64: 2016 | G64: 419.5771829 | H64: 21.51424679 | I64: -168.7194648 | J64: 36.74736308 | K64: -30.52674882 | L64: 0 | M64: 278.5925792 | N64: 0 | O64: 1.401055506
B65: Commercial | C65: NVE South | D65: Wind | E65: Non-Incentivized | F65: 2009 | G65: 974.112824 | H65: 50.04516499 | I65: -399.3781095 | J65: 31.94671562 | K65: 0 | L65: 0 | M65: 656.7265951 | N65: 0 | O65: 1.403678127
B66: Commercial | C66: NVE South | D66: Wind | E66: Non-Incentivized | F66: 2010 | G66: 974.112824 | H66: 50.04516499 | I66: -399.3781095 | J66: 32.58564993 | K66: 0 | L66: 0 | M66: 657.3655295 | N66: 0 | O66: 1.403573564
B67: Commercial | C67: NVE South | D67: Wind | E67: Non-Incentivized | F67: 2011 | G67: 542.9708915 | H67: 28.51209012 | I67: -224.900829 | J67: 33.26796193 | K67: 0 | L67: 0 | M67: 379.8501146 | N67: 0 | O67: 1.403999476
B68: Commercial | C68: NVE South | D68: Wind | E68: Non-Incentivized | F68: 2012 | G68: 394.3186954 | H68: 20.69453176 | I68: -168.8872241 | J68: 33.84217289 | K68: 0 | L68: 0 | M68: 279.9681759 | N68: 0 | O68: 1.400702479
B69: Commercial | C69: NVE South | D69: Wind | E69: Non-Incentivized | F69: 2013 | G69: 408.6492031 | H69: 21.44662176 | I69: -175.0249997 | J69: 34.51901635 | K69: 0 | L69: 0 | M69: 289.5898415 | N69: 0 | O69: 1.400934191
B70: Commercial | C70: NVE South | D70: Wind | E70: Non-Incentivized | F70: 2014 | G70: 409.5194309 | H70: 21.50438468 | I70: -169.6246722 | J70: 35.30422735 | K70: 0 | L70: 0 | M70: 296.7033708 | N70: 0 | O70: 1.400055106
B71: Commercial | C71: NVE South | D71: Wind | E71: Non-Incentivized | F71: 2015 | G71: 418.3419501 | H71: 21.48780783 | I71: -171.1571181 | J71: 35.98255302 | K71: 0 | L71: 0 | M71: 304.6551929 | N71: 0 | O71: 1.403717624
B72: Commercial | C72: NVE South | D72: Wind | E72: Non-Incentivized | F72: 2016 | G72: 418.3419501 | H72: 21.48780783 | I72: -171.1571181 | J72: 36.70220408 | K72: 0 | L72: 0 | M72: 305.3748439 | N72: 0 | O72: 1.403442954
B73: Commercial | C73: NVE South | D73: PV | E73: Incentivized | F73: 2004 | G73: 1031.013233 | H73: 50.93593658 | I73: 0 | J73: 19.1919406 | K73: -648.3355226 | L73: 0 | M73: 452.8055877 | N73: 0 | O73: 1.401098835
B74: Commercial | C74: NVE South | D74: PV | E74: Incentivized | F74: 2005 | G74: 1042.65681 | H74: 51.79772238 | I74: 0 | J74: 19.50884264 | K74: -538.7740867 | L74: 0 | M74: 575.1892887 | N74: 0 | O74: 1.400580928
B75: Commercial | C75: NVE South | D75: PV | E75: Incentivized | F75: 2006 | G75: 1700.949381 | H75: 83.18923852 | I75: -640.871856 | J75: 20.12533456 | K75: -356.2607467 | L75: 0 | M75: 807.1313512 | N75: 0 | O75: 1.403571661
B76: Commercial | C76: NVE South | D76: PV | E76: Incentivized | F76: 2007 | G76: 907.6395215 | H76: 44.2286021 | I76: -328.5036399 | J76: 20.58691843 | K76: -344.9546713 | L76: 0 | M76: 298.9967309 | N76: 0 | O76: 1.405118649
B77: Commercial | C77: NVE South | D77: PV | E77: Incentivized | F77: 2008 | G77: 1046.976568 | H77: 52.46521147 | I77: -395.2208006 | J77: 20.97537604 | K77: -291.0676596 | L77: 0 | M77: 434.1286956 | N77: 0 | O77: 1.404914052
B78: Commercial | C78: NVE South | D78: PV | E78: Incentivized | F78: 2009 | G78: 636.8508709 | H78: 32.37648597 | I78: -232.653839 | J78: 21.47419491 | K78: -279.1908016 | L78: 0 | M78: 178.8569112 | N78: 0 | O78: 1.40071846
B79: Commercial | C79: NVE South | D79: PV | E79: Incentivized | F79: 2010 | G79: 701.3194025 | H79: 35.69634991 | I79: -259.9400079 | J79: 21.88091216 | K79: -259.8871493 | L79: 0 | M79: 239.0695074 | N79: 0 | O79: 1.405367636
B80: Commercial | C80: NVE South | D80: PV | E80: Incentivized | F80: 2011 | G80: 676.0437381 | H80: 35.23540189 | I80: -258.2594005 | J80: 22.30714419 | K80: -193.1982672 | L80: 0 | M80: 282.1286164 | N80: 0 | O80: 1.404984509
B81: Commercial | C81: NVE South | D81: PV | E81: Incentivized | F81: 2012 | G81: 580.8023366 | H81: 30.25655046 | I81: -228.1316945 | J81: 22.7027862 | K81: -157.3036919 | L81: 0 | M81: 248.3262868 | N81: 0 | O81: 1.404393092
B82: Commercial | C82: NVE South | D82: PV | E82: Incentivized | F82: 2013 | G82: 418.1313026 | H82: 21.748614 | I82: -160.9218373 | J82: 23.19114448 | K82: -143.2487031 | L82: 0 | M82: 158.9005207 | N82: 0 | O82: 1.404898919
B83: Commercial | C83: NVE South | D83: PV | E83: Incentivized | F83: 2014 | G83: 420.1555232 | H83: 22.01588781 | I83: -170.2741746 | J83: 23.57272792 | K83: -38.25050208 | L83: 0 | M83: 257.2194622 | N83: 0 | O83: 1.401490567
B84: Commercial | C84: NVE South | D84: PV | E84: Incentivized | F84: 2015 | G84: 422.1493908 | H84: 21.64824004 | I84: -169.9220996 | J84: 24.0161902 | K84: -30.78461495 | L84: 0 | M84: 267.1071065 | N84: 0 | O84: 1.401473813
B85: Commercial | C85: NVE South | D85: PV | E85: Incentivized | F85: 2016 | G85: 416.5517117 | H85: 21.37384921 | I85: -168.6802793 | J85: 24.48603477 | K85: -20.14557813 | L85: 0 | M85: 273.5857382 | N85: 0 | O85: 1.400890794
B86: Commercial | C86: NVE South | D86: PV | E86: Non-Incentivized | F86: 2004 | G86: 947.4691491 | H86: 49.58682419 | I86: 0 | J86: 18.68361413 | K86: 0 | L86: 0 | M86: 1015.739587 | N86: 0 | O86: 1.403014168
B87: Commercial | C87: NVE South | D87: PV | E87: Non-Incentivized | F87: 2005 | G87: 966.8052542 | H87: 50.59880019 | I87: 0 | J87: 19.05728641 | K87: 0 | L87: 0 | M87: 1036.461341 | N87: 0 | O87: 1.403015388
B88: Commercial | C88: NVE South | D88: PV | E88: Non-Incentivized | F88: 2006 | G88: 1683.94007 | H88: 82.84156568 | I88: -672.9588777 | J88: 20.04122474 | K88: 0 | L88: 0 | M88: 1113.863983 | N88: 0 | O88: 1.400508757
B89: Commercial | C89: NVE South | D89: PV | E89: Non-Incentivized | F89: 2007 | G89: 892.8735334 | H89: 43.92044255 | I89: -356.4696169 | J89: 20.44348059 | K89: 0 | L89: 0 | M89: 600.7678397 | N89: 0 | O89: 1.402897989
B90: Commercial | C90: NVE South | D90: PV | E90: Non-Incentivized | F90: 2008 | G90: 1033.157493 | H90: 52.16583297 | I90: -422.5360056 | J90: 20.85568574 | K90: 0 | L90: 0 | M90: 683.6430065 | N90: 0 | O90: 1.401680357
B91: Commercial | C91: NVE South | D91: PV | E91: Non-Incentivized | F91: 2009 | G91: 625.021435 | H91: 32.11055236 | I91: -256.2535601 | J91: 21.29781041 | K91: 0 | L91: 0 | M91: 422.1762377 | N91: 0 | O91: 1.403474135
B92: Commercial | C92: NVE South | D92: PV | E92: Non-Incentivized | F92: 2010 | G92: 689.8277348 | H92: 35.4399839 | I92: -282.8236009 | J92: 21.72376662 | K92: 0 | L92: 0 | M92: 464.1678844 | N92: 0 | O92: 1.403886025
B93: Commercial | C93: NVE South | D93: PV | E93: Non-Incentivized | F93: 2011 | G93: 667.0182937 | H93: 35.02974293 | I93: -276.579518 | J93: 22.17694378 | K93: 0 | L93: 0 | M93: 447.6454624 | N93: 0 | O93: 1.404127957
B94: Commercial | C94: NVE South | D94: PV | E94: Non-Incentivized | F94: 2012 | G94: 572.8140507 | H94: 30.06562295 | I94: -245.6288281 | J94: 22.55952511 | K94: 0 | L94: 0 | M94: 379.8103707 | N94: 0 | O94: 1.404197941
B95: Commercial | C95: NVE South | D95: PV | E95: Non-Incentivized | F95: 2013 | G95: 411.1336127 | H95: 21.57940813 | I95: -176.2985167 | J95: 23.01071561 | K95: 0 | L95: 0 | M95: 279.4252197 | N95: 0 | O95: 1.401360124
B96: Commercial | C96: NVE South | D96: PV | E96: Non-Incentivized | F96: 2014 | G96: 418.5326714 | H96: 21.98004466 | I96: -173.5448122 | J96: 23.53435015 | K96: 0 | L96: 0 | M96: 290.502254 | N96: 0 | O96: 1.400495571
B97: Commercial | C97: NVE South | D97: PV | E97: Non-Incentivized | F97: 2015 | G97: 420.9012569 | H97: 21.62155292 | I97: -172.3847087 | J97: 23.98658396 | K97: 0 | L97: 0 | M97: 294.1246851 | N97: 0 | O97: 1.404080373
B98: Commercial | C98: NVE South | D98: PV | E98: Non-Incentivized | F98: 2016 | G98: 415.7441944 | H98: 21.35663639 | I98: -170.2725774 | J98: 24.46631564 | K98: 0 | L98: 0 | M98: 291.294569 | N98: 0 | O98: 1.403783494
B99: Residential | C99: NVE North | D99: Wind | E99: Incentivized | F99: 2009 | G99: 663.8519581 | H99: 33.75692536 | I99: -243.2053439 | J99: 32.20473714 | K99: -279.8331308 | L99: 0 | M99: 206.7751459 | N99: 0 | O99: 1.404313928
B100: Residential | C100: NVE North | D100: Wind | E100: Incentivized | F100: 2010 | G100: 721.7287035 | H100: 36.67512373 | I100: -262.1968388 | J100: 32.86868299 | K100: -333.5161738 | L100: 0 | M100: 195.5594976 | N100: 0 | O100: 1.40263318
B101: Residential | C101: NVE North | D101: Wind | E101: Incentivized | F101: 2011 | G101: 624.3069838 | H101: 32.4406307 | I101: -229.8526767 | J101: 33.54956358 | K101: -275.7360368 | L101: 0 | M101: 184.7084646 | N101: 0 | O101: 1.405316183
B102: Residential | C102: NVE North | D102: Wind | E102: Incentivized | F102: 2012 | G102: 681.2601366 | H102: 35.42383729 | I102: -261.0754888 | J102: 34.11518089 | K102: -245.5311374 | L102: 0 | M102: 244.1925285 | N102: 0 | O102: 1.403069272
B103: Residential | C103: NVE North | D103: Wind | E103: Incentivized | F103: 2013 | G103: 681.2601366 | H103: 35.42383729 | I103: -261.0754888 | J103: 34.79748451 | K103: -245.5311374 | L103: 0 | M103: 244.8748321 | N103: 0 | O103: 1.402878386
B104: Residential | C104: NVE North | D104: Wind | E104: Incentivized | F104: 2014 | G104: 672.3236624 | H104: 35.26412259 | I104: -275.2633117 | J104: 35.3334057 | K104: -32.22001933 | L104: 0 | M104: 435.4378597 | N104: 0 | O104: 1.403434047
B105: Residential | C105: NVE North | D105: Wind | E105: Incentivized | F105: 2015 | G105: 686.6622024 | H105: 35.23359516 | I105: -278.0600075 | J105: 36.00887466 | K105: -32.44079417 | L105: 0 | M105: 447.4038705 | N105: 0 | O105: 1.403082109
B106: Residential | C106: NVE North | D106: Wind | E106: Incentivized | F106: 2016 | G106: 686.6622024 | H106: 35.23359516 | I106: -278.0600075 | J106: 36.72905215 | K106: -32.44079417 | L106: 0 | M106: 448.124048 | N106: 0 | O106: 1.402913249
B107: Residential | C107: NVE North | D107: Wind | E107: Non-Incentivized | F107: 2009 | G107: 651.8031816 | H107: 33.48646785 | I107: -267.2338522 | J107: 31.94671562 | K107: 0 | L107: 0 | M107: 450.0025129 | N107: 0 | O107: 1.401092858
B108: Residential | C108: NVE North | D108: Wind | E108: Non-Incentivized | F108: 2010 | G108: 707.7221823 | H108: 36.35931332 | I108: -290.1601747 | J108: 32.58564993 | K108: 0 | L108: 0 | M108: 486.5069708 | N108: 0 | O108: 1.401566297
B109: Residential | C109: NVE North | D109: Wind | E109: Non-Incentivized | F109: 2011 | G109: 612.4859958 | H109: 32.16587489 | I109: -253.9676694 | J109: 33.26541567 | K109: 0 | L109: 0 | M109: 423.949617 | N109: 0 | O109: 1.400798785
B110: Residential | C110: NVE North | D110: Wind | E110: Non-Incentivized | F110: 2012 | G110: 669.441442 | H110: 35.13736082 | I110: -287.0636931 | J110: 33.83928766 | K110: 0 | L110: 0 | M110: 451.3543973 | N110: 0 | O110: 1.402287581
B111: Residential | C111: NVE North | D111: Wind | E111: Non-Incentivized | F111: 2013 | G111: 669.441442 | H111: 35.13736082 | I111: -287.0636931 | J111: 34.51607341 | K111: 0 | L111: 0 | M111: 452.0311831 | N111: 0 | O111: 1.402114599
B112: Residential | C112: NVE North | D112: Wind | E112: Non-Incentivized | F112: 2014 | G112: 670.875369 | H112: 35.23230463 | I112: -278.1788565 | J112: 35.30152523 | K112: 0 | L112: 0 | M112: 463.2303424 | N112: 0 | O112: 1.401066208
B113: Residential | C113: NVE North | D113: Wind | E113: Non-Incentivized | F113: 2015 | G113: 685.2070024 | H113: 35.20259322 | I113: -280.9291393 | J113: 35.97719055 | K113: 0 | L113: 0 | M113: 475.4576469 | N113: 0 | O113: 1.400536057
B114: Residential | C114: NVE North | D114: Wind | E114: Non-Incentivized | F114: 2016 | G114: 685.2070024 | H114: 35.20259322 | I114: -280.9291393 | J114: 36.69673436 | K114: 0 | L114: 0 | M114: 476.1771907 | N114: 0 | O114: 1.400368653
B115: Residential | C115: NVE North | D115: PV | E115: Incentivized | F115: 2004 | G115: 848.2595488 | H115: 41.7193971 | I115: 0 | J115: 19.24977034 | K115: -626.9917556 | L115: 0 | M115: 282.2369606 | N115: 0.03996 | O115: 1.404671519
B116: Residential | C116: NVE North | D116: PV | E116: Incentivized | F116: 2005 | G116: 857.8228361 | H116: 42.41823416 | I116: 0 | J116: 19.56439225 | K116: -522.0327516 | L116: 0 | M116: 397.7727109 | N116: 0 | O116: 1.400450294
B117: Residential | C117: NVE North | D117: PV | E117: Incentivized | F117: 2006 | G117: 899.482962 | H117: 43.82850743 | I117: -325.3277643 | J117: 20.18424779 | K117: -344.7635942 | L117: 0 | M117: 293.4043587 | N117: 0 | O117: 1.405120502
B118: Residential | C118: NVE North | D118: PV | E118: Incentivized | F118: 2007 | G118: 911.3712293 | H118: 44.413123 | I118: -330.0817643 | J118: 20.58590142 | K118: -345.1463583 | L118: 0 | M118: 301.1421312 | N118: 0 | O118: 1.402102301
B119: Residential | C119: NVE North | D119: PV | E119: Incentivized | F119: 2008 | G119: 927.789414 | H119: 46.46067929 | I119: -347.4630059 | J119: 20.98731976 | K119: -289.2125941 | L119: 0 | M119: 358.561813 | N119: 0 | O119: 1.402019155
B120: Residential | C120: NVE North | D120: PV | E120: Incentivized | F120: 2009 | G120: 880.8346638 | H120: 44.87660424 | I120: -330.2184592 | J120: 21.43433252 | K120: -285.101537 | L120: 0 | M120: 331.8256043 | N120: 0 | O120: 1.403439415
B121: Residential | C121: NVE North | D121: PV | E121: Incentivized | F121: 2010 | G121: 779.9121194 | H121: 39.72438349 | I121: -291.4822085 | J121: 21.86786199 | K121: -261.6400749 | L121: 0 | M121: 288.3820814 | N121: 0 | O121: 1.404699799
B122: Residential | C122: NVE North | D122: PV | E122: Incentivized | F122: 2011 | G122: 687.0360895 | H122: 35.8133679 | I122: -262.8921788 | J122: 22.3045039 | K122: -193.4560024 | L122: 0 | M122: 288.8057801 | N122: 0 | O122: 1.401478113
B123: Residential | C123: NVE North | D123: PV | E123: Incentivized | F123: 2012 | G123: 615.4947745 | H123: 32.07540052 | I123: -242.8768448 | J123: 22.69519022 | K123: -157.8955945 | L123: 0 | M123: 269.4929258 | N123: 0 | O123: 1.402050854
B124: Residential | C124: NVE North | D124: PV | E124: Incentivized | F124: 2013 | G124: 504.6456255 | H124: 26.27996705 | I124: -197.3187861 | J124: 23.1644835 | K124: -145.1129642 | L124: 0 | M124: 211.6583257 | N124: 0 | O124: 1.402101073
B125: Residential | C125: NVE North | D125: PV | E125: Incentivized | F125: 2014 | G125: 488.2871802 | H125: 25.56666172 | I125: -196.3226077 | J125: 23.58605928 | K125: -47.36574757 | L125: 0 | M125: 293.7515459 | N125: 0 | O125: 1.404342406
B126: Residential | C126: NVE North | D126: PV | E126: Incentivized | F126: 2015 | G126: 489.901139 | H126: 25.10817545 | I126: -196.0336166 | J126: 24.02627884 | K126: -38.3022803 | L126: 0 | M126: 304.6996964 | N126: 0 | O126: 1.401401026
B127: Residential | C127: NVE North | D127: PV | E127: Incentivized | F127: 2016 | G127: 482.7515608 | H127: 24.7608212 | I127: -194.702851 | J127: 24.49304215 | K127: -25.15159344 | L127: 0 | M127: 312.1509797 | N127: 0 | O127: 1.401104951
B128: Residential | C128: NVE North | D128: PV | E128: Non-Incentivized | F128: 2004 | G128: 773.6991922 | H128: 40.49238527 | I128: 0 | J128: 18.68361413 | K128: 0 | L128: 0 | M128: 832.8751916 | N128: 0 | O128: 1.402328806
B129: Residential | C129: NVE North | D129: PV | E129: Non-Incentivized | F129: 2005 | G129: 789.4889716 | H129: 41.31876048 | I129: 0 | J129: 19.05728641 | K129: 0 | L129: 0 | M129: 849.8650185 | N129: 0 | O129: 1.402330301
B130: Residential | C130: NVE North | D130: PV | E130: Non-Incentivized | F130: 2006 | G130: 884.7529529 | H130: 43.52099125 | I130: -353.2275674 | J130: 20.04262803 | K130: 0 | L130: 0 | M130: 595.0890048 | N130: 0 | O130: 1.402936961
B131: Residential | C131: NVE North | D131: PV | E131: Non-Incentivized | F131: 2007 | G131: 896.6428802 | H131: 44.10585669 | I131: -357.9744858 | J131: 20.44348059 | K131: 0 | L131: 0 | M131: 603.2177316 | N131: 0 | O131: 1.402913431
B132: Residential | C132: NVE North | D132: PV | E132: Non-Incentivized | F132: 2008 | G132: 914.3941386 | H132: 46.16927449 | I132: -373.9647143 | J132: 20.85568574 | K132: 0 | L132: 0 | M132: 607.4543845 | N132: 0 | O132: 1.401254515
B133: Residential | C133: NVE North | D133: PV | E133: Non-Incentivized | F133: 2009 | G133: 867.7870249 | H133: 44.58743215 | I133: -356.1608235 | J133: 21.29621577 | K133: 0 | L133: 0 | M133: 577.5098494 | N133: 0 | O133: 1.400743393
B134: Residential | C134: NVE North | D134: PV | E134: Non-Incentivized | F134: 2010 | G134: 767.9874842 | H134: 39.45967024 | I134: -315.2006736 | J134: 21.72214009 | K134: 0 | L134: 0 | M134: 513.9686209 | N134: 0 | O134: 1.400147061
B135: Residential | C135: NVE North | D135: PV | E135: Non-Incentivized | F135: 2011 | G135: 678.0396427 | H135: 35.60855018 | I135: -281.1495266 | J135: 22.17694378 | K135: 0 | L135: 0 | M135: 454.67561 | N135: 0 | O135: 1.404213372
B136: Residential | C136: NVE North | D136: PV | E136: Non-Incentivized | F136: 2012 | G136: 607.3316908 | H136: 31.88093647 | I136: -260.7411526 | J136: 22.55759572 | K136: 0 | L136: 0 | M136: 401.0290704 | N136: 0 | O136: 1.400137194
B137: Residential | C137: NVE North | D137: PV | E137: Non-Incentivized | F137: 2013 | G137: 497.3656363 | H137: 26.10551831 | I137: -213.2757362 | J137: 23.01071561 | K137: 0 | L137: 0 | M137: 333.206134 | N137: 0 | O137: 1.403020482
B138: Residential | C138: NVE North | D138: PV | E138: Non-Incentivized | F138: 2014 | G138: 485.7598828 | H138: 25.5106104 | I138: -201.4206139 | J138: 23.53435015 | K138: 0 | L138: 0 | M138: 333.3842294 | N138: 0 | O138: 1.401725518
B139: Residential | C139: NVE North | D139: PV | E139: Non-Incentivized | F139: 2015 | G139: 487.878595 | H139: 25.06482225 | I139: -200.0261429 | J139: 23.9847937 | K139: 0 | L139: 0 | M139: 336.902068 | N139: 0 | O139: 1.401069174
B140: Residential | C140: NVE North | D140: PV | E140: Non-Incentivized | F140: 2016 | G140: 481.399471 | H140: 24.73195646 | I140: -197.3697562 | J140: 24.46448957 | K140: 0 | L140: 0 | M140: 333.2261608 | N140: 0 | O140: 1.400804842
B141: Residential | C141: NVE South | D141: Wind | E141: Incentivized | F141: 2009 | G141: 663.8519581 | H141: 33.75692536 | I141: -243.2053439 | J141: 32.20473714 | K141: -279.8331308 | L141: 0 | M141: 206.7751459 | N141: 0 | O141: 1.404313928
B142: Residential | C142: NVE South | D142: Wind | E142: Incentivized | F142: 2010 | G142: 721.7287035 | H142: 36.67512373 | I142: -262.1968388 | J142: 32.86868299 | K142: -333.5161738 | L142: 0 | M142: 195.5594976 | N142: 0 | O142: 1.40263318
B143: Residential | C143: NVE South | D143: Wind | E143: Incentivized | F143: 2011 | G143: 624.3069838 | H143: 32.4406307 | I143: -229.8526767 | J143: 33.54956358 | K143: -275.7360368 | L143: 0 | M143: 184.7084646 | N143: 0 | O143: 1.405316183
B144: Residential | C144: NVE South | D144: Wind | E144: Incentivized | F144: 2012 | G144: 681.2601366 | H144: 35.42383729 | I144: -261.0754888 | J144: 34.11518089 | K144: -245.5311374 | L144: 0 | M144: 244.1925285 | N144: 0 | O144: 1.403069272
B145: Residential | C145: NVE South | D145: Wind | E145: Incentivized | F145: 2013 | G145: 681.2601366 | H145: 35.42383729 | I145: -261.0754888 | J145: 34.79748451 | K145: -245.5311374 | L145: 0 | M145: 244.8748321 | N145: 0 | O145: 1.402878386
B146: Residential | C146: NVE South | D146: Wind | E146: Incentivized | F146: 2014 | G146: 672.2057235 | H146: 35.26151575 | I146: -275.5010365 | J146: 35.33079374 | K146: -30.45607868 | L146: 0 | M146: 436.8409179 | N146: 0 | O146: 1.401797095
B147: Residential | C147: NVE South | D147: Wind | E147: Incentivized | F147: 2015 | G147: 686.5436686 | H147: 35.2310551 | I147: -278.293978 | J147: 36.0062787 | K147: -30.66426746 | L147: 0 | M147: 448.8227569 | N147: 0 | O147: 1.401450527
B148: Residential | C148: NVE South | D148: Wind | E148: Incentivized | F148: 2016 | G148: 686.5436686 | H148: 35.2310551 | I148: -278.293978 | J148: 36.72640428 | K148: -30.66426746 | L148: 0 | M148: 449.5428825 | N148: 0 | O148: 1.401281795
B149: Residential | C149: NVE South | D149: Wind | E149: Non-Incentivized | F149: 2009 | G149: 651.8031816 | H149: 33.48646785 | I149: -267.2338522 | J149: 31.94671562 | K149: 0 | L149: 0 | M149: 450.0025129 | N149: 0 | O149: 1.401092858
B150: Residential | C150: NVE South | D150: Wind | E150: Non-Incentivized | F150: 2010 | G150: 707.7221823 | H150: 36.35931332 | I150: -290.1601747 | J150: 32.58564993 | K150: 0 | L150: 0 | M150: 486.5069708 | N150: 0 | O150: 1.401566297
B151: Residential | C151: NVE South | D151: Wind | E151: Non-Incentivized | F151: 2011 | G151: 612.4859958 | H151: 32.16587489 | I151: -253.9676694 | J151: 33.26541567 | K151: 0 | L151: 0 | M151: 423.949617 | N151: 0 | O151: 1.400798785
B152: Residential | C152: NVE South | D152: Wind | E152: Non-Incentivized | F152: 2012 | G152: 669.441442 | H152: 35.13736082 | I152: -287.0636931 | J152: 33.83928766 | K152: 0 | L152: 0 | M152: 451.3543973 | N152: 0 | O152: 1.402287581
B153: Residential | C153: NVE South | D153: Wind | E153: Non-Incentivized | F153: 2013 | G153: 669.441442 | H153: 35.13736082 | I153: -287.0636931 | J153: 34.51607341 | K153: 0 | L153: 0 | M153: 452.0311831 | N153: 0 | O153: 1.402114599
B154: Residential | C154: NVE South | D154: Wind | E154: Non-Incentivized | F154: 2014 | G154: 670.875369 | H154: 35.23230463 | I154: -278.1788565 | J154: 35.30152523 | K154: 0 | L154: 0 | M154: 463.2303424 | N154: 0 | O154: 1.401066208
B155: Residential | C155: NVE South | D155: Wind | E155: Non-Incentivized | F155: 2015 | G155: 685.2070024 | H155: 35.20259322 | I155: -280.9291393 | J155: 35.97719055 | K155: 0 | L155: 0 | M155: 475.4576469 | N155: 0 | O155: 1.400536057
B156: Residential | C156: NVE South | D156: Wind | E156: Non-Incentivized | F156: 2016 | G156: 685.2070024 | H156: 35.20259322 | I156: -280.9291393 | J156: 36.69673436 | K156: 0 | L156: 0 | M156: 476.1771907 | N156: 0 | O156: 1.400368653
B157: Residential | C157: NVE South | D157: PV | E157: Incentivized | F157: 2004 | G157: 848.2595488 | H157: 41.7193971 | I157: 0 | J157: 19.24977034 | K157: -626.9917556 | L157: 0 | M157: 282.2369606 | N157: 0.03996 | O157: 1.404671519
B158: Residential | C158: NVE South | D158: PV | E158: Incentivized | F158: 2005 | G158: 857.8228361 | H158: 42.41823416 | I158: 0 | J158: 19.56439225 | K158: -522.0327516 | L158: 0 | M158: 397.7727109 | N158: 0 | O158: 1.400450294
B159: Residential | C159: NVE South | D159: PV | E159: Incentivized | F159: 2006 | G159: 899.482962 | H159: 43.82850743 | I159: -325.3277643 | J159: 20.18424779 | K159: -344.7635942 | L159: 0 | M159: 293.4043587 | N159: 0 | O159: 1.405120502
B160: Residential | C160: NVE South | D160: PV | E160: Incentivized | F160: 2007 | G160: 911.3712293 | H160: 44.413123 | I160: -330.0817643 | J160: 20.58590142 | K160: -345.1463583 | L160: 0 | M160: 301.1421312 | N160: 0 | O160: 1.402102301
B161: Residential | C161: NVE South | D161: PV | E161: Incentivized | F161: 2008 | G161: 927.789414 | H161: 46.46067929 | I161: -347.4630059 | J161: 20.98731976 | K161: -289.2125941 | L161: 0 | M161: 358.561813 | N161: 0 | O161: 1.402019155
B162: Residential | C162: NVE South | D162: PV | E162: Incentivized | F162: 2009 | G162: 880.8346638 | H162: 44.87660424 | I162: -330.2184592 | J162: 21.43433252 | K162: -285.101537 | L162: 0 | M162: 331.8256043 | N162: 0 | O162: 1.403439415
B163: Residential | C163: NVE South | D163: PV | E163: Incentivized | F163: 2010 | G163: 779.9121194 | H163: 39.72438349 | I163: -291.4822085 | J163: 21.86786199 | K163: -261.6400749 | L163: 0 | M163: 288.3820814 | N163: 0 | O163: 1.404699799
B164: Residential | C164: NVE South | D164: PV | E164: Incentivized | F164: 2011 | G164: 687.0360895 | H164: 35.8133679 | I164: -262.8921788 | J164: 22.3045039 | K164: -193.4560024 | L164: 0 | M164: 288.8057801 | N164: 0 | O164: 1.401478113
B165: Residential | C165: NVE South | D165: PV | E165: Incentivized | F165: 2012 | G165: 615.4947745 | H165: 32.07540052 | I165: -242.8768448 | J165: 22.69519022 | K165: -157.8955945 | L165: 0 | M165: 269.4929258 | N165: 0 | O165: 1.402050854
B166: Residential | C166: NVE South | D166: PV | E166: Incentivized | F166: 2013 | G166: 504.6456255 | H166: 26.27996705 | I166: -197.3187861 | J166: 23.1644835 | K166: -145.1129642 | L166: 0 | M166: 211.6583257 | N166: 0 | O166: 1.402101073
B167: Residential | C167: NVE South | D167: PV | E167: Incentivized | F167: 2014 | G167: 488.2871802 | H167: 25.56666172 | I167: -196.3226077 | J167: 23.58605928 | K167: -47.36574757 | L167: 0 | M167: 293.7515459 | N167: 0 | O167: 1.404342406
B168: Residential | C168: NVE South | D168: PV | E168: Incentivized | F168: 2015 | G168: 489.901139 | H168: 25.10817545 | I168: -196.0336166 | J168: 24.02627884 | K168: -38.3022803 | L168: 0 | M168: 304.6996964 | N168: 0 | O168: 1.401401026
B169: Residential | C169: NVE South | D169: PV | E169: Incentivized | F169: 2016 | G169: 482.7515608 | H169: 24.7608212 | I169: -194.702851 | J169: 24.49304215 | K169: -25.15159344 | L169: 0 | M169: 312.1509797 | N169: 0 | O169: 1.401104951
B170: Residential | C170: NVE South | D170: PV | E170: Non-Incentivized | F170: 2004 | G170: 773.6991922 | H170: 40.49238527 | I170: 0 | J170: 18.68361413 | K170: 0 | L170: 0 | M170: 832.8751916 | N170: 0 | O170: 1.402328806
B171: Residential | C171: NVE South | D171: PV | E171: Non-Incentivized | F171: 2005 | G171: 789.4889716 | H171: 41.31876048 | I171: 0 | J171: 19.05728641 | K171: 0 | L171: 0 | M171: 849.8650185 | N171: 0 | O171: 1.402330301
B172: Residential | C172: NVE South | D172: PV | E172: Non-Incentivized | F172: 2006 | G172: 884.7529529 | H172: 43.52099125 | I172: -353.2275674 | J172: 20.04262803 | K172: 0 | L172: 0 | M172: 595.0890048 | N172: 0 | O172: 1.402936961
B173: Residential | C173: NVE South | D173: PV | E173: Non-Incentivized | F173: 2007 | G173: 896.6428802 | H173: 44.10585669 | I173: -357.9744858 | J173: 20.44348059 | K173: 0 | L173: 0 | M173: 603.2177316 | N173: 0 | O173: 1.402913431
B174: Residential | C174: NVE South | D174: PV | E174: Non-Incentivized | F174: 2008 | G174: 914.3941386 | H174: 46.16927449 | I174: -373.9647143 | J174: 20.85568574 | K174: 0 | L174: 0 | M174: 607.4543845 | N174: 0 | O174: 1.401254515
B175: Residential | C175: NVE South | D175: PV | E175: Non-Incentivized | F175: 2009 | G175: 867.7870249 | H175: 44.58743215 | I175: -356.1608235 | J175: 21.29621577 | K175: 0 | L175: 0 | M175: 577.5098494 | N175: 0 | O175: 1.400743393
B176: Residential | C176: NVE South | D176: PV | E176: Non-Incentivized | F176: 2010 | G176: 767.9874842 | H176: 39.45967024 | I176: -315.2006736 | J176: 21.72214009 | K176: 0 | L176: 0 | M176: 513.9686209 | N176: 0 | O176: 1.400147061
B177: Residential | C177: NVE South | D177: PV | E177: Non-Incentivized | F177: 2011 | G177: 678.0396427 | H177: 35.60855018 | I177: -281.1495266 | J177: 22.17694378 | K177: 0 | L177: 0 | M177: 454.67561 | N177: 0 | O177: 1.404213372
B178: Residential | C178: NVE South | D178: PV | E178: Non-Incentivized | F178: 2012 | G178: 607.3316908 | H178: 31.88093647 | I178: -260.7411526 | J178: 22.55759572 | K178: 0 | L178: 0 | M178: 401.0290704 | N178: 0 | O178: 1.400137194
B179: Residential | C179: NVE South | D179: PV | E179: Non-Incentivized | F179: 2013 | G179: 497.3656363 | H179: 26.10551831 | I179: -213.2757362 | J179: 23.01071561 | K179: 0 | L179: 0 | M179: 333.206134 | N179: 0 | O179: 1.403020482
B180: Residential | C180: NVE South | D180: PV | E180: Non-Incentivized | F180: 2014 | G180: 485.7598828 | H180: 25.5106104 | I180: -201.4206139 | J180: 23.53435015 | K180: 0 | L180: 0 | M180: 333.3842294 | N180: 0 | O180: 1.401725518
B181: Residential | C181: NVE South | D181: PV | E181: Non-Incentivized | F181: 2015 | G181: 487.878595 | H181: 25.06482225 | I181: -200.0261429 | J181: 23.9847937 | K181: 0 | L181: 0 | M181: 336.902068 | N181: 0 | O181: 1.401069174
B182: Residential | C182: NVE South | D182: PV | E182: Non-Incentivized | F182: 2016 | G182: 481.399471 | H182: 24.73195646 | I182: -197.3697562 | J182: 24.46448957 | K182: 0 | L182: 0 | M182: 333.2261608 | N182: 0 | O182: 1.400804842
B183: Public | C183: NVE North | D183: Wind | E183: Incentivized | F183: 2009 | G183: 989.4127857 | H183: 50.38540637 | I183: -368.9337989 | J183: 32.16391132 | K183: -340.6378846 | L183: 0 | M183: 362.3904199 | N183: 0 | O183: 1.405429299
B184: Public | C184: NVE North | D184: Wind | E184: Incentivized | F184: 2010 | G184: 992.9732461 | H184: 50.46979165 | I184: -361.7378575 | J184: 32.8621349 | K184: -445.6904356 | L184: 0 | M184: 268.8768796 | N184: 0 | O184: 1.405297559
B185: Public | C185: NVE North | D185: Wind | E185: Incentivized | F185: 2011 | G185: 557.6034639 | H185: 28.86227966 | I185: -194.8110364 | J185: 33.67656377 | K185: -396.2337092 | L185: 0 | M185: 29.0975617 | N185: 0 | O185: 1.407368605
B186: Public | C186: NVE North | D186: Wind | E186: Incentivized | F186: 2012 | G186: 406.72545 | H186: 21.01347946 | I186: -141.1090495 | J186: 34.3637543 | K186: -331.3308152 | L186: 0 | M186: -10.3371809 | N186: 0 | O186: 1.407930891
B187: Public | C187: NVE North | D187: Wind | E187: Incentivized | F187: 2013 | G187: 421.2477776 | H187: 21.76958582 | I187: -146.8436202 | J187: 35.03883723 | K187: -332.6479277 | L187: 0 | M187: -1.435347246 | N187: 0 | O187: 1.404334203
B188: Public | C188: NVE North | D188: Wind | E188: Incentivized | F188: 2014 | G188: 412.099735 | H188: 21.56187677 | I188: -164.4144505 | J188: 35.39861339 | K188: -63.57912754 | L188: 0 | M188: 241.0666471 | N188: 0 | O188: 1.400586868
B189: Public | C189: NVE North | D189: Wind | E189: Incentivized | F189: 2015 | G189: 420.8608153 | H189: 21.54223131 | I189: -166.1768348 | J189: 36.07368823 | K189: -64.04089171 | L189: 0 | M189: 248.2590084 | N189: 0 | O189: 1.400519518
B190: Public | C190: NVE North | D190: Wind | E190: Incentivized | F190: 2016 | G190: 420.8608153 | H190: 21.54223131 | I190: -166.1768348 | J190: 36.795162 | K190: -64.04089171 | L190: 0 | M190: 248.9804821 | N190: 0 | O190: 1.40023664
B191: Public | C191: NVE North | D191: Wind | E191: Non-Incentivized | F191: 2009 | G191: 974.112824 | H191: 50.04516499 | I191: -399.3781095 | J191: 31.94671562 | K191: 0 | L191: 0 | M191: 656.7265951 | N191: 0 | O191: 1.403678127
B192: Public | C192: NVE North | D192: Wind | E192: Non-Incentivized | F192: 2010 | G192: 974.112824 | H192: 50.04516499 | I192: -399.3781095 | J192: 32.58564993 | K192: 0 | L192: 0 | M192: 657.3655295 | N192: 0 | O192: 1.403573564
B193: Public | C193: NVE North | D193: Wind | E193: Non-Incentivized | F193: 2011 | G193: 542.9708915 | H193: 28.51209012 | I193: -224.900829 | J193: 33.26796193 | K193: 0 | L193: 0 | M193: 379.8501146 | N193: 0 | O193: 1.403999476
B194: Public | C194: NVE North | D194: Wind | E194: Non-Incentivized | F194: 2012 | G194: 394.3186954 | H194: 20.69453176 | I194: -168.8872241 | J194: 33.84217289 | K194: 0 | L194: 0 | M194: 279.9681759 | N194: 0 | O194: 1.400702479
B195: Public | C195: NVE North | D195: Wind | E195: Non-Incentivized | F195: 2013 | G195: 408.6492031 | H195: 21.44662176 | I195: -175.0249997 | J195: 34.51901635 | K195: 0 | L195: 0 | M195: 289.5898415 | N195: 0 | O195: 1.400934191
B196: Public | C196: NVE North | D196: Wind | E196: Non-Incentivized | F196: 2014 | G196: 409.5194309 | H196: 21.50438468 | I196: -169.6246722 | J196: 35.30422735 | K196: 0 | L196: 0 | M196: 296.7033708 | N196: 0 | O196: 1.400055106
B197: Public | C197: NVE North | D197: Wind | E197: Non-Incentivized | F197: 2015 | G197: 418.3419501 | H197: 21.48780783 | I197: -171.1571181 | J197: 35.98255302 | K197: 0 | L197: 0 | M197: 304.6551929 | N197: 0 | O197: 1.403717624
B198: Public | C198: NVE North | D198: Wind | E198: Non-Incentivized | F198: 2016 | G198: 418.3419501 | H198: 21.48780783 | I198: -171.1571181 | J198: 36.70220408 | K198: 0 | L198: 0 | M198: 305.3748439 | N198: 0 | O198: 1.403442954
B199: Public | C199: NVE North | D199: PV | E199: Incentivized | F199: 2004 | G199: 1031.013233 | H199: 50.93593658 | I199: 0 | J199: 19.1919406 | K199: -648.3355226 | L199: 0 | M199: 452.8055877 | N199: 0 | O199: 1.401098835
B200: Public | C200: NVE North | D200: PV | E200: Incentivized | F200: 2005 | G200: 1042.65681 | H200: 51.79772238 | I200: 0 | J200: 19.50884264 | K200: -538.7740867 | L200: 0 | M200: 575.1892887 | N200: 0 | O200: 1.400580928
B201: Public | C201: NVE North | D201: PV | E201: Incentivized | F201: 2006 | G201: 1700.949381 | H201: 83.18923852 | I201: -640.871856 | J201: 20.12533456 | K201: -356.2607467 | L201: 0 | M201: 807.1313512 | N201: 0 | O201: 1.403571661
B202: Public | C202: NVE North | D202: PV | E202: Incentivized | F202: 2007 | G202: 913.8566129 | H202: 44.36831626 | I202: -316.5383375 | J202: 20.65195065 | K202: -554.8406305 | L202: 0 | M202: 107.4979119 | N202: 0.01119 | O202: 1.401695057
B203: Public | C203: NVE North | D203: PV | E203: Incentivized | F203: 2008 | G203: 1056.019746 | H203: 52.67591072 | I203: -377.0366701 | J203: 21.05961273 | K203: -556.4437354 | L203: 0 | M203: 196.2748635 | N203: 0 | O203: 1.403950469
B204: Public | C204: NVE North | D204: PV | E204: Incentivized | F204: 2009 | G204: 643.4744136 | H204: 32.54142795 | I204: -219.0736434 | J204: 21.58359518 | K204: -527.0978538 | L204: 0 | M204: -48.57206049 | N204: 0 | O204: 1.406015223
B205: Public | C205: NVE North | D205: PV | E205: Incentivized | F205: 2010 | G205: 709.0574251 | H205: 35.88624545 | I205: -244.1440925 | J205: 21.99731307 | K205: -532.0203145 | L205: 0 | M205: -9.223423386 | N205: 0 | O205: 1.403510989
B206: Public | C206: NVE North | D206: PV | E206: Incentivized | F206: 2011 | G206: 685.2888242 | H206: 35.46715704 | I206: -239.004136 | J206: 22.45386582 | K206: -495.9015395 | L206: 0 | M206: 8.304171589 | N206: 0 | O206: 1.407333896
B207: Public | C207: NVE North | D207: PV | E207: Incentivized | F207: 2012 | G207: 587.214756 | H207: 30.42530229 | I207: -213.681189 | J207: 22.82940792 | K207: -339.2590962 | L207: 0 | M207: 87.52918096 | N207: 0 | O207: 1.404169158
B208: Public | C208: NVE North | D208: PV | E208: Incentivized | F208: 2013 | G208: 422.9985566 | H208: 21.88046688 | I208: -149.8455393 | J208: 23.33174283 | K208: -299.6768548 | L208: 0 | M208: 18.68837215 | N208: 0 | O208: 1.400642605
... 59 more rows

Sheet Summary Graphs
B2: Installed Costs, Utility Incentive Levels, and Total Levelized Capital Costs
D5: Install Costs $/W AC | S5: RenewableGenerations Upfront Incentive
D6: PV | F6: Wind | T6: PV | W6: Wind
D7: Residential | E7: Commercial | F7: Residential | G7: Commercial | T7: Residential | U7: Public | V7: Commercial | W7: Residential | X7: Public | Y7: Commercial
C8: 2009 | D8: ='Resource & Utility Inputs'!C46 -> 7.736941754 | E8: ='Resource & Utility Inputs'!E46 -> 5.571499858 | F8: ='Resource & Utility Inputs'!F46 -> 5.810234866 | G8: ='Resource & Utility Inputs'!H46 -> 8.683333333 | S8: 2009 | T8: ='Resource & Utility Inputs'!Q27 -> 2500 | U8: ='Resource & Utility Inputs'!R27 -> 5000 | V8: ='Resource & Utility Inputs'!S27 -> 2500 | W8: ='Resource & Utility Inputs'!T27 -> 2500 | X8: ='Resource & Utility Inputs'!U27 -> 3000 | Y8: ='Resource & Utility Inputs'!V27 -> 2500
C9: 2010 | D9: ='Resource & Utility Inputs'!C47 -> 6.847157496 | E9: ='Resource & Utility Inputs'!E47 -> 6.149189309 | F9: ='Resource & Utility Inputs'!F47 -> 6.308702097 | G9: ='Resource & Utility Inputs'!H47 -> 8.683333333 | S9: 2010 | T9: ='Resource & Utility Inputs'!Q28 -> 2300 | U9: ='Resource & Utility Inputs'!R28 -> 5000 | V9: ='Resource & Utility Inputs'!S28 -> 2300 | W9: ='Resource & Utility Inputs'!T28 -> 3000 | X9: ='Resource & Utility Inputs'!U28 -> 4000 | Y9: ='Resource & Utility Inputs'!V28 -> 3000
C10: 2011 | D10: ='Resource & Utility Inputs'!C48 -> 6.173226955 | E10: ='Resource & Utility Inputs'!E48 -> 6.072882839 | F10: ='Resource & Utility Inputs'!F48 -> 5.576392324 | G10: ='Resource & Utility Inputs'!H48 -> 4.942580667 | S10: 2011 | T10: ='Resource & Utility Inputs'!Q29 -> 1700 | U10: ='Resource & Utility Inputs'!R29 -> 4700 | V10: ='Resource & Utility Inputs'!S29 -> 1700 | W10: ='Resource & Utility Inputs'!T29 -> 2500 | X10: ='Resource & Utility Inputs'!U29 -> 3750 | Y10: ='Resource & Utility Inputs'!V29 -> 2500
C11: 2012 | D11: ='Resource & Utility Inputs'!C49 -> 5.542402738 | E11: ='Resource & Utility Inputs'!E49 -> 5.226369047 | F11: ='Resource & Utility Inputs'!F49 -> 6.107999667 | G11: ='Resource & Utility Inputs'!H49 -> 3.597066304 | S11: 2012 | T11: ='Resource & Utility Inputs'!Q30 -> 1350 | U11: ='Resource & Utility Inputs'!R30 -> 3100 | V11: ='Resource & Utility Inputs'!S30 -> 1350 | W11: ='Resource & Utility Inputs'!T30 -> 2150 | X11: ='Resource & Utility Inputs'!U30 -> 3150 | Y11: ='Resource & Utility Inputs'!V30 -> 2150
C12: 2013 | D12: ='Resource & Utility Inputs'!C50 -> 4.537975916 | E12: ='Resource & Utility Inputs'!E50 -> 3.751192878 | F12: ='Resource & Utility Inputs'!F50 -> 6.107999667 | G12: ='Resource & Utility Inputs'!H50 -> 3.727792509 | S12: 2013 | T12: ='Resource & Utility Inputs'!Q31 -> 1250 | U12: ='Resource & Utility Inputs'!R31 -> 2800 | V12: ='Resource & Utility Inputs'!S31 -> 1250 | W12: ='Resource & Utility Inputs'!T31 -> 2150 | X12: ='Resource & Utility Inputs'!U31 -> 3150 | Y12: ='Resource & Utility Inputs'!V31 -> 2150
C13: 2014 | D13: ='Resource & Utility Inputs'!C51 -> 4.422611619 | E13: ='Resource & Utility Inputs'!E51 -> 3.810539983 | F13: ='Resource & Utility Inputs'!F51 -> 6.107999667 | G13: ='Resource & Utility Inputs'!H51 -> 3.727792509 | S13: 2014 | T13: ='Resource & Utility Inputs'!Q32 -> 400 | U13: ='Resource & Utility Inputs'!R52*5*1859/1000 -> 800.2995 | V13: ='Resource & Utility Inputs'!S52*5*1859/1000 -> 399.685 | W13: ='Resource & Utility Inputs'!T52*5*1859/1000 -> 399.685 | X13: ='Resource & Utility Inputs'!U52*5*1859/1000 -> 800.2995 | Y13: ='Resource & Utility Inputs'!V52*5*1859/1000 -> 399.685
C14: 2015 | D14: ='Resource & Utility Inputs'!C52 -> 4.348995683 | E14: ='Resource & Utility Inputs'!E52 -> 3.751274245 | F14: ='Resource & Utility Inputs'!F52 -> 6.107999667 | G14: ='Resource & Utility Inputs'!H52 -> 3.727792509 | S14: 2015 | T14: ='Resource & Utility Inputs'!Q33 -> 318.75 | U14: ='Resource & Utility Inputs'!R53*5*1859/1000 -> 637.776425 | V14: ='Resource & Utility Inputs'!S53*5*1859/1000 -> 318.72555 | W14: ='Resource & Utility Inputs'!T53*5*1859/1000 -> 399.685 | X14: ='Resource & Utility Inputs'!U53*5*1859/1000 -> 800.2995 | Y14: ='Resource & Utility Inputs'!V53*5*1859/1000 -> 399.685
C15: 2016 | D15: ='Resource & Utility Inputs'!C53 -> 4.291240162 | E15: ='Resource & Utility Inputs'!E53 -> 3.705312026 | F15: ='Resource & Utility Inputs'!F53 -> 6.107999667 | G15: ='Resource & Utility Inputs'!H53 -> 3.727792509 | S15: 2016 | T15: ='Resource & Utility Inputs'!Q34 -> 208 | U15: ='Resource & Utility Inputs'!R54*5*1859/1000 -> 416.369525 | V15: ='Resource & Utility Inputs'!S54*5*1859/1000 -> 207.87338 | W15: ='Resource & Utility Inputs'!T54*5*1859/1000 -> 399.685 | X15: ='Resource & Utility Inputs'!U54*5*1859/1000 -> 800.2995 | Y15: ='Resource & Utility Inputs'!V54*5*1859/1000 -> 399.685
B31: PV
C32: Incentivized | D32: Incentivized | E32: Incentivized | F32: Incentivized | G32: Incentivized | H32: Incentivized | I32: Non-Incentivized | J32: Non-Incentivized | K32: Non-Incentivized | L32: Non-Incentivized | M32: Non-Incentivized | N32: Non-Incentivized
C33: NVE North | D33: NVE North | E33: NVE North | F33: NVE South | G33: NVE South | H33: NVE South | I33: NVE North | J33: NVE North | K33: NVE North | L33: NVE South | M33: NVE South | N33: NVE South
C34: Commercial | D34: Residential | E34: Public | F34: Commercial | G34: Residential | H34: Public | I34: Commercial | J34: Residential | K34: Public | L34: Commercial | M34: Residential | N34: Public | Q34: Wind
B35: 2004 | C35: =INDEX('Summary Calcs'!$M$15:$M$266,MATCH($B35&C$32&C$33&C$34&$B$31,'Summary Calcs'!$F$15:$F$266&'Summary Calcs'!$E$15:$E$266&'Summary Calcs'!$C$15:$C$266&'Summary Calcs'!$B$15:$B$266&'Summary Calcs'!$D$15:$D$266,0)) -> 452.8055877 | D35: =INDEX('Summary Calcs'!$M$15:$M$266,MATCH($B35&D$32&D$33&D$34&$B$31,'Summary Calcs'!$F$15:$F$266&'Summary Calcs'!$E$15:$E$266&'Summary Calcs'!$C$15:$C$266&'Summary Calcs'!$B$15:$B$266&'Summary Calcs'!$D$15:$D$266,0)) -> 282.2369606 | E35: =INDEX('Summary Calcs'!$M$15:$M$266,MATCH($B35&E$32&E$33&E$34&$B$31,'Summary Calcs'!$F$15:$F$266&'Summary Calcs'!$E$15:$E$266&'Summary Calcs'!$C$15:$C$266&'Summary Calcs'!$B$15:$B$266&'Summary Calcs'!$D$15:$D$266,0)) -> 452.8055877 | F35: =INDEX('Summary Calcs'!$M$15:$M$266,MATCH($B35&F$32&F$33&F$34&$B$31,'Summary Calcs'!$F$15:$F$266&'Summary Calcs'!$E$15:$E$266&'Summary Calcs'!$C$15:$C$266&'Summary Calcs'!$B$15:$B$266&'Summary Calcs'!$D$15:$D$266,0)) -> 452.8055877 | G35: =INDEX('Summary Calcs'!$M$15:$M$266,MATCH($B35&G$32&G$33&G$34&$B$31,'Summary Calcs'!$F$15:$F$266&'Summary Calcs'!$E$15:$E$266&'Summary Calcs'!$C$15:$C$266&'Summary Calcs'!$B$15:$B$266&'Summary Calcs'!$D$15:$D$266,0)) -> 282.2369606 | H35: =INDEX('Summary Calcs'!$M$15:$M$266,MATCH($B35&H$32&H$33&H$34&$B$31,'Summary Calcs'!$F$15:$F$266&'Summary Calcs'!$E$15:$E$266&'Summary Calcs'!$C$15:$C$266&'Summary Calcs'!$B$15:$B$266&'Summary Calcs'!$D$15:$D$266,0)) -> 452.8055877 | I35: =INDEX('Summary Calcs'!$M$15:$M$266,MATCH($B35&I$32&I$33&I$34&$B$31,'Summary Calcs'!$F$15:$F$266&'Summary Calcs'!$E$15:$E$266&'Summary Calcs'!$C$15:$C$266&'Summary Calcs'!$B$15:$B$266&'Summary Calcs'!$D$15:$D$266,0)) -> 1015.739587 | J35: =INDEX('Summary Calcs'!$M$15:$M$266,MATCH($B35&J$32&J$33&J$34&$B$31,'Summary Calcs'!$F$15:$F$266&'Summary Calcs'!$E$15:$E$266&'Summary Calcs'!$C$15:$C$266&'Summary Calcs'!$B$15:$B$266&'Summary Calcs'!$D$15:$D$266,0)) -> 832.8751916 | K35: =INDEX('Summary Calcs'!$M$15:$M$266,MATCH($B35&K$32&K$33&K$34&$B$31,'Summary Calcs'!$F$15:$F$266&'Summary Calcs'!$E$15:$E$266&'Summary Calcs'!$C$15:$C$266&'Summary Calcs'!$B$15:$B$266&'Summary Calcs'!$D$15:$D$266,0)) -> 1015.739587 | L35: =INDEX('Summary Calcs'!$M$15:$M$266,MATCH($B35&L$32&L$33&L$34&$B$31,'Summary Calcs'!$F$15:$F$266&'Summary Calcs'!$E$15:$E$266&'Summary Calcs'!$C$15:$C$266&'Summary Calcs'!$B$15:$B$266&'Summary Calcs'!$D$15:$D$266,0)) -> 1015.739587 | M35: =INDEX('Summary Calcs'!$M$15:$M$266,MATCH($B35&M$32&M$33&M$34&$B$31,'Summary Calcs'!$F$15:$F$266&'Summary Calcs'!$E$15:$E$266&'Summary Calcs'!$C$15:$C$266&'Summary Calcs'!$B$15:$B$266&'Summary Calcs'!$D$15:$D$266,0)) -> 832.8751916 | N35: =INDEX('Summary Calcs'!$M$15:$M$266,MATCH($B35&N$32&N$33&N$34&$B$31,'Summary Calcs'!$F$15:$F$266&'Summary Calcs'!$E$15:$E$266&'Summary Calcs'!$C$15:$C$266&'Summary Calcs'!$B$15:$B$266&'Summary Calcs'!$D$15:$D$266,0)) -> 1015.739587 | R35: Incentivized | S35: Incentivized | T35: Incentivized | U35: Incentivized | V35: Incentivized | W35: Incentivized | X35: Non-Incentivized | Y35: Non-Incentivized | Z35: Non-Incentivized | AA35: Non-Incentivized | AB35: Non-Incentivized | AC35: Non-Incentivized
B36: 2005 | C36: =INDEX('Summary Calcs'!$M$15:$M$266,MATCH($B36&C$32&C$33&C$34&$B$31,'Summary Calcs'!$F$15:$F$266&'Summary Calcs'!$E$15:$E$266&'Summary Calcs'!$C$15:$C$266&'Summary Calcs'!$B$15:$B$266&'Summary Calcs'!$D$15:$D$266,0)) -> 575.1892887 | D36: =INDEX('Summary Calcs'!$M$15:$M$266,MATCH($B36&D$32&D$33&D$34&$B$31,'Summary Calcs'!$F$15:$F$266&'Summary Calcs'!$E$15:$E$266&'Summary Calcs'!$C$15:$C$266&'Summary Calcs'!$B$15:$B$266&'Summary Calcs'!$D$15:$D$266,0)) -> 397.7727109 | E36: =INDEX('Summary Calcs'!$M$15:$M$266,MATCH($B36&E$32&E$33&E$34&$B$31,'Summary Calcs'!$F$15:$F$266&'Summary Calcs'!$E$15:$E$266&'Summary Calcs'!$C$15:$C$266&'Summary Calcs'!$B$15:$B$266&'Summary Calcs'!$D$15:$D$266,0)) -> 575.1892887 | F36: =INDEX('Summary Calcs'!$M$15:$M$266,MATCH($B36&F$32&F$33&F$34&$B$31,'Summary Calcs'!$F$15:$F$266&'Summary Calcs'!$E$15:$E$266&'Summary Calcs'!$C$15:$C$266&'Summary Calcs'!$B$15:$B$266&'Summary Calcs'!$D$15:$D$266,0)) -> 575.1892887 | G36: =INDEX('Summary Calcs'!$M$15:$M$266,MATCH($B36&G$32&G$33&G$34&$B$31,'Summary Calcs'!$F$15:$F$266&'Summary Calcs'!$E$15:$E$266&'Summary Calcs'!$C$15:$C$266&'Summary Calcs'!$B$15:$B$266&'Summary Calcs'!$D$15:$D$266,0)) -> 397.7727109 | H36: =INDEX('Summary Calcs'!$M$15:$M$266,MATCH($B36&H$32&H$33&H$34&$B$31,'Summary Calcs'!$F$15:$F$266&'Summary Calcs'!$E$15:$E$266&'Summary Calcs'!$C$15:$C$266&'Summary Calcs'!$B$15:$B$266&'Summary Calcs'!$D$15:$D$266,0)) -> 575.1892887 | I36: =INDEX('Summary Calcs'!$M$15:$M$266,MATCH($B36&I$32&I$33&I$34&$B$31,'Summary Calcs'!$F$15:$F$266&'Summary Calcs'!$E$15:$E$266&'Summary Calcs'!$C$15:$C$266&'Summary Calcs'!$B$15:$B$266&'Summary Calcs'!$D$15:$D$266,0)) -> 1036.461341 | J36: =INDEX('Summary Calcs'!$M$15:$M$266,MATCH($B36&J$32&J$33&J$34&$B$31,'Summary Calcs'!$F$15:$F$266&'Summary Calcs'!$E$15:$E$266&'Summary Calcs'!$C$15:$C$266&'Summary Calcs'!$B$15:$B$266&'Summary Calcs'!$D$15:$D$266,0)) -> 849.8650185 | K36: =INDEX('Summary Calcs'!$M$15:$M$266,MATCH($B36&K$32&K$33&K$34&$B$31,'Summary Calcs'!$F$15:$F$266&'Summary Calcs'!$E$15:$E$266&'Summary Calcs'!$C$15:$C$266&'Summary Calcs'!$B$15:$B$266&'Summary Calcs'!$D$15:$D$266,0)) -> 1036.461341 | L36: =INDEX('Summary Calcs'!$M$15:$M$266,MATCH($B36&L$32&L$33&L$34&$B$31,'Summary Calcs'!$F$15:$F$266&'Summary Calcs'!$E$15:$E$266&'Summary Calcs'!$C$15:$C$266&'Summary Calcs'!$B$15:$B$266&'Summary Calcs'!$D$15:$D$266,0)) -> 1036.461341 | M36: =INDEX('Summary Calcs'!$M$15:$M$266,MATCH($B36&M$32&M$33&M$34&$B$31,'Summary Calcs'!$F$15:$F$266&'Summary Calcs'!$E$15:$E$266&'Summary Calcs'!$C$15:$C$266&'Summary Calcs'!$B$15:$B$266&'Summary Calcs'!$D$15:$D$266,0)) -> 849.8650185 | N36: =INDEX('Summary Calcs'!$M$15:$M$266,MATCH($B36&N$32&N$33&N$34&$B$31,'Summary Calcs'!$F$15:$F$266&'Summary Calcs'!$E$15:$E$266&'Summary Calcs'!$C$15:$C$266&'Summary Calcs'!$B$15:$B$266&'Summary Calcs'!$D$15:$D$266,0)) -> 1036.461341 | R36: NVE North | S36: NVE North | T36: NVE North | U36: NVE South | V36: NVE South | W36: NVE South | X36: NVE North | Y36: NVE North | Z36: NVE North | AA36: NVE South | AB36: NVE South | AC36: NVE South
B37: 2006 | C37: =INDEX('Summary Calcs'!$M$15:$M$266,MATCH($B37&C$32&C$33&C$34&$B$31,'Summary Calcs'!$F$15:$F$266&'Summary Calcs'!$E$15:$E$266&'Summary Calcs'!$C$15:$C$266&'Summary Calcs'!$B$15:$B$266&'Summary Calcs'!$D$15:$D$266,0)) -> 807.1313512 | D37: =INDEX('Summary Calcs'!$M$15:$M$266,MATCH($B37&D$32&D$33&D$34&$B$31,'Summary Calcs'!$F$15:$F$266&'Summary Calcs'!$E$15:$E$266&'Summary Calcs'!$C$15:$C$266&'Summary Calcs'!$B$15:$B$266&'Summary Calcs'!$D$15:$D$266,0)) -> 293.4043587 | E37: =INDEX('Summary Calcs'!$M$15:$M$266,MATCH($B37&E$32&E$33&E$34&$B$31,'Summary Calcs'!$F$15:$F$266&'Summary Calcs'!$E$15:$E$266&'Summary Calcs'!$C$15:$C$266&'Summary Calcs'!$B$15:$B$266&'Summary Calcs'!$D$15:$D$266,0)) -> 807.1313512 | F37: =INDEX('Summary Calcs'!$M$15:$M$266,MATCH($B37&F$32&F$33&F$34&$B$31,'Summary Calcs'!$F$15:$F$266&'Summary Calcs'!$E$15:$E$266&'Summary Calcs'!$C$15:$C$266&'Summary Calcs'!$B$15:$B$266&'Summary Calcs'!$D$15:$D$266,0)) -> 807.1313512 | G37: =INDEX('Summary Calcs'!$M$15:$M$266,MATCH($B37&G$32&G$33&G$34&$B$31,'Summary Calcs'!$F$15:$F$266&'Summary Calcs'!$E$15:$E$266&'Summary Calcs'!$C$15:$C$266&'Summary Calcs'!$B$15:$B$266&'Summary Calcs'!$D$15:$D$266,0)) -> 293.4043587 | H37: =INDEX('Summary Calcs'!$M$15:$M$266,MATCH($B37&H$32&H$33&H$34&$B$31,'Summary Calcs'!$F$15:$F$266&'Summary Calcs'!$E$15:$E$266&'Summary Calcs'!$C$15:$C$266&'Summary Calcs'!$B$15:$B$266&'Summary Calcs'!$D$15:$D$266,0)) -> 807.1313512 | I37: =INDEX('Summary Calcs'!$M$15:$M$266,MATCH($B37&I$32&I$33&I$34&$B$31,'Summary Calcs'!$F$15:$F$266&'Summary Calcs'!$E$15:$E$266&'Summary Calcs'!$C$15:$C$266&'Summary Calcs'!$B$15:$B$266&'Summary Calcs'!$D$15:$D$266,0)) -> 1113.863983 | J37: =INDEX('Summary Calcs'!$M$15:$M$266,MATCH($B37&J$32&J$33&J$34&$B$31,'Summary Calcs'!$F$15:$F$266&'Summary Calcs'!$E$15:$E$266&'Summary Calcs'!$C$15:$C$266&'Summary Calcs'!$B$15:$B$266&'Summary Calcs'!$D$15:$D$266,0)) -> 595.0890048 | K37: =INDEX('Summary Calcs'!$M$15:$M$266,MATCH($B37&K$32&K$33&K$34&$B$31,'Summary Calcs'!$F$15:$F$266&'Summary Calcs'!$E$15:$E$266&'Summary Calcs'!$C$15:$C$266&'Summary Calcs'!$B$15:$B$266&'Summary Calcs'!$D$15:$D$266,0)) -> 1113.863983 | L37: =INDEX('Summary Calcs'!$M$15:$M$266,MATCH($B37&L$32&L$33&L$34&$B$31,'Summary Calcs'!$F$15:$F$266&'Summary Calcs'!$E$15:$E$266&'Summary Calcs'!$C$15:$C$266&'Summary Calcs'!$B$15:$B$266&'Summary Calcs'!$D$15:$D$266,0)) -> 1113.863983 | M37: =INDEX('Summary Calcs'!$M$15:$M$266,MATCH($B37&M$32&M$33&M$34&$B$31,'Summary Calcs'!$F$15:$F$266&'Summary Calcs'!$E$15:$E$266&'Summary Calcs'!$C$15:$C$266&'Summary Calcs'!$B$15:$B$266&'Summary Calcs'!$D$15:$D$266,0)) -> 595.0890048 | N37: =INDEX('Summary Calcs'!$M$15:$M$266,MATCH($B37&N$32&N$33&N$34&$B$31,'Summary Calcs'!$F$15:$F$266&'Summary Calcs'!$E$15:$E$266&'Summary Calcs'!$C$15:$C$266&'Summary Calcs'!$B$15:$B$266&'Summary Calcs'!$D$15:$D$266,0)) -> 1113.863983 | R37: Commercial | S37: Residential | T37: Public | U37: Commercial | V37: Residential | W37: Public | X37: Commercial | Y37: Residential | Z37: Public | AA37: Commercial | AB37: Residential | AC37: Public
B38: 2007 | C38: =INDEX('Summary Calcs'!$M$15:$M$266,MATCH($B38&C$32&C$33&C$34&$B$31,'Summary Calcs'!$F$15:$F$266&'Summary Calcs'!$E$15:$E$266&'Summary Calcs'!$C$15:$C$266&'Summary Calcs'!$B$15:$B$266&'Summary Calcs'!$D$15:$D$266,0)) -> 298.9967309 | D38: =INDEX('Summary Calcs'!$M$15:$M$266,MATCH($B38&D$32&D$33&D$34&$B$31,'Summary Calcs'!$F$15:$F$266&'Summary Calcs'!$E$15:$E$266&'Summary Calcs'!$C$15:$C$266&'Summary Calcs'!$B$15:$B$266&'Summary Calcs'!$D$15:$D$266,0)) -> 301.1421312 | E38: =INDEX('Summary Calcs'!$M$15:$M$266,MATCH($B38&E$32&E$33&E$34&$B$31,'Summary Calcs'!$F$15:$F$266&'Summary Calcs'!$E$15:$E$266&'Summary Calcs'!$C$15:$C$266&'Summary Calcs'!$B$15:$B$266&'Summary Calcs'!$D$15:$D$266,0)) -> 107.4979119 | F38: =INDEX('Summary Calcs'!$M$15:$M$266,MATCH($B38&F$32&F$33&F$34&$B$31,'Summary Calcs'!$F$15:$F$266&'Summary Calcs'!$E$15:$E$266&'Summary Calcs'!$C$15:$C$266&'Summary Calcs'!$B$15:$B$266&'Summary Calcs'!$D$15:$D$266,0)) -> 298.9967309 | G38: =INDEX('Summary Calcs'!$M$15:$M$266,MATCH($B38&G$32&G$33&G$34&$B$31,'Summary Calcs'!$F$15:$F$266&'Summary Calcs'!$E$15:$E$266&'Summary Calcs'!$C$15:$C$266&'Summary Calcs'!$B$15:$B$266&'Summary Calcs'!$D$15:$D$266,0)) -> 301.1421312 | H38: =INDEX('Summary Calcs'!$M$15:$M$266,MATCH($B38&H$32&H$33&H$34&$B$31,'Summary Calcs'!$F$15:$F$266&'Summary Calcs'!$E$15:$E$266&'Summary Calcs'!$C$15:$C$266&'Summary Calcs'!$B$15:$B$266&'Summary Calcs'!$D$15:$D$266,0)) -> 107.4979119 | I38: =INDEX('Summary Calcs'!$M$15:$M$266,MATCH($B38&I$32&I$33&I$34&$B$31,'Summary Calcs'!$F$15:$F$266&'Summary Calcs'!$E$15:$E$266&'Summary Calcs'!$C$15:$C$266&'Summary Calcs'!$B$15:$B$266&'Summary Calcs'!$D$15:$D$266,0)) -> 600.7678397 | J38: =INDEX('Summary Calcs'!$M$15:$M$266,MATCH($B38&J$32&J$33&J$34&$B$31,'Summary Calcs'!$F$15:$F$266&'Summary Calcs'!$E$15:$E$266&'Summary Calcs'!$C$15:$C$266&'Summary Calcs'!$B$15:$B$266&'Summary Calcs'!$D$15:$D$266,0)) -> 603.2177316 | K38: =INDEX('Summary Calcs'!$M$15:$M$266,MATCH($B38&K$32&K$33&K$34&$B$31,'Summary Calcs'!$F$15:$F$266&'Summary Calcs'!$E$15:$E$266&'Summary Calcs'!$C$15:$C$266&'Summary Calcs'!$B$15:$B$266&'Summary Calcs'!$D$15:$D$266,0)) -> 600.7678397 | L38: =INDEX('Summary Calcs'!$M$15:$M$266,MATCH($B38&L$32&L$33&L$34&$B$31,'Summary Calcs'!$F$15:$F$266&'Summary Calcs'!$E$15:$E$266&'Summary Calcs'!$C$15:$C$266&'Summary Calcs'!$B$15:$B$266&'Summary Calcs'!$D$15:$D$266,0)) -> 600.7678397 | M38: =INDEX('Summary Calcs'!$M$15:$M$266,MATCH($B38&M$32&M$33&M$34&$B$31,'Summary Calcs'!$F$15:$F$266&'Summary Calcs'!$E$15:$E$266&'Summary Calcs'!$C$15:$C$266&'Summary Calcs'!$B$15:$B$266&'Summary Calcs'!$D$15:$D$266,0)) -> 603.2177316 | N38: =INDEX('Summary Calcs'!$M$15:$M$266,MATCH($B38&N$32&N$33&N$34&$B$31,'Summary Calcs'!$F$15:$F$266&'Summary Calcs'!$E$15:$E$266&'Summary Calcs'!$C$15:$C$266&'Summary Calcs'!$B$15:$B$266&'Summary Calcs'!$D$15:$D$266,0)) -> 600.7678397 | Q38: 2009 | R38: =INDEX('Summary Calcs'!$M$15:$M$266,MATCH($Q38&R$35&R$36&R$37&$Q$34,'Summary Calcs'!$F$15:$F$266&'Summary Calcs'!$E$15:$E$266&'Summary Calcs'!$C$15:$C$266&'Summary Calcs'!$B$15:$B$266&'Summary Calcs'!$D$15:$D$266,0)) -> 409.8269022 | S38: =INDEX('Summary Calcs'!$M$15:$M$266,MATCH($Q38&S$35&S$36&S$37&$Q$34,'Summary Calcs'!$F$15:$F$266&'Summary Calcs'!$E$15:$E$266&'Summary Calcs'!$C$15:$C$266&'Summary Calcs'!$B$15:$B$266&'Summary Calcs'!$D$15:$D$266,0)) -> 206.7751459 | T38: =INDEX('Summary Calcs'!$M$15:$M$266,MATCH($Q38&T$35&T$36&T$37&$Q$34,'Summary Calcs'!$F$15:$F$266&'Summary Calcs'!$E$15:$E$266&'Summary Calcs'!$C$15:$C$266&'Summary Calcs'!$B$15:$B$266&'Summary Calcs'!$D$15:$D$266,0)) -> 362.3904199 | U38: =INDEX('Summary Calcs'!$M$15:$M$266,MATCH($Q38&U$35&U$36&U$37&$Q$34,'Summary Calcs'!$F$15:$F$266&'Summary Calcs'!$E$15:$E$266&'Summary Calcs'!$C$15:$C$266&'Summary Calcs'!$B$15:$B$266&'Summary Calcs'!$D$15:$D$266,0)) -> 409.8269022 | V38: =INDEX('Summary Calcs'!$M$15:$M$266,MATCH($Q38&V$35&V$36&V$37&$Q$34,'Summary Calcs'!$F$15:$F$266&'Summary Calcs'!$E$15:$E$266&'Summary Calcs'!$C$15:$C$266&'Summary Calcs'!$B$15:$B$266&'Summary Calcs'!$D$15:$D$266,0)) -> 206.7751459 | W38: =INDEX('Summary Calcs'!$M$15:$M$266,MATCH($Q38&W$35&W$36&W$37&$Q$34,'Summary Calcs'!$F$15:$F$266&'Summary Calcs'!$E$15:$E$266&'Summary Calcs'!$C$15:$C$266&'Summary Calcs'!$B$15:$B$266&'Summary Calcs'!$D$15:$D$266,0)) -> 362.3904199 | X38: =INDEX('Summary Calcs'!$M$15:$M$266,MATCH($Q38&X$35&X$36&X$37&$Q$34,'Summary Calcs'!$F$15:$F$266&'Summary Calcs'!$E$15:$E$266&'Summary Calcs'!$C$15:$C$266&'Summary Calcs'!$B$15:$B$266&'Summary Calcs'!$D$15:$D$266,0)) -> 656.7265951 | Y38: =INDEX('Summary Calcs'!$M$15:$M$266,MATCH($Q38&Y$35&Y$36&Y$37&$Q$34,'Summary Calcs'!$F$15:$F$266&'Summary Calcs'!$E$15:$E$266&'Summary Calcs'!$C$15:$C$266&'Summary Calcs'!$B$15:$B$266&'Summary Calcs'!$D$15:$D$266,0)) -> 450.0025129 | Z38: =INDEX('Summary Calcs'!$M$15:$M$266,MATCH($Q38&Z$35&Z$36&Z$37&$Q$34,'Summary Calcs'!$F$15:$F$266&'Summary Calcs'!$E$15:$E$266&'Summary Calcs'!$C$15:$C$266&'Summary Calcs'!$B$15:$B$266&'Summary Calcs'!$D$15:$D$266,0)) -> 656.7265951 | AA38: =INDEX('Summary Calcs'!$M$15:$M$266,MATCH($Q38&AA$35&AA$36&AA$37&$Q$34,'Summary Calcs'!$F$15:$F$266&'Summary Calcs'!$E$15:$E$266&'Summary Calcs'!$C$15:$C$266&'Summary Calcs'!$B$15:$B$266&'Summary Calcs'!$D$15:$D$266,0)) -> 656.7265951 | AB38: =INDEX('Summary Calcs'!$M$15:$M$266,MATCH($Q38&AB$35&AB$36&AB$37&$Q$34,'Summary Calcs'!$F$15:$F$266&'Summary Calcs'!$E$15:$E$266&'Summary Calcs'!$C$15:$C$266&'Summary Calcs'!$B$15:$B$266&'Summary Calcs'!$D$15:$D$266,0)) -> 450.0025129 | AC38: =INDEX('Summary Calcs'!$M$15:$M$266,MATCH($Q38&AC$35&AC$36&AC$37&$Q$34,'Summary Calcs'!$F$15:$F$266&'Summary Calcs'!$E$15:$E$266&'Summary Calcs'!$C$15:$C$266&'Summary Calcs'!$B$15:$B$266&'Summary Calcs'!$D$15:$D$266,0)) -> 656.7265951
